Workbook

Sheet Legende
A5: Gutachten zur Ermittlung von Produktivitätsfortschrittsraten im Auftrag der Bundesnetzagentur
A7: Tool 2 Entwicklung der Arbeitsproduktivität für Post-, Kurier- und Expressdienste in anderen europäischen Ländern
B9: Version | C9: 1.0
B10: Datum | C10: 2020-09-24
B13: Wirtschaftszweig: | C13: Post-, Kurier und Expressdienste (WZ 53) anderer europäischer Länder
B14: Datenbasis: | C14: EU KLEMS-Datenbank (Release 2019)
C15: Eurostat
A17: Legende - Zellen
C18: Inputzellen
C19: Outputzellen
A22: Legende - Arbeitsblätter
B23: IN_OUT_ | C23: Dateneingabe und Parameterwahl / Ergebnisse
B24: NR_ | C24: Nebenrechnung
B25: RD_ | C25: Rohdaten
B26: HI_ | C26: Hilfstabelle

Sheet IN_OUT
F2: Verfügbare Jahre
D3: Bei Auswahl "Alle verfügbaren Länder" wird die individuelle Länderauswahl ignoriert. | F3: Bruttowertschöpfung pro Stunde | G3: Bruttowertschöpfung pro Erwerbstätige(r) | H3: Produktionswert pro Erwerbstätige(r)
B4: Länderauswahl | C4: Alle verfügbaren Länder
C5: Österreich | F5: 1996 bis 2017 | G5: 1996 bis 2017 | H5: 1996 bis 2017
C6: Belgien | F6: 2000 bis 2016 | G6: 1996 bis 2016 | H6: 1996 bis 2016
C7: Tschechien | F7: 1996 bis 2017 | G7: 1996 bis 2017 | H7: 1996 bis 2017
C8: Dänemark | F8: 1996 bis 2017 | G8: 1996 bis 2017 | H8: 1996 bis 2017
C9: Estland | F9: 2001 bis 2017 | G9: 1996 bis 2017 | H9: 1996 bis 2017
C10: Frankreich | F10: nicht verfügbar | G10: 1996 bis 2017 | H10: 1996 bis 2016
C11: Griechenland | F11: 1996 bis 2017 | G11: 1996 bis 2017 | H11: 1996 bis 2017
C12: Italien | F12: nicht verfügbar | G12: 1996 bis 2017 | H12: 1996 bis 2015
C13: Spanien | F13: 1996 bis 2017 | G13: 1996 bis 2017 | H13: nicht verfügbar
C14: Finnland | F14: 1996 bis 2017 | G14: 1996 bis 2017 | H14: 1996 bis 2017
C15: Ungarn | F15: 2011 bis 2017 | G15: 1996 bis 2017 | H15: 1996 bis 2017
C16: Irland | F16: 1996 bis 2017 | G16: 1996 bis 2017 | H16: nicht verfügbar
C17: Niederlande | F17: 1996 bis 2017 | G17: 1996 bis 2017 | H17: 1996 bis 2017
C18: Portugal | F18: 2011 bis 2017 | G18: 1996 bis 2017 | H18: 1996 bis 2016
C19: Rumänien | F19: 1996 bis 2017 | G19: 1996 bis 2017 | H19: 1996 bis 2017
C20: Slowenien | F20: 1996 bis 2017 | G20: 1996 bis 2017 | H20: 2001 bis 2016
C21: Slowakei | F21: 1996 bis 2017 | G21: 1996 bis 2017 | H21: 1996 bis 2015
C22: Großbritannien | F22: nicht verfügbar | G22: 1996 bis 2016 | H22: nicht verfügbar
B24: Ländergewichtung | C24: Nach Einwohnerzahl
B26: Berechnungsperiode
B27: Startjahr | C27: 2011
B28: Endjahr | C28: 2017
C30: Bruttowertschöpfung pro Stunde | F30: Bruttowertschöpfung pro Erwerbstätige(r) | I30: Produktionswert pro Erwerbstätige(r)
C32: Arithmetisches Mittel | D32: Geometrisches Mittel | F32: Arithmetisches Mittel | G32: Geometrisches Mittel | I32: Arithmetisches Mittel | J32: Geometrisches Mittel
C33: =IF(HI_Hilfstabelle!D22=0,"Bitte treffen Sie eine Auswahl.", IF(IN_OUT!C27>=IN_OUT!C28,"Das Startjahr muss größer als das Endjahr sein.", IF(AND(HI_Hilfstabelle!C3="Alle verfügbaren",IN_OUT!C24="Gleichgewichtet (einfacher Durchschnitt)"),NR_Berechnung!AA26, IF(AND(HI_Hilfstabelle!C3="Alle verfügbaren",IN_OUT!C24="Nach Einwohnerzahl"),NR_Berechnung!AF26, IF(AND(HI_Hilfstabelle!C3="Alle verfügbaren",IN_OUT!C24="Nach BIP pro Kopf"),NR_Berechnung!AK26, IF(ISERROR(HI_Hilfstabelle!E22),"Die ausgewählten Länder oder Jahre sind nicht verfügbar.", IF(IN_OUT!C24="Gleichgewichtet (einfacher Durchschnitt)",NR_Berechnung!BL26, IF(IN_OUT!C24="Nach Einwohnerzahl",NR_Berechnung!BQ26, IF(IN_OUT!C24="Nach BIP pro Kopf",NR_Berechnung!BV26))))))))) -> Die ausgewählten Länder oder Jahre sind nicht verfügbar. | D33: =IF(HI_Hilfstabelle!D22=0,"Bitte treffen Sie eine Auswahl.", IF(IN_OUT!C27>=IN_OUT!C28,"Das Startjahr muss größer als das Endjahr sein.", IF(AND(HI_Hilfstabelle!C3="Alle verfügbaren",IN_OUT!C24="Gleichgewichtet (einfacher Durchschnitt)"),NR_Berechnung!AB26, IF(AND(HI_Hilfstabelle!C3="Alle verfügbaren",IN_OUT!C24="Nach Einwohnerzahl"),NR_Berechnung!AG26, IF(AND(HI_Hilfstabelle!C3="Alle verfügbaren",IN_OUT!C24="Nach BIP pro Kopf"),NR_Berechnung!AL26, IF(ISERROR(HI_Hilfstabelle!E22),"Die ausgewählten Länder oder Jahre sind nicht verfügbar.", IF(IN_OUT!C24="Gleichgewichtet (einfacher Durchschnitt)",NR_Berechnung!BM26, IF(IN_OUT!C24="Nach Einwohnerzahl",NR_Berechnung!BR26, IF(IN_OUT!C24="Nach BIP pro Kopf",NR_Berechnung!BW26))))))))) -> Die ausgewählten Länder oder Jahre sind nicht verfügbar. | F33: =IF(HI_Hilfstabelle!D22=0,"Bitte treffen Sie eine Auswahl.", IF(IN_OUT!C27>=IN_OUT!C28,"Das Startjahr muss größer als das Endjahr sein.", IF(AND(HI_Hilfstabelle!C3="Alle verfügbaren",IN_OUT!C24="Gleichgewichtet (einfacher Durchschnitt)"),NR_Berechnung!AA85, IF(AND(HI_Hilfstabelle!C3="Alle verfügbaren",IN_OUT!C24="Nach Einwohnerzahl"),NR_Berechnung!AF85, IF(AND(HI_Hilfstabelle!C3="Alle verfügbaren",IN_OUT!C24="Nach BIP pro Kopf"),NR_Berechnung!AK85, IF(ISERROR(HI_Hilfstabelle!G22),"Die ausgewählten Länder oder Jahre sind nicht verfügbar.", IF(IN_OUT!C24="Gleichgewichtet (einfacher Durchschnitt)",NR_Berechnung!BL85, IF(IN_OUT!C24="Nach Einwohnerzahl",NR_Berechnung!BQ85, IF(IN_OUT!C24="Nach BIP pro Kopf",NR_Berechnung!BV85))))))))) -> -0.009422766875 | G33: =IF(HI_Hilfstabelle!D22=0,"Bitte treffen Sie eine Auswahl.", IF(IN_OUT!C27>=IN_OUT!C28,"Das Startjahr muss größer als das Endjahr sein.", IF(AND(HI_Hilfstabelle!C3="Alle verfügbaren",IN_OUT!C24="Gleichgewichtet (einfacher Durchschnitt)"),NR_Berechnung!AB85, IF(AND(HI_Hilfstabelle!C3="Alle verfügbaren",IN_OUT!C24="Nach Einwohnerzahl"),NR_Berechnung!AG85, IF(AND(HI_Hilfstabelle!C3="Alle verfügbaren",IN_OUT!C24="Nach BIP pro Kopf"),NR_Berechnung!AL85, IF(ISERROR(HI_Hilfstabelle!G22),"Die ausgewählten Länder oder Jahre sind nicht verfügbar.", IF(IN_OUT!C24="Gleichgewichtet (einfacher Durchschnitt)",NR_Berechnung!BM85, IF(IN_OUT!C24="Nach Einwohnerzahl",NR_Berechnung!BR85, IF(IN_OUT!C24="Nach BIP pro Kopf",NR_Berechnung!BW85))))))))) -> -0.01273635849 | I33: =IF(HI_Hilfstabelle!D22=0,"Bitte treffen Sie eine Auswahl.", IF(IN_OUT!C27>=IN_OUT!C28,"Das Startjahr muss größer als das Endjahr sein.", IF(AND(HI_Hilfstabelle!C3="Alle verfügbaren",IN_OUT!C24="Gleichgewichtet (einfacher Durchschnitt)"),NR_Berechnung!AA55, IF(AND(HI_Hilfstabelle!C3="Alle verfügbaren",IN_OUT!C24="Nach Einwohnerzahl"),NR_Berechnung!AF55, IF(AND(HI_Hilfstabelle!C3="Alle verfügbaren",IN_OUT!C24="Nach BIP pro Kopf"),NR_Berechnung!AK55, IF(ISERROR(HI_Hilfstabelle!F22),"Die ausgewählten Länder oder Jahre sind nicht verfügbar.", IF(IN_OUT!C24="Gleichgewichtet (einfacher Durchschnitt)",NR_Berechnung!BL55, IF(IN_OUT!C24="Nach Einwohnerzahl",NR_Berechnung!BQ55, IF(IN_OUT!C24="Nach BIP pro Kopf",NR_Berechnung!BV55))))))))) -> Die ausgewählten Länder oder Jahre sind nicht verfügbar. | J33: =IF(HI_Hilfstabelle!D22=0,"Bitte treffen Sie eine Auswahl.", IF(IN_OUT!C27>=IN_OUT!C28,"Das Startjahr muss größer als das Endjahr sein.", IF(AND(HI_Hilfstabelle!C3="Alle verfügbaren",IN_OUT!C24="Gleichgewichtet (einfacher Durchschnitt)"),NR_Berechnung!AB55, IF(AND(HI_Hilfstabelle!C3="Alle verfügbaren",IN_OUT!C24="Nach Einwohnerzahl"),NR_Berechnung!AG55, IF(AND(HI_Hilfstabelle!C3="Alle verfügbaren",IN_OUT!C24="Nach BIP pro Kopf"),NR_Berechnung!AL55, IF(ISERROR(HI_Hilfstabelle!F22),"Die ausgewählten Länder oder Jahre sind nicht verfügbar.", IF(IN_OUT!C24="Gleichgewichtet (einfacher Durchschnitt)",NR_Berechnung!BM55, IF(IN_OUT!C24="Nach Einwohnerzahl",NR_Berechnung!BR55, IF(IN_OUT!C24="Nach BIP pro Kopf",NR_Berechnung!BW55))))))))) -> Die ausgewählten Länder oder Jahre sind nicht verfügbar.
C35: =IF(HI_Hilfstabelle!B3=TRUE, "Sie haben 'Alle verfügbaren Länder' ausgewählt. Folgende Länder wurden für die Berechnung berücksichtigt:","") ->  | F35: =IF(HI_Hilfstabelle!B3=TRUE, "Sie haben 'Alle verfügbaren Länder' ausgewählt. Folgende Länder wurden für die Berechnung berücksichtigt:","") ->  | I35: =IF(HI_Hilfstabelle!B3=TRUE, "Sie haben 'Alle verfügbaren Länder' ausgewählt. Folgende Länder wurden für die Berechnung berücksichtigt:","") -> 
C38: =IF(AND(HI_Hilfstabelle!$B$3=TRUE,NR_Berechnung!AA4<>""),NR_Berechnung!A4,"") ->  | F38: =IF(AND(HI_Hilfstabelle!$B$3=TRUE,NR_Berechnung!AA63<>""),NR_Berechnung!A63,"") ->  | I38: =IF(AND(HI_Hilfstabelle!$B$3=TRUE,NR_Berechnung!AA33<>""),NR_Berechnung!A33,"") -> 
C39: =IF(AND(HI_Hilfstabelle!$B$3=TRUE,NR_Berechnung!AA5<>""),NR_Berechnung!A5,"") ->  | F39: =IF(AND(HI_Hilfstabelle!$B$3=TRUE,NR_Berechnung!AA64<>""),NR_Berechnung!A64,"") ->  | I39: =IF(AND(HI_Hilfstabelle!$B$3=TRUE,NR_Berechnung!AA34<>""),NR_Berechnung!A34,"") -> 
C40: =IF(AND(HI_Hilfstabelle!$B$3=TRUE,NR_Berechnung!AA6<>""),NR_Berechnung!A6,"") ->  | F40: =IF(AND(HI_Hilfstabelle!$B$3=TRUE,NR_Berechnung!AA65<>""),NR_Berechnung!A65,"") ->  | I40: =IF(AND(HI_Hilfstabelle!$B$3=TRUE,NR_Berechnung!AA35<>""),NR_Berechnung!A35,"") -> 
C41: =IF(AND(HI_Hilfstabelle!$B$3=TRUE,NR_Berechnung!AA7<>""),NR_Berechnung!A7,"") ->  | F41: =IF(AND(HI_Hilfstabelle!$B$3=TRUE,NR_Berechnung!AA66<>""),NR_Berechnung!A66,"") ->  | I41: =IF(AND(HI_Hilfstabelle!$B$3=TRUE,NR_Berechnung!AA36<>""),NR_Berechnung!A36,"") -> 
C42: =IF(AND(HI_Hilfstabelle!$B$3=TRUE,NR_Berechnung!AA8<>""),NR_Berechnung!A8,"") ->  | F42: =IF(AND(HI_Hilfstabelle!$B$3=TRUE,NR_Berechnung!AA67<>""),NR_Berechnung!A67,"") ->  | I42: =IF(AND(HI_Hilfstabelle!$B$3=TRUE,NR_Berechnung!AA37<>""),NR_Berechnung!A37,"") -> 
C43: =IF(AND(HI_Hilfstabelle!$B$3=TRUE,NR_Berechnung!AA9<>""),NR_Berechnung!A9,"") ->  | F43: =IF(AND(HI_Hilfstabelle!$B$3=TRUE,NR_Berechnung!AA68<>""),NR_Berechnung!A68,"") ->  | I43: =IF(AND(HI_Hilfstabelle!$B$3=TRUE,NR_Berechnung!AA38<>""),NR_Berechnung!A38,"") -> 
C44: =IF(AND(HI_Hilfstabelle!$B$3=TRUE,NR_Berechnung!AA10<>""),NR_Berechnung!A10,"") ->  | F44: =IF(AND(HI_Hilfstabelle!$B$3=TRUE,NR_Berechnung!AA69<>""),NR_Berechnung!A69,"") ->  | I44: =IF(AND(HI_Hilfstabelle!$B$3=TRUE,NR_Berechnung!AA39<>""),NR_Berechnung!A39,"") -> 
C45: =IF(AND(HI_Hilfstabelle!$B$3=TRUE,NR_Berechnung!AA11<>""),NR_Berechnung!A11,"") ->  | F45: =IF(AND(HI_Hilfstabelle!$B$3=TRUE,NR_Berechnung!AA70<>""),NR_Berechnung!A70,"") ->  | I45: =IF(AND(HI_Hilfstabelle!$B$3=TRUE,NR_Berechnung!AA40<>""),NR_Berechnung!A40,"") -> 
C46: =IF(AND(HI_Hilfstabelle!$B$3=TRUE,NR_Berechnung!AA12<>""),NR_Berechnung!A12,"") ->  | F46: =IF(AND(HI_Hilfstabelle!$B$3=TRUE,NR_Berechnung!AA71<>""),NR_Berechnung!A71,"") ->  | I46: =IF(AND(HI_Hilfstabelle!$B$3=TRUE,NR_Berechnung!AA41<>""),NR_Berechnung!A41,"") -> 
C47: =IF(AND(HI_Hilfstabelle!$B$3=TRUE,NR_Berechnung!AA13<>""),NR_Berechnung!A13,"") ->  | F47: =IF(AND(HI_Hilfstabelle!$B$3=TRUE,NR_Berechnung!AA72<>""),NR_Berechnung!A72,"") ->  | I47: =IF(AND(HI_Hilfstabelle!$B$3=TRUE,NR_Berechnung!AA42<>""),NR_Berechnung!A42,"") -> 
C48: =IF(AND(HI_Hilfstabelle!$B$3=TRUE,NR_Berechnung!AA14<>""),NR_Berechnung!A14,"") ->  | F48: =IF(AND(HI_Hilfstabelle!$B$3=TRUE,NR_Berechnung!AA73<>""),NR_Berechnung!A73,"") ->  | I48: =IF(AND(HI_Hilfstabelle!$B$3=TRUE,NR_Berechnung!AA43<>""),NR_Berechnung!A43,"") -> 
C49: =IF(AND(HI_Hilfstabelle!$B$3=TRUE,NR_Berechnung!AA15<>""),NR_Berechnung!A15,"") ->  | F49: =IF(AND(HI_Hilfstabelle!$B$3=TRUE,NR_Berechnung!AA74<>""),NR_Berechnung!A74,"") ->  | I49: =IF(AND(HI_Hilfstabelle!$B$3=TRUE,NR_Berechnung!AA44<>""),NR_Berechnung!A44,"") -> 
C50: =IF(AND(HI_Hilfstabelle!$B$3=TRUE,NR_Berechnung!AA16<>""),NR_Berechnung!A16,"") ->  | F50: =IF(AND(HI_Hilfstabelle!$B$3=TRUE,NR_Berechnung!AA75<>""),NR_Berechnung!A75,"") ->  | I50: =IF(AND(HI_Hilfstabelle!$B$3=TRUE,NR_Berechnung!AA45<>""),NR_Berechnung!A45,"") -> 
C51: =IF(AND(HI_Hilfstabelle!$B$3=TRUE,NR_Berechnung!AA17<>""),NR_Berechnung!A17,"") ->  | F51: =IF(AND(HI_Hilfstabelle!$B$3=TRUE,NR_Berechnung!AA76<>""),NR_Berechnung!A76,"") ->  | I51: =IF(AND(HI_Hilfstabelle!$B$3=TRUE,NR_Berechnung!AA46<>""),NR_Berechnung!A46,"") -> 
C52: =IF(AND(HI_Hilfstabelle!$B$3=TRUE,NR_Berechnung!AA18<>""),NR_Berechnung!A18,"") ->  | F52: =IF(AND(HI_Hilfstabelle!$B$3=TRUE,NR_Berechnung!AA77<>""),NR_Berechnung!A77,"") ->  | I52: =IF(AND(HI_Hilfstabelle!$B$3=TRUE,NR_Berechnung!AA47<>""),NR_Berechnung!A47,"") -> 
C53: =IF(AND(HI_Hilfstabelle!$B$3=TRUE,NR_Berechnung!AA19<>""),NR_Berechnung!A19,"") ->  | F53: =IF(AND(HI_Hilfstabelle!$B$3=TRUE,NR_Berechnung!AA78<>""),NR_Berechnung!A78,"") ->  | I53: =IF(AND(HI_Hilfstabelle!$B$3=TRUE,NR_Berechnung!AA48<>""),NR_Berechnung!A48,"") -> 
C54: =IF(AND(HI_Hilfstabelle!$B$3=TRUE,NR_Berechnung!AA20<>""),NR_Berechnung!A20,"") ->  | F54: =IF(AND(HI_Hilfstabelle!$B$3=TRUE,NR_Berechnung!AA79<>""),NR_Berechnung!A79,"") ->  | I54: =IF(AND(HI_Hilfstabelle!$B$3=TRUE,NR_Berechnung!AA49<>""),NR_Berechnung!A49,"") -> 
C55: =IF(AND(HI_Hilfstabelle!$B$3=TRUE,NR_Berechnung!AA21<>""),NR_Berechnung!A21,"") -> 

Sheet NR_Berechnung
C2: Bruttowertschöpfung pro Arbeitsstunde - Alle Länder | AA2: Gleichgewichtet | AC2: Nach Einwohnerzahl | AF2: Gewichtete Verändrungsrate | AH2: Nach BIP/Kopf | AK2: Gewichtete Verändrungsrate | AN2: Bruttowertschöpfung pro Arbeitsstunde - Länderauswahl | BL2: Gleichgewichtet | BN2: Nach Einwohnerzahl | BQ2: Gewichtete Verändrungsrate | BS2: Nach BIP/Kopf | BV2: Gewichtete Verändrungsrate
C3: 1996 | D3: =C3+1 -> 1997 | E3: 1998 | F3: 1999 | G3: 2000 | H3: 2001 | I3: 2002 | J3: 2003 | K3: 2004 | L3: 2005 | M3: 2006 | N3: 2007 | O3: 2008 | P3: 2009 | Q3: 2010 | R3: 2011 | S3: 2012 | T3: 2013 | U3: 2014 | V3: 2015 | W3: 2016 | X3: 2017 | Y3: Arithmet. Mittel | Z3: Geomittel | AA3: Arithmet. Mittel | AB3: Geomittel | AC3: Absolut | AD3: Anteil AM | AE3: Anteil GM | AF3: Arithmet. Mittel | AG3: Geomittel | AH3: Absolut | AI3: Anteil AM | AJ3: Anteil GM | AK3: Arithmet. Mittel | AL3: Geomittel | AN3: 1996 | AO3: =AN3+1 -> 1997 | AP3: =AO3+1 -> 1998 | AQ3: =AP3+1 -> 1999 | AR3: =AQ3+1 -> 2000 | AS3: =AR3+1 -> 2001 | AT3: =AS3+1 -> 2002 | AU3: =AT3+1 -> 2003 | AV3: =AU3+1 -> 2004 | AW3: =AV3+1 -> 2005 | AX3: =AW3+1 -> 2006 | AY3: =AX3+1 -> 2007 | AZ3: =AY3+1 -> 2008 | BA3: =AZ3+1 -> 2009 | BB3: =BA3+1 -> 2010 | BC3: =BB3+1 -> 2011 | BD3: =BC3+1 -> 2012 | BE3: =BD3+1 -> 2013 | BF3: =BE3+1 -> 2014 | BG3: =BF3+1 -> 2015 | BH3: =BG3+1 -> 2016 | BI3: =BH3+1 -> 2017 | BJ3: Arithmet. Mittel | BK3: Geomittel | BL3: Arithmet. Mittel | BM3: Geomittel | BN3: Absolut | BO3: Anteil AM | BP3: Anteil GM | BQ3: Arithmet. Mittel | BR3: Geomittel | BS3: Absolut | BT3: Anteil AM | BU3: Anteil GM | BV3: Arithmet. Mittel | BW3: Geomittel
A4: Österreich | C4: =IF(NR_Veränderung!C88="",1/0,NR_Veränderung!C88) -> 1.171472635 | D4: =IF(NR_Veränderung!D88="",1/0,NR_Veränderung!D88) -> 0.9360886498 | E4: =IF(NR_Veränderung!E88="",1/0,NR_Veränderung!E88) -> 1.167041441 | F4: =IF(NR_Veränderung!F88="",1/0,NR_Veränderung!F88) -> 1.116169146 | G4: =IF(NR_Veränderung!G88="",1/0,NR_Veränderung!G88) -> 1.006306514 | H4: =IF(NR_Veränderung!H88="",1/0,NR_Veränderung!H88) -> 1.006705153 | I4: =IF(NR_Veränderung!I88="",1/0,NR_Veränderung!I88) -> 1.01470005 | J4: =IF(NR_Veränderung!J88="",1/0,NR_Veränderung!J88) -> 1.072784743 | K4: =IF(NR_Veränderung!K88="",1/0,NR_Veränderung!K88) -> 1.058185817 | L4: =IF(NR_Veränderung!L88="",1/0,NR_Veränderung!L88) -> 1.260758123 | M4: =IF(NR_Veränderung!M88="",1/0,NR_Veränderung!M88) -> 1.161149198 | N4: =IF(NR_Veränderung!N88="",1/0,NR_Veränderung!N88) -> 1.029157485 | O4: =IF(NR_Veränderung!O88="",1/0,NR_Veränderung!O88) -> 1.06221447 | P4: =IF(NR_Veränderung!P88="",1/0,NR_Veränderung!P88) -> 1.013812172 | Q4: =IF(NR_Veränderung!Q88="",1/0,NR_Veränderung!Q88) -> 1.004316204 | R4: =IF(NR_Veränderung!R88="",1/0,NR_Veränderung!R88) -> 0.9943389949 | S4: =IF(NR_Veränderung!S88="",1/0,NR_Veränderung!S88) -> 1.027969279 | T4: =IF(NR_Veränderung!T88="",1/0,NR_Veränderung!T88) -> 1.043796246 | U4: =IF(NR_Veränderung!U88="",1/0,NR_Veränderung!U88) -> 1.061993208 | V4: =IF(NR_Veränderung!V88="",1/0,NR_Veränderung!V88) -> 0.9379922113 | W4: =IF(NR_Veränderung!W88="",1/0,NR_Veränderung!W88) -> 0.9540523867 | X4: =IF(NR_Veränderung!X88="",1/0,NR_Veränderung!X88) -> 1.056714033 | Y4: =TRANSPOSE(NR_Mittelwertbildung!B30:S31) -> 1.01097948 | Z4: 1.009910763 | AA4: =IF(ISERROR(Y4),"",Y4) -> 1.01097948 | AB4: =IF(ISERROR(Z4),"",Z4) -> 1.009910763 | AC4: =IF(AA4="","",HI_Hilfstabelle!H4) -> 8901064 | AD4: =IFERROR(AC4/AC$23,"") -> 0.05576397408 | AE4: =IFERROR(AC4/AC$23,"") -> 0.05576397408 | AF4: =IFERROR(AD4*AA4,"") -> 0.0563762335 | AG4: =IFERROR(AE4*AB4,"") -> 0.05631663764 | AH4: =IF(AA4="","",HI_Hilfstabelle!J4) -> 126 | AI4: =IFERROR(AH4/AH$23,"") -> 0.08974358974 | AJ4: =IFERROR(AH4/AH$23,"") -> 0.08974358974 | AK4: =IFERROR(AI4*Y4,"") -> 0.09072892767 | AL4: =IFERROR(AJ4*Z4,"") -> 0.09063301724 | AN4: =IF(HI_Hilfstabelle!$C4=HI_Hilfstabelle!$A4,IFERROR(NR_Berechnung!C4,1/0),"") -> 1.171472635 | AO4: =IF(HI_Hilfstabelle!$C4=HI_Hilfstabelle!$A4,IFERROR(NR_Berechnung!D4,1/0),"") -> 0.9360886498 | AP4: =IF(HI_Hilfstabelle!$C4=HI_Hilfstabelle!$A4,IFERROR(NR_Berechnung!E4,1/0),"") -> 1.167041441 | AQ4: =IF(HI_Hilfstabelle!$C4=HI_Hilfstabelle!$A4,IFERROR(NR_Berechnung!F4,1/0),"") -> 1.116169146 | AR4: =IF(HI_Hilfstabelle!$C4=HI_Hilfstabelle!$A4,IFERROR(NR_Berechnung!G4,1/0),"") -> 1.006306514 | AS4: =IF(HI_Hilfstabelle!$C4=HI_Hilfstabelle!$A4,IFERROR(NR_Berechnung!H4,1/0),"") -> 1.006705153 | AT4: =IF(HI_Hilfstabelle!$C4=HI_Hilfstabelle!$A4,IFERROR(NR_Berechnung!I4,1/0),"") -> 1.01470005 | AU4: =IF(HI_Hilfstabelle!$C4=HI_Hilfstabelle!$A4,IFERROR(NR_Berechnung!J4,1/0),"") -> 1.072784743 | AV4: =IF(HI_Hilfstabelle!$C4=HI_Hilfstabelle!$A4,IFERROR(NR_Berechnung!K4,1/0),"") -> 1.058185817 | AW4: =IF(HI_Hilfstabelle!$C4=HI_Hilfstabelle!$A4,IFERROR(NR_Berechnung!L4,1/0),"") -> 1.260758123 | AX4: =IF(HI_Hilfstabelle!$C4=HI_Hilfstabelle!$A4,IFERROR(NR_Berechnung!M4,1/0),"") -> 1.161149198 | AY4: =IF(HI_Hilfstabelle!$C4=HI_Hilfstabelle!$A4,IFERROR(NR_Berechnung!N4,1/0),"") -> 1.029157485 | AZ4: =IF(HI_Hilfstabelle!$C4=HI_Hilfstabelle!$A4,IFERROR(NR_Berechnung!O4,1/0),"") -> 1.06221447 | BA4: =IF(HI_Hilfstabelle!$C4=HI_Hilfstabelle!$A4,IFERROR(NR_Berechnung!P4,1/0),"") -> 1.013812172 | BB4: =IF(HI_Hilfstabelle!$C4=HI_Hilfstabelle!$A4,IFERROR(NR_Berechnung!Q4,1/0),"") -> 1.004316204 | BC4: =IF(HI_Hilfstabelle!$C4=HI_Hilfstabelle!$A4,IFERROR(NR_Berechnung!R4,1/0),"") -> 0.9943389949 | BD4: =IF(HI_Hilfstabelle!$C4=HI_Hilfstabelle!$A4,IFERROR(NR_Berechnung!S4,1/0),"") -> 1.027969279 | BE4: =IF(HI_Hilfstabelle!$C4=HI_Hilfstabelle!$A4,IFERROR(NR_Berechnung!T4,1/0),"") -> 1.043796246 | BF4: =IF(HI_Hilfstabelle!$C4=HI_Hilfstabelle!$A4,IFERROR(NR_Berechnung!U4,1/0),"") -> 1.061993208 | BG4: =IF(HI_Hilfstabelle!$C4=HI_Hilfstabelle!$A4,IFERROR(NR_Berechnung!V4,1/0),"") -> 0.9379922113 | BH4: =IF(HI_Hilfstabelle!$C4=HI_Hilfstabelle!$A4,IFERROR(NR_Berechnung!W4,1/0),"") -> 0.9540523867 | BI4: =IF(HI_Hilfstabelle!$C4=HI_Hilfstabelle!$A4,IFERROR(NR_Berechnung!X4,1/0),"") -> 1.056714033 | BJ4: =TRANSPOSE(NR_Mittelwertbildung!U30:AL31) -> 1.01097948 | BK4: 1.009910763 | BL4: =IF(ISERROR(BJ4),"",BJ4) -> 1.01097948 | BM4: =IF(ISERROR(BK4),"",BK4) -> 1.009910763 | BN4: =IF(BL4="","",HI_Hilfstabelle!H4) -> 8901064 | BO4: =IFERROR(BN4/BN$23,"") -> 0.05576397408 | BP4: =IFERROR(BN4/BN$23,"") -> 0.05576397408 | BQ4: =IFERROR(BO4*BL4,"") -> 0.0563762335 | BR4: =IFERROR(BP4*BM4,"") -> 0.05631663764 | BS4: =IF(BL4="","",HI_Hilfstabelle!J4) -> 126 | BT4: =IFERROR(BS4/BS$23,"") -> 0.08974358974 | BU4: =IFERROR(BS4/BS$23,"") -> 0.08974358974 | BV4: =IFERROR(BT4*BJ4,"") -> 0.09072892767 | BW4: =IFERROR(BU4*BK4,"") -> 0.09063301724
A5: Belgien | C5: =IF(NR_Veränderung!C89="",1/0,NR_Veränderung!C89) ->  | D5: =IF(NR_Veränderung!D89="",1/0,NR_Veränderung!D89) ->  | E5: =IF(NR_Veränderung!E89="",1/0,NR_Veränderung!E89) ->  | F5: =IF(NR_Veränderung!F89="",1/0,NR_Veränderung!F89) ->  | G5: =IF(NR_Veränderung!G89="",1/0,NR_Veränderung!G89) -> 1.034062754 | H5: =IF(NR_Veränderung!H89="",1/0,NR_Veränderung!H89) -> 0.8886203569 | I5: =IF(NR_Veränderung!I89="",1/0,NR_Veränderung!I89) -> 0.9833393404 | J5: =IF(NR_Veränderung!J89="",1/0,NR_Veränderung!J89) -> 1.019380574 | K5: =IF(NR_Veränderung!K89="",1/0,NR_Veränderung!K89) -> 1.01781622 | L5: =IF(NR_Veränderung!L89="",1/0,NR_Veränderung!L89) -> 1.013250887 | M5: =IF(NR_Veränderung!M89="",1/0,NR_Veränderung!M89) -> 1.024226308 | N5: =IF(NR_Veränderung!N89="",1/0,NR_Veränderung!N89) -> 1.070509195 | O5: =IF(NR_Veränderung!O89="",1/0,NR_Veränderung!O89) -> 1.054746188 | P5: =IF(NR_Veränderung!P89="",1/0,NR_Veränderung!P89) -> 0.9681552913 | Q5: =IF(NR_Veränderung!Q89="",1/0,NR_Veränderung!Q89) -> 1.009970633 | R5: =IF(NR_Veränderung!R89="",1/0,NR_Veränderung!R89) -> 1.043533303 | S5: =IF(NR_Veränderung!S89="",1/0,NR_Veränderung!S89) -> 0.9584105578 | T5: =IF(NR_Veränderung!T89="",1/0,NR_Veränderung!T89) -> 1.011974193 | U5: =IF(NR_Veränderung!U89="",1/0,NR_Veränderung!U89) -> 0.9759162898 | V5: =IF(NR_Veränderung!V89="",1/0,NR_Veränderung!V89) -> 0.9873567026 | W5: =IF(NR_Veränderung!W89="",1/0,NR_Veränderung!W89) -> 0.9709988191 | X5: =IF(NR_Veränderung!X89="",1/0,NR_Veränderung!X89) ->  | AB5: =IF(ISERROR(Z5),"",Z5) ->  | AC5: =IF(AA5="","",HI_Hilfstabelle!H5) ->  | AD5: =IFERROR(AC5/AC$23,"") ->  | AE5: =IFERROR(AC5/AC$23,"") ->  | AF5: =IFERROR(AD5*AA5,"") ->  | AG5: =IFERROR(AE5*AB5,"") ->  | AH5: =IF(AA5="","",HI_Hilfstabelle!J5) ->  | AI5: =IFERROR(AH5/AH$23,"") ->  | AJ5: =IFERROR(AH5/AH$23,"") ->  | AK5: =IFERROR(AI5*Y5,"") ->  | AL5: =IFERROR(AJ5*Z5,"") ->  | AN5: =IF(HI_Hilfstabelle!$C5=HI_Hilfstabelle!$A5,IFERROR(NR_Berechnung!C5,1/0),"") ->  | AO5: =IF(HI_Hilfstabelle!$C5=HI_Hilfstabelle!$A5,IFERROR(NR_Berechnung!D5,1/0),"") ->  | AP5: =IF(HI_Hilfstabelle!$C5=HI_Hilfstabelle!$A5,IFERROR(NR_Berechnung!E5,1/0),"") ->  | AQ5: =IF(HI_Hilfstabelle!$C5=HI_Hilfstabelle!$A5,IFERROR(NR_Berechnung!F5,1/0),"") ->  | AR5: =IF(HI_Hilfstabelle!$C5=HI_Hilfstabelle!$A5,IFERROR(NR_Berechnung!G5,1/0),"") ->  | AS5: =IF(HI_Hilfstabelle!$C5=HI_Hilfstabelle!$A5,IFERROR(NR_Berechnung!H5,1/0),"") ->  | AT5: =IF(HI_Hilfstabelle!$C5=HI_Hilfstabelle!$A5,IFERROR(NR_Berechnung!I5,1/0),"") ->  | AU5: =IF(HI_Hilfstabelle!$C5=HI_Hilfstabelle!$A5,IFERROR(NR_Berechnung!J5,1/0),"") ->  | AV5: =IF(HI_Hilfstabelle!$C5=HI_Hilfstabelle!$A5,IFERROR(NR_Berechnung!K5,1/0),"") ->  | AW5: =IF(HI_Hilfstabelle!$C5=HI_Hilfstabelle!$A5,IFERROR(NR_Berechnung!L5,1/0),"") ->  | AX5: =IF(HI_Hilfstabelle!$C5=HI_Hilfstabelle!$A5,IFERROR(NR_Berechnung!M5,1/0),"") ->  | AY5: =IF(HI_Hilfstabelle!$C5=HI_Hilfstabelle!$A5,IFERROR(NR_Berechnung!N5,1/0),"") ->  | AZ5: =IF(HI_Hilfstabelle!$C5=HI_Hilfstabelle!$A5,IFERROR(NR_Berechnung!O5,1/0),"") ->  | BA5: =IF(HI_Hilfstabelle!$C5=HI_Hilfstabelle!$A5,IFERROR(NR_Berechnung!P5,1/0),"") ->  | BB5: =IF(HI_Hilfstabelle!$C5=HI_Hilfstabelle!$A5,IFERROR(NR_Berechnung!Q5,1/0),"") ->  | BC5: =IF(HI_Hilfstabelle!$C5=HI_Hilfstabelle!$A5,IFERROR(NR_Berechnung!R5,1/0),"") ->  | BD5: =IF(HI_Hilfstabelle!$C5=HI_Hilfstabelle!$A5,IFERROR(NR_Berechnung!S5,1/0),"") ->  | BE5: =IF(HI_Hilfstabelle!$C5=HI_Hilfstabelle!$A5,IFERROR(NR_Berechnung!T5,1/0),"") ->  | BF5: =IF(HI_Hilfstabelle!$C5=HI_Hilfstabelle!$A5,IFERROR(NR_Berechnung!U5,1/0),"") ->  | BG5: =IF(HI_Hilfstabelle!$C5=HI_Hilfstabelle!$A5,IFERROR(NR_Berechnung!V5,1/0),"") ->  | BH5: =IF(HI_Hilfstabelle!$C5=HI_Hilfstabelle!$A5,IFERROR(NR_Berechnung!W5,1/0),"") ->  | BI5: =IF(HI_Hilfstabelle!$C5=HI_Hilfstabelle!$A5,IFERROR(NR_Berechnung!X5,1/0),"") ->  | BM5: =IF(ISERROR(BK5),"",BK5) ->  | BN5: =IF(BL5="","",HI_Hilfstabelle!H5) ->  | BO5: =IFERROR(BN5/BN$23,"") ->  | BP5: =IFERROR(BN5/BN$23,"") ->  | BQ5: =IFERROR(BO5*BL5,"") ->  | BR5: =IFERROR(BP5*BM5,"") ->  | BS5: =IF(BL5="","",HI_Hilfstabelle!J5) ->  | BT5: =IFERROR(BS5/BS$23,"") ->  | BU5: =IFERROR(BS5/BS$23,"") ->  | BV5: =IFERROR(BT5*BJ5,"") ->  | BW5: =IFERROR(BU5*BK5,"") -> 
A6: Tschechien | C6: =IF(NR_Veränderung!C90="",1/0,NR_Veränderung!C90) -> 1.056117566 | D6: =IF(NR_Veränderung!D90="",1/0,NR_Veränderung!D90) -> 0.8710003689 | E6: =IF(NR_Veränderung!E90="",1/0,NR_Veränderung!E90) -> 1.103483943 | F6: =IF(NR_Veränderung!F90="",1/0,NR_Veränderung!F90) -> 0.9385501493 | G6: =IF(NR_Veränderung!G90="",1/0,NR_Veränderung!G90) -> 1.10121974 | H6: =IF(NR_Veränderung!H90="",1/0,NR_Veränderung!H90) -> 1.158199192 | I6: =IF(NR_Veränderung!I90="",1/0,NR_Veränderung!I90) -> 1.029402741 | J6: =IF(NR_Veränderung!J90="",1/0,NR_Veränderung!J90) -> 1.225250402 | K6: =IF(NR_Veränderung!K90="",1/0,NR_Veränderung!K90) -> 0.9823359792 | L6: =IF(NR_Veränderung!L90="",1/0,NR_Veränderung!L90) -> 0.9988853132 | M6: =IF(NR_Veränderung!M90="",1/0,NR_Veränderung!M90) -> 1.123268139 | N6: =IF(NR_Veränderung!N90="",1/0,NR_Veränderung!N90) -> 1.078797238 | O6: =IF(NR_Veränderung!O90="",1/0,NR_Veränderung!O90) -> 0.9105885621 | P6: =IF(NR_Veränderung!P90="",1/0,NR_Veränderung!P90) -> 0.9975935154 | Q6: =IF(NR_Veränderung!Q90="",1/0,NR_Veränderung!Q90) -> 0.9398025207 | R6: =IF(NR_Veränderung!R90="",1/0,NR_Veränderung!R90) -> 1.027473616 | S6: =IF(NR_Veränderung!S90="",1/0,NR_Veränderung!S90) -> 1.01660914 | T6: =IF(NR_Veränderung!T90="",1/0,NR_Veränderung!T90) -> 0.9654824754 | U6: =IF(NR_Veränderung!U90="",1/0,NR_Veränderung!U90) -> 0.9431490213 | V6: =IF(NR_Veränderung!V90="",1/0,NR_Veränderung!V90) -> 0.9856729193 | W6: =IF(NR_Veränderung!W90="",1/0,NR_Veränderung!W90) -> 0.9423910214 | X6: =IF(NR_Veränderung!X90="",1/0,NR_Veränderung!X90) -> 0.9356267375 | Y6: 0.9737721329 | Z6: 0.9731684006 | AA6: 0.9737721329 | AB6: 0.9731684006 | AC6: =IF(AA6="","",HI_Hilfstabelle!H6) -> 10693939 | AD6: 0.06699609588 | AE6: 0.06699609588 | AF6: 0.06523893118 | AG6: 0.06519848348 | AH6: =IF(AA6="","",HI_Hilfstabelle!J6) -> 93 | AI6: 0.06623931624 | AJ6: 0.06623931624 | AK6: 0.06450200026 | AL6: 0.06446200944 | AN6: =IF(HI_Hilfstabelle!$C6=HI_Hilfstabelle!$A6,IFERROR(NR_Berechnung!C6,1/0),"") -> 1.056117566 | AO6: =IF(HI_Hilfstabelle!$C6=HI_Hilfstabelle!$A6,IFERROR(NR_Berechnung!D6,1/0),"") -> 0.8710003689 | AP6: =IF(HI_Hilfstabelle!$C6=HI_Hilfstabelle!$A6,IFERROR(NR_Berechnung!E6,1/0),"") -> 1.103483943 | AQ6: =IF(HI_Hilfstabelle!$C6=HI_Hilfstabelle!$A6,IFERROR(NR_Berechnung!F6,1/0),"") -> 0.9385501493 | AR6: =IF(HI_Hilfstabelle!$C6=HI_Hilfstabelle!$A6,IFERROR(NR_Berechnung!G6,1/0),"") -> 1.10121974 | AS6: =IF(HI_Hilfstabelle!$C6=HI_Hilfstabelle!$A6,IFERROR(NR_Berechnung!H6,1/0),"") -> 1.158199192 | AT6: =IF(HI_Hilfstabelle!$C6=HI_Hilfstabelle!$A6,IFERROR(NR_Berechnung!I6,1/0),"") -> 1.029402741 | AU6: =IF(HI_Hilfstabelle!$C6=HI_Hilfstabelle!$A6,IFERROR(NR_Berechnung!J6,1/0),"") -> 1.225250402 | AV6: =IF(HI_Hilfstabelle!$C6=HI_Hilfstabelle!$A6,IFERROR(NR_Berechnung!K6,1/0),"") -> 0.9823359792 | AW6: =IF(HI_Hilfstabelle!$C6=HI_Hilfstabelle!$A6,IFERROR(NR_Berechnung!L6,1/0),"") -> 0.9988853132 | AX6: =IF(HI_Hilfstabelle!$C6=HI_Hilfstabelle!$A6,IFERROR(NR_Berechnung!M6,1/0),"") -> 1.123268139 | AY6: =IF(HI_Hilfstabelle!$C6=HI_Hilfstabelle!$A6,IFERROR(NR_Berechnung!N6,1/0),"") -> 1.078797238 | AZ6: =IF(HI_Hilfstabelle!$C6=HI_Hilfstabelle!$A6,IFERROR(NR_Berechnung!O6,1/0),"") -> 0.9105885621 | BA6: =IF(HI_Hilfstabelle!$C6=HI_Hilfstabelle!$A6,IFERROR(NR_Berechnung!P6,1/0),"") -> 0.9975935154 | BB6: =IF(HI_Hilfstabelle!$C6=HI_Hilfstabelle!$A6,IFERROR(NR_Berechnung!Q6,1/0),"") -> 0.9398025207 | BC6: =IF(HI_Hilfstabelle!$C6=HI_Hilfstabelle!$A6,IFERROR(NR_Berechnung!R6,1/0),"") -> 1.027473616 | BD6: =IF(HI_Hilfstabelle!$C6=HI_Hilfstabelle!$A6,IFERROR(NR_Berechnung!S6,1/0),"") -> 1.01660914 | BE6: =IF(HI_Hilfstabelle!$C6=HI_Hilfstabelle!$A6,IFERROR(NR_Berechnung!T6,1/0),"") -> 0.9654824754 | BF6: =IF(HI_Hilfstabelle!$C6=HI_Hilfstabelle!$A6,IFERROR(NR_Berechnung!U6,1/0),"") -> 0.9431490213 | BG6: =IF(HI_Hilfstabelle!$C6=HI_Hilfstabelle!$A6,IFERROR(NR_Berechnung!V6,1/0),"") -> 0.9856729193 | BH6: =IF(HI_Hilfstabelle!$C6=HI_Hilfstabelle!$A6,IFERROR(NR_Berechnung!W6,1/0),"") -> 0.9423910214 | BI6: =IF(HI_Hilfstabelle!$C6=HI_Hilfstabelle!$A6,IFERROR(NR_Berechnung!X6,1/0),"") -> 0.9356267375 | BJ6: 0.9737721329 | BK6: 0.9731684006 | BL6: 0.9737721329 | BM6: 0.9731684006 | BN6: =IF(BL6="","",HI_Hilfstabelle!H6) -> 10693939 | BO6: 0.06699609588 | BP6: 0.06699609588 | BQ6: 0.06523893118 | BR6: 0.06519848348 | BS6: =IF(BL6="","",HI_Hilfstabelle!J6) -> 93 | BT6: 0.06623931624 | BU6: 0.06623931624 | BV6: 0.06450200026 | BW6: 0.06446200944
A7: Dänemark | C7: =IF(NR_Veränderung!C91="",1/0,NR_Veränderung!C91) -> 0.9866326132 | D7: =IF(NR_Veränderung!D91="",1/0,NR_Veränderung!D91) -> 1.011203148 | E7: =IF(NR_Veränderung!E91="",1/0,NR_Veränderung!E91) -> 0.9709098871 | F7: =IF(NR_Veränderung!F91="",1/0,NR_Veränderung!F91) -> 0.9477156555 | G7: =IF(NR_Veränderung!G91="",1/0,NR_Veränderung!G91) -> 0.8666044363 | H7: =IF(NR_Veränderung!H91="",1/0,NR_Veränderung!H91) -> 1.193792209 | I7: =IF(NR_Veränderung!I91="",1/0,NR_Veränderung!I91) -> 0.9753187879 | J7: =IF(NR_Veränderung!J91="",1/0,NR_Veränderung!J91) -> 0.9820622861 | K7: =IF(NR_Veränderung!K91="",1/0,NR_Veränderung!K91) -> 0.9482849901 | L7: =IF(NR_Veränderung!L91="",1/0,NR_Veränderung!L91) -> 1.022692201 | M7: =IF(NR_Veränderung!M91="",1/0,NR_Veränderung!M91) -> 0.8351465249 | N7: =IF(NR_Veränderung!N91="",1/0,NR_Veränderung!N91) -> 0.9795861783 | O7: =IF(NR_Veränderung!O91="",1/0,NR_Veränderung!O91) -> 0.8718069536 | P7: =IF(NR_Veränderung!P91="",1/0,NR_Veränderung!P91) -> 0.9832281683 | Q7: =IF(NR_Veränderung!Q91="",1/0,NR_Veränderung!Q91) -> 1.018238082 | R7: =IF(NR_Veränderung!R91="",1/0,NR_Veränderung!R91) -> 0.9021196249 | S7: =IF(NR_Veränderung!S91="",1/0,NR_Veränderung!S91) -> 0.9653531982 | T7: =IF(NR_Veränderung!T91="",1/0,NR_Veränderung!T91) -> 1.000497205 | U7: =IF(NR_Veränderung!U91="",1/0,NR_Veränderung!U91) -> 1.007055153 | V7: =IF(NR_Veränderung!V91="",1/0,NR_Veränderung!V91) -> 0.9129985289 | W7: =IF(NR_Veränderung!W91="",1/0,NR_Veränderung!W91) -> 0.8757586291 | X7: =IF(NR_Veränderung!X91="",1/0,NR_Veränderung!X91) -> 1.192056647 | Y7: 0.9794055694 | Z7: 0.9747878984 | AA7: 0.9794055694 | AB7: 0.9747878984 | AC7: =IF(AA7="","",HI_Hilfstabelle!H7) -> 5822763 | AD7: 0.03647883051 | AE7: 0.03647883051 | AF7: 0.03572756976 | AG7: 0.03555912253 | AH7: =IF(AA7="","",HI_Hilfstabelle!J7) -> 130 | AI7: 0.09259259259 | AJ7: 0.09259259259 | AK7: 0.09068570087 | AL7: 0.09025813874 | AN7: =IF(HI_Hilfstabelle!$C7=HI_Hilfstabelle!$A7,IFERROR(NR_Berechnung!C7,1/0),"") -> 0.9866326132 | AO7: =IF(HI_Hilfstabelle!$C7=HI_Hilfstabelle!$A7,IFERROR(NR_Berechnung!D7,1/0),"") -> 1.011203148 | AP7: =IF(HI_Hilfstabelle!$C7=HI_Hilfstabelle!$A7,IFERROR(NR_Berechnung!E7,1/0),"") -> 0.9709098871 | AQ7: =IF(HI_Hilfstabelle!$C7=HI_Hilfstabelle!$A7,IFERROR(NR_Berechnung!F7,1/0),"") -> 0.9477156555 | AR7: =IF(HI_Hilfstabelle!$C7=HI_Hilfstabelle!$A7,IFERROR(NR_Berechnung!G7,1/0),"") -> 0.8666044363 | AS7: =IF(HI_Hilfstabelle!$C7=HI_Hilfstabelle!$A7,IFERROR(NR_Berechnung!H7,1/0),"") -> 1.193792209 | AT7: =IF(HI_Hilfstabelle!$C7=HI_Hilfstabelle!$A7,IFERROR(NR_Berechnung!I7,1/0),"") -> 0.9753187879 | AU7: =IF(HI_Hilfstabelle!$C7=HI_Hilfstabelle!$A7,IFERROR(NR_Berechnung!J7,1/0),"") -> 0.9820622861 | AV7: =IF(HI_Hilfstabelle!$C7=HI_Hilfstabelle!$A7,IFERROR(NR_Berechnung!K7,1/0),"") -> 0.9482849901 | AW7: =IF(HI_Hilfstabelle!$C7=HI_Hilfstabelle!$A7,IFERROR(NR_Berechnung!L7,1/0),"") -> 1.022692201 | AX7: =IF(HI_Hilfstabelle!$C7=HI_Hilfstabelle!$A7,IFERROR(NR_Berechnung!M7,1/0),"") -> 0.8351465249 | AY7: =IF(HI_Hilfstabelle!$C7=HI_Hilfstabelle!$A7,IFERROR(NR_Berechnung!N7,1/0),"") -> 0.9795861783 | AZ7: =IF(HI_Hilfstabelle!$C7=HI_Hilfstabelle!$A7,IFERROR(NR_Berechnung!O7,1/0),"") -> 0.8718069536 | BA7: =IF(HI_Hilfstabelle!$C7=HI_Hilfstabelle!$A7,IFERROR(NR_Berechnung!P7,1/0),"") -> 0.9832281683 | BB7: =IF(HI_Hilfstabelle!$C7=HI_Hilfstabelle!$A7,IFERROR(NR_Berechnung!Q7,1/0),"") -> 1.018238082 | BC7: =IF(HI_Hilfstabelle!$C7=HI_Hilfstabelle!$A7,IFERROR(NR_Berechnung!R7,1/0),"") -> 0.9021196249 | BD7: =IF(HI_Hilfstabelle!$C7=HI_Hilfstabelle!$A7,IFERROR(NR_Berechnung!S7,1/0),"") -> 0.9653531982 | BE7: =IF(HI_Hilfstabelle!$C7=HI_Hilfstabelle!$A7,IFERROR(NR_Berechnung!T7,1/0),"") -> 1.000497205 | BF7: =IF(HI_Hilfstabelle!$C7=HI_Hilfstabelle!$A7,IFERROR(NR_Berechnung!U7,1/0),"") -> 1.007055153 | BG7: =IF(HI_Hilfstabelle!$C7=HI_Hilfstabelle!$A7,IFERROR(NR_Berechnung!V7,1/0),"") -> 0.9129985289 | BH7: =IF(HI_Hilfstabelle!$C7=HI_Hilfstabelle!$A7,IFERROR(NR_Berechnung!W7,1/0),"") -> 0.8757586291 | BI7: =IF(HI_Hilfstabelle!$C7=HI_Hilfstabelle!$A7,IFERROR(NR_Berechnung!X7,1/0),"") -> 1.192056647 | BJ7: 0.9794055694 | BK7: 0.9747878984 | BL7: 0.9794055694 | BM7: 0.9747878984 | BN7: =IF(BL7="","",HI_Hilfstabelle!H7) -> 5822763 | BO7: 0.03647883051 | BP7: 0.03647883051 | BQ7: 0.03572756976 | BR7: 0.03555912253 | BS7: =IF(BL7="","",HI_Hilfstabelle!J7) -> 130 | BT7: 0.09259259259 | BU7: 0.09259259259 | BV7: 0.09068570087 | BW7: 0.09025813874
A8: Estland | C8: =IF(NR_Veränderung!C92="",1/0,NR_Veränderung!C92) ->  | D8: =IF(NR_Veränderung!D92="",1/0,NR_Veränderung!D92) ->  | E8: =IF(NR_Veränderung!E92="",1/0,NR_Veränderung!E92) ->  | F8: =IF(NR_Veränderung!F92="",1/0,NR_Veränderung!F92) ->  | G8: =IF(NR_Veränderung!G92="",1/0,NR_Veränderung!G92) ->  | H8: =IF(NR_Veränderung!H92="",1/0,NR_Veränderung!H92) -> 1.728917405 | I8: =IF(NR_Veränderung!I92="",1/0,NR_Veränderung!I92) -> 0.9051568891 | J8: =IF(NR_Veränderung!J92="",1/0,NR_Veränderung!J92) -> 1.001013763 | K8: =IF(NR_Veränderung!K92="",1/0,NR_Veränderung!K92) -> 1.448011236 | L8: =IF(NR_Veränderung!L92="",1/0,NR_Veränderung!L92) -> 1.193690179 | M8: =IF(NR_Veränderung!M92="",1/0,NR_Veränderung!M92) -> 0.9554062998 | N8: =IF(NR_Veränderung!N92="",1/0,NR_Veränderung!N92) -> 0.9493108053 | O8: =IF(NR_Veränderung!O92="",1/0,NR_Veränderung!O92) -> 1.213201751 | P8: =IF(NR_Veränderung!P92="",1/0,NR_Veränderung!P92) -> 0.8221899511 | Q8: =IF(NR_Veränderung!Q92="",1/0,NR_Veränderung!Q92) -> 1.132164791 | R8: =IF(NR_Veränderung!R92="",1/0,NR_Veränderung!R92) -> 0.6877222223 | S8: =IF(NR_Veränderung!S92="",1/0,NR_Veränderung!S92) -> 1.226344566 | T8: =IF(NR_Veränderung!T92="",1/0,NR_Veränderung!T92) -> 1.099172645 | U8: =IF(NR_Veränderung!U92="",1/0,NR_Veränderung!U92) -> 0.6576831281 | V8: =IF(NR_Veränderung!V92="",1/0,NR_Veränderung!V92) -> 1.058254625 | W8: =IF(NR_Veränderung!W92="",1/0,NR_Veränderung!W92) -> 1.088641433 | X8: =IF(NR_Veränderung!X92="",1/0,NR_Veränderung!X92) -> 0.9816742602 | Y8: 0.9713561257 | Z8: 0.9482782789 | AA8: 0.9713561257 | AB8: 0.9482782789 | AC8: =IF(AA8="","",HI_Hilfstabelle!H8) -> 1328976 | AD8: 0.008325856686 | AE8: 0.008325856686 | AF8: 0.008087371893 | AG8: 0.007895229048 | AH8: =IF(AA8="","",HI_Hilfstabelle!J8) -> 84 | AI8: 0.05982905983 | AJ8: 0.05982905983 | AK8: 0.05811532376 | AL8: 0.05673459788 | AN8: =IF(HI_Hilfstabelle!$C8=HI_Hilfstabelle!$A8,IFERROR(NR_Berechnung!C8,1/0),"") ->  | AO8: =IF(HI_Hilfstabelle!$C8=HI_Hilfstabelle!$A8,IFERROR(NR_Berechnung!D8,1/0),"") ->  | AP8: =IF(HI_Hilfstabelle!$C8=HI_Hilfstabelle!$A8,IFERROR(NR_Berechnung!E8,1/0),"") ->  | AQ8: =IF(HI_Hilfstabelle!$C8=HI_Hilfstabelle!$A8,IFERROR(NR_Berechnung!F8,1/0),"") ->  | AR8: =IF(HI_Hilfstabelle!$C8=HI_Hilfstabelle!$A8,IFERROR(NR_Berechnung!G8,1/0),"") ->  | AS8: =IF(HI_Hilfstabelle!$C8=HI_Hilfstabelle!$A8,IFERROR(NR_Berechnung!H8,1/0),"") -> 1.728917405 | AT8: =IF(HI_Hilfstabelle!$C8=HI_Hilfstabelle!$A8,IFERROR(NR_Berechnung!I8,1/0),"") -> 0.9051568891 | AU8: =IF(HI_Hilfstabelle!$C8=HI_Hilfstabelle!$A8,IFERROR(NR_Berechnung!J8,1/0),"") -> 1.001013763 | AV8: =IF(HI_Hilfstabelle!$C8=HI_Hilfstabelle!$A8,IFERROR(NR_Berechnung!K8,1/0),"") -> 1.448011236 | AW8: =IF(HI_Hilfstabelle!$C8=HI_Hilfstabelle!$A8,IFERROR(NR_Berechnung!L8,1/0),"") -> 1.193690179 | AX8: =IF(HI_Hilfstabelle!$C8=HI_Hilfstabelle!$A8,IFERROR(NR_Berechnung!M8,1/0),"") -> 0.9554062998 | AY8: =IF(HI_Hilfstabelle!$C8=HI_Hilfstabelle!$A8,IFERROR(NR_Berechnung!N8,1/0),"") -> 0.9493108053 | AZ8: =IF(HI_Hilfstabelle!$C8=HI_Hilfstabelle!$A8,IFERROR(NR_Berechnung!O8,1/0),"") -> 1.213201751 | BA8: =IF(HI_Hilfstabelle!$C8=HI_Hilfstabelle!$A8,IFERROR(NR_Berechnung!P8,1/0),"") -> 0.8221899511 | BB8: =IF(HI_Hilfstabelle!$C8=HI_Hilfstabelle!$A8,IFERROR(NR_Berechnung!Q8,1/0),"") -> 1.132164791 | BC8: =IF(HI_Hilfstabelle!$C8=HI_Hilfstabelle!$A8,IFERROR(NR_Berechnung!R8,1/0),"") -> 0.6877222223 | BD8: =IF(HI_Hilfstabelle!$C8=HI_Hilfstabelle!$A8,IFERROR(NR_Berechnung!S8,1/0),"") -> 1.226344566 | BE8: =IF(HI_Hilfstabelle!$C8=HI_Hilfstabelle!$A8,IFERROR(NR_Berechnung!T8,1/0),"") -> 1.099172645 | BF8: =IF(HI_Hilfstabelle!$C8=HI_Hilfstabelle!$A8,IFERROR(NR_Berechnung!U8,1/0),"") -> 0.6576831281 | BG8: =IF(HI_Hilfstabelle!$C8=HI_Hilfstabelle!$A8,IFERROR(NR_Berechnung!V8,1/0),"") -> 1.058254625 | BH8: =IF(HI_Hilfstabelle!$C8=HI_Hilfstabelle!$A8,IFERROR(NR_Berechnung!W8,1/0),"") -> 1.088641433 | BI8: =IF(HI_Hilfstabelle!$C8=HI_Hilfstabelle!$A8,IFERROR(NR_Berechnung!X8,1/0),"") -> 0.9816742602 | BJ8: 0.9713561257 | BK8: 0.9482782789 | BL8: 0.9713561257 | BM8: 0.9482782789 | BN8: =IF(BL8="","",HI_Hilfstabelle!H8) -> 1328976 | BO8: 0.008325856686 | BP8: 0.008325856686 | BQ8: 0.008087371893 | BR8: 0.007895229048 | BS8: =IF(BL8="","",HI_Hilfstabelle!J8) -> 84 | BT8: 0.05982905983 | BU8: 0.05982905983 | BV8: 0.05811532376 | BW8: 0.05673459788
A9: Frankreich | C9: =IF(NR_Veränderung!C93="",1/0,NR_Veränderung!C93) ->  | D9: =IF(NR_Veränderung!D93="",1/0,NR_Veränderung!D93) ->  | E9: =IF(NR_Veränderung!E93="",1/0,NR_Veränderung!E93) ->  | F9: =IF(NR_Veränderung!F93="",1/0,NR_Veränderung!F93) ->  | G9: =IF(NR_Veränderung!G93="",1/0,NR_Veränderung!G93) ->  | H9: =IF(NR_Veränderung!H93="",1/0,NR_Veränderung!H93) ->  | I9: =IF(NR_Veränderung!I93="",1/0,NR_Veränderung!I93) ->  | J9: =IF(NR_Veränderung!J93="",1/0,NR_Veränderung!J93) ->  | K9: =IF(NR_Veränderung!K93="",1/0,NR_Veränderung!K93) ->  | L9: =IF(NR_Veränderung!L93="",1/0,NR_Veränderung!L93) ->  | M9: =IF(NR_Veränderung!M93="",1/0,NR_Veränderung!M93) ->  | N9: =IF(NR_Veränderung!N93="",1/0,NR_Veränderung!N93) ->  | O9: =IF(NR_Veränderung!O93="",1/0,NR_Veränderung!O93) ->  | P9: =IF(NR_Veränderung!P93="",1/0,NR_Veränderung!P93) ->  | Q9: =IF(NR_Veränderung!Q93="",1/0,NR_Veränderung!Q93) ->  | R9: =IF(NR_Veränderung!R93="",1/0,NR_Veränderung!R93) ->  | S9: =IF(NR_Veränderung!S93="",1/0,NR_Veränderung!S93) ->  | T9: =IF(NR_Veränderung!T93="",1/0,NR_Veränderung!T93) ->  | U9: =IF(NR_Veränderung!U93="",1/0,NR_Veränderung!U93) ->  | V9: =IF(NR_Veränderung!V93="",1/0,NR_Veränderung!V93) ->  | W9: =IF(NR_Veränderung!W93="",1/0,NR_Veränderung!W93) ->  | X9: =IF(NR_Veränderung!X93="",1/0,NR_Veränderung!X93) ->  | AC9: =IF(AA9="","",HI_Hilfstabelle!H9) ->  | AH9: =IF(AA9="","",HI_Hilfstabelle!J9) ->  | AN9: =IF(HI_Hilfstabelle!$C9=HI_Hilfstabelle!$A9,IFERROR(NR_Berechnung!C9,1/0),"") ->  | AO9: =IF(HI_Hilfstabelle!$C9=HI_Hilfstabelle!$A9,IFERROR(NR_Berechnung!D9,1/0),"") ->  | AP9: =IF(HI_Hilfstabelle!$C9=HI_Hilfstabelle!$A9,IFERROR(NR_Berechnung!E9,1/0),"") ->  | AQ9: =IF(HI_Hilfstabelle!$C9=HI_Hilfstabelle!$A9,IFERROR(NR_Berechnung!F9,1/0),"") ->  | AR9: =IF(HI_Hilfstabelle!$C9=HI_Hilfstabelle!$A9,IFERROR(NR_Berechnung!G9,1/0),"") ->  | AS9: =IF(HI_Hilfstabelle!$C9=HI_Hilfstabelle!$A9,IFERROR(NR_Berechnung!H9,1/0),"") ->  | AT9: =IF(HI_Hilfstabelle!$C9=HI_Hilfstabelle!$A9,IFERROR(NR_Berechnung!I9,1/0),"") ->  | AU9: =IF(HI_Hilfstabelle!$C9=HI_Hilfstabelle!$A9,IFERROR(NR_Berechnung!J9,1/0),"") ->  | AV9: =IF(HI_Hilfstabelle!$C9=HI_Hilfstabelle!$A9,IFERROR(NR_Berechnung!K9,1/0),"") ->  | AW9: =IF(HI_Hilfstabelle!$C9=HI_Hilfstabelle!$A9,IFERROR(NR_Berechnung!L9,1/0),"") ->  | AX9: =IF(HI_Hilfstabelle!$C9=HI_Hilfstabelle!$A9,IFERROR(NR_Berechnung!M9,1/0),"") ->  | AY9: =IF(HI_Hilfstabelle!$C9=HI_Hilfstabelle!$A9,IFERROR(NR_Berechnung!N9,1/0),"") ->  | AZ9: =IF(HI_Hilfstabelle!$C9=HI_Hilfstabelle!$A9,IFERROR(NR_Berechnung!O9,1/0),"") ->  | BA9: =IF(HI_Hilfstabelle!$C9=HI_Hilfstabelle!$A9,IFERROR(NR_Berechnung!P9,1/0),"") ->  | BB9: =IF(HI_Hilfstabelle!$C9=HI_Hilfstabelle!$A9,IFERROR(NR_Berechnung!Q9,1/0),"") ->  | BC9: =IF(HI_Hilfstabelle!$C9=HI_Hilfstabelle!$A9,IFERROR(NR_Berechnung!R9,1/0),"") ->  | BD9: =IF(HI_Hilfstabelle!$C9=HI_Hilfstabelle!$A9,IFERROR(NR_Berechnung!S9,1/0),"") ->  | BE9: =IF(HI_Hilfstabelle!$C9=HI_Hilfstabelle!$A9,IFERROR(NR_Berechnung!T9,1/0),"") ->  | BF9: =IF(HI_Hilfstabelle!$C9=HI_Hilfstabelle!$A9,IFERROR(NR_Berechnung!U9,1/0),"") ->  | BG9: =IF(HI_Hilfstabelle!$C9=HI_Hilfstabelle!$A9,IFERROR(NR_Berechnung!V9,1/0),"") ->  | BH9: =IF(HI_Hilfstabelle!$C9=HI_Hilfstabelle!$A9,IFERROR(NR_Berechnung!W9,1/0),"") ->  | BI9: =IF(HI_Hilfstabelle!$C9=HI_Hilfstabelle!$A9,IFERROR(NR_Berechnung!X9,1/0),"") ->  | BN9: =IF(BL9="","",HI_Hilfstabelle!H9) ->  | BS9: =IF(BL9="","",HI_Hilfstabelle!J9) -> 
A10: Griechenland | C10: =IF(NR_Veränderung!C94="",1/0,NR_Veränderung!C94) -> 0.9972082517 | D10: =IF(NR_Veränderung!D94="",1/0,NR_Veränderung!D94) -> 1.201779793 | E10: =IF(NR_Veränderung!E94="",1/0,NR_Veränderung!E94) -> 1.036036525 | F10: =IF(NR_Veränderung!F94="",1/0,NR_Veränderung!F94) -> 1.283490834 | G10: =IF(NR_Veränderung!G94="",1/0,NR_Veränderung!G94) -> 1.017007484 | H10: =IF(NR_Veränderung!H94="",1/0,NR_Veränderung!H94) -> 1.105770277 | I10: =IF(NR_Veränderung!I94="",1/0,NR_Veränderung!I94) -> 1.060134116 | J10: =IF(NR_Veränderung!J94="",1/0,NR_Veränderung!J94) -> 0.9796067229 | K10: =IF(NR_Veränderung!K94="",1/0,NR_Veränderung!K94) -> 1.033119562 | L10: =IF(NR_Veränderung!L94="",1/0,NR_Veränderung!L94) -> 0.985575357 | M10: =IF(NR_Veränderung!M94="",1/0,NR_Veränderung!M94) -> 1.093018173 | N10: =IF(NR_Veränderung!N94="",1/0,NR_Veränderung!N94) -> 1.031077887 | O10: =IF(NR_Veränderung!O94="",1/0,NR_Veränderung!O94) -> 1.052797272 | P10: =IF(NR_Veränderung!P94="",1/0,NR_Veränderung!P94) -> 0.8821456278 | Q10: =IF(NR_Veränderung!Q94="",1/0,NR_Veränderung!Q94) -> 0.9325055163 | R10: =IF(NR_Veränderung!R94="",1/0,NR_Veränderung!R94) -> 1.002021881 | S10: =IF(NR_Veränderung!S94="",1/0,NR_Veränderung!S94) -> 0.9067891626 | T10: =IF(NR_Veränderung!T94="",1/0,NR_Veränderung!T94) -> 0.9039987527 | U10: =IF(NR_Veränderung!U94="",1/0,NR_Veränderung!U94) -> 0.902375701 | V10: =IF(NR_Veränderung!V94="",1/0,NR_Veränderung!V94) -> 0.8565249757 | W10: =IF(NR_Veränderung!W94="",1/0,NR_Veränderung!W94) -> 0.9468370178 | X10: =IF(NR_Veränderung!X94="",1/0,NR_Veränderung!X94) -> 1.023373641 | Y10: 0.9345601617 | Z10: 0.9329437559 | AA10: 0.9345601617 | AB10: 0.9329437559 | AC10: =IF(AA10="","",HI_Hilfstabelle!H10) -> 10709739 | AD10: 0.06709508076 | AE10: 0.06709508076 | AF10: 0.06270438953 | AG10: 0.06259593665 | AH10: =IF(AA10="","",HI_Hilfstabelle!J10) -> 67 | AI10: 0.04772079772 | AJ10: 0.04772079772 | AK10: 0.04459795643 | AL10: 0.04452082026 | AN10: =IF(HI_Hilfstabelle!$C10=HI_Hilfstabelle!$A10,IFERROR(NR_Berechnung!C10,1/0),"") -> 0.9972082517 | AO10: =IF(HI_Hilfstabelle!$C10=HI_Hilfstabelle!$A10,IFERROR(NR_Berechnung!D10,1/0),"") -> 1.201779793 | AP10: =IF(HI_Hilfstabelle!$C10=HI_Hilfstabelle!$A10,IFERROR(NR_Berechnung!E10,1/0),"") -> 1.036036525 | AQ10: =IF(HI_Hilfstabelle!$C10=HI_Hilfstabelle!$A10,IFERROR(NR_Berechnung!F10,1/0),"") -> 1.283490834 | AR10: =IF(HI_Hilfstabelle!$C10=HI_Hilfstabelle!$A10,IFERROR(NR_Berechnung!G10,1/0),"") -> 1.017007484 | AS10: =IF(HI_Hilfstabelle!$C10=HI_Hilfstabelle!$A10,IFERROR(NR_Berechnung!H10,1/0),"") -> 1.105770277 | AT10: =IF(HI_Hilfstabelle!$C10=HI_Hilfstabelle!$A10,IFERROR(NR_Berechnung!I10,1/0),"") -> 1.060134116 | AU10: =IF(HI_Hilfstabelle!$C10=HI_Hilfstabelle!$A10,IFERROR(NR_Berechnung!J10,1/0),"") -> 0.9796067229 | AV10: =IF(HI_Hilfstabelle!$C10=HI_Hilfstabelle!$A10,IFERROR(NR_Berechnung!K10,1/0),"") -> 1.033119562 | AW10: =IF(HI_Hilfstabelle!$C10=HI_Hilfstabelle!$A10,IFERROR(NR_Berechnung!L10,1/0),"") -> 0.985575357 | AX10: =IF(HI_Hilfstabelle!$C10=HI_Hilfstabelle!$A10,IFERROR(NR_Berechnung!M10,1/0),"") -> 1.093018173 | AY10: =IF(HI_Hilfstabelle!$C10=HI_Hilfstabelle!$A10,IFERROR(NR_Berechnung!N10,1/0),"") -> 1.031077887 | AZ10: =IF(HI_Hilfstabelle!$C10=HI_Hilfstabelle!$A10,IFERROR(NR_Berechnung!O10,1/0),"") -> 1.052797272 | BA10: =IF(HI_Hilfstabelle!$C10=HI_Hilfstabelle!$A10,IFERROR(NR_Berechnung!P10,1/0),"") -> 0.8821456278 | BB10: =IF(HI_Hilfstabelle!$C10=HI_Hilfstabelle!$A10,IFERROR(NR_Berechnung!Q10,1/0),"") -> 0.9325055163 | BC10: =IF(HI_Hilfstabelle!$C10=HI_Hilfstabelle!$A10,IFERROR(NR_Berechnung!R10,1/0),"") -> 1.002021881 | BD10: =IF(HI_Hilfstabelle!$C10=HI_Hilfstabelle!$A10,IFERROR(NR_Berechnung!S10,1/0),"") -> 0.9067891626 | BE10: =IF(HI_Hilfstabelle!$C10=HI_Hilfstabelle!$A10,IFERROR(NR_Berechnung!T10,1/0),"") -> 0.9039987527 | BF10: =IF(HI_Hilfstabelle!$C10=HI_Hilfstabelle!$A10,IFERROR(NR_Berechnung!U10,1/0),"") -> 0.902375701 | BG10: =IF(HI_Hilfstabelle!$C10=HI_Hilfstabelle!$A10,IFERROR(NR_Berechnung!V10,1/0),"") -> 0.8565249757 | BH10: =IF(HI_Hilfstabelle!$C10=HI_Hilfstabelle!$A10,IFERROR(NR_Berechnung!W10,1/0),"") -> 0.9468370178 | BI10: =IF(HI_Hilfstabelle!$C10=HI_Hilfstabelle!$A10,IFERROR(NR_Berechnung!X10,1/0),"") -> 1.023373641 | BJ10: 0.9345601617 | BK10: 0.9329437559 | BL10: 0.9345601617 | BM10: 0.9329437559 | BN10: =IF(BL10="","",HI_Hilfstabelle!H10) -> 10709739 | BO10: 0.06709508076 | BP10: 0.06709508076 | BQ10: 0.06270438953 | BR10: 0.06259593665 | BS10: =IF(BL10="","",HI_Hilfstabelle!J10) -> 67 | BT10: 0.04772079772 | BU10: 0.04772079772 | BV10: 0.04459795643 | BW10: 0.04452082026
A11: Italien | C11: =IF(NR_Veränderung!C95="",1/0,NR_Veränderung!C95) ->  | D11: =IF(NR_Veränderung!D95="",1/0,NR_Veränderung!D95) ->  | E11: =IF(NR_Veränderung!E95="",1/0,NR_Veränderung!E95) ->  | F11: =IF(NR_Veränderung!F95="",1/0,NR_Veränderung!F95) ->  | G11: =IF(NR_Veränderung!G95="",1/0,NR_Veränderung!G95) ->  | H11: =IF(NR_Veränderung!H95="",1/0,NR_Veränderung!H95) ->  | I11: =IF(NR_Veränderung!I95="",1/0,NR_Veränderung!I95) ->  | J11: =IF(NR_Veränderung!J95="",1/0,NR_Veränderung!J95) ->  | K11: =IF(NR_Veränderung!K95="",1/0,NR_Veränderung!K95) ->  | L11: =IF(NR_Veränderung!L95="",1/0,NR_Veränderung!L95) ->  | M11: =IF(NR_Veränderung!M95="",1/0,NR_Veränderung!M95) ->  | N11: =IF(NR_Veränderung!N95="",1/0,NR_Veränderung!N95) ->  | O11: =IF(NR_Veränderung!O95="",1/0,NR_Veränderung!O95) ->  | P11: =IF(NR_Veränderung!P95="",1/0,NR_Veränderung!P95) ->  | Q11: =IF(NR_Veränderung!Q95="",1/0,NR_Veränderung!Q95) ->  | R11: =IF(NR_Veränderung!R95="",1/0,NR_Veränderung!R95) ->  | S11: =IF(NR_Veränderung!S95="",1/0,NR_Veränderung!S95) ->  | T11: =IF(NR_Veränderung!T95="",1/0,NR_Veränderung!T95) ->  | U11: =IF(NR_Veränderung!U95="",1/0,NR_Veränderung!U95) ->  | V11: =IF(NR_Veränderung!V95="",1/0,NR_Veränderung!V95) ->  | W11: =IF(NR_Veränderung!W95="",1/0,NR_Veränderung!W95) ->  | X11: =IF(NR_Veränderung!X95="",1/0,NR_Veränderung!X95) ->  | AC11: =IF(AA11="","",HI_Hilfstabelle!H11) ->  | AH11: =IF(AA11="","",HI_Hilfstabelle!J11) ->  | AN11: =IF(HI_Hilfstabelle!$C11=HI_Hilfstabelle!$A11,IFERROR(NR_Berechnung!C11,1/0),"") ->  | AO11: =IF(HI_Hilfstabelle!$C11=HI_Hilfstabelle!$A11,IFERROR(NR_Berechnung!D11,1/0),"") ->  | AP11: =IF(HI_Hilfstabelle!$C11=HI_Hilfstabelle!$A11,IFERROR(NR_Berechnung!E11,1/0),"") ->  | AQ11: =IF(HI_Hilfstabelle!$C11=HI_Hilfstabelle!$A11,IFERROR(NR_Berechnung!F11,1/0),"") ->  | AR11: =IF(HI_Hilfstabelle!$C11=HI_Hilfstabelle!$A11,IFERROR(NR_Berechnung!G11,1/0),"") ->  | AS11: =IF(HI_Hilfstabelle!$C11=HI_Hilfstabelle!$A11,IFERROR(NR_Berechnung!H11,1/0),"") ->  | AT11: =IF(HI_Hilfstabelle!$C11=HI_Hilfstabelle!$A11,IFERROR(NR_Berechnung!I11,1/0),"") ->  | AU11: =IF(HI_Hilfstabelle!$C11=HI_Hilfstabelle!$A11,IFERROR(NR_Berechnung!J11,1/0),"") ->  | AV11: =IF(HI_Hilfstabelle!$C11=HI_Hilfstabelle!$A11,IFERROR(NR_Berechnung!K11,1/0),"") ->  | AW11: =IF(HI_Hilfstabelle!$C11=HI_Hilfstabelle!$A11,IFERROR(NR_Berechnung!L11,1/0),"") ->  | AX11: =IF(HI_Hilfstabelle!$C11=HI_Hilfstabelle!$A11,IFERROR(NR_Berechnung!M11,1/0),"") ->  | AY11: =IF(HI_Hilfstabelle!$C11=HI_Hilfstabelle!$A11,IFERROR(NR_Berechnung!N11,1/0),"") ->  | AZ11: =IF(HI_Hilfstabelle!$C11=HI_Hilfstabelle!$A11,IFERROR(NR_Berechnung!O11,1/0),"") ->  | BA11: =IF(HI_Hilfstabelle!$C11=HI_Hilfstabelle!$A11,IFERROR(NR_Berechnung!P11,1/0),"") ->  | BB11: =IF(HI_Hilfstabelle!$C11=HI_Hilfstabelle!$A11,IFERROR(NR_Berechnung!Q11,1/0),"") ->  | BC11: =IF(HI_Hilfstabelle!$C11=HI_Hilfstabelle!$A11,IFERROR(NR_Berechnung!R11,1/0),"") ->  | BD11: =IF(HI_Hilfstabelle!$C11=HI_Hilfstabelle!$A11,IFERROR(NR_Berechnung!S11,1/0),"") ->  | BE11: =IF(HI_Hilfstabelle!$C11=HI_Hilfstabelle!$A11,IFERROR(NR_Berechnung!T11,1/0),"") ->  | BF11: =IF(HI_Hilfstabelle!$C11=HI_Hilfstabelle!$A11,IFERROR(NR_Berechnung!U11,1/0),"") ->  | BG11: =IF(HI_Hilfstabelle!$C11=HI_Hilfstabelle!$A11,IFERROR(NR_Berechnung!V11,1/0),"") ->  | BH11: =IF(HI_Hilfstabelle!$C11=HI_Hilfstabelle!$A11,IFERROR(NR_Berechnung!W11,1/0),"") ->  | BI11: =IF(HI_Hilfstabelle!$C11=HI_Hilfstabelle!$A11,IFERROR(NR_Berechnung!X11,1/0),"") ->  | BN11: =IF(BL11="","",HI_Hilfstabelle!H11) ->  | BS11: =IF(BL11="","",HI_Hilfstabelle!J11) -> 
A12: Spanien | C12: =IF(NR_Veränderung!C96="",1/0,NR_Veränderung!C96) -> 1.137103129 | D12: =IF(NR_Veränderung!D96="",1/0,NR_Veränderung!D96) -> 1.121839387 | E12: =IF(NR_Veränderung!E96="",1/0,NR_Veränderung!E96) -> 1.083408596 | F12: =IF(NR_Veränderung!F96="",1/0,NR_Veränderung!F96) -> 1.024086113 | G12: =IF(NR_Veränderung!G96="",1/0,NR_Veränderung!G96) -> 1.112193453 | H12: =IF(NR_Veränderung!H96="",1/0,NR_Veränderung!H96) -> 1.054315654 | I12: =IF(NR_Veränderung!I96="",1/0,NR_Veränderung!I96) -> 1.090992304 | J12: =IF(NR_Veränderung!J96="",1/0,NR_Veränderung!J96) -> 1.060729932 | K12: =IF(NR_Veränderung!K96="",1/0,NR_Veränderung!K96) -> 1.074527516 | L12: =IF(NR_Veränderung!L96="",1/0,NR_Veränderung!L96) -> 1.082208555 | M12: =IF(NR_Veränderung!M96="",1/0,NR_Veränderung!M96) -> 1.015389936 | N12: =IF(NR_Veränderung!N96="",1/0,NR_Veränderung!N96) -> 1.085419001 | O12: =IF(NR_Veränderung!O96="",1/0,NR_Veränderung!O96) -> 1.006374911 | P12: =IF(NR_Veränderung!P96="",1/0,NR_Veränderung!P96) -> 0.9725865335 | Q12: =IF(NR_Veränderung!Q96="",1/0,NR_Veränderung!Q96) -> 1.090110115 | R12: =IF(NR_Veränderung!R96="",1/0,NR_Veränderung!R96) -> 1.016737404 | S12: =IF(NR_Veränderung!S96="",1/0,NR_Veränderung!S96) -> 0.9644811834 | T12: =IF(NR_Veränderung!T96="",1/0,NR_Veränderung!T96) -> 1.061940763 | U12: =IF(NR_Veränderung!U96="",1/0,NR_Veränderung!U96) -> 1.151933974 | V12: =IF(NR_Veränderung!V96="",1/0,NR_Veränderung!V96) -> 0.9425246242 | W12: =IF(NR_Veränderung!W96="",1/0,NR_Veränderung!W96) -> 0.9525780269 | X12: =IF(NR_Veränderung!X96="",1/0,NR_Veränderung!X96) -> 0.9869359537 | Y12: 1.011018847 | Z12: 1.008759238 | AA12: 1.011018847 | AB12: 1.008759238 | AC12: =IF(AA12="","",HI_Hilfstabelle!H12) -> 47329981 | AD12: 0.2965159933 | AE12: 0.2965159933 | AF12: 0.2997832577 | AG12: 0.2991132474 | AH12: =IF(AA12="","",HI_Hilfstabelle!J12) -> 91 | AI12: 0.06481481481 | AJ12: 0.06481481481 | AK12: 0.06552899935 | AL12: 0.0653825432 | AN12: =IF(HI_Hilfstabelle!$C12=HI_Hilfstabelle!$A12,IFERROR(NR_Berechnung!C12,1/0),"") -> 1.137103129 | AO12: =IF(HI_Hilfstabelle!$C12=HI_Hilfstabelle!$A12,IFERROR(NR_Berechnung!D12,1/0),"") -> 1.121839387 | AP12: =IF(HI_Hilfstabelle!$C12=HI_Hilfstabelle!$A12,IFERROR(NR_Berechnung!E12,1/0),"") -> 1.083408596 | AQ12: =IF(HI_Hilfstabelle!$C12=HI_Hilfstabelle!$A12,IFERROR(NR_Berechnung!F12,1/0),"") -> 1.024086113 | AR12: =IF(HI_Hilfstabelle!$C12=HI_Hilfstabelle!$A12,IFERROR(NR_Berechnung!G12,1/0),"") -> 1.112193453 | AS12: =IF(HI_Hilfstabelle!$C12=HI_Hilfstabelle!$A12,IFERROR(NR_Berechnung!H12,1/0),"") -> 1.054315654 | AT12: =IF(HI_Hilfstabelle!$C12=HI_Hilfstabelle!$A12,IFERROR(NR_Berechnung!I12,1/0),"") -> 1.090992304 | AU12: =IF(HI_Hilfstabelle!$C12=HI_Hilfstabelle!$A12,IFERROR(NR_Berechnung!J12,1/0),"") -> 1.060729932 | AV12: =IF(HI_Hilfstabelle!$C12=HI_Hilfstabelle!$A12,IFERROR(NR_Berechnung!K12,1/0),"") -> 1.074527516 | AW12: =IF(HI_Hilfstabelle!$C12=HI_Hilfstabelle!$A12,IFERROR(NR_Berechnung!L12,1/0),"") -> 1.082208555 | AX12: =IF(HI_Hilfstabelle!$C12=HI_Hilfstabelle!$A12,IFERROR(NR_Berechnung!M12,1/0),"") -> 1.015389936 | AY12: =IF(HI_Hilfstabelle!$C12=HI_Hilfstabelle!$A12,IFERROR(NR_Berechnung!N12,1/0),"") -> 1.085419001 | AZ12: =IF(HI_Hilfstabelle!$C12=HI_Hilfstabelle!$A12,IFERROR(NR_Berechnung!O12,1/0),"") -> 1.006374911 | BA12: =IF(HI_Hilfstabelle!$C12=HI_Hilfstabelle!$A12,IFERROR(NR_Berechnung!P12,1/0),"") -> 0.9725865335 | BB12: =IF(HI_Hilfstabelle!$C12=HI_Hilfstabelle!$A12,IFERROR(NR_Berechnung!Q12,1/0),"") -> 1.090110115 | BC12: =IF(HI_Hilfstabelle!$C12=HI_Hilfstabelle!$A12,IFERROR(NR_Berechnung!R12,1/0),"") -> 1.016737404 | BD12: =IF(HI_Hilfstabelle!$C12=HI_Hilfstabelle!$A12,IFERROR(NR_Berechnung!S12,1/0),"") -> 0.9644811834 | BE12: =IF(HI_Hilfstabelle!$C12=HI_Hilfstabelle!$A12,IFERROR(NR_Berechnung!T12,1/0),"") -> 1.061940763 | BF12: =IF(HI_Hilfstabelle!$C12=HI_Hilfstabelle!$A12,IFERROR(NR_Berechnung!U12,1/0),"") -> 1.151933974 | BG12: =IF(HI_Hilfstabelle!$C12=HI_Hilfstabelle!$A12,IFERROR(NR_Berechnung!V12,1/0),"") -> 0.9425246242 | BH12: =IF(HI_Hilfstabelle!$C12=HI_Hilfstabelle!$A12,IFERROR(NR_Berechnung!W12,1/0),"") -> 0.9525780269 | BI12: =IF(HI_Hilfstabelle!$C12=HI_Hilfstabelle!$A12,IFERROR(NR_Berechnung!X12,1/0),"") -> 0.9869359537 | BJ12: 1.011018847 | BK12: 1.008759238 | BL12: 1.011018847 | BM12: 1.008759238 | BN12: =IF(BL12="","",HI_Hilfstabelle!H12) -> 47329981 | BO12: 0.2965159933 | BP12: 0.2965159933 | BQ12: 0.2997832577 | BR12: 0.2991132474 | BS12: =IF(BL12="","",HI_Hilfstabelle!J12) -> 91 | BT12: 0.06481481481 | BU12: 0.06481481481 | BV12: 0.06552899935 | BW12: 0.0653825432
A13: Finnland | C13: =IF(NR_Veränderung!C97="",1/0,NR_Veränderung!C97) -> 1.016619205 | D13: =IF(NR_Veränderung!D97="",1/0,NR_Veränderung!D97) -> 1.060066796 | E13: =IF(NR_Veränderung!E97="",1/0,NR_Veränderung!E97) -> 1.015414401 | F13: =IF(NR_Veränderung!F97="",1/0,NR_Veränderung!F97) -> 1.096460561 | G13: =IF(NR_Veränderung!G97="",1/0,NR_Veränderung!G97) -> 1.036030837 | H13: =IF(NR_Veränderung!H97="",1/0,NR_Veränderung!H97) -> 1.065707316 | I13: =IF(NR_Veränderung!I97="",1/0,NR_Veränderung!I97) -> 1.023468486 | J13: =IF(NR_Veränderung!J97="",1/0,NR_Veränderung!J97) -> 1.034656936 | K13: =IF(NR_Veränderung!K97="",1/0,NR_Veränderung!K97) -> 0.977531555 | L13: =IF(NR_Veränderung!L97="",1/0,NR_Veränderung!L97) -> 1.02515856 | M13: =IF(NR_Veränderung!M97="",1/0,NR_Veränderung!M97) -> 0.9959797778 | N13: =IF(NR_Veränderung!N97="",1/0,NR_Veränderung!N97) -> 0.969424229 | O13: =IF(NR_Veränderung!O97="",1/0,NR_Veränderung!O97) -> 0.9846010048 | P13: =IF(NR_Veränderung!P97="",1/0,NR_Veränderung!P97) -> 0.9681940701 | Q13: =IF(NR_Veränderung!Q97="",1/0,NR_Veränderung!Q97) -> 1.074498133 | R13: =IF(NR_Veränderung!R97="",1/0,NR_Veränderung!R97) -> 0.9841905236 | S13: =IF(NR_Veränderung!S97="",1/0,NR_Veränderung!S97) -> 1.039198366 | T13: =IF(NR_Veränderung!T97="",1/0,NR_Veränderung!T97) -> 0.8857472021 | U13: =IF(NR_Veränderung!U97="",1/0,NR_Veränderung!U97) -> 0.843336357 | V13: =IF(NR_Veränderung!V97="",1/0,NR_Veränderung!V97) -> 0.9482363259 | W13: =IF(NR_Veränderung!W97="",1/0,NR_Veränderung!W97) -> 0.9520615506 | X13: =IF(NR_Veränderung!X97="",1/0,NR_Veränderung!X97) -> 0.8976714449 | Y13: 0.9357773958 | Z13: 0.9338031286 | AA13: 0.9357773958 | AB13: 0.9338031286 | AC13: =IF(AA13="","",HI_Hilfstabelle!H13) -> 5525292 | AD13: 0.03461521452 | AE13: 0.03461521452 | AF13: 0.0323921353 | AG13: 0.03232379562 | AH13: =IF(AA13="","",HI_Hilfstabelle!J13) -> 111 | AI13: 0.07905982906 | AJ13: 0.07905982906 | AK13: 0.07398240095 | AL13: 0.07382631572 | AN13: =IF(HI_Hilfstabelle!$C13=HI_Hilfstabelle!$A13,IFERROR(NR_Berechnung!C13,1/0),"") -> 1.016619205 | AO13: =IF(HI_Hilfstabelle!$C13=HI_Hilfstabelle!$A13,IFERROR(NR_Berechnung!D13,1/0),"") -> 1.060066796 | AP13: =IF(HI_Hilfstabelle!$C13=HI_Hilfstabelle!$A13,IFERROR(NR_Berechnung!E13,1/0),"") -> 1.015414401 | AQ13: =IF(HI_Hilfstabelle!$C13=HI_Hilfstabelle!$A13,IFERROR(NR_Berechnung!F13,1/0),"") -> 1.096460561 | AR13: =IF(HI_Hilfstabelle!$C13=HI_Hilfstabelle!$A13,IFERROR(NR_Berechnung!G13,1/0),"") -> 1.036030837 | AS13: =IF(HI_Hilfstabelle!$C13=HI_Hilfstabelle!$A13,IFERROR(NR_Berechnung!H13,1/0),"") -> 1.065707316 | AT13: =IF(HI_Hilfstabelle!$C13=HI_Hilfstabelle!$A13,IFERROR(NR_Berechnung!I13,1/0),"") -> 1.023468486 | AU13: =IF(HI_Hilfstabelle!$C13=HI_Hilfstabelle!$A13,IFERROR(NR_Berechnung!J13,1/0),"") -> 1.034656936 | AV13: =IF(HI_Hilfstabelle!$C13=HI_Hilfstabelle!$A13,IFERROR(NR_Berechnung!K13,1/0),"") -> 0.977531555 | AW13: =IF(HI_Hilfstabelle!$C13=HI_Hilfstabelle!$A13,IFERROR(NR_Berechnung!L13,1/0),"") -> 1.02515856 | AX13: =IF(HI_Hilfstabelle!$C13=HI_Hilfstabelle!$A13,IFERROR(NR_Berechnung!M13,1/0),"") -> 0.9959797778 | AY13: =IF(HI_Hilfstabelle!$C13=HI_Hilfstabelle!$A13,IFERROR(NR_Berechnung!N13,1/0),"") -> 0.969424229 | AZ13: =IF(HI_Hilfstabelle!$C13=HI_Hilfstabelle!$A13,IFERROR(NR_Berechnung!O13,1/0),"") -> 0.9846010048 | BA13: =IF(HI_Hilfstabelle!$C13=HI_Hilfstabelle!$A13,IFERROR(NR_Berechnung!P13,1/0),"") -> 0.9681940701 | BB13: =IF(HI_Hilfstabelle!$C13=HI_Hilfstabelle!$A13,IFERROR(NR_Berechnung!Q13,1/0),"") -> 1.074498133 | BC13: =IF(HI_Hilfstabelle!$C13=HI_Hilfstabelle!$A13,IFERROR(NR_Berechnung!R13,1/0),"") -> 0.9841905236 | BD13: =IF(HI_Hilfstabelle!$C13=HI_Hilfstabelle!$A13,IFERROR(NR_Berechnung!S13,1/0),"") -> 1.039198366 | BE13: =IF(HI_Hilfstabelle!$C13=HI_Hilfstabelle!$A13,IFERROR(NR_Berechnung!T13,1/0),"") -> 0.8857472021 | BF13: =IF(HI_Hilfstabelle!$C13=HI_Hilfstabelle!$A13,IFERROR(NR_Berechnung!U13,1/0),"") -> 0.843336357 | BG13: =IF(HI_Hilfstabelle!$C13=HI_Hilfstabelle!$A13,IFERROR(NR_Berechnung!V13,1/0),"") -> 0.9482363259 | BH13: =IF(HI_Hilfstabelle!$C13=HI_Hilfstabelle!$A13,IFERROR(NR_Berechnung!W13,1/0),"") -> 0.9520615506 | BI13: =IF(HI_Hilfstabelle!$C13=HI_Hilfstabelle!$A13,IFERROR(NR_Berechnung!X13,1/0),"") -> 0.8976714449 | BJ13: 0.9357773958 | BK13: 0.9338031286 | BL13: 0.9357773958 | BM13: 0.9338031286 | BN13: =IF(BL13="","",HI_Hilfstabelle!H13) -> 5525292 | BO13: 0.03461521452 | BP13: 0.03461521452 | BQ13: 0.0323921353 | BR13: 0.03232379562 | BS13: =IF(BL13="","",HI_Hilfstabelle!J13) -> 111 | BT13: 0.07905982906 | BU13: 0.07905982906 | BV13: 0.07398240095 | BW13: 0.07382631572
A14: Ungarn | C14: =IF(NR_Veränderung!C98="",1/0,NR_Veränderung!C98) ->  | D14: =IF(NR_Veränderung!D98="",1/0,NR_Veränderung!D98) ->  | E14: =IF(NR_Veränderung!E98="",1/0,NR_Veränderung!E98) ->  | F14: =IF(NR_Veränderung!F98="",1/0,NR_Veränderung!F98) ->  | G14: =IF(NR_Veränderung!G98="",1/0,NR_Veränderung!G98) ->  | H14: =IF(NR_Veränderung!H98="",1/0,NR_Veränderung!H98) ->  | I14: =IF(NR_Veränderung!I98="",1/0,NR_Veränderung!I98) ->  | J14: =IF(NR_Veränderung!J98="",1/0,NR_Veränderung!J98) ->  | K14: =IF(NR_Veränderung!K98="",1/0,NR_Veränderung!K98) ->  | L14: =IF(NR_Veränderung!L98="",1/0,NR_Veränderung!L98) ->  | M14: =IF(NR_Veränderung!M98="",1/0,NR_Veränderung!M98) ->  | N14: =IF(NR_Veränderung!N98="",1/0,NR_Veränderung!N98) ->  | O14: =IF(NR_Veränderung!O98="",1/0,NR_Veränderung!O98) ->  | P14: =IF(NR_Veränderung!P98="",1/0,NR_Veränderung!P98) ->  | Q14: =IF(NR_Veränderung!Q98="",1/0,NR_Veränderung!Q98) ->  | R14: =IF(NR_Veränderung!R98="",1/0,NR_Veränderung!R98) -> 0.9802315563 | S14: =IF(NR_Veränderung!S98="",1/0,NR_Veränderung!S98) -> 0.9879664976 | T14: =IF(NR_Veränderung!T98="",1/0,NR_Veränderung!T98) -> 1.071724482 | U14: =IF(NR_Veränderung!U98="",1/0,NR_Veränderung!U98) -> 1.036170749 | V14: =IF(NR_Veränderung!V98="",1/0,NR_Veränderung!V98) -> 1.02334954 | W14: =IF(NR_Veränderung!W98="",1/0,NR_Veränderung!W98) -> 0.9340431533 | X14: =IF(NR_Veränderung!X98="",1/0,NR_Veränderung!X98) -> 0.9361659653 | Y14: 0.9956645632 | Z14: 0.9945312914 | AA14: 0.9956645632 | AB14: 0.9945312914 | AC14: =IF(AA14="","",HI_Hilfstabelle!H14) -> 9769526 | AD14: 0.06120477222 | AE14: 0.06120477222 | AF14: 0.0609394228 | AG14: 0.06087006115 | AH14: =IF(AA14="","",HI_Hilfstabelle!J14) -> 73 | AI14: 0.05199430199 | AJ14: 0.05199430199 | AK14: 0.05176888399 | AL14: 0.05170996031 | AN14: =IF(HI_Hilfstabelle!$C14=HI_Hilfstabelle!$A14,IFERROR(NR_Berechnung!C14,1/0),"") ->  | AO14: =IF(HI_Hilfstabelle!$C14=HI_Hilfstabelle!$A14,IFERROR(NR_Berechnung!D14,1/0),"") ->  | AP14: =IF(HI_Hilfstabelle!$C14=HI_Hilfstabelle!$A14,IFERROR(NR_Berechnung!E14,1/0),"") ->  | AQ14: =IF(HI_Hilfstabelle!$C14=HI_Hilfstabelle!$A14,IFERROR(NR_Berechnung!F14,1/0),"") ->  | AR14: =IF(HI_Hilfstabelle!$C14=HI_Hilfstabelle!$A14,IFERROR(NR_Berechnung!G14,1/0),"") ->  | AS14: =IF(HI_Hilfstabelle!$C14=HI_Hilfstabelle!$A14,IFERROR(NR_Berechnung!H14,1/0),"") ->  | AT14: =IF(HI_Hilfstabelle!$C14=HI_Hilfstabelle!$A14,IFERROR(NR_Berechnung!I14,1/0),"") ->  | AU14: =IF(HI_Hilfstabelle!$C14=HI_Hilfstabelle!$A14,IFERROR(NR_Berechnung!J14,1/0),"") ->  | AV14: =IF(HI_Hilfstabelle!$C14=HI_Hilfstabelle!$A14,IFERROR(NR_Berechnung!K14,1/0),"") ->  | AW14: =IF(HI_Hilfstabelle!$C14=HI_Hilfstabelle!$A14,IFERROR(NR_Berechnung!L14,1/0),"") ->  | AX14: =IF(HI_Hilfstabelle!$C14=HI_Hilfstabelle!$A14,IFERROR(NR_Berechnung!M14,1/0),"") ->  | AY14: =IF(HI_Hilfstabelle!$C14=HI_Hilfstabelle!$A14,IFERROR(NR_Berechnung!N14,1/0),"") ->  | AZ14: =IF(HI_Hilfstabelle!$C14=HI_Hilfstabelle!$A14,IFERROR(NR_Berechnung!O14,1/0),"") ->  | BA14: =IF(HI_Hilfstabelle!$C14=HI_Hilfstabelle!$A14,IFERROR(NR_Berechnung!P14,1/0),"") ->  | BB14: =IF(HI_Hilfstabelle!$C14=HI_Hilfstabelle!$A14,IFERROR(NR_Berechnung!Q14,1/0),"") ->  | BC14: =IF(HI_Hilfstabelle!$C14=HI_Hilfstabelle!$A14,IFERROR(NR_Berechnung!R14,1/0),"") -> 0.9802315563 | BD14: =IF(HI_Hilfstabelle!$C14=HI_Hilfstabelle!$A14,IFERROR(NR_Berechnung!S14,1/0),"") -> 0.9879664976 | BE14: =IF(HI_Hilfstabelle!$C14=HI_Hilfstabelle!$A14,IFERROR(NR_Berechnung!T14,1/0),"") -> 1.071724482 | BF14: =IF(HI_Hilfstabelle!$C14=HI_Hilfstabelle!$A14,IFERROR(NR_Berechnung!U14,1/0),"") -> 1.036170749 | BG14: =IF(HI_Hilfstabelle!$C14=HI_Hilfstabelle!$A14,IFERROR(NR_Berechnung!V14,1/0),"") -> 1.02334954 | BH14: =IF(HI_Hilfstabelle!$C14=HI_Hilfstabelle!$A14,IFERROR(NR_Berechnung!W14,1/0),"") -> 0.9340431533 | BI14: =IF(HI_Hilfstabelle!$C14=HI_Hilfstabelle!$A14,IFERROR(NR_Berechnung!X14,1/0),"") -> 0.9361659653 | BJ14: 0.9956645632 | BK14: 0.9945312914 | BL14: 0.9956645632 | BM14: 0.9945312914 | BN14: =IF(BL14="","",HI_Hilfstabelle!H14) -> 9769526 | BO14: 0.06120477222 | BP14: 0.06120477222 | BQ14: 0.0609394228 | BR14: 0.06087006115 | BS14: =IF(BL14="","",HI_Hilfstabelle!J14) -> 73 | BT14: 0.05199430199 | BU14: 0.05199430199 | BV14: 0.05176888399 | BW14: 0.05170996031
A15: Irland | C15: =IF(NR_Veränderung!C99="",1/0,NR_Veränderung!C99) -> 1.016104856 | D15: =IF(NR_Veränderung!D99="",1/0,NR_Veränderung!D99) -> 1.053306486 | E15: =IF(NR_Veränderung!E99="",1/0,NR_Veränderung!E99) -> 0.93134717 | F15: =IF(NR_Veränderung!F99="",1/0,NR_Veränderung!F99) -> 1.044974882 | G15: =IF(NR_Veränderung!G99="",1/0,NR_Veränderung!G99) -> 0.9634744691 | H15: =IF(NR_Veränderung!H99="",1/0,NR_Veränderung!H99) -> 0.9385816339 | I15: =IF(NR_Veränderung!I99="",1/0,NR_Veränderung!I99) -> 0.9472684253 | J15: =IF(NR_Veränderung!J99="",1/0,NR_Veränderung!J99) -> 1.039386974 | K15: =IF(NR_Veränderung!K99="",1/0,NR_Veränderung!K99) -> 1.214773996 | L15: =IF(NR_Veränderung!L99="",1/0,NR_Veränderung!L99) -> 0.7941352574 | M15: =IF(NR_Veränderung!M99="",1/0,NR_Veränderung!M99) -> 0.9152890083 | N15: =IF(NR_Veränderung!N99="",1/0,NR_Veränderung!N99) -> 1.010522988 | O15: =IF(NR_Veränderung!O99="",1/0,NR_Veränderung!O99) -> 1.020292907 | P15: =IF(NR_Veränderung!P99="",1/0,NR_Veränderung!P99) -> 0.9849528141 | Q15: =IF(NR_Veränderung!Q99="",1/0,NR_Veränderung!Q99) -> 1.239108195 | R15: =IF(NR_Veränderung!R99="",1/0,NR_Veränderung!R99) -> 0.9767515306 | S15: =IF(NR_Veränderung!S99="",1/0,NR_Veränderung!S99) -> 1.044801415 | T15: =IF(NR_Veränderung!T99="",1/0,NR_Veränderung!T99) -> 0.999697516 | U15: =IF(NR_Veränderung!U99="",1/0,NR_Veränderung!U99) -> 0.9142447488 | V15: =IF(NR_Veränderung!V99="",1/0,NR_Veränderung!V99) -> 0.9045560271 | W15: =IF(NR_Veränderung!W99="",1/0,NR_Veränderung!W99) -> 0.9378312163 | X15: =IF(NR_Veränderung!X99="",1/0,NR_Veränderung!X99) -> 0.9807477393 | Y15: 0.9655185991 | Z15: 0.9644209375 | AA15: 0.9655185991 | AB15: 0.9644209375 | AC15: =IF(AA15="","",HI_Hilfstabelle!H15) -> 4963839 | AD15: 0.03109778666 | AE15: 0.03109778666 | AF15: 0.03002549141 | AG15: 0.02999135656 | AH15: =IF(AA15="","",HI_Hilfstabelle!J15) -> 193 | AI15: 0.1374643875 | AJ15: 0.1374643875 | AK15: 0.1327244228 | AL15: 0.1325735334 | AN15: =IF(HI_Hilfstabelle!$C15=HI_Hilfstabelle!$A15,IFERROR(NR_Berechnung!C15,1/0),"") -> 1.016104856 | AO15: =IF(HI_Hilfstabelle!$C15=HI_Hilfstabelle!$A15,IFERROR(NR_Berechnung!D15,1/0),"") -> 1.053306486 | AP15: =IF(HI_Hilfstabelle!$C15=HI_Hilfstabelle!$A15,IFERROR(NR_Berechnung!E15,1/0),"") -> 0.93134717 | AQ15: =IF(HI_Hilfstabelle!$C15=HI_Hilfstabelle!$A15,IFERROR(NR_Berechnung!F15,1/0),"") -> 1.044974882 | AR15: =IF(HI_Hilfstabelle!$C15=HI_Hilfstabelle!$A15,IFERROR(NR_Berechnung!G15,1/0),"") -> 0.9634744691 | AS15: =IF(HI_Hilfstabelle!$C15=HI_Hilfstabelle!$A15,IFERROR(NR_Berechnung!H15,1/0),"") -> 0.9385816339 | AT15: =IF(HI_Hilfstabelle!$C15=HI_Hilfstabelle!$A15,IFERROR(NR_Berechnung!I15,1/0),"") -> 0.9472684253 | AU15: =IF(HI_Hilfstabelle!$C15=HI_Hilfstabelle!$A15,IFERROR(NR_Berechnung!J15,1/0),"") -> 1.039386974 | AV15: =IF(HI_Hilfstabelle!$C15=HI_Hilfstabelle!$A15,IFERROR(NR_Berechnung!K15,1/0),"") -> 1.214773996 | AW15: =IF(HI_Hilfstabelle!$C15=HI_Hilfstabelle!$A15,IFERROR(NR_Berechnung!L15,1/0),"") -> 0.7941352574 | AX15: =IF(HI_Hilfstabelle!$C15=HI_Hilfstabelle!$A15,IFERROR(NR_Berechnung!M15,1/0),"") -> 0.9152890083 | AY15: =IF(HI_Hilfstabelle!$C15=HI_Hilfstabelle!$A15,IFERROR(NR_Berechnung!N15,1/0),"") -> 1.010522988 | AZ15: =IF(HI_Hilfstabelle!$C15=HI_Hilfstabelle!$A15,IFERROR(NR_Berechnung!O15,1/0),"") -> 1.020292907 | BA15: =IF(HI_Hilfstabelle!$C15=HI_Hilfstabelle!$A15,IFERROR(NR_Berechnung!P15,1/0),"") -> 0.9849528141 | BB15: =IF(HI_Hilfstabelle!$C15=HI_Hilfstabelle!$A15,IFERROR(NR_Berechnung!Q15,1/0),"") -> 1.239108195 | BC15: =IF(HI_Hilfstabelle!$C15=HI_Hilfstabelle!$A15,IFERROR(NR_Berechnung!R15,1/0),"") -> 0.9767515306 | BD15: =IF(HI_Hilfstabelle!$C15=HI_Hilfstabelle!$A15,IFERROR(NR_Berechnung!S15,1/0),"") -> 1.044801415 | BE15: =IF(HI_Hilfstabelle!$C15=HI_Hilfstabelle!$A15,IFERROR(NR_Berechnung!T15,1/0),"") -> 0.999697516 | BF15: =IF(HI_Hilfstabelle!$C15=HI_Hilfstabelle!$A15,IFERROR(NR_Berechnung!U15,1/0),"") -> 0.9142447488 | BG15: =IF(HI_Hilfstabelle!$C15=HI_Hilfstabelle!$A15,IFERROR(NR_Berechnung!V15,1/0),"") -> 0.9045560271 | BH15: =IF(HI_Hilfstabelle!$C15=HI_Hilfstabelle!$A15,IFERROR(NR_Berechnung!W15,1/0),"") -> 0.9378312163 | BI15: =IF(HI_Hilfstabelle!$C15=HI_Hilfstabelle!$A15,IFERROR(NR_Berechnung!X15,1/0),"") -> 0.9807477393 | BJ15: 0.9655185991 | BK15: 0.9644209375 | BL15: 0.9655185991 | BM15: 0.9644209375 | BN15: =IF(BL15="","",HI_Hilfstabelle!H15) -> 4963839 | BO15: 0.03109778666 | BP15: 0.03109778666 | BQ15: 0.03002549141 | BR15: 0.02999135656 | BS15: =IF(BL15="","",HI_Hilfstabelle!J15) -> 193 | BT15: 0.1374643875 | BU15: 0.1374643875 | BV15: 0.1327244228 | BW15: 0.1325735334
A16: Niederlande | C16: =IF(NR_Veränderung!C100="",1/0,NR_Veränderung!C100) -> 1.002754732 | D16: =IF(NR_Veränderung!D100="",1/0,NR_Veränderung!D100) -> 0.9852150159 | E16: =IF(NR_Veränderung!E100="",1/0,NR_Veränderung!E100) -> 1.068877998 | F16: =IF(NR_Veränderung!F100="",1/0,NR_Veränderung!F100) -> 0.9627212376 | G16: =IF(NR_Veränderung!G100="",1/0,NR_Veränderung!G100) -> 1.047870052 | H16: =IF(NR_Veränderung!H100="",1/0,NR_Veränderung!H100) -> 1.040765984 | I16: =IF(NR_Veränderung!I100="",1/0,NR_Veränderung!I100) -> 1.006330828 | J16: =IF(NR_Veränderung!J100="",1/0,NR_Veränderung!J100) -> 1.03909508 | K16: =IF(NR_Veränderung!K100="",1/0,NR_Veränderung!K100) -> 1.095147037 | L16: =IF(NR_Veränderung!L100="",1/0,NR_Veränderung!L100) -> 1.026918846 | M16: =IF(NR_Veränderung!M100="",1/0,NR_Veränderung!M100) -> 0.9962996941 | N16: =IF(NR_Veränderung!N100="",1/0,NR_Veränderung!N100) -> 1.00742558 | O16: =IF(NR_Veränderung!O100="",1/0,NR_Veränderung!O100) -> 1.012938576 | P16: =IF(NR_Veränderung!P100="",1/0,NR_Veränderung!P100) -> 0.9682773696 | Q16: =IF(NR_Veränderung!Q100="",1/0,NR_Veränderung!Q100) -> 0.9807336024 | R16: =IF(NR_Veränderung!R100="",1/0,NR_Veränderung!R100) -> 0.9043113747 | S16: =IF(NR_Veränderung!S100="",1/0,NR_Veränderung!S100) -> 0.8726242042 | T16: =IF(NR_Veränderung!T100="",1/0,NR_Veränderung!T100) -> 0.939317877 | U16: =IF(NR_Veränderung!U100="",1/0,NR_Veränderung!U100) -> 0.9753321566 | V16: =IF(NR_Veränderung!V100="",1/0,NR_Veränderung!V100) -> 0.9032293799 | W16: =IF(NR_Veränderung!W100="",1/0,NR_Veränderung!W100) -> 0.9593685268 | X16: =IF(NR_Veränderung!X100="",1/0,NR_Veränderung!X100) -> 0.9873334011 | Y16: 0.9345024172 | Z16: 0.9336711975 | AA16: 0.9345024172 | AB16: 0.9336711975 | AC16: =IF(AA16="","",HI_Hilfstabelle!H16) -> 17407585 | AD16: 0.1090561891 | AE16: 0.1090561891 | AF16: 0.1019132723 | AG16: 0.1018226227 | AH16: =IF(AA16="","",HI_Hilfstabelle!J16) -> 128 | AI16: 0.09116809117 | AJ16: 0.09116809117 | AK16: 0.08519680157 | AL16: 0.08512102086 | AN16: =IF(HI_Hilfstabelle!$C16=HI_Hilfstabelle!$A16,IFERROR(NR_Berechnung!C16,1/0),"") -> 1.002754732 | AO16: =IF(HI_Hilfstabelle!$C16=HI_Hilfstabelle!$A16,IFERROR(NR_Berechnung!D16,1/0),"") -> 0.9852150159 | AP16: =IF(HI_Hilfstabelle!$C16=HI_Hilfstabelle!$A16,IFERROR(NR_Berechnung!E16,1/0),"") -> 1.068877998 | AQ16: =IF(HI_Hilfstabelle!$C16=HI_Hilfstabelle!$A16,IFERROR(NR_Berechnung!F16,1/0),"") -> 0.9627212376 | AR16: =IF(HI_Hilfstabelle!$C16=HI_Hilfstabelle!$A16,IFERROR(NR_Berechnung!G16,1/0),"") -> 1.047870052 | AS16: =IF(HI_Hilfstabelle!$C16=HI_Hilfstabelle!$A16,IFERROR(NR_Berechnung!H16,1/0),"") -> 1.040765984 | AT16: =IF(HI_Hilfstabelle!$C16=HI_Hilfstabelle!$A16,IFERROR(NR_Berechnung!I16,1/0),"") -> 1.006330828 | AU16: =IF(HI_Hilfstabelle!$C16=HI_Hilfstabelle!$A16,IFERROR(NR_Berechnung!J16,1/0),"") -> 1.03909508 | AV16: =IF(HI_Hilfstabelle!$C16=HI_Hilfstabelle!$A16,IFERROR(NR_Berechnung!K16,1/0),"") -> 1.095147037 | AW16: =IF(HI_Hilfstabelle!$C16=HI_Hilfstabelle!$A16,IFERROR(NR_Berechnung!L16,1/0),"") -> 1.026918846 | AX16: =IF(HI_Hilfstabelle!$C16=HI_Hilfstabelle!$A16,IFERROR(NR_Berechnung!M16,1/0),"") -> 0.9962996941 | AY16: =IF(HI_Hilfstabelle!$C16=HI_Hilfstabelle!$A16,IFERROR(NR_Berechnung!N16,1/0),"") -> 1.00742558 | AZ16: =IF(HI_Hilfstabelle!$C16=HI_Hilfstabelle!$A16,IFERROR(NR_Berechnung!O16,1/0),"") -> 1.012938576 | BA16: =IF(HI_Hilfstabelle!$C16=HI_Hilfstabelle!$A16,IFERROR(NR_Berechnung!P16,1/0),"") -> 0.9682773696 | BB16: =IF(HI_Hilfstabelle!$C16=HI_Hilfstabelle!$A16,IFERROR(NR_Berechnung!Q16,1/0),"") -> 0.9807336024 | BC16: =IF(HI_Hilfstabelle!$C16=HI_Hilfstabelle!$A16,IFERROR(NR_Berechnung!R16,1/0),"") -> 0.9043113747 | BD16: =IF(HI_Hilfstabelle!$C16=HI_Hilfstabelle!$A16,IFERROR(NR_Berechnung!S16,1/0),"") -> 0.8726242042 | BE16: =IF(HI_Hilfstabelle!$C16=HI_Hilfstabelle!$A16,IFERROR(NR_Berechnung!T16,1/0),"") -> 0.939317877 | BF16: =IF(HI_Hilfstabelle!$C16=HI_Hilfstabelle!$A16,IFERROR(NR_Berechnung!U16,1/0),"") -> 0.9753321566 | BG16: =IF(HI_Hilfstabelle!$C16=HI_Hilfstabelle!$A16,IFERROR(NR_Berechnung!V16,1/0),"") -> 0.9032293799 | BH16: =IF(HI_Hilfstabelle!$C16=HI_Hilfstabelle!$A16,IFERROR(NR_Berechnung!W16,1/0),"") -> 0.9593685268 | BI16: =IF(HI_Hilfstabelle!$C16=HI_Hilfstabelle!$A16,IFERROR(NR_Berechnung!X16,1/0),"") -> 0.9873334011 | BJ16: 0.9345024172 | BK16: 0.9336711975 | BL16: 0.9345024172 | BM16: 0.9336711975 | BN16: =IF(BL16="","",HI_Hilfstabelle!H16) -> 17407585 | BO16: 0.1090561891 | BP16: 0.1090561891 | BQ16: 0.1019132723 | BR16: 0.1018226227 | BS16: =IF(BL16="","",HI_Hilfstabelle!J16) -> 128 | BT16: 0.09116809117 | BU16: 0.09116809117 | BV16: 0.08519680157 | BW16: 0.08512102086
A17: Portugal | C17: =IF(NR_Veränderung!C101="",1/0,NR_Veränderung!C101) ->  | D17: =IF(NR_Veränderung!D101="",1/0,NR_Veränderung!D101) ->  | E17: =IF(NR_Veränderung!E101="",1/0,NR_Veränderung!E101) ->  | F17: =IF(NR_Veränderung!F101="",1/0,NR_Veränderung!F101) ->  | G17: =IF(NR_Veränderung!G101="",1/0,NR_Veränderung!G101) ->  | H17: =IF(NR_Veränderung!H101="",1/0,NR_Veränderung!H101) ->  | I17: =IF(NR_Veränderung!I101="",1/0,NR_Veränderung!I101) ->  | J17: =IF(NR_Veränderung!J101="",1/0,NR_Veränderung!J101) ->  | K17: =IF(NR_Veränderung!K101="",1/0,NR_Veränderung!K101) ->  | L17: =IF(NR_Veränderung!L101="",1/0,NR_Veränderung!L101) ->  | M17: =IF(NR_Veränderung!M101="",1/0,NR_Veränderung!M101) ->  | N17: =IF(NR_Veränderung!N101="",1/0,NR_Veränderung!N101) ->  | O17: =IF(NR_Veränderung!O101="",1/0,NR_Veränderung!O101) ->  | P17: =IF(NR_Veränderung!P101="",1/0,NR_Veränderung!P101) ->  | Q17: =IF(NR_Veränderung!Q101="",1/0,NR_Veränderung!Q101) ->  | R17: =IF(NR_Veränderung!R101="",1/0,NR_Veränderung!R101) -> 0.9850969627 | S17: =IF(NR_Veränderung!S101="",1/0,NR_Veränderung!S101) -> 0.9143674553 | T17: =IF(NR_Veränderung!T101="",1/0,NR_Veränderung!T101) -> 0.998364779 | U17: =IF(NR_Veränderung!U101="",1/0,NR_Veränderung!U101) -> 1.022436922 | V17: =IF(NR_Veränderung!V101="",1/0,NR_Veränderung!V101) -> 0.96848505 | W17: =IF(NR_Veränderung!W101="",1/0,NR_Veränderung!W101) -> 0.96908077 | X17: =IF(NR_Veränderung!X101="",1/0,NR_Veränderung!X101) -> 0.9965129165 | Y17: 0.9791921222 | Z17: 0.978672387 | AA17: 0.9791921222 | AB17: 0.978672387 | AC17: =IF(AA17="","",HI_Hilfstabelle!H17) -> 10295909 | AD17: 0.06450249123 | AE17: 0.06450249123 | AF17: 0.06316033127 | AG17: 0.06312680705 | AH17: =IF(AA17="","",HI_Hilfstabelle!J17) -> 79 | AI17: 0.05626780627 | AJ17: 0.05626780627 | AK17: 0.05509699263 | AL17: 0.05506774827 | AN17: =IF(HI_Hilfstabelle!$C17=HI_Hilfstabelle!$A17,IFERROR(NR_Berechnung!C17,1/0),"") ->  | AO17: =IF(HI_Hilfstabelle!$C17=HI_Hilfstabelle!$A17,IFERROR(NR_Berechnung!D17,1/0),"") ->  | AP17: =IF(HI_Hilfstabelle!$C17=HI_Hilfstabelle!$A17,IFERROR(NR_Berechnung!E17,1/0),"") ->  | AQ17: =IF(HI_Hilfstabelle!$C17=HI_Hilfstabelle!$A17,IFERROR(NR_Berechnung!F17,1/0),"") ->  | AR17: =IF(HI_Hilfstabelle!$C17=HI_Hilfstabelle!$A17,IFERROR(NR_Berechnung!G17,1/0),"") ->  | AS17: =IF(HI_Hilfstabelle!$C17=HI_Hilfstabelle!$A17,IFERROR(NR_Berechnung!H17,1/0),"") ->  | AT17: =IF(HI_Hilfstabelle!$C17=HI_Hilfstabelle!$A17,IFERROR(NR_Berechnung!I17,1/0),"") ->  | AU17: =IF(HI_Hilfstabelle!$C17=HI_Hilfstabelle!$A17,IFERROR(NR_Berechnung!J17,1/0),"") ->  | AV17: =IF(HI_Hilfstabelle!$C17=HI_Hilfstabelle!$A17,IFERROR(NR_Berechnung!K17,1/0),"") ->  | AW17: =IF(HI_Hilfstabelle!$C17=HI_Hilfstabelle!$A17,IFERROR(NR_Berechnung!L17,1/0),"") ->  | AX17: =IF(HI_Hilfstabelle!$C17=HI_Hilfstabelle!$A17,IFERROR(NR_Berechnung!M17,1/0),"") ->  | AY17: =IF(HI_Hilfstabelle!$C17=HI_Hilfstabelle!$A17,IFERROR(NR_Berechnung!N17,1/0),"") ->  | AZ17: =IF(HI_Hilfstabelle!$C17=HI_Hilfstabelle!$A17,IFERROR(NR_Berechnung!O17,1/0),"") ->  | BA17: =IF(HI_Hilfstabelle!$C17=HI_Hilfstabelle!$A17,IFERROR(NR_Berechnung!P17,1/0),"") ->  | BB17: =IF(HI_Hilfstabelle!$C17=HI_Hilfstabelle!$A17,IFERROR(NR_Berechnung!Q17,1/0),"") ->  | BC17: =IF(HI_Hilfstabelle!$C17=HI_Hilfstabelle!$A17,IFERROR(NR_Berechnung!R17,1/0),"") -> 0.9850969627 | BD17: =IF(HI_Hilfstabelle!$C17=HI_Hilfstabelle!$A17,IFERROR(NR_Berechnung!S17,1/0),"") -> 0.9143674553 | BE17: =IF(HI_Hilfstabelle!$C17=HI_Hilfstabelle!$A17,IFERROR(NR_Berechnung!T17,1/0),"") -> 0.998364779 | BF17: =IF(HI_Hilfstabelle!$C17=HI_Hilfstabelle!$A17,IFERROR(NR_Berechnung!U17,1/0),"") -> 1.022436922 | BG17: =IF(HI_Hilfstabelle!$C17=HI_Hilfstabelle!$A17,IFERROR(NR_Berechnung!V17,1/0),"") -> 0.96848505 | BH17: =IF(HI_Hilfstabelle!$C17=HI_Hilfstabelle!$A17,IFERROR(NR_Berechnung!W17,1/0),"") -> 0.96908077 | BI17: =IF(HI_Hilfstabelle!$C17=HI_Hilfstabelle!$A17,IFERROR(NR_Berechnung!X17,1/0),"") -> 0.9965129165 | BJ17: 0.9791921222 | BK17: 0.978672387 | BL17: 0.9791921222 | BM17: 0.978672387 | BN17: =IF(BL17="","",HI_Hilfstabelle!H17) -> 10295909 | BO17: 0.06450249123 | BP17: 0.06450249123 | BQ17: 0.06316033127 | BR17: 0.06312680705 | BS17: =IF(BL17="","",HI_Hilfstabelle!J17) -> 79 | BT17: 0.05626780627 | BU17: 0.05626780627 | BV17: 0.05509699263 | BW17: 0.05506774827
A18: Rumänien | C18: =IF(NR_Veränderung!C102="",1/0,NR_Veränderung!C102) -> 1.287554308 | D18: =IF(NR_Veränderung!D102="",1/0,NR_Veränderung!D102) -> 1.041262185 | E18: =IF(NR_Veränderung!E102="",1/0,NR_Veränderung!E102) -> 0.9872002515 | F18: =IF(NR_Veränderung!F102="",1/0,NR_Veränderung!F102) -> 1.029742309 | G18: =IF(NR_Veränderung!G102="",1/0,NR_Veränderung!G102) -> 0.9703534902 | H18: =IF(NR_Veränderung!H102="",1/0,NR_Veränderung!H102) -> 1.073726463 | I18: =IF(NR_Veränderung!I102="",1/0,NR_Veränderung!I102) -> 0.9712696116 | J18: =IF(NR_Veränderung!J102="",1/0,NR_Veränderung!J102) -> 0.999409823 | K18: =IF(NR_Veränderung!K102="",1/0,NR_Veränderung!K102) -> 1.030976492 | L18: =IF(NR_Veränderung!L102="",1/0,NR_Veränderung!L102) -> 1.085999749 | M18: =IF(NR_Veränderung!M102="",1/0,NR_Veränderung!M102) -> 0.9899072449 | N18: =IF(NR_Veränderung!N102="",1/0,NR_Veränderung!N102) -> 0.9296078577 | O18: =IF(NR_Veränderung!O102="",1/0,NR_Veränderung!O102) -> 1.297411051 | P18: =IF(NR_Veränderung!P102="",1/0,NR_Veränderung!P102) -> 0.7664951906 | Q18: =IF(NR_Veränderung!Q102="",1/0,NR_Veränderung!Q102) -> 0.7064664212 | R18: =IF(NR_Veränderung!R102="",1/0,NR_Veränderung!R102) -> 0.9907372621 | S18: =IF(NR_Veränderung!S102="",1/0,NR_Veränderung!S102) -> 1.03997492 | T18: =IF(NR_Veränderung!T102="",1/0,NR_Veränderung!T102) -> 1.012904417 | U18: =IF(NR_Veränderung!U102="",1/0,NR_Veränderung!U102) -> 1.213687685 | V18: =IF(NR_Veränderung!V102="",1/0,NR_Veränderung!V102) -> 0.8241332657 | W18: =IF(NR_Veränderung!W102="",1/0,NR_Veränderung!W102) -> 1.480595157 | X18: =IF(NR_Veränderung!X102="",1/0,NR_Veränderung!X102) -> 0.8029237774 | Y18: 1.052136641 | Z18: 1.031323658 | AA18: 1.052136641 | AB18: 1.031323658 | AC18: =IF(AA18="","",HI_Hilfstabelle!H18) -> 19317984 | AD18: 0.121024583 | AE18: 0.121024583 | AF18: 0.1273343982 | AG18: 0.1248155156 | AH18: =IF(AA18="","",HI_Hilfstabelle!J18) -> 70 | AI18: 0.04985754986 | AJ18: 0.04985754986 | AK18: 0.05245695501 | AL18: 0.05141927068 | AN18: =IF(HI_Hilfstabelle!$C18=HI_Hilfstabelle!$A18,IFERROR(NR_Berechnung!C18,1/0),"") -> 1.287554308 | AO18: =IF(HI_Hilfstabelle!$C18=HI_Hilfstabelle!$A18,IFERROR(NR_Berechnung!D18,1/0),"") -> 1.041262185 | AP18: =IF(HI_Hilfstabelle!$C18=HI_Hilfstabelle!$A18,IFERROR(NR_Berechnung!E18,1/0),"") -> 0.9872002515 | AQ18: =IF(HI_Hilfstabelle!$C18=HI_Hilfstabelle!$A18,IFERROR(NR_Berechnung!F18,1/0),"") -> 1.029742309 | AR18: =IF(HI_Hilfstabelle!$C18=HI_Hilfstabelle!$A18,IFERROR(NR_Berechnung!G18,1/0),"") -> 0.9703534902 | AS18: =IF(HI_Hilfstabelle!$C18=HI_Hilfstabelle!$A18,IFERROR(NR_Berechnung!H18,1/0),"") -> 1.073726463 | AT18: =IF(HI_Hilfstabelle!$C18=HI_Hilfstabelle!$A18,IFERROR(NR_Berechnung!I18,1/0),"") -> 0.9712696116 | AU18: =IF(HI_Hilfstabelle!$C18=HI_Hilfstabelle!$A18,IFERROR(NR_Berechnung!J18,1/0),"") -> 0.999409823 | AV18: =IF(HI_Hilfstabelle!$C18=HI_Hilfstabelle!$A18,IFERROR(NR_Berechnung!K18,1/0),"") -> 1.030976492 | AW18: =IF(HI_Hilfstabelle!$C18=HI_Hilfstabelle!$A18,IFERROR(NR_Berechnung!L18,1/0),"") -> 1.085999749 | AX18: =IF(HI_Hilfstabelle!$C18=HI_Hilfstabelle!$A18,IFERROR(NR_Berechnung!M18,1/0),"") -> 0.9899072449 | AY18: =IF(HI_Hilfstabelle!$C18=HI_Hilfstabelle!$A18,IFERROR(NR_Berechnung!N18,1/0),"") -> 0.9296078577 | AZ18: =IF(HI_Hilfstabelle!$C18=HI_Hilfstabelle!$A18,IFERROR(NR_Berechnung!O18,1/0),"") -> 1.297411051 | BA18: =IF(HI_Hilfstabelle!$C18=HI_Hilfstabelle!$A18,IFERROR(NR_Berechnung!P18,1/0),"") -> 0.7664951906 | BB18: =IF(HI_Hilfstabelle!$C18=HI_Hilfstabelle!$A18,IFERROR(NR_Berechnung!Q18,1/0),"") -> 0.7064664212 | BC18: =IF(HI_Hilfstabelle!$C18=HI_Hilfstabelle!$A18,IFERROR(NR_Berechnung!R18,1/0),"") -> 0.9907372621 | BD18: =IF(HI_Hilfstabelle!$C18=HI_Hilfstabelle!$A18,IFERROR(NR_Berechnung!S18,1/0),"") -> 1.03997492 | BE18: =IF(HI_Hilfstabelle!$C18=HI_Hilfstabelle!$A18,IFERROR(NR_Berechnung!T18,1/0),"") -> 1.012904417 | BF18: =IF(HI_Hilfstabelle!$C18=HI_Hilfstabelle!$A18,IFERROR(NR_Berechnung!U18,1/0),"") -> 1.213687685 | BG18: =IF(HI_Hilfstabelle!$C18=HI_Hilfstabelle!$A18,IFERROR(NR_Berechnung!V18,1/0),"") -> 0.8241332657 | BH18: =IF(HI_Hilfstabelle!$C18=HI_Hilfstabelle!$A18,IFERROR(NR_Berechnung!W18,1/0),"") -> 1.480595157 | BI18: =IF(HI_Hilfstabelle!$C18=HI_Hilfstabelle!$A18,IFERROR(NR_Berechnung!X18,1/0),"") -> 0.8029237774 | BJ18: 1.052136641 | BK18: 1.031323658 | BL18: 1.052136641 | BM18: 1.031323658 | BN18: =IF(BL18="","",HI_Hilfstabelle!H18) -> 19317984 | BO18: 0.121024583 | BP18: 0.121024583 | BQ18: 0.1273343982 | BR18: 0.1248155156 | BS18: =IF(BL18="","",HI_Hilfstabelle!J18) -> 70 | BT18: 0.04985754986 | BU18: 0.04985754986 | BV18: 0.05245695501 | BW18: 0.05141927068
A19: Slowenien | C19: =IF(NR_Veränderung!C103="",1/0,NR_Veränderung!C103) -> 1.012915136 | D19: =IF(NR_Veränderung!D103="",1/0,NR_Veränderung!D103) -> 1.027457062 | E19: =IF(NR_Veränderung!E103="",1/0,NR_Veränderung!E103) -> 0.9455337262 | F19: =IF(NR_Veränderung!F103="",1/0,NR_Veränderung!F103) -> 1.015516039 | G19: =IF(NR_Veränderung!G103="",1/0,NR_Veränderung!G103) -> 1.036238744 | H19: =IF(NR_Veränderung!H103="",1/0,NR_Veränderung!H103) -> 0.8764571442 | I19: =IF(NR_Veränderung!I103="",1/0,NR_Veränderung!I103) -> 1.012611918 | J19: =IF(NR_Veränderung!J103="",1/0,NR_Veränderung!J103) -> 1.002449854 | K19: =IF(NR_Veränderung!K103="",1/0,NR_Veränderung!K103) -> 0.9298443161 | L19: =IF(NR_Veränderung!L103="",1/0,NR_Veränderung!L103) -> 0.9946583801 | M19: =IF(NR_Veränderung!M103="",1/0,NR_Veränderung!M103) -> 1.079164044 | N19: =IF(NR_Veränderung!N103="",1/0,NR_Veränderung!N103) -> 0.9976671238 | O19: =IF(NR_Veränderung!O103="",1/0,NR_Veränderung!O103) -> 1.064851447 | P19: =IF(NR_Veränderung!P103="",1/0,NR_Veränderung!P103) -> 0.9535634712 | Q19: =IF(NR_Veränderung!Q103="",1/0,NR_Veränderung!Q103) -> 0.9864276475 | R19: =IF(NR_Veränderung!R103="",1/0,NR_Veränderung!R103) -> 1.066622269 | S19: =IF(NR_Veränderung!S103="",1/0,NR_Veränderung!S103) -> 0.9771144634 | T19: =IF(NR_Veränderung!T103="",1/0,NR_Veränderung!T103) -> 0.9389874116 | U19: =IF(NR_Veränderung!U103="",1/0,NR_Veränderung!U103) -> 1.021605002 | V19: =IF(NR_Veränderung!V103="",1/0,NR_Veränderung!V103) -> 0.9626753879 | W19: =IF(NR_Veränderung!W103="",1/0,NR_Veränderung!W103) -> 1.006649029 | X19: =IF(NR_Veränderung!X103="",1/0,NR_Veränderung!X103) -> 0.9453469753 | Y19: 0.9884286483 | Z19: 0.9875286911 | AA19: 0.9884286483 | AB19: 0.9875286911 | AC19: =IF(AA19="","",HI_Hilfstabelle!H19) -> 2095861 | AD19: 0.01313028852 | AE19: 0.01313028852 | AF19: 0.01297835334 | AG19: 0.01296653664 | AH19: =IF(AA19="","",HI_Hilfstabelle!J19) -> 89 | AI19: 0.06339031339 | AJ19: 0.06339031339 | AK19: 0.06265680178 | AL19: 0.06259975321 | AN19: =IF(HI_Hilfstabelle!$C19=HI_Hilfstabelle!$A19,IFERROR(NR_Berechnung!C19,1/0),"") -> 1.012915136 | AO19: =IF(HI_Hilfstabelle!$C19=HI_Hilfstabelle!$A19,IFERROR(NR_Berechnung!D19,1/0),"") -> 1.027457062 | AP19: =IF(HI_Hilfstabelle!$C19=HI_Hilfstabelle!$A19,IFERROR(NR_Berechnung!E19,1/0),"") -> 0.9455337262 | AQ19: =IF(HI_Hilfstabelle!$C19=HI_Hilfstabelle!$A19,IFERROR(NR_Berechnung!F19,1/0),"") -> 1.015516039 | AR19: =IF(HI_Hilfstabelle!$C19=HI_Hilfstabelle!$A19,IFERROR(NR_Berechnung!G19,1/0),"") -> 1.036238744 | AS19: =IF(HI_Hilfstabelle!$C19=HI_Hilfstabelle!$A19,IFERROR(NR_Berechnung!H19,1/0),"") -> 0.8764571442 | AT19: =IF(HI_Hilfstabelle!$C19=HI_Hilfstabelle!$A19,IFERROR(NR_Berechnung!I19,1/0),"") -> 1.012611918 | AU19: =IF(HI_Hilfstabelle!$C19=HI_Hilfstabelle!$A19,IFERROR(NR_Berechnung!J19,1/0),"") -> 1.002449854 | AV19: =IF(HI_Hilfstabelle!$C19=HI_Hilfstabelle!$A19,IFERROR(NR_Berechnung!K19,1/0),"") -> 0.9298443161 | AW19: =IF(HI_Hilfstabelle!$C19=HI_Hilfstabelle!$A19,IFERROR(NR_Berechnung!L19,1/0),"") -> 0.9946583801 | AX19: =IF(HI_Hilfstabelle!$C19=HI_Hilfstabelle!$A19,IFERROR(NR_Berechnung!M19,1/0),"") -> 1.079164044 | AY19: =IF(HI_Hilfstabelle!$C19=HI_Hilfstabelle!$A19,IFERROR(NR_Berechnung!N19,1/0),"") -> 0.9976671238 | AZ19: =IF(HI_Hilfstabelle!$C19=HI_Hilfstabelle!$A19,IFERROR(NR_Berechnung!O19,1/0),"") -> 1.064851447 | BA19: =IF(HI_Hilfstabelle!$C19=HI_Hilfstabelle!$A19,IFERROR(NR_Berechnung!P19,1/0),"") -> 0.9535634712 | BB19: =IF(HI_Hilfstabelle!$C19=HI_Hilfstabelle!$A19,IFERROR(NR_Berechnung!Q19,1/0),"") -> 0.9864276475 | BC19: =IF(HI_Hilfstabelle!$C19=HI_Hilfstabelle!$A19,IFERROR(NR_Berechnung!R19,1/0),"") -> 1.066622269 | BD19: =IF(HI_Hilfstabelle!$C19=HI_Hilfstabelle!$A19,IFERROR(NR_Berechnung!S19,1/0),"") -> 0.9771144634 | BE19: =IF(HI_Hilfstabelle!$C19=HI_Hilfstabelle!$A19,IFERROR(NR_Berechnung!T19,1/0),"") -> 0.9389874116 | BF19: =IF(HI_Hilfstabelle!$C19=HI_Hilfstabelle!$A19,IFERROR(NR_Berechnung!U19,1/0),"") -> 1.021605002 | BG19: =IF(HI_Hilfstabelle!$C19=HI_Hilfstabelle!$A19,IFERROR(NR_Berechnung!V19,1/0),"") -> 0.9626753879 | BH19: =IF(HI_Hilfstabelle!$C19=HI_Hilfstabelle!$A19,IFERROR(NR_Berechnung!W19,1/0),"") -> 1.006649029 | BI19: =IF(HI_Hilfstabelle!$C19=HI_Hilfstabelle!$A19,IFERROR(NR_Berechnung!X19,1/0),"") -> 0.9453469753 | BJ19: 0.9884286483 | BK19: 0.9875286911 | BL19: 0.9884286483 | BM19: 0.9875286911 | BN19: =IF(BL19="","",HI_Hilfstabelle!H19) -> 2095861 | BO19: 0.01313028852 | BP19: 0.01313028852 | BQ19: 0.01297835334 | BR19: 0.01296653664 | BS19: =IF(BL19="","",HI_Hilfstabelle!J19) -> 89 | BT19: 0.06339031339 | BU19: 0.06339031339 | BV19: 0.06265680178 | BW19: 0.06259975321
A20: Slowakei | C20: =IF(NR_Veränderung!C104="",1/0,NR_Veränderung!C104) -> 1.215475664 | D20: =IF(NR_Veränderung!D104="",1/0,NR_Veränderung!D104) -> 1.17696277 | E20: =IF(NR_Veränderung!E104="",1/0,NR_Veränderung!E104) -> 1.08915793 | F20: =IF(NR_Veränderung!F104="",1/0,NR_Veränderung!F104) -> 1.086962841 | G20: =IF(NR_Veränderung!G104="",1/0,NR_Veränderung!G104) -> 0.7759012366 | H20: =IF(NR_Veränderung!H104="",1/0,NR_Veränderung!H104) -> 1.003516783 | I20: =IF(NR_Veränderung!I104="",1/0,NR_Veränderung!I104) -> 0.9052482145 | J20: =IF(NR_Veränderung!J104="",1/0,NR_Veränderung!J104) -> 1.116832027 | K20: =IF(NR_Veränderung!K104="",1/0,NR_Veränderung!K104) -> 0.8498744141 | L20: =IF(NR_Veränderung!L104="",1/0,NR_Veränderung!L104) -> 1.469064651 | M20: =IF(NR_Veränderung!M104="",1/0,NR_Veränderung!M104) -> 0.999343753 | N20: =IF(NR_Veränderung!N104="",1/0,NR_Veränderung!N104) -> 1.022575231 | O20: =IF(NR_Veränderung!O104="",1/0,NR_Veränderung!O104) -> 0.8569518843 | P20: =IF(NR_Veränderung!P104="",1/0,NR_Veränderung!P104) -> 0.8877219318 | Q20: =IF(NR_Veränderung!Q104="",1/0,NR_Veränderung!Q104) -> 0.9436407415 | R20: =IF(NR_Veränderung!R104="",1/0,NR_Veränderung!R104) -> 0.9993918673 | S20: =IF(NR_Veränderung!S104="",1/0,NR_Veränderung!S104) -> 1.054188272 | T20: =IF(NR_Veränderung!T104="",1/0,NR_Veränderung!T104) -> 0.9655779724 | U20: =IF(NR_Veränderung!U104="",1/0,NR_Veränderung!U104) -> 1.046049731 | V20: =IF(NR_Veränderung!V104="",1/0,NR_Veränderung!V104) -> 1.029809126 | W20: =IF(NR_Veränderung!W104="",1/0,NR_Veränderung!W104) -> 1.055757465 | X20: =IF(NR_Veränderung!X104="",1/0,NR_Veränderung!X104) -> 1.062119071 | Y20: 1.030413358 | Z20: 1.029873701 | AA20: 1.030413358 | AB20: 1.029873701 | AC20: =IF(AA20="","",HI_Hilfstabelle!H20) -> 5457873 | AD20: 0.03419284352 | AE20: 0.03419284352 | AF20: 0.0352327627 | AG20: 0.03521431031 | AH20: =IF(AA20="","",HI_Hilfstabelle!J20) -> 70 | AI20: 0.04985754986 | AJ20: 0.04985754986 | AK20: 0.05137388536 | AL20: 0.05134697941 | AN20: =IF(HI_Hilfstabelle!$C20=HI_Hilfstabelle!$A20,IFERROR(NR_Berechnung!C20,1/0),"") -> 1.215475664 | AO20: =IF(HI_Hilfstabelle!$C20=HI_Hilfstabelle!$A20,IFERROR(NR_Berechnung!D20,1/0),"") -> 1.17696277 | AP20: =IF(HI_Hilfstabelle!$C20=HI_Hilfstabelle!$A20,IFERROR(NR_Berechnung!E20,1/0),"") -> 1.08915793 | AQ20: =IF(HI_Hilfstabelle!$C20=HI_Hilfstabelle!$A20,IFERROR(NR_Berechnung!F20,1/0),"") -> 1.086962841 | AR20: =IF(HI_Hilfstabelle!$C20=HI_Hilfstabelle!$A20,IFERROR(NR_Berechnung!G20,1/0),"") -> 0.7759012366 | AS20: =IF(HI_Hilfstabelle!$C20=HI_Hilfstabelle!$A20,IFERROR(NR_Berechnung!H20,1/0),"") -> 1.003516783 | AT20: =IF(HI_Hilfstabelle!$C20=HI_Hilfstabelle!$A20,IFERROR(NR_Berechnung!I20,1/0),"") -> 0.9052482145 | AU20: =IF(HI_Hilfstabelle!$C20=HI_Hilfstabelle!$A20,IFERROR(NR_Berechnung!J20,1/0),"") -> 1.116832027 | AV20: =IF(HI_Hilfstabelle!$C20=HI_Hilfstabelle!$A20,IFERROR(NR_Berechnung!K20,1/0),"") -> 0.8498744141 | AW20: =IF(HI_Hilfstabelle!$C20=HI_Hilfstabelle!$A20,IFERROR(NR_Berechnung!L20,1/0),"") -> 1.469064651 | AX20: =IF(HI_Hilfstabelle!$C20=HI_Hilfstabelle!$A20,IFERROR(NR_Berechnung!M20,1/0),"") -> 0.999343753 | AY20: =IF(HI_Hilfstabelle!$C20=HI_Hilfstabelle!$A20,IFERROR(NR_Berechnung!N20,1/0),"") -> 1.022575231 | AZ20: =IF(HI_Hilfstabelle!$C20=HI_Hilfstabelle!$A20,IFERROR(NR_Berechnung!O20,1/0),"") -> 0.8569518843 | BA20: =IF(HI_Hilfstabelle!$C20=HI_Hilfstabelle!$A20,IFERROR(NR_Berechnung!P20,1/0),"") -> 0.8877219318 | BB20: =IF(HI_Hilfstabelle!$C20=HI_Hilfstabelle!$A20,IFERROR(NR_Berechnung!Q20,1/0),"") -> 0.9436407415 | BC20: =IF(HI_Hilfstabelle!$C20=HI_Hilfstabelle!$A20,IFERROR(NR_Berechnung!R20,1/0),"") -> 0.9993918673 | BD20: =IF(HI_Hilfstabelle!$C20=HI_Hilfstabelle!$A20,IFERROR(NR_Berechnung!S20,1/0),"") -> 1.054188272 | BE20: =IF(HI_Hilfstabelle!$C20=HI_Hilfstabelle!$A20,IFERROR(NR_Berechnung!T20,1/0),"") -> 0.9655779724 | BF20: =IF(HI_Hilfstabelle!$C20=HI_Hilfstabelle!$A20,IFERROR(NR_Berechnung!U20,1/0),"") -> 1.046049731 | BG20: =IF(HI_Hilfstabelle!$C20=HI_Hilfstabelle!$A20,IFERROR(NR_Berechnung!V20,1/0),"") -> 1.029809126 | BH20: =IF(HI_Hilfstabelle!$C20=HI_Hilfstabelle!$A20,IFERROR(NR_Berechnung!W20,1/0),"") -> 1.055757465 | BI20: =IF(HI_Hilfstabelle!$C20=HI_Hilfstabelle!$A20,IFERROR(NR_Berechnung!X20,1/0),"") -> 1.062119071 | BJ20: 1.030413358 | BK20: 1.029873701 | BL20: 1.030413358 | BM20: 1.029873701 | BN20: =IF(BL20="","",HI_Hilfstabelle!H20) -> 5457873 | BO20: 0.03419284352 | BP20: 0.03419284352 | BQ20: 0.0352327627 | BR20: 0.03521431031 | BS20: =IF(BL20="","",HI_Hilfstabelle!J20) -> 70 | BT20: 0.04985754986 | BU20: 0.04985754986 | BV20: 0.05137388536 | BW20: 0.05134697941
A21: Großbritannien | C21: =IF(NR_Veränderung!C105="",1/0,NR_Veränderung!C105) ->  | D21: =IF(NR_Veränderung!D105="",1/0,NR_Veränderung!D105) ->  | E21: =IF(NR_Veränderung!E105="",1/0,NR_Veränderung!E105) ->  | F21: =IF(NR_Veränderung!F105="",1/0,NR_Veränderung!F105) ->  | G21: =IF(NR_Veränderung!G105="",1/0,NR_Veränderung!G105) ->  | H21: =IF(NR_Veränderung!H105="",1/0,NR_Veränderung!H105) ->  | I21: =IF(NR_Veränderung!I105="",1/0,NR_Veränderung!I105) ->  | J21: =IF(NR_Veränderung!J105="",1/0,NR_Veränderung!J105) ->  | K21: =IF(NR_Veränderung!K105="",1/0,NR_Veränderung!K105) ->  | L21: =IF(NR_Veränderung!L105="",1/0,NR_Veränderung!L105) ->  | M21: =IF(NR_Veränderung!M105="",1/0,NR_Veränderung!M105) ->  | N21: =IF(NR_Veränderung!N105="",1/0,NR_Veränderung!N105) ->  | O21: =IF(NR_Veränderung!O105="",1/0,NR_Veränderung!O105) ->  | P21: =IF(NR_Veränderung!P105="",1/0,NR_Veränderung!P105) ->  | Q21: =IF(NR_Veränderung!Q105="",1/0,NR_Veränderung!Q105) ->  | R21: =IF(NR_Veränderung!R105="",1/0,NR_Veränderung!R105) ->  | S21: =IF(NR_Veränderung!S105="",1/0,NR_Veränderung!S105) ->  | T21: =IF(NR_Veränderung!T105="",1/0,NR_Veränderung!T105) ->  | U21: =IF(NR_Veränderung!U105="",1/0,NR_Veränderung!U105) ->  | V21: =IF(NR_Veränderung!V105="",1/0,NR_Veränderung!V105) ->  | W21: =IF(NR_Veränderung!W105="",1/0,NR_Veränderung!W105) ->  | X21: =IF(NR_Veränderung!X105="",1/0,NR_Veränderung!X105) ->  | AC21: =IF(AA21="","",HI_Hilfstabelle!H21) ->  | AH21: =IF(AA21="","",HI_Hilfstabelle!J21) ->  | AN21: =IF(HI_Hilfstabelle!$C21=HI_Hilfstabelle!$A21,IFERROR(NR_Berechnung!C21,1/0),"") ->  | AO21: =IF(HI_Hilfstabelle!$C21=HI_Hilfstabelle!$A21,IFERROR(NR_Berechnung!D21,1/0),"") ->  | AP21: =IF(HI_Hilfstabelle!$C21=HI_Hilfstabelle!$A21,IFERROR(NR_Berechnung!E21,1/0),"") ->  | AQ21: =IF(HI_Hilfstabelle!$C21=HI_Hilfstabelle!$A21,IFERROR(NR_Berechnung!F21,1/0),"") ->  | AR21: =IF(HI_Hilfstabelle!$C21=HI_Hilfstabelle!$A21,IFERROR(NR_Berechnung!G21,1/0),"") ->  | AS21: =IF(HI_Hilfstabelle!$C21=HI_Hilfstabelle!$A21,IFERROR(NR_Berechnung!H21,1/0),"") ->  | AT21: =IF(HI_Hilfstabelle!$C21=HI_Hilfstabelle!$A21,IFERROR(NR_Berechnung!I21,1/0),"") ->  | AU21: =IF(HI_Hilfstabelle!$C21=HI_Hilfstabelle!$A21,IFERROR(NR_Berechnung!J21,1/0),"") ->  | AV21: =IF(HI_Hilfstabelle!$C21=HI_Hilfstabelle!$A21,IFERROR(NR_Berechnung!K21,1/0),"") ->  | AW21: =IF(HI_Hilfstabelle!$C21=HI_Hilfstabelle!$A21,IFERROR(NR_Berechnung!L21,1/0),"") ->  | AX21: =IF(HI_Hilfstabelle!$C21=HI_Hilfstabelle!$A21,IFERROR(NR_Berechnung!M21,1/0),"") ->  | AY21: =IF(HI_Hilfstabelle!$C21=HI_Hilfstabelle!$A21,IFERROR(NR_Berechnung!N21,1/0),"") ->  | AZ21: =IF(HI_Hilfstabelle!$C21=HI_Hilfstabelle!$A21,IFERROR(NR_Berechnung!O21,1/0),"") ->  | BA21: =IF(HI_Hilfstabelle!$C21=HI_Hilfstabelle!$A21,IFERROR(NR_Berechnung!P21,1/0),"") ->  | BB21: =IF(HI_Hilfstabelle!$C21=HI_Hilfstabelle!$A21,IFERROR(NR_Berechnung!Q21,1/0),"") ->  | BC21: =IF(HI_Hilfstabelle!$C21=HI_Hilfstabelle!$A21,IFERROR(NR_Berechnung!R21,1/0),"") ->  | BD21: =IF(HI_Hilfstabelle!$C21=HI_Hilfstabelle!$A21,IFERROR(NR_Berechnung!S21,1/0),"") ->  | BE21: =IF(HI_Hilfstabelle!$C21=HI_Hilfstabelle!$A21,IFERROR(NR_Berechnung!T21,1/0),"") ->  | BF21: =IF(HI_Hilfstabelle!$C21=HI_Hilfstabelle!$A21,IFERROR(NR_Berechnung!U21,1/0),"") ->  | BG21: =IF(HI_Hilfstabelle!$C21=HI_Hilfstabelle!$A21,IFERROR(NR_Berechnung!V21,1/0),"") ->  | BH21: =IF(HI_Hilfstabelle!$C21=HI_Hilfstabelle!$A21,IFERROR(NR_Berechnung!W21,1/0),"") ->  | BI21: =IF(HI_Hilfstabelle!$C21=HI_Hilfstabelle!$A21,IFERROR(NR_Berechnung!X21,1/0),"") ->  | BN21: =IF(BL21="","",HI_Hilfstabelle!H21) ->  | BS21: =IF(BL21="","",HI_Hilfstabelle!J21) -> 
AB23: Summe | AC23: =SUM(AC4:AC21) -> 159620331 | AD23: =SUM(AD4:AD21) -> 1 | AH23: =SUM(AH4:AH21) -> 1404 | AI23: =SUM(AI4:AI21) -> 1 | BM23: Summe | BN23: =SUM(BN4:BN21) -> 159620331 | BS23: =SUM(BS4:BS21) -> 1404
AA24: Arithmet. Mittel | AB24: Geomittel | AF24: Arithmet. Mittel | AG24: Geomittel | AK24: Arithmet. Mittel | AL24: Geomittel | BL24: Arithmet. Mittel | BM24: Geomittel | BQ24: Arithmet. Mittel | BR24: Geomittel | BV24: Arithmet. Mittel | BW24: Geomittel
Z25: Mittelwert | AA25: =AVERAGE(AA4:AA21) -> 0.9830518615 | AB25: =AVERAGE(AB4:AB21) -> 0.9786909519 | AF25: =IF(AND(AF4="",AF5="",AF6="",AF7="",AF8="",AF9="",AF10="",AF11="",AF12="",AF13="",AF14="",AF15="",AF16="",AF17="",AF18="",AF19="",AF20="",AF21=""),1/0,SUM(AF4:AF21)) -> 0.9918939209 | AG25: =IF(AND(AG4="",AG5="",AG6="",AG7="",AG8="",AG9="",AG10="",AG11="",AG12="",AG13="",AG14="",AG15="",AG16="",AG17="",AG18="",AG19="",AG20="",AG21=""),1/0,SUM(AG4:AG21)) -> 0.9878096624 | AK25: =IF(AND(AK4="",AK5="",AK6="",AK7="",AK8="",AK9="",AK10="",AK11="",AK12="",AK13="",AK14="",AK15="",AK16="",AK17="",AK18="",AK19="",AK20="",AK21=""),1/0,SUM(AK4:AK21)) -> 0.9794160524 | AL25: =IF(AND(AL4="",AL5="",AL6="",AL7="",AL8="",AL9="",AL10="",AL11="",AL12="",AL13="",AL14="",AL15="",AL16="",AL17="",AL18="",AL19="",AL20="",AL21=""),1/0,SUM(AL4:AL21)) -> 0.9756557086 | BL25: =AVERAGE(BL4:BL21) -> 0.9830518615 | BM25: =AVERAGE(BM4:BM21) -> 0.9786909519 | BQ25: =IF(AND(BQ4="",BQ5="",BQ6="",BQ7="",BQ8="",BQ9="",BQ10="",BQ11="",BQ12="",BQ13="",BQ14="",BQ15="",BQ16="",BQ17="",BQ18="",BQ19="",BQ20="",BQ21=""),1/0,SUM(BQ4:BQ21)) -> 0.9918939209 | BR25: =IF(AND(BR4="",BR5="",BR6="",BR7="",BR8="",BR9="",BR10="",BR11="",BR12="",BR13="",BR14="",BR15="",BR16="",BR17="",BR18="",BR19="",BR20="",BR21=""),1/0,SUM(BR4:BR21)) -> 0.9878096624 | BV25: =IF(AND(BV4="",BV5="",BV6="",BV7="",BV8="",BV9="",BV10="",BV11="",BV12="",BV13="",BV14="",BV15="",BV16="",BV17="",BV18="",BV19="",BV20="",BV21=""),1/0,SUM(BV4:BV21)) -> 0.9794160524 | BW25: =IF(AND(BW4="",BW5="",BW6="",BW7="",BW8="",BW9="",BW10="",BW11="",BW12="",BW13="",BW14="",BW15="",BW16="",BW17="",BW18="",BW19="",BW20="",BW21=""),1/0,SUM(BW4:BW21)) -> 0.9756557086
AA26: =AA25-1 -> -0.01694813852 | AB26: =AB25-1 -> -0.02130904805 | AF26: =AF25-1 -> -0.008106079092 | AG26: -0.01219033759 | AK26: =AK25-1 -> -0.02058394757 | AL26: =AL25-1 -> -0.02434429135 | BL26: =BL25-1 -> -0.01694813852 | BM26: =BM25-1 -> -0.02130904805 | BQ26: =BQ25-1 -> -0.008106079092 | BR26: =BR25-1 -> -0.01219033759 | BV26: =BV25-1 -> -0.02058394757 | BW26: =BW25-1 -> -0.02434429135
Z27: Anzahl Länder | AA27: =COUNT(AA4:AA21) -> 14 | BL27: =COUNT(BL4:BL21) -> 14
C31: Produktionswert pro Erwerbstätige - Alle Länder | AA31: Gleichgewichtet | AC31: Nach Einwohnerzahl | AF31: Gewichtete Verändrungsrate | AH31: Nach BIP/Kopf | AK31: Gewichtete Verändrungsrate | AN31: Produktionswert pro Erwerbstätige - Länderauswahl | BL31: Gleichgewichtet | BN31: Nach Einwohnerzahl | BQ31: Gewichtete Verändrungsrate | BS31: Nach BIP/Kopf | BV31: Gewichtete Verändrungsrate
C32: 1996 | D32: =C32+1 -> 1997 | E32: =D32+1 -> 1998 | F32: =E32+1 -> 1999 | G32: =F32+1 -> 2000 | H32: =G32+1 -> 2001 | I32: =H32+1 -> 2002 | J32: =I32+1 -> 2003 | K32: =J32+1 -> 2004 | L32: =K32+1 -> 2005 | M32: =L32+1 -> 2006 | N32: =M32+1 -> 2007 | O32: =N32+1 -> 2008 | P32: =O32+1 -> 2009 | Q32: =P32+1 -> 2010 | R32: =Q32+1 -> 2011 | S32: =R32+1 -> 2012 | T32: =S32+1 -> 2013 | U32: =T32+1 -> 2014 | V32: =U32+1 -> 2015 | W32: =V32+1 -> 2016 | X32: =W32+1 -> 2017 | Y32: Arithmet. Mittel | Z32: Geomittel | AA32: Arithmet. Mittel | AB32: Geomittel | AC32: Absolut | AD32: Anteil AM | AE32: Anteil GM | AF32: Arithmet. Mittel | AG32: Geomittel | AH32: Absolut | AI32: Anteil AM | AJ32: Anteil GM | AK32: Arithmet. Mittel | AL32: Geomittel | AN32: 1996 | AO32: =AN32+1 -> 1997 | AP32: =AO32+1 -> 1998 | AQ32: =AP32+1 -> 1999 | AR32: =AQ32+1 -> 2000 | AS32: =AR32+1 -> 2001 | AT32: =AS32+1 -> 2002 | AU32: =AT32+1 -> 2003 | AV32: =AU32+1 -> 2004 | AW32: =AV32+1 -> 2005 | AX32: =AW32+1 -> 2006 | AY32: =AX32+1 -> 2007 | AZ32: =AY32+1 -> 2008 | BA32: =AZ32+1 -> 2009 | BB32: =BA32+1 -> 2010 | BC32: =BB32+1 -> 2011 | BD32: =BC32+1 -> 2012 | BE32: =BD32+1 -> 2013 | BF32: =BE32+1 -> 2014 | BG32: =BF32+1 -> 2015 | BH32: =BG32+1 -> 2016 | BI32: =BH32+1 -> 2017 | BJ32: Arithmet. Mittel | BK32: Geomittel | BL32: Arithmet. Mittel | BM32: Geomittel | BN32: Absolut | BO32: Anteil AM | BP32: Anteil GM | BQ32: Arithmet. Mittel | BR32: Geomittel | BS32: Absolut | BT32: Anteil AM | BU32: Anteil GM | BV32: Arithmet. Mittel | BW32: Geomittel
A33: Österreich | C33: =IF(NR_Veränderung!C46="",1/0,NR_Veränderung!C46) -> 1.227366991 | D33: =IF(NR_Veränderung!D46="",1/0,NR_Veränderung!D46) -> 1.089481719 | E33: =IF(NR_Veränderung!E46="",1/0,NR_Veränderung!E46) -> 1.141238827 | F33: =IF(NR_Veränderung!F46="",1/0,NR_Veränderung!F46) -> 1.101045613 | G33: =IF(NR_Veränderung!G46="",1/0,NR_Veränderung!G46) -> 1.137867968 | H33: =IF(NR_Veränderung!H46="",1/0,NR_Veränderung!H46) -> 0.9962576132 | I33: =IF(NR_Veränderung!I46="",1/0,NR_Veränderung!I46) -> 1.024855616 | J33: =IF(NR_Veränderung!J46="",1/0,NR_Veränderung!J46) -> 1.104357519 | K33: =IF(NR_Veränderung!K46="",1/0,NR_Veränderung!K46) -> 1.043252568 | L33: =IF(NR_Veränderung!L46="",1/0,NR_Veränderung!L46) -> 1.267505636 | M33: =IF(NR_Veränderung!M46="",1/0,NR_Veränderung!M46) -> 1.113136151 | N33: =IF(NR_Veränderung!N46="",1/0,NR_Veränderung!N46) -> 1.061692822 | O33: =IF(NR_Veränderung!O46="",1/0,NR_Veränderung!O46) -> 1.028828127 | P33: =IF(NR_Veränderung!P46="",1/0,NR_Veränderung!P46) -> 1.025062538 | Q33: =IF(NR_Veränderung!Q46="",1/0,NR_Veränderung!Q46) -> 1.06239935 | R33: =IF(NR_Veränderung!R46="",1/0,NR_Veränderung!R46) -> 0.9932440695 | S33: =IF(NR_Veränderung!S46="",1/0,NR_Veränderung!S46) -> 1.008860033 | T33: =IF(NR_Veränderung!T46="",1/0,NR_Veränderung!T46) -> 1.028767082 | U33: =IF(NR_Veränderung!U46="",1/0,NR_Veränderung!U46) -> 1.026262473 | V33: =IF(NR_Veränderung!V46="",1/0,NR_Veränderung!V46) -> 0.9855124764 | W33: =IF(NR_Veränderung!W46="",1/0,NR_Veränderung!W46) -> 1.057296666 | X33: =IF(NR_Veränderung!X46="",1/0,NR_Veränderung!X46) -> 1.021662452 | Y33: =TRANSPOSE(NR_Mittelwertbildung!AN30:BE31) -> 1.017372179 | Z33: 1.017127852 | AA33: =IF(ISERROR(Y33),"",Y33) -> 1.017372179 | AB33: =IF(ISERROR(Z33),"",Z33) -> 1.017127852 | AC33: =IF(AA33="","",HI_Hilfstabelle!H4) -> 8901064 | AD33: =IFERROR(AC33/AC$52,"") -> 0.09947894019 | AE33: =IFERROR(AC33/AC$52,"") -> 0.09947894019 | AF33: =IFERROR(AD33*AA33,"") -> 0.1012071061 | AG33: =IFERROR(AE33*AB33,"") -> 0.1011828008 | AH33: =IF(AA33="","",HI_Hilfstabelle!J4) -> 126 | AI33: =IFERROR(AH33/AH$52,"") -> 0.1428571429 | AJ33: =IFERROR(AH33/AH$52,"") -> 0.1428571429 | AK33: =IFERROR(AI33*Y33,"") -> 0.1453388827 | AL33: =IFERROR(AJ33*Z33,"") -> 0.1453039789 | AN33: =IF(HI_Hilfstabelle!$C4=HI_Hilfstabelle!$A4,IFERROR(NR_Berechnung!C33,1/0),"") -> 1.227366991 | AO33: =IF(HI_Hilfstabelle!$C4=HI_Hilfstabelle!$A4,IFERROR(NR_Berechnung!D33,1/0),"") -> 1.089481719 | AP33: =IF(HI_Hilfstabelle!$C4=HI_Hilfstabelle!$A4,IFERROR(NR_Berechnung!E33,1/0),"") -> 1.141238827 | AQ33: =IF(HI_Hilfstabelle!$C4=HI_Hilfstabelle!$A4,IFERROR(NR_Berechnung!F33,1/0),"") -> 1.101045613 | AR33: =IF(HI_Hilfstabelle!$C4=HI_Hilfstabelle!$A4,IFERROR(NR_Berechnung!G33,1/0),"") -> 1.137867968 | AS33: =IF(HI_Hilfstabelle!$C4=HI_Hilfstabelle!$A4,IFERROR(NR_Berechnung!H33,1/0),"") -> 0.9962576132 | AT33: =IF(HI_Hilfstabelle!$C4=HI_Hilfstabelle!$A4,IFERROR(NR_Berechnung!I33,1/0),"") -> 1.024855616 | AU33: =IF(HI_Hilfstabelle!$C4=HI_Hilfstabelle!$A4,IFERROR(NR_Berechnung!J33,1/0),"") -> 1.104357519 | AV33: =IF(HI_Hilfstabelle!$C4=HI_Hilfstabelle!$A4,IFERROR(NR_Berechnung!K33,1/0),"") -> 1.043252568 | AW33: =IF(HI_Hilfstabelle!$C4=HI_Hilfstabelle!$A4,IFERROR(NR_Berechnung!L33,1/0),"") -> 1.267505636 | AX33: =IF(HI_Hilfstabelle!$C4=HI_Hilfstabelle!$A4,IFERROR(NR_Berechnung!M33,1/0),"") -> 1.113136151 | AY33: =IF(HI_Hilfstabelle!$C4=HI_Hilfstabelle!$A4,IFERROR(NR_Berechnung!N33,1/0),"") -> 1.061692822 | AZ33: =IF(HI_Hilfstabelle!$C4=HI_Hilfstabelle!$A4,IFERROR(NR_Berechnung!O33,1/0),"") -> 1.028828127 | BA33: =IF(HI_Hilfstabelle!$C4=HI_Hilfstabelle!$A4,IFERROR(NR_Berechnung!P33,1/0),"") -> 1.025062538 | BB33: =IF(HI_Hilfstabelle!$C4=HI_Hilfstabelle!$A4,IFERROR(NR_Berechnung!Q33,1/0),"") -> 1.06239935 | BC33: =IF(HI_Hilfstabelle!$C4=HI_Hilfstabelle!$A4,IFERROR(NR_Berechnung!R33,1/0),"") -> 0.9932440695 | BD33: =IF(HI_Hilfstabelle!$C4=HI_Hilfstabelle!$A4,IFERROR(NR_Berechnung!S33,1/0),"") -> 1.008860033 | BE33: =IF(HI_Hilfstabelle!$C4=HI_Hilfstabelle!$A4,IFERROR(NR_Berechnung!T33,1/0),"") -> 1.028767082 | BF33: =IF(HI_Hilfstabelle!$C4=HI_Hilfstabelle!$A4,IFERROR(NR_Berechnung!U33,1/0),"") -> 1.026262473 | BG33: =IF(HI_Hilfstabelle!$C4=HI_Hilfstabelle!$A4,IFERROR(NR_Berechnung!V33,1/0),"") -> 0.9855124764 | BH33: =IF(HI_Hilfstabelle!$C4=HI_Hilfstabelle!$A4,IFERROR(NR_Berechnung!W33,1/0),"") -> 1.057296666 | BI33: =IF(HI_Hilfstabelle!$C4=HI_Hilfstabelle!$A4,IFERROR(NR_Berechnung!X33,1/0),"") -> 1.021662452 | BJ33: =TRANSPOSE(NR_Mittelwertbildung!BG30:BX31) -> 1.017372179 | BK33: 1.017127852 | BL33: =IF(ISERROR(BJ33),"",BJ33) -> 1.017372179 | BM33: =IF(ISERROR(BK33),"",BK33) -> 1.017127852 | BN33: =IF(BL33="","",HI_Hilfstabelle!H4) -> 8901064 | BO33: =IFERROR(BN33/BN$52,"") -> 0.09947894019 | BP33: =IFERROR(BN33/BN$52,"") -> 0.09947894019 | BQ33: =IFERROR(BO33*BL33,"") -> 0.1012071061 | BR33: =IFERROR(BP33*BM33,"") -> 0.1011828008 | BS33: =IF(BL33="","",HI_Hilfstabelle!J4) -> 126 | BT33: =IFERROR(BS33/BS$52,"") -> 0.1428571429 | BU33: =IFERROR(BS33/BS$52,"") -> 0.1428571429 | BV33: =IFERROR(BT33*BJ33,"") -> 0.1453388827 | BW33: =IFERROR(BU33*BK33,"") -> 0.1453039789
A34: Belgien | C34: =IF(NR_Veränderung!C47="",1/0,NR_Veränderung!C47) -> 1.001241982 | D34: =IF(NR_Veränderung!D47="",1/0,NR_Veränderung!D47) -> 1.105440915 | E34: =IF(NR_Veränderung!E47="",1/0,NR_Veränderung!E47) -> 1.138336955 | F34: =IF(NR_Veränderung!F47="",1/0,NR_Veränderung!F47) -> 0.9957340371 | G34: =IF(NR_Veränderung!G47="",1/0,NR_Veränderung!G47) -> 1.026148912 | H34: =IF(NR_Veränderung!H47="",1/0,NR_Veränderung!H47) -> 0.9289625913 | I34: =IF(NR_Veränderung!I47="",1/0,NR_Veränderung!I47) -> 0.9959229334 | J34: =IF(NR_Veränderung!J47="",1/0,NR_Veränderung!J47) -> 1.012107164 | K34: =IF(NR_Veränderung!K47="",1/0,NR_Veränderung!K47) -> 1.050192663 | L34: =IF(NR_Veränderung!L47="",1/0,NR_Veränderung!L47) -> 1.03316459 | M34: =IF(NR_Veränderung!M47="",1/0,NR_Veränderung!M47) -> 1.053582613 | N34: =IF(NR_Veränderung!N47="",1/0,NR_Veränderung!N47) -> 1.081406237 | O34: =IF(NR_Veränderung!O47="",1/0,NR_Veränderung!O47) -> 1.039025341 | P34: =IF(NR_Veränderung!P47="",1/0,NR_Veränderung!P47) -> 0.9884203999 | Q34: =IF(NR_Veränderung!Q47="",1/0,NR_Veränderung!Q47) -> 1.039836207 | R34: =IF(NR_Veränderung!R47="",1/0,NR_Veränderung!R47) -> 1.048163817 | S34: =IF(NR_Veränderung!S47="",1/0,NR_Veränderung!S47) -> 1.037549215 | T34: =IF(NR_Veränderung!T47="",1/0,NR_Veränderung!T47) -> 0.984221562 | U34: =IF(NR_Veränderung!U47="",1/0,NR_Veränderung!U47) -> 1.021092433 | V34: =IF(NR_Veränderung!V47="",1/0,NR_Veränderung!V47) -> 1.035129638 | W34: =IF(NR_Veränderung!W47="",1/0,NR_Veränderung!W47) -> 1.005715578 | X34: =IF(NR_Veränderung!X47="",1/0,NR_Veränderung!X47) ->  | AB34: =IF(ISERROR(Z34),"",Z34) ->  | AC34: =IF(AA34="","",HI_Hilfstabelle!H5) ->  | AF34: =IFERROR(AD34*AA34,"") ->  | AG34: =IFERROR(AE34*AB34,"") ->  | AH34: =IF(AA34="","",HI_Hilfstabelle!J5) ->  | AI34: =IFERROR(AH34/AH$52,"") ->  | AJ34: =IFERROR(AH34/AH$52,"") ->  | AK34: =IFERROR(AI34*Y34,"") ->  | AL34: =IFERROR(AJ34*Z34,"") ->  | AN34: =IF(HI_Hilfstabelle!$C5=HI_Hilfstabelle!$A5,IFERROR(NR_Berechnung!C34,1/0),"") ->  | AO34: =IF(HI_Hilfstabelle!$C5=HI_Hilfstabelle!$A5,IFERROR(NR_Berechnung!D34,1/0),"") ->  | AP34: =IF(HI_Hilfstabelle!$C5=HI_Hilfstabelle!$A5,IFERROR(NR_Berechnung!E34,1/0),"") ->  | AQ34: =IF(HI_Hilfstabelle!$C5=HI_Hilfstabelle!$A5,IFERROR(NR_Berechnung!F34,1/0),"") ->  | AR34: =IF(HI_Hilfstabelle!$C5=HI_Hilfstabelle!$A5,IFERROR(NR_Berechnung!G34,1/0),"") ->  | AS34: =IF(HI_Hilfstabelle!$C5=HI_Hilfstabelle!$A5,IFERROR(NR_Berechnung!H34,1/0),"") ->  | AT34: =IF(HI_Hilfstabelle!$C5=HI_Hilfstabelle!$A5,IFERROR(NR_Berechnung!I34,1/0),"") ->  | AU34: =IF(HI_Hilfstabelle!$C5=HI_Hilfstabelle!$A5,IFERROR(NR_Berechnung!J34,1/0),"") ->  | AV34: =IF(HI_Hilfstabelle!$C5=HI_Hilfstabelle!$A5,IFERROR(NR_Berechnung!K34,1/0),"") ->  | AW34: =IF(HI_Hilfstabelle!$C5=HI_Hilfstabelle!$A5,IFERROR(NR_Berechnung!L34,1/0),"") ->  | AX34: =IF(HI_Hilfstabelle!$C5=HI_Hilfstabelle!$A5,IFERROR(NR_Berechnung!M34,1/0),"") ->  | AY34: =IF(HI_Hilfstabelle!$C5=HI_Hilfstabelle!$A5,IFERROR(NR_Berechnung!N34,1/0),"") ->  | AZ34: =IF(HI_Hilfstabelle!$C5=HI_Hilfstabelle!$A5,IFERROR(NR_Berechnung!O34,1/0),"") ->  | BA34: =IF(HI_Hilfstabelle!$C5=HI_Hilfstabelle!$A5,IFERROR(NR_Berechnung!P34,1/0),"") ->  | BB34: =IF(HI_Hilfstabelle!$C5=HI_Hilfstabelle!$A5,IFERROR(NR_Berechnung!Q34,1/0),"") ->  | BC34: =IF(HI_Hilfstabelle!$C5=HI_Hilfstabelle!$A5,IFERROR(NR_Berechnung!R34,1/0),"") ->  | BD34: =IF(HI_Hilfstabelle!$C5=HI_Hilfstabelle!$A5,IFERROR(NR_Berechnung!S34,1/0),"") ->  | BE34: =IF(HI_Hilfstabelle!$C5=HI_Hilfstabelle!$A5,IFERROR(NR_Berechnung!T34,1/0),"") ->  | BF34: =IF(HI_Hilfstabelle!$C5=HI_Hilfstabelle!$A5,IFERROR(NR_Berechnung!U34,1/0),"") ->  | BG34: =IF(HI_Hilfstabelle!$C5=HI_Hilfstabelle!$A5,IFERROR(NR_Berechnung!V34,1/0),"") ->  | BH34: =IF(HI_Hilfstabelle!$C5=HI_Hilfstabelle!$A5,IFERROR(NR_Berechnung!W34,1/0),"") ->  | BI34: =IF(HI_Hilfstabelle!$C5=HI_Hilfstabelle!$A5,IFERROR(NR_Berechnung!X34,1/0),"") ->  | BL34: =IF(ISERROR(BJ34),"",BJ34) ->  | BM34: =IF(ISERROR(BK34),"",BK34) ->  | BN34: =IF(BL34="","",HI_Hilfstabelle!H5) ->  | BO34: =IFERROR(BN34/BN$52,"") ->  | BP34: =IFERROR(BN34/BN$52,"") ->  | BQ34: =IFERROR(BO34*BL34,"") ->  | BR34: =IFERROR(BP34*BM34,"") ->  | BS34: =IF(BL34="","",HI_Hilfstabelle!J5) ->  | BT34: =IFERROR(BS34/BS$52,"") ->  | BU34: =IFERROR(BS34/BS$52,"") ->  | BV34: =IFERROR(BT34*BJ34,"") ->  | BW34: =IFERROR(BU34*BK34,"") -> 
A35: Tschechien | C35: =IF(NR_Veränderung!C48="",1/0,NR_Veränderung!C48) -> 1.046367551 | D35: =IF(NR_Veränderung!D48="",1/0,NR_Veränderung!D48) -> 0.9680025134 | E35: =IF(NR_Veränderung!E48="",1/0,NR_Veränderung!E48) -> 1.031900838 | F35: =IF(NR_Veränderung!F48="",1/0,NR_Veränderung!F48) -> 1.013268241 | G35: =IF(NR_Veränderung!G48="",1/0,NR_Veränderung!G48) -> 1.052793869 | H35: =IF(NR_Veränderung!H48="",1/0,NR_Veränderung!H48) -> 1.126205307 | I35: =IF(NR_Veränderung!I48="",1/0,NR_Veränderung!I48) -> 1.035953928 | J35: =IF(NR_Veränderung!J48="",1/0,NR_Veränderung!J48) -> 1.188432506 | K35: =IF(NR_Veränderung!K48="",1/0,NR_Veränderung!K48) -> 1.034547116 | L35: =IF(NR_Veränderung!L48="",1/0,NR_Veränderung!L48) -> 1.032050294 | M35: =IF(NR_Veränderung!M48="",1/0,NR_Veränderung!M48) -> 1.176630783 | N35: =IF(NR_Veränderung!N48="",1/0,NR_Veränderung!N48) -> 0.977650098 | O35: =IF(NR_Veränderung!O48="",1/0,NR_Veränderung!O48) -> 0.8810933625 | P35: =IF(NR_Veränderung!P48="",1/0,NR_Veränderung!P48) -> 1.131735666 | Q35: =IF(NR_Veränderung!Q48="",1/0,NR_Veränderung!Q48) -> 1.024641432 | R35: =IF(NR_Veränderung!R48="",1/0,NR_Veränderung!R48) -> 1.055612145 | S35: =IF(NR_Veränderung!S48="",1/0,NR_Veränderung!S48) -> 1.046131245 | T35: =IF(NR_Veränderung!T48="",1/0,NR_Veränderung!T48) -> 0.937407138 | U35: =IF(NR_Veränderung!U48="",1/0,NR_Veränderung!U48) -> 1.004619772 | V35: =IF(NR_Veränderung!V48="",1/0,NR_Veränderung!V48) -> 1.041002234 | W35: =IF(NR_Veränderung!W48="",1/0,NR_Veränderung!W48) -> 1.02349045 | X35: =IF(NR_Veränderung!X48="",1/0,NR_Veränderung!X48) -> 0.9737371212 | Y35: 1.011714301 | Z35: 1.010913413 | AA35: 1.011714301 | AB35: 1.010913413 | AC35: =IF(AA35="","",HI_Hilfstabelle!H6) -> 10693939 | AD35: 0.1195162419 | AE35: 0.1195162419 | AF35: 0.1209162911 | AG35: 0.120820572 | AH35: =IF(AA35="","",HI_Hilfstabelle!J6) -> 93 | AI35: 0.1054421769 | AJ35: 0.1054421769 | AK35: 0.1066773582 | AL35: 0.1065929109 | AN35: =IF(HI_Hilfstabelle!$C6=HI_Hilfstabelle!$A6,IFERROR(NR_Berechnung!C35,1/0),"") -> 1.046367551 | AO35: =IF(HI_Hilfstabelle!$C6=HI_Hilfstabelle!$A6,IFERROR(NR_Berechnung!D35,1/0),"") -> 0.9680025134 | AP35: =IF(HI_Hilfstabelle!$C6=HI_Hilfstabelle!$A6,IFERROR(NR_Berechnung!E35,1/0),"") -> 1.031900838 | AQ35: =IF(HI_Hilfstabelle!$C6=HI_Hilfstabelle!$A6,IFERROR(NR_Berechnung!F35,1/0),"") -> 1.013268241 | AR35: =IF(HI_Hilfstabelle!$C6=HI_Hilfstabelle!$A6,IFERROR(NR_Berechnung!G35,1/0),"") -> 1.052793869 | AS35: =IF(HI_Hilfstabelle!$C6=HI_Hilfstabelle!$A6,IFERROR(NR_Berechnung!H35,1/0),"") -> 1.126205307 | AT35: =IF(HI_Hilfstabelle!$C6=HI_Hilfstabelle!$A6,IFERROR(NR_Berechnung!I35,1/0),"") -> 1.035953928 | AU35: =IF(HI_Hilfstabelle!$C6=HI_Hilfstabelle!$A6,IFERROR(NR_Berechnung!J35,1/0),"") -> 1.188432506 | AV35: =IF(HI_Hilfstabelle!$C6=HI_Hilfstabelle!$A6,IFERROR(NR_Berechnung!K35,1/0),"") -> 1.034547116 | AW35: =IF(HI_Hilfstabelle!$C6=HI_Hilfstabelle!$A6,IFERROR(NR_Berechnung!L35,1/0),"") -> 1.032050294 | AX35: =IF(HI_Hilfstabelle!$C6=HI_Hilfstabelle!$A6,IFERROR(NR_Berechnung!M35,1/0),"") -> 1.176630783 | AY35: =IF(HI_Hilfstabelle!$C6=HI_Hilfstabelle!$A6,IFERROR(NR_Berechnung!N35,1/0),"") -> 0.977650098 | AZ35: =IF(HI_Hilfstabelle!$C6=HI_Hilfstabelle!$A6,IFERROR(NR_Berechnung!O35,1/0),"") -> 0.8810933625 | BA35: =IF(HI_Hilfstabelle!$C6=HI_Hilfstabelle!$A6,IFERROR(NR_Berechnung!P35,1/0),"") -> 1.131735666 | BB35: =IF(HI_Hilfstabelle!$C6=HI_Hilfstabelle!$A6,IFERROR(NR_Berechnung!Q35,1/0),"") -> 1.024641432 | BC35: =IF(HI_Hilfstabelle!$C6=HI_Hilfstabelle!$A6,IFERROR(NR_Berechnung!R35,1/0),"") -> 1.055612145 | BD35: =IF(HI_Hilfstabelle!$C6=HI_Hilfstabelle!$A6,IFERROR(NR_Berechnung!S35,1/0),"") -> 1.046131245 | BE35: =IF(HI_Hilfstabelle!$C6=HI_Hilfstabelle!$A6,IFERROR(NR_Berechnung!T35,1/0),"") -> 0.937407138 | BF35: =IF(HI_Hilfstabelle!$C6=HI_Hilfstabelle!$A6,IFERROR(NR_Berechnung!U35,1/0),"") -> 1.004619772 | BG35: =IF(HI_Hilfstabelle!$C6=HI_Hilfstabelle!$A6,IFERROR(NR_Berechnung!V35,1/0),"") -> 1.041002234 | BH35: =IF(HI_Hilfstabelle!$C6=HI_Hilfstabelle!$A6,IFERROR(NR_Berechnung!W35,1/0),"") -> 1.02349045 | BI35: =IF(HI_Hilfstabelle!$C6=HI_Hilfstabelle!$A6,IFERROR(NR_Berechnung!X35,1/0),"") -> 0.9737371212 | BJ35: 1.011714301 | BK35: 1.010913413 | BL35: 1.011714301 | BM35: 1.010913413 | BN35: =IF(BL35="","",HI_Hilfstabelle!H6) -> 10693939 | BO35: 0.1195162419 | BP35: 0.1195162419 | BQ35: 0.1209162911 | BR35: 0.120820572 | BS35: =IF(BL35="","",HI_Hilfstabelle!J6) -> 93 | BT35: 0.1054421769 | BU35: 0.1054421769 | BV35: 0.1066773582 | BW35: 0.1065929109
A36: Dänemark | C36: =IF(NR_Veränderung!C49="",1/0,NR_Veränderung!C49) -> 1.048942948 | D36: =IF(NR_Veränderung!D49="",1/0,NR_Veränderung!D49) -> 1.036544501 | E36: =IF(NR_Veränderung!E49="",1/0,NR_Veränderung!E49) -> 1.002583224 | F36: =IF(NR_Veränderung!F49="",1/0,NR_Veränderung!F49) -> 1.023787954 | G36: =IF(NR_Veränderung!G49="",1/0,NR_Veränderung!G49) -> 1.032138011 | H36: =IF(NR_Veränderung!H49="",1/0,NR_Veränderung!H49) -> 1.018505202 | I36: =IF(NR_Veränderung!I49="",1/0,NR_Veränderung!I49) -> 0.9830708952 | J36: =IF(NR_Veränderung!J49="",1/0,NR_Veränderung!J49) -> 0.9967586257 | K36: =IF(NR_Veränderung!K49="",1/0,NR_Veränderung!K49) -> 0.9856750538 | L36: =IF(NR_Veränderung!L49="",1/0,NR_Veränderung!L49) -> 1.126400145 | M36: =IF(NR_Veränderung!M49="",1/0,NR_Veränderung!M49) -> 0.9764251095 | N36: =IF(NR_Veränderung!N49="",1/0,NR_Veränderung!N49) -> 1.005524563 | O36: =IF(NR_Veränderung!O49="",1/0,NR_Veränderung!O49) -> 0.9837809648 | P36: =IF(NR_Veränderung!P49="",1/0,NR_Veränderung!P49) -> 1.031700131 | Q36: =IF(NR_Veränderung!Q49="",1/0,NR_Veränderung!Q49) -> 0.931384056 | R36: =IF(NR_Veränderung!R49="",1/0,NR_Veränderung!R49) -> 0.9570534263 | S36: =IF(NR_Veränderung!S49="",1/0,NR_Veränderung!S49) -> 1.035984552 | T36: =IF(NR_Veränderung!T49="",1/0,NR_Veränderung!T49) -> 0.9057192507 | U36: =IF(NR_Veränderung!U49="",1/0,NR_Veränderung!U49) -> 0.9814354899 | V36: =IF(NR_Veränderung!V49="",1/0,NR_Veränderung!V49) -> 1.047611967 | W36: =IF(NR_Veränderung!W49="",1/0,NR_Veränderung!W49) -> 0.9805257187 | X36: =IF(NR_Veränderung!X49="",1/0,NR_Veränderung!X49) -> 1.171973646 | Y36: 1.011472007 | Z36: 1.008496944 | AA36: 1.011472007 | AB36: 1.008496944 | AC36: =IF(AA36="","",HI_Hilfstabelle!H7) -> 5822763 | AD36: 0.06507562379 | AE36: 0.06507562379 | AF36: 0.06582217182 | AG36: 0.06562856771 | AH36: =IF(AA36="","",HI_Hilfstabelle!J7) -> 130 | AI36: 0.1473922902 | AJ36: 0.1473922902 | AK36: 0.1490831757 | AL36: 0.1486446743 | AN36: =IF(HI_Hilfstabelle!$C7=HI_Hilfstabelle!$A7,IFERROR(NR_Berechnung!C36,1/0),"") -> 1.048942948 | AO36: =IF(HI_Hilfstabelle!$C7=HI_Hilfstabelle!$A7,IFERROR(NR_Berechnung!D36,1/0),"") -> 1.036544501 | AP36: =IF(HI_Hilfstabelle!$C7=HI_Hilfstabelle!$A7,IFERROR(NR_Berechnung!E36,1/0),"") -> 1.002583224 | AQ36: =IF(HI_Hilfstabelle!$C7=HI_Hilfstabelle!$A7,IFERROR(NR_Berechnung!F36,1/0),"") -> 1.023787954 | AR36: =IF(HI_Hilfstabelle!$C7=HI_Hilfstabelle!$A7,IFERROR(NR_Berechnung!G36,1/0),"") -> 1.032138011 | AS36: =IF(HI_Hilfstabelle!$C7=HI_Hilfstabelle!$A7,IFERROR(NR_Berechnung!H36,1/0),"") -> 1.018505202 | AT36: =IF(HI_Hilfstabelle!$C7=HI_Hilfstabelle!$A7,IFERROR(NR_Berechnung!I36,1/0),"") -> 0.9830708952 | AU36: =IF(HI_Hilfstabelle!$C7=HI_Hilfstabelle!$A7,IFERROR(NR_Berechnung!J36,1/0),"") -> 0.9967586257 | AV36: =IF(HI_Hilfstabelle!$C7=HI_Hilfstabelle!$A7,IFERROR(NR_Berechnung!K36,1/0),"") -> 0.9856750538 | AW36: =IF(HI_Hilfstabelle!$C7=HI_Hilfstabelle!$A7,IFERROR(NR_Berechnung!L36,1/0),"") -> 1.126400145 | AX36: =IF(HI_Hilfstabelle!$C7=HI_Hilfstabelle!$A7,IFERROR(NR_Berechnung!M36,1/0),"") -> 0.9764251095 | AY36: =IF(HI_Hilfstabelle!$C7=HI_Hilfstabelle!$A7,IFERROR(NR_Berechnung!N36,1/0),"") -> 1.005524563 | AZ36: =IF(HI_Hilfstabelle!$C7=HI_Hilfstabelle!$A7,IFERROR(NR_Berechnung!O36,1/0),"") -> 0.9837809648 | BA36: =IF(HI_Hilfstabelle!$C7=HI_Hilfstabelle!$A7,IFERROR(NR_Berechnung!P36,1/0),"") -> 1.031700131 | BB36: =IF(HI_Hilfstabelle!$C7=HI_Hilfstabelle!$A7,IFERROR(NR_Berechnung!Q36,1/0),"") -> 0.931384056 | BC36: =IF(HI_Hilfstabelle!$C7=HI_Hilfstabelle!$A7,IFERROR(NR_Berechnung!R36,1/0),"") -> 0.9570534263 | BD36: =IF(HI_Hilfstabelle!$C7=HI_Hilfstabelle!$A7,IFERROR(NR_Berechnung!S36,1/0),"") -> 1.035984552 | BE36: =IF(HI_Hilfstabelle!$C7=HI_Hilfstabelle!$A7,IFERROR(NR_Berechnung!T36,1/0),"") -> 0.9057192507 | BF36: =IF(HI_Hilfstabelle!$C7=HI_Hilfstabelle!$A7,IFERROR(NR_Berechnung!U36,1/0),"") -> 0.9814354899 | BG36: =IF(HI_Hilfstabelle!$C7=HI_Hilfstabelle!$A7,IFERROR(NR_Berechnung!V36,1/0),"") -> 1.047611967 | BH36: =IF(HI_Hilfstabelle!$C7=HI_Hilfstabelle!$A7,IFERROR(NR_Berechnung!W36,1/0),"") -> 0.9805257187 | BI36: =IF(HI_Hilfstabelle!$C7=HI_Hilfstabelle!$A7,IFERROR(NR_Berechnung!X36,1/0),"") -> 1.171973646 | BJ36: 1.011472007 | BK36: 1.008496944 | BL36: 1.011472007 | BM36: 1.008496944 | BN36: =IF(BL36="","",HI_Hilfstabelle!H7) -> 5822763 | BO36: 0.06507562379 | BP36: 0.06507562379 | BQ36: 0.06582217182 | BR36: 0.06562856771 | BS36: =IF(BL36="","",HI_Hilfstabelle!J7) -> 130 | BT36: 0.1473922902 | BU36: 0.1473922902 | BV36: 0.1490831757 | BW36: 0.1486446743
A37: Estland | C37: =IF(NR_Veränderung!C50="",1/0,NR_Veränderung!C50) -> 1.165127161 | D37: =IF(NR_Veränderung!D50="",1/0,NR_Veränderung!D50) -> 1.083418808 | E37: =IF(NR_Veränderung!E50="",1/0,NR_Veränderung!E50) -> 1.225196538 | F37: =IF(NR_Veränderung!F50="",1/0,NR_Veränderung!F50) -> 0.9779247993 | G37: =IF(NR_Veränderung!G50="",1/0,NR_Veränderung!G50) -> 1.095034385 | H37: =IF(NR_Veränderung!H50="",1/0,NR_Veränderung!H50) -> 1.146432573 | I37: =IF(NR_Veränderung!I50="",1/0,NR_Veränderung!I50) -> 1.158682897 | J37: =IF(NR_Veränderung!J50="",1/0,NR_Veränderung!J50) -> 1.068985317 | K37: =IF(NR_Veränderung!K50="",1/0,NR_Veränderung!K50) -> 1.223510809 | L37: =IF(NR_Veränderung!L50="",1/0,NR_Veränderung!L50) -> 1.28514935 | M37: =IF(NR_Veränderung!M50="",1/0,NR_Veränderung!M50) -> 0.9984359996 | N37: =IF(NR_Veränderung!N50="",1/0,NR_Veränderung!N50) -> 1.179314536 | O37: =IF(NR_Veränderung!O50="",1/0,NR_Veränderung!O50) -> 0.9854736779 | P37: =IF(NR_Veränderung!P50="",1/0,NR_Veränderung!P50) -> 0.9205125757 | Q37: =IF(NR_Veränderung!Q50="",1/0,NR_Veränderung!Q50) -> 0.959502914 | R37: =IF(NR_Veränderung!R50="",1/0,NR_Veränderung!R50) -> 1.074220339 | S37: =IF(NR_Veränderung!S50="",1/0,NR_Veränderung!S50) -> 1.002147582 | T37: =IF(NR_Veränderung!T50="",1/0,NR_Veränderung!T50) -> 1.086263382 | U37: =IF(NR_Veränderung!U50="",1/0,NR_Veränderung!U50) -> 0.9181556901 | V37: =IF(NR_Veränderung!V50="",1/0,NR_Veränderung!V50) -> 1.155999095 | W37: =IF(NR_Veränderung!W50="",1/0,NR_Veränderung!W50) -> 1.136146511 | X37: =IF(NR_Veränderung!X50="",1/0,NR_Veränderung!X50) -> 1.00544015 | Y37: 1.05405325 | Z37: 1.051140221 | AA37: 1.05405325 | AB37: 1.051140221 | AC37: =IF(AA37="","",HI_Hilfstabelle!H8) -> 1328976 | AD37: 0.01485273266 | AE37: 0.01485273266 | AF37: 0.01565557113 | AG37: 0.0156123047 | AH37: =IF(AA37="","",HI_Hilfstabelle!J8) -> 84 | AI37: 0.09523809524 | AJ37: 0.09523809524 | AK37: 0.1003860238 | AL37: 0.1001085925 | AN37: =IF(HI_Hilfstabelle!$C8=HI_Hilfstabelle!$A8,IFERROR(NR_Berechnung!C37,1/0),"") -> 1.165127161 | AO37: =IF(HI_Hilfstabelle!$C8=HI_Hilfstabelle!$A8,IFERROR(NR_Berechnung!D37,1/0),"") -> 1.083418808 | AP37: =IF(HI_Hilfstabelle!$C8=HI_Hilfstabelle!$A8,IFERROR(NR_Berechnung!E37,1/0),"") -> 1.225196538 | AQ37: =IF(HI_Hilfstabelle!$C8=HI_Hilfstabelle!$A8,IFERROR(NR_Berechnung!F37,1/0),"") -> 0.9779247993 | AR37: =IF(HI_Hilfstabelle!$C8=HI_Hilfstabelle!$A8,IFERROR(NR_Berechnung!G37,1/0),"") -> 1.095034385 | AS37: =IF(HI_Hilfstabelle!$C8=HI_Hilfstabelle!$A8,IFERROR(NR_Berechnung!H37,1/0),"") -> 1.146432573 | AT37: =IF(HI_Hilfstabelle!$C8=HI_Hilfstabelle!$A8,IFERROR(NR_Berechnung!I37,1/0),"") -> 1.158682897 | AU37: =IF(HI_Hilfstabelle!$C8=HI_Hilfstabelle!$A8,IFERROR(NR_Berechnung!J37,1/0),"") -> 1.068985317 | AV37: =IF(HI_Hilfstabelle!$C8=HI_Hilfstabelle!$A8,IFERROR(NR_Berechnung!K37,1/0),"") -> 1.223510809 | AW37: =IF(HI_Hilfstabelle!$C8=HI_Hilfstabelle!$A8,IFERROR(NR_Berechnung!L37,1/0),"") -> 1.28514935 | AX37: =IF(HI_Hilfstabelle!$C8=HI_Hilfstabelle!$A8,IFERROR(NR_Berechnung!M37,1/0),"") -> 0.9984359996 | AY37: =IF(HI_Hilfstabelle!$C8=HI_Hilfstabelle!$A8,IFERROR(NR_Berechnung!N37,1/0),"") -> 1.179314536 | AZ37: =IF(HI_Hilfstabelle!$C8=HI_Hilfstabelle!$A8,IFERROR(NR_Berechnung!O37,1/0),"") -> 0.9854736779 | BA37: =IF(HI_Hilfstabelle!$C8=HI_Hilfstabelle!$A8,IFERROR(NR_Berechnung!P37,1/0),"") -> 0.9205125757 | BB37: =IF(HI_Hilfstabelle!$C8=HI_Hilfstabelle!$A8,IFERROR(NR_Berechnung!Q37,1/0),"") -> 0.959502914 | BC37: =IF(HI_Hilfstabelle!$C8=HI_Hilfstabelle!$A8,IFERROR(NR_Berechnung!R37,1/0),"") -> 1.074220339 | BD37: =IF(HI_Hilfstabelle!$C8=HI_Hilfstabelle!$A8,IFERROR(NR_Berechnung!S37,1/0),"") -> 1.002147582 | BE37: =IF(HI_Hilfstabelle!$C8=HI_Hilfstabelle!$A8,IFERROR(NR_Berechnung!T37,1/0),"") -> 1.086263382 | BF37: =IF(HI_Hilfstabelle!$C8=HI_Hilfstabelle!$A8,IFERROR(NR_Berechnung!U37,1/0),"") -> 0.9181556901 | BG37: =IF(HI_Hilfstabelle!$C8=HI_Hilfstabelle!$A8,IFERROR(NR_Berechnung!V37,1/0),"") -> 1.155999095 | BH37: =IF(HI_Hilfstabelle!$C8=HI_Hilfstabelle!$A8,IFERROR(NR_Berechnung!W37,1/0),"") -> 1.136146511 | BI37: =IF(HI_Hilfstabelle!$C8=HI_Hilfstabelle!$A8,IFERROR(NR_Berechnung!X37,1/0),"") -> 1.00544015 | BJ37: 1.05405325 | BK37: 1.051140221 | BL37: 1.05405325 | BM37: 1.051140221 | BN37: =IF(BL37="","",HI_Hilfstabelle!H8) -> 1328976 | BO37: 0.01485273266 | BP37: 0.01485273266 | BQ37: 0.01565557113 | BR37: 0.0156123047 | BS37: =IF(BL37="","",HI_Hilfstabelle!J8) -> 84 | BT37: 0.09523809524 | BU37: 0.09523809524 | BV37: 0.1003860238 | BW37: 0.1001085925
A38: Frankreich | C38: =IF(NR_Veränderung!C51="",1/0,NR_Veränderung!C51) -> 1.037754748 | D38: =IF(NR_Veränderung!D51="",1/0,NR_Veränderung!D51) -> 1.133982142 | E38: =IF(NR_Veränderung!E51="",1/0,NR_Veränderung!E51) -> 1.145250279 | F38: =IF(NR_Veränderung!F51="",1/0,NR_Veränderung!F51) -> 1.191123341 | G38: =IF(NR_Veränderung!G51="",1/0,NR_Veränderung!G51) -> 0.9177240254 | H38: =IF(NR_Veränderung!H51="",1/0,NR_Veränderung!H51) -> 0.9612761987 | I38: =IF(NR_Veränderung!I51="",1/0,NR_Veränderung!I51) -> 0.9765997707 | J38: =IF(NR_Veränderung!J51="",1/0,NR_Veränderung!J51) -> 0.9722454531 | K38: =IF(NR_Veränderung!K51="",1/0,NR_Veränderung!K51) -> 1.027119292 | L38: =IF(NR_Veränderung!L51="",1/0,NR_Veränderung!L51) -> 1.019151303 | M38: =IF(NR_Veränderung!M51="",1/0,NR_Veränderung!M51) -> 0.9741366559 | N38: =IF(NR_Veränderung!N51="",1/0,NR_Veränderung!N51) -> 1.035762009 | O38: =IF(NR_Veränderung!O51="",1/0,NR_Veränderung!O51) -> 0.9996323742 | P38: =IF(NR_Veränderung!P51="",1/0,NR_Veränderung!P51) -> 1.008387526 | Q38: =IF(NR_Veränderung!Q51="",1/0,NR_Veränderung!Q51) -> 0.984775391 | R38: =IF(NR_Veränderung!R51="",1/0,NR_Veränderung!R51) -> 0.9838079846 | S38: =IF(NR_Veränderung!S51="",1/0,NR_Veränderung!S51) -> 1.000832953 | T38: =IF(NR_Veränderung!T51="",1/0,NR_Veränderung!T51) -> 0.9748621507 | U38: =IF(NR_Veränderung!U51="",1/0,NR_Veränderung!U51) -> 0.9885422286 | V38: =IF(NR_Veränderung!V51="",1/0,NR_Veränderung!V51) -> 0.9596687371 | W38: =IF(NR_Veränderung!W51="",1/0,NR_Veränderung!W51) -> 1.030128667 | X38: =IF(NR_Veränderung!X51="",1/0,NR_Veränderung!X51) ->  | AC38: =IF(AA38="","",HI_Hilfstabelle!H9) ->  | AH38: =IF(AA38="","",HI_Hilfstabelle!J9) ->  | AN38: =IF(HI_Hilfstabelle!$C9=HI_Hilfstabelle!$A9,IFERROR(NR_Berechnung!C38,1/0),"") ->  | AO38: =IF(HI_Hilfstabelle!$C9=HI_Hilfstabelle!$A9,IFERROR(NR_Berechnung!D38,1/0),"") ->  | AP38: =IF(HI_Hilfstabelle!$C9=HI_Hilfstabelle!$A9,IFERROR(NR_Berechnung!E38,1/0),"") ->  | AQ38: =IF(HI_Hilfstabelle!$C9=HI_Hilfstabelle!$A9,IFERROR(NR_Berechnung!F38,1/0),"") ->  | AR38: =IF(HI_Hilfstabelle!$C9=HI_Hilfstabelle!$A9,IFERROR(NR_Berechnung!G38,1/0),"") ->  | AS38: =IF(HI_Hilfstabelle!$C9=HI_Hilfstabelle!$A9,IFERROR(NR_Berechnung!H38,1/0),"") ->  | AT38: =IF(HI_Hilfstabelle!$C9=HI_Hilfstabelle!$A9,IFERROR(NR_Berechnung!I38,1/0),"") ->  | AU38: =IF(HI_Hilfstabelle!$C9=HI_Hilfstabelle!$A9,IFERROR(NR_Berechnung!J38,1/0),"") ->  | AV38: =IF(HI_Hilfstabelle!$C9=HI_Hilfstabelle!$A9,IFERROR(NR_Berechnung!K38,1/0),"") ->  | AW38: =IF(HI_Hilfstabelle!$C9=HI_Hilfstabelle!$A9,IFERROR(NR_Berechnung!L38,1/0),"") ->  | AX38: =IF(HI_Hilfstabelle!$C9=HI_Hilfstabelle!$A9,IFERROR(NR_Berechnung!M38,1/0),"") ->  | AY38: =IF(HI_Hilfstabelle!$C9=HI_Hilfstabelle!$A9,IFERROR(NR_Berechnung!N38,1/0),"") ->  | AZ38: =IF(HI_Hilfstabelle!$C9=HI_Hilfstabelle!$A9,IFERROR(NR_Berechnung!O38,1/0),"") ->  | BA38: =IF(HI_Hilfstabelle!$C9=HI_Hilfstabelle!$A9,IFERROR(NR_Berechnung!P38,1/0),"") ->  | BB38: =IF(HI_Hilfstabelle!$C9=HI_Hilfstabelle!$A9,IFERROR(NR_Berechnung!Q38,1/0),"") ->  | BC38: =IF(HI_Hilfstabelle!$C9=HI_Hilfstabelle!$A9,IFERROR(NR_Berechnung!R38,1/0),"") ->  | BD38: =IF(HI_Hilfstabelle!$C9=HI_Hilfstabelle!$A9,IFERROR(NR_Berechnung!S38,1/0),"") ->  | BE38: =IF(HI_Hilfstabelle!$C9=HI_Hilfstabelle!$A9,IFERROR(NR_Berechnung!T38,1/0),"") ->  | BF38: =IF(HI_Hilfstabelle!$C9=HI_Hilfstabelle!$A9,IFERROR(NR_Berechnung!U38,1/0),"") ->  | BG38: =IF(HI_Hilfstabelle!$C9=HI_Hilfstabelle!$A9,IFERROR(NR_Berechnung!V38,1/0),"") ->  | BH38: =IF(HI_Hilfstabelle!$C9=HI_Hilfstabelle!$A9,IFERROR(NR_Berechnung!W38,1/0),"") ->  | BI38: =IF(HI_Hilfstabelle!$C9=HI_Hilfstabelle!$A9,IFERROR(NR_Berechnung!X38,1/0),"") ->  | BN38: =IF(BL38="","",HI_Hilfstabelle!H9) ->  | BS38: =IF(BL38="","",HI_Hilfstabelle!J9) -> 
A39: Griechenland | C39: =IF(NR_Veränderung!C52="",1/0,NR_Veränderung!C52) -> 1.003738443 | D39: =IF(NR_Veränderung!D52="",1/0,NR_Veränderung!D52) -> 1.211709708 | E39: =IF(NR_Veränderung!E52="",1/0,NR_Veränderung!E52) -> 1.041030648 | F39: =IF(NR_Veränderung!F52="",1/0,NR_Veränderung!F52) -> 1.309178778 | G39: =IF(NR_Veränderung!G52="",1/0,NR_Veränderung!G52) -> 1.029201563 | H39: =IF(NR_Veränderung!H52="",1/0,NR_Veränderung!H52) -> 1.130276352 | I39: =IF(NR_Veränderung!I52="",1/0,NR_Veränderung!I52) -> 1.066277579 | J39: =IF(NR_Veränderung!J52="",1/0,NR_Veränderung!J52) -> 0.9653652331 | K39: =IF(NR_Veränderung!K52="",1/0,NR_Veränderung!K52) -> 1.034211548 | L39: =IF(NR_Veränderung!L52="",1/0,NR_Veränderung!L52) -> 1.028708582 | M39: =IF(NR_Veränderung!M52="",1/0,NR_Veränderung!M52) -> 1.080005253 | N39: =IF(NR_Veränderung!N52="",1/0,NR_Veränderung!N52) -> 1.175355203 | O39: =IF(NR_Veränderung!O52="",1/0,NR_Veränderung!O52) -> 1.018851494 | P39: =IF(NR_Veränderung!P52="",1/0,NR_Veränderung!P52) -> 0.9725940584 | Q39: =IF(NR_Veränderung!Q52="",1/0,NR_Veränderung!Q52) -> 0.8972807365 | R39: =IF(NR_Veränderung!R52="",1/0,NR_Veränderung!R52) -> 1.033475442 | S39: =IF(NR_Veränderung!S52="",1/0,NR_Veränderung!S52) -> 0.8889958055 | T39: =IF(NR_Veränderung!T52="",1/0,NR_Veränderung!T52) -> 0.9576826962 | U39: =IF(NR_Veränderung!U52="",1/0,NR_Veränderung!U52) -> 0.9998228219 | V39: =IF(NR_Veränderung!V52="",1/0,NR_Veränderung!V52) -> 0.9461719975 | W39: =IF(NR_Veränderung!W52="",1/0,NR_Veränderung!W52) -> 0.9831683623 | X39: =IF(NR_Veränderung!X52="",1/0,NR_Veränderung!X52) -> 0.9824332818 | Y39: 0.9702500581 | Z39: 0.969312155 | AA39: 0.9702500581 | AB39: 0.969312155 | AC39: =IF(AA39="","",HI_Hilfstabelle!H10) -> 10709739 | AD39: 0.1196928238 | AE39: 0.1196928238 | AF39: 0.1161319693 | AG39: 0.116019709 | AH39: =IF(AA39="","",HI_Hilfstabelle!J10) -> 67 | AI39: 0.07596371882 | AJ39: 0.07596371882 | AK39: 0.0737038026 | AL39: 0.07363255599 | AN39: =IF(HI_Hilfstabelle!$C10=HI_Hilfstabelle!$A10,IFERROR(NR_Berechnung!C39,1/0),"") -> 1.003738443 | AO39: =IF(HI_Hilfstabelle!$C10=HI_Hilfstabelle!$A10,IFERROR(NR_Berechnung!D39,1/0),"") -> 1.211709708 | AP39: =IF(HI_Hilfstabelle!$C10=HI_Hilfstabelle!$A10,IFERROR(NR_Berechnung!E39,1/0),"") -> 1.041030648 | AQ39: =IF(HI_Hilfstabelle!$C10=HI_Hilfstabelle!$A10,IFERROR(NR_Berechnung!F39,1/0),"") -> 1.309178778 | AR39: =IF(HI_Hilfstabelle!$C10=HI_Hilfstabelle!$A10,IFERROR(NR_Berechnung!G39,1/0),"") -> 1.029201563 | AS39: =IF(HI_Hilfstabelle!$C10=HI_Hilfstabelle!$A10,IFERROR(NR_Berechnung!H39,1/0),"") -> 1.130276352 | AT39: =IF(HI_Hilfstabelle!$C10=HI_Hilfstabelle!$A10,IFERROR(NR_Berechnung!I39,1/0),"") -> 1.066277579 | AU39: =IF(HI_Hilfstabelle!$C10=HI_Hilfstabelle!$A10,IFERROR(NR_Berechnung!J39,1/0),"") -> 0.9653652331 | AV39: =IF(HI_Hilfstabelle!$C10=HI_Hilfstabelle!$A10,IFERROR(NR_Berechnung!K39,1/0),"") -> 1.034211548 | AW39: =IF(HI_Hilfstabelle!$C10=HI_Hilfstabelle!$A10,IFERROR(NR_Berechnung!L39,1/0),"") -> 1.028708582 | AX39: =IF(HI_Hilfstabelle!$C10=HI_Hilfstabelle!$A10,IFERROR(NR_Berechnung!M39,1/0),"") -> 1.080005253 | AY39: =IF(HI_Hilfstabelle!$C10=HI_Hilfstabelle!$A10,IFERROR(NR_Berechnung!N39,1/0),"") -> 1.175355203 | AZ39: =IF(HI_Hilfstabelle!$C10=HI_Hilfstabelle!$A10,IFERROR(NR_Berechnung!O39,1/0),"") -> 1.018851494 | BA39: =IF(HI_Hilfstabelle!$C10=HI_Hilfstabelle!$A10,IFERROR(NR_Berechnung!P39,1/0),"") -> 0.9725940584 | BB39: =IF(HI_Hilfstabelle!$C10=HI_Hilfstabelle!$A10,IFERROR(NR_Berechnung!Q39,1/0),"") -> 0.8972807365 | BC39: =IF(HI_Hilfstabelle!$C10=HI_Hilfstabelle!$A10,IFERROR(NR_Berechnung!R39,1/0),"") -> 1.033475442 | BD39: =IF(HI_Hilfstabelle!$C10=HI_Hilfstabelle!$A10,IFERROR(NR_Berechnung!S39,1/0),"") -> 0.8889958055 | BE39: =IF(HI_Hilfstabelle!$C10=HI_Hilfstabelle!$A10,IFERROR(NR_Berechnung!T39,1/0),"") -> 0.9576826962 | BF39: =IF(HI_Hilfstabelle!$C10=HI_Hilfstabelle!$A10,IFERROR(NR_Berechnung!U39,1/0),"") -> 0.9998228219 | BG39: =IF(HI_Hilfstabelle!$C10=HI_Hilfstabelle!$A10,IFERROR(NR_Berechnung!V39,1/0),"") -> 0.9461719975 | BH39: =IF(HI_Hilfstabelle!$C10=HI_Hilfstabelle!$A10,IFERROR(NR_Berechnung!W39,1/0),"") -> 0.9831683623 | BI39: =IF(HI_Hilfstabelle!$C10=HI_Hilfstabelle!$A10,IFERROR(NR_Berechnung!X39,1/0),"") -> 0.9824332818 | BJ39: 0.9702500581 | BK39: 0.969312155 | BL39: 0.9702500581 | BM39: 0.969312155 | BN39: =IF(BL39="","",HI_Hilfstabelle!H10) -> 10709739 | BO39: 0.1196928238 | BP39: 0.1196928238 | BQ39: 0.1161319693 | BR39: 0.116019709 | BS39: =IF(BL39="","",HI_Hilfstabelle!J10) -> 67 | BT39: 0.07596371882 | BU39: 0.07596371882 | BV39: 0.0737038026 | BW39: 0.07363255599
A40: Italien | C40: =IF(NR_Veränderung!C53="",1/0,NR_Veränderung!C53) -> 1.009192108 | D40: =IF(NR_Veränderung!D53="",1/0,NR_Veränderung!D53) -> 1.111743937 | E40: =IF(NR_Veränderung!E53="",1/0,NR_Veränderung!E53) -> 1.051909708 | F40: =IF(NR_Veränderung!F53="",1/0,NR_Veränderung!F53) -> 1.14318321 | G40: =IF(NR_Veränderung!G53="",1/0,NR_Veränderung!G53) -> 1.039156505 | H40: =IF(NR_Veränderung!H53="",1/0,NR_Veränderung!H53) -> 1.159722882 | I40: =IF(NR_Veränderung!I53="",1/0,NR_Veränderung!I53) -> 0.9417517185 | J40: =IF(NR_Veränderung!J53="",1/0,NR_Veränderung!J53) -> 1.034028726 | K40: =IF(NR_Veränderung!K53="",1/0,NR_Veränderung!K53) -> 0.9771119931 | L40: =IF(NR_Veränderung!L53="",1/0,NR_Veränderung!L53) -> 1.045294638 | M40: =IF(NR_Veränderung!M53="",1/0,NR_Veränderung!M53) -> 1.012796532 | N40: =IF(NR_Veränderung!N53="",1/0,NR_Veränderung!N53) -> 1.072798461 | O40: =IF(NR_Veränderung!O53="",1/0,NR_Veränderung!O53) -> 0.9358338937 | P40: =IF(NR_Veränderung!P53="",1/0,NR_Veränderung!P53) -> 0.9741294293 | Q40: =IF(NR_Veränderung!Q53="",1/0,NR_Veränderung!Q53) -> 1.033244456 | R40: =IF(NR_Veränderung!R53="",1/0,NR_Veränderung!R53) -> 0.9530693366 | S40: =IF(NR_Veränderung!S53="",1/0,NR_Veränderung!S53) -> 0.9309740921 | T40: =IF(NR_Veränderung!T53="",1/0,NR_Veränderung!T53) -> 0.9952110861 | U40: =IF(NR_Veränderung!U53="",1/0,NR_Veränderung!U53) -> 0.9661641942 | V40: =IF(NR_Veränderung!V53="",1/0,NR_Veränderung!V53) -> 1.066466388 | W40: =IF(NR_Veränderung!W53="",1/0,NR_Veränderung!W53) ->  | X40: =IF(NR_Veränderung!X53="",1/0,NR_Veränderung!X53) ->  | AC40: =IF(AA40="","",HI_Hilfstabelle!H11) ->  | AH40: =IF(AA40="","",HI_Hilfstabelle!J11) ->  | AN40: =IF(HI_Hilfstabelle!$C11=HI_Hilfstabelle!$A11,IFERROR(NR_Berechnung!C40,1/0),"") -> 1.009192108 | AO40: =IF(HI_Hilfstabelle!$C11=HI_Hilfstabelle!$A11,IFERROR(NR_Berechnung!D40,1/0),"") -> 1.111743937 | AP40: =IF(HI_Hilfstabelle!$C11=HI_Hilfstabelle!$A11,IFERROR(NR_Berechnung!E40,1/0),"") -> 1.051909708 | AQ40: =IF(HI_Hilfstabelle!$C11=HI_Hilfstabelle!$A11,IFERROR(NR_Berechnung!F40,1/0),"") -> 1.14318321 | AR40: =IF(HI_Hilfstabelle!$C11=HI_Hilfstabelle!$A11,IFERROR(NR_Berechnung!G40,1/0),"") -> 1.039156505 | AS40: =IF(HI_Hilfstabelle!$C11=HI_Hilfstabelle!$A11,IFERROR(NR_Berechnung!H40,1/0),"") -> 1.159722882 | AT40: =IF(HI_Hilfstabelle!$C11=HI_Hilfstabelle!$A11,IFERROR(NR_Berechnung!I40,1/0),"") -> 0.9417517185 | AU40: =IF(HI_Hilfstabelle!$C11=HI_Hilfstabelle!$A11,IFERROR(NR_Berechnung!J40,1/0),"") -> 1.034028726 | AV40: =IF(HI_Hilfstabelle!$C11=HI_Hilfstabelle!$A11,IFERROR(NR_Berechnung!K40,1/0),"") -> 0.9771119931 | AW40: =IF(HI_Hilfstabelle!$C11=HI_Hilfstabelle!$A11,IFERROR(NR_Berechnung!L40,1/0),"") -> 1.045294638 | AX40: =IF(HI_Hilfstabelle!$C11=HI_Hilfstabelle!$A11,IFERROR(NR_Berechnung!M40,1/0),"") -> 1.012796532 | AY40: =IF(HI_Hilfstabelle!$C11=HI_Hilfstabelle!$A11,IFERROR(NR_Berechnung!N40,1/0),"") -> 1.072798461 | AZ40: =IF(HI_Hilfstabelle!$C11=HI_Hilfstabelle!$A11,IFERROR(NR_Berechnung!O40,1/0),"") -> 0.9358338937 | BA40: =IF(HI_Hilfstabelle!$C11=HI_Hilfstabelle!$A11,IFERROR(NR_Berechnung!P40,1/0),"") -> 0.9741294293 | BB40: =IF(HI_Hilfstabelle!$C11=HI_Hilfstabelle!$A11,IFERROR(NR_Berechnung!Q40,1/0),"") -> 1.033244456 | BC40: =IF(HI_Hilfstabelle!$C11=HI_Hilfstabelle!$A11,IFERROR(NR_Berechnung!R40,1/0),"") -> 0.9530693366 | BD40: =IF(HI_Hilfstabelle!$C11=HI_Hilfstabelle!$A11,IFERROR(NR_Berechnung!S40,1/0),"") -> 0.9309740921 | BE40: =IF(HI_Hilfstabelle!$C11=HI_Hilfstabelle!$A11,IFERROR(NR_Berechnung!T40,1/0),"") -> 0.9952110861 | BF40: =IF(HI_Hilfstabelle!$C11=HI_Hilfstabelle!$A11,IFERROR(NR_Berechnung!U40,1/0),"") -> 0.9661641942 | BG40: =IF(HI_Hilfstabelle!$C11=HI_Hilfstabelle!$A11,IFERROR(NR_Berechnung!V40,1/0),"") -> 1.066466388 | BH40: =IF(HI_Hilfstabelle!$C11=HI_Hilfstabelle!$A11,IFERROR(NR_Berechnung!W40,1/0),"") ->  | BI40: =IF(HI_Hilfstabelle!$C11=HI_Hilfstabelle!$A11,IFERROR(NR_Berechnung!X40,1/0),"") ->  | BN40: =IF(BL40="","",HI_Hilfstabelle!H11) ->  | BS40: =IF(BL40="","",HI_Hilfstabelle!J11) -> 
A41: Spanien | C41: =IF(NR_Veränderung!C54="",1/0,NR_Veränderung!C54) ->  | D41: =IF(NR_Veränderung!D54="",1/0,NR_Veränderung!D54) ->  | E41: =IF(NR_Veränderung!E54="",1/0,NR_Veränderung!E54) ->  | F41: =IF(NR_Veränderung!F54="",1/0,NR_Veränderung!F54) ->  | G41: =IF(NR_Veränderung!G54="",1/0,NR_Veränderung!G54) ->  | H41: =IF(NR_Veränderung!H54="",1/0,NR_Veränderung!H54) ->  | I41: =IF(NR_Veränderung!I54="",1/0,NR_Veränderung!I54) ->  | J41: =IF(NR_Veränderung!J54="",1/0,NR_Veränderung!J54) ->  | K41: =IF(NR_Veränderung!K54="",1/0,NR_Veränderung!K54) ->  | L41: =IF(NR_Veränderung!L54="",1/0,NR_Veränderung!L54) ->  | M41: =IF(NR_Veränderung!M54="",1/0,NR_Veränderung!M54) ->  | N41: =IF(NR_Veränderung!N54="",1/0,NR_Veränderung!N54) ->  | O41: =IF(NR_Veränderung!O54="",1/0,NR_Veränderung!O54) ->  | P41: =IF(NR_Veränderung!P54="",1/0,NR_Veränderung!P54) ->  | Q41: =IF(NR_Veränderung!Q54="",1/0,NR_Veränderung!Q54) ->  | R41: =IF(NR_Veränderung!R54="",1/0,NR_Veränderung!R54) ->  | S41: =IF(NR_Veränderung!S54="",1/0,NR_Veränderung!S54) ->  | T41: =IF(NR_Veränderung!T54="",1/0,NR_Veränderung!T54) ->  | U41: =IF(NR_Veränderung!U54="",1/0,NR_Veränderung!U54) ->  | V41: =IF(NR_Veränderung!V54="",1/0,NR_Veränderung!V54) ->  | W41: =IF(NR_Veränderung!W54="",1/0,NR_Veränderung!W54) ->  | X41: =IF(NR_Veränderung!X54="",1/0,NR_Veränderung!X54) ->  | AC41: =IF(AA41="","",HI_Hilfstabelle!H12) ->  | AH41: =IF(AA41="","",HI_Hilfstabelle!J12) ->  | AN41: =IF(HI_Hilfstabelle!$C12=HI_Hilfstabelle!$A12,IFERROR(NR_Berechnung!C41,1/0),"") ->  | AO41: =IF(HI_Hilfstabelle!$C12=HI_Hilfstabelle!$A12,IFERROR(NR_Berechnung!D41,1/0),"") ->  | AP41: =IF(HI_Hilfstabelle!$C12=HI_Hilfstabelle!$A12,IFERROR(NR_Berechnung!E41,1/0),"") ->  | AQ41: =IF(HI_Hilfstabelle!$C12=HI_Hilfstabelle!$A12,IFERROR(NR_Berechnung!F41,1/0),"") ->  | AR41: =IF(HI_Hilfstabelle!$C12=HI_Hilfstabelle!$A12,IFERROR(NR_Berechnung!G41,1/0),"") ->  | AS41: =IF(HI_Hilfstabelle!$C12=HI_Hilfstabelle!$A12,IFERROR(NR_Berechnung!H41,1/0),"") ->  | AT41: =IF(HI_Hilfstabelle!$C12=HI_Hilfstabelle!$A12,IFERROR(NR_Berechnung!I41,1/0),"") ->  | AU41: =IF(HI_Hilfstabelle!$C12=HI_Hilfstabelle!$A12,IFERROR(NR_Berechnung!J41,1/0),"") ->  | AV41: =IF(HI_Hilfstabelle!$C12=HI_Hilfstabelle!$A12,IFERROR(NR_Berechnung!K41,1/0),"") ->  | AW41: =IF(HI_Hilfstabelle!$C12=HI_Hilfstabelle!$A12,IFERROR(NR_Berechnung!L41,1/0),"") ->  | AX41: =IF(HI_Hilfstabelle!$C12=HI_Hilfstabelle!$A12,IFERROR(NR_Berechnung!M41,1/0),"") ->  | AY41: =IF(HI_Hilfstabelle!$C12=HI_Hilfstabelle!$A12,IFERROR(NR_Berechnung!N41,1/0),"") ->  | AZ41: =IF(HI_Hilfstabelle!$C12=HI_Hilfstabelle!$A12,IFERROR(NR_Berechnung!O41,1/0),"") ->  | BA41: =IF(HI_Hilfstabelle!$C12=HI_Hilfstabelle!$A12,IFERROR(NR_Berechnung!P41,1/0),"") ->  | BB41: =IF(HI_Hilfstabelle!$C12=HI_Hilfstabelle!$A12,IFERROR(NR_Berechnung!Q41,1/0),"") ->  | BC41: =IF(HI_Hilfstabelle!$C12=HI_Hilfstabelle!$A12,IFERROR(NR_Berechnung!R41,1/0),"") ->  | BD41: =IF(HI_Hilfstabelle!$C12=HI_Hilfstabelle!$A12,IFERROR(NR_Berechnung!S41,1/0),"") ->  | BE41: =IF(HI_Hilfstabelle!$C12=HI_Hilfstabelle!$A12,IFERROR(NR_Berechnung!T41,1/0),"") ->  | BF41: =IF(HI_Hilfstabelle!$C12=HI_Hilfstabelle!$A12,IFERROR(NR_Berechnung!U41,1/0),"") ->  | BG41: =IF(HI_Hilfstabelle!$C12=HI_Hilfstabelle!$A12,IFERROR(NR_Berechnung!V41,1/0),"") ->  | BH41: =IF(HI_Hilfstabelle!$C12=HI_Hilfstabelle!$A12,IFERROR(NR_Berechnung!W41,1/0),"") ->  | BI41: =IF(HI_Hilfstabelle!$C12=HI_Hilfstabelle!$A12,IFERROR(NR_Berechnung!X41,1/0),"") ->  | BN41: =IF(BL41="","",HI_Hilfstabelle!H12) ->  | BS41: =IF(BL41="","",HI_Hilfstabelle!J12) -> 
A42: Finnland | C42: =IF(NR_Veränderung!C55="",1/0,NR_Veränderung!C55) -> 1.039674466 | D42: =IF(NR_Veränderung!D55="",1/0,NR_Veränderung!D55) -> 1.070872261 | E42: =IF(NR_Veränderung!E55="",1/0,NR_Veränderung!E55) -> 1.021682604 | F42: =IF(NR_Veränderung!F55="",1/0,NR_Veränderung!F55) -> 1.100224017 | G42: =IF(NR_Veränderung!G55="",1/0,NR_Veränderung!G55) -> 1.047012415 | H42: =IF(NR_Veränderung!H55="",1/0,NR_Veränderung!H55) -> 0.9938162155 | I42: =IF(NR_Veränderung!I55="",1/0,NR_Veränderung!I55) -> 1.006666206 | J42: =IF(NR_Veränderung!J55="",1/0,NR_Veränderung!J55) -> 1.025272688 | K42: =IF(NR_Veränderung!K55="",1/0,NR_Veränderung!K55) -> 1.043409 | L42: =IF(NR_Veränderung!L55="",1/0,NR_Veränderung!L55) -> 1.001528792 | M42: =IF(NR_Veränderung!M55="",1/0,NR_Veränderung!M55) -> 0.9895703015 | N42: =IF(NR_Veränderung!N55="",1/0,NR_Veränderung!N55) -> 0.9980802511 | O42: =IF(NR_Veränderung!O55="",1/0,NR_Veränderung!O55) -> 1.004938738 | P42: =IF(NR_Veränderung!P55="",1/0,NR_Veränderung!P55) -> 0.9240252782 | Q42: =IF(NR_Veränderung!Q55="",1/0,NR_Veränderung!Q55) -> 1.060919787 | R42: =IF(NR_Veränderung!R55="",1/0,NR_Veränderung!R55) -> 1.093444093 | S42: =IF(NR_Veränderung!S55="",1/0,NR_Veränderung!S55) -> 1.049707114 | T42: =IF(NR_Veränderung!T55="",1/0,NR_Veränderung!T55) -> 0.9530528667 | U42: =IF(NR_Veränderung!U55="",1/0,NR_Veränderung!U55) -> 0.9323354799 | V42: =IF(NR_Veränderung!V55="",1/0,NR_Veränderung!V55) -> 0.8608499693 | W42: =IF(NR_Veränderung!W55="",1/0,NR_Veränderung!W55) -> 0.997329542 | X42: =IF(NR_Veränderung!X55="",1/0,NR_Veränderung!X55) -> 1.00238481 | Y42: 0.9841576964 | Z42: 0.9815395273 | AA42: 0.9841576964 | AB42: 0.9815395273 | AC42: =IF(AA42="","",HI_Hilfstabelle!H13) -> 5525292 | AD42: 0.06175106621 | AE42: 0.06175106621 | AF42: 0.06077278707 | AG42: 0.06061111233 | AH42: =IF(AA42="","",HI_Hilfstabelle!J13) -> 111 | AI42: 0.1258503401 | AJ42: 0.1258503401 | AK42: 0.1238565808 | AL42: 0.1235270834 | AN42: =IF(HI_Hilfstabelle!$C13=HI_Hilfstabelle!$A13,IFERROR(NR_Berechnung!C42,1/0),"") -> 1.039674466 | AO42: =IF(HI_Hilfstabelle!$C13=HI_Hilfstabelle!$A13,IFERROR(NR_Berechnung!D42,1/0),"") -> 1.070872261 | AP42: =IF(HI_Hilfstabelle!$C13=HI_Hilfstabelle!$A13,IFERROR(NR_Berechnung!E42,1/0),"") -> 1.021682604 | AQ42: =IF(HI_Hilfstabelle!$C13=HI_Hilfstabelle!$A13,IFERROR(NR_Berechnung!F42,1/0),"") -> 1.100224017 | AR42: =IF(HI_Hilfstabelle!$C13=HI_Hilfstabelle!$A13,IFERROR(NR_Berechnung!G42,1/0),"") -> 1.047012415 | AS42: =IF(HI_Hilfstabelle!$C13=HI_Hilfstabelle!$A13,IFERROR(NR_Berechnung!H42,1/0),"") -> 0.9938162155 | AT42: =IF(HI_Hilfstabelle!$C13=HI_Hilfstabelle!$A13,IFERROR(NR_Berechnung!I42,1/0),"") -> 1.006666206 | AU42: =IF(HI_Hilfstabelle!$C13=HI_Hilfstabelle!$A13,IFERROR(NR_Berechnung!J42,1/0),"") -> 1.025272688 | AV42: =IF(HI_Hilfstabelle!$C13=HI_Hilfstabelle!$A13,IFERROR(NR_Berechnung!K42,1/0),"") -> 1.043409 | AW42: =IF(HI_Hilfstabelle!$C13=HI_Hilfstabelle!$A13,IFERROR(NR_Berechnung!L42,1/0),"") -> 1.001528792 | AX42: =IF(HI_Hilfstabelle!$C13=HI_Hilfstabelle!$A13,IFERROR(NR_Berechnung!M42,1/0),"") -> 0.9895703015 | AY42: =IF(HI_Hilfstabelle!$C13=HI_Hilfstabelle!$A13,IFERROR(NR_Berechnung!N42,1/0),"") -> 0.9980802511 | AZ42: =IF(HI_Hilfstabelle!$C13=HI_Hilfstabelle!$A13,IFERROR(NR_Berechnung!O42,1/0),"") -> 1.004938738 | BA42: =IF(HI_Hilfstabelle!$C13=HI_Hilfstabelle!$A13,IFERROR(NR_Berechnung!P42,1/0),"") -> 0.9240252782 | BB42: =IF(HI_Hilfstabelle!$C13=HI_Hilfstabelle!$A13,IFERROR(NR_Berechnung!Q42,1/0),"") -> 1.060919787 | BC42: =IF(HI_Hilfstabelle!$C13=HI_Hilfstabelle!$A13,IFERROR(NR_Berechnung!R42,1/0),"") -> 1.093444093 | BD42: =IF(HI_Hilfstabelle!$C13=HI_Hilfstabelle!$A13,IFERROR(NR_Berechnung!S42,1/0),"") -> 1.049707114 | BE42: =IF(HI_Hilfstabelle!$C13=HI_Hilfstabelle!$A13,IFERROR(NR_Berechnung!T42,1/0),"") -> 0.9530528667 | BF42: =IF(HI_Hilfstabelle!$C13=HI_Hilfstabelle!$A13,IFERROR(NR_Berechnung!U42,1/0),"") -> 0.9323354799 | BG42: =IF(HI_Hilfstabelle!$C13=HI_Hilfstabelle!$A13,IFERROR(NR_Berechnung!V42,1/0),"") -> 0.8608499693 | BH42: =IF(HI_Hilfstabelle!$C13=HI_Hilfstabelle!$A13,IFERROR(NR_Berechnung!W42,1/0),"") -> 0.997329542 | BI42: =IF(HI_Hilfstabelle!$C13=HI_Hilfstabelle!$A13,IFERROR(NR_Berechnung!X42,1/0),"") -> 1.00238481 | BJ42: 0.9841576964 | BK42: 0.9815395273 | BL42: 0.9841576964 | BM42: 0.9815395273 | BN42: =IF(BL42="","",HI_Hilfstabelle!H13) -> 5525292 | BO42: 0.06175106621 | BP42: 0.06175106621 | BQ42: 0.06077278707 | BR42: 0.06061111233 | BS42: =IF(BL42="","",HI_Hilfstabelle!J13) -> 111 | BT42: 0.1258503401 | BU42: 0.1258503401 | BV42: 0.1238565808 | BW42: 0.1235270834
A43: Ungarn | C43: =IF(NR_Veränderung!C56="",1/0,NR_Veränderung!C56) -> 0.914564341 | D43: =IF(NR_Veränderung!D56="",1/0,NR_Veränderung!D56) -> 0.9712292952 | E43: =IF(NR_Veränderung!E56="",1/0,NR_Veränderung!E56) -> 1.06877744 | F43: =IF(NR_Veränderung!F56="",1/0,NR_Veränderung!F56) -> 1.041890747 | G43: =IF(NR_Veränderung!G56="",1/0,NR_Veränderung!G56) -> 0.9508690624 | H43: =IF(NR_Veränderung!H56="",1/0,NR_Veränderung!H56) -> 1.478968267 | I43: =IF(NR_Veränderung!I56="",1/0,NR_Veränderung!I56) -> 1.275330077 | J43: =IF(NR_Veränderung!J56="",1/0,NR_Veränderung!J56) -> 0.9019050982 | K43: =IF(NR_Veränderung!K56="",1/0,NR_Veränderung!K56) -> 1.221022078 | L43: =IF(NR_Veränderung!L56="",1/0,NR_Veränderung!L56) -> 1.071877236 | M43: =IF(NR_Veränderung!M56="",1/0,NR_Veränderung!M56) -> 0.9889451899 | N43: =IF(NR_Veränderung!N56="",1/0,NR_Veränderung!N56) -> 1.07191239 | O43: =IF(NR_Veränderung!O56="",1/0,NR_Veränderung!O56) -> 1.131074726 | P43: =IF(NR_Veränderung!P56="",1/0,NR_Veränderung!P56) -> 0.8544864922 | Q43: =IF(NR_Veränderung!Q56="",1/0,NR_Veränderung!Q56) -> 0.9950563873 | R43: =IF(NR_Veränderung!R56="",1/0,NR_Veränderung!R56) -> 0.996597932 | S43: =IF(NR_Veränderung!S56="",1/0,NR_Veränderung!S56) -> 0.9773570171 | T43: =IF(NR_Veränderung!T56="",1/0,NR_Veränderung!T56) -> 1.053399147 | U43: =IF(NR_Veränderung!U56="",1/0,NR_Veränderung!U56) -> 1.062342892 | V43: =IF(NR_Veränderung!V56="",1/0,NR_Veränderung!V56) -> 1.042578572 | W43: =IF(NR_Veränderung!W56="",1/0,NR_Veränderung!W56) -> 0.9671164957 | X43: =IF(NR_Veränderung!X56="",1/0,NR_Veränderung!X56) -> 0.9489859665 | Y43: 1.006911146 | Z43: 1.006030579 | AA43: 1.006911146 | AB43: 1.006030579 | AC43: =IF(AA43="","",HI_Hilfstabelle!H14) -> 9769526 | AD43: 0.1091849348 | AE43: 0.1091849348 | AF43: 0.1099395279 | AG43: 0.1098433832 | AH43: =IF(AA43="","",HI_Hilfstabelle!J14) -> 73 | AI43: 0.08276643991 | AJ43: 0.08276643991 | AK43: 0.08333845087 | AL43: 0.08326556948 | AN43: =IF(HI_Hilfstabelle!$C14=HI_Hilfstabelle!$A14,IFERROR(NR_Berechnung!C43,1/0),"") -> 0.914564341 | AO43: =IF(HI_Hilfstabelle!$C14=HI_Hilfstabelle!$A14,IFERROR(NR_Berechnung!D43,1/0),"") -> 0.9712292952 | AP43: =IF(HI_Hilfstabelle!$C14=HI_Hilfstabelle!$A14,IFERROR(NR_Berechnung!E43,1/0),"") -> 1.06877744 | AQ43: =IF(HI_Hilfstabelle!$C14=HI_Hilfstabelle!$A14,IFERROR(NR_Berechnung!F43,1/0),"") -> 1.041890747 | AR43: =IF(HI_Hilfstabelle!$C14=HI_Hilfstabelle!$A14,IFERROR(NR_Berechnung!G43,1/0),"") -> 0.9508690624 | AS43: =IF(HI_Hilfstabelle!$C14=HI_Hilfstabelle!$A14,IFERROR(NR_Berechnung!H43,1/0),"") -> 1.478968267 | AT43: =IF(HI_Hilfstabelle!$C14=HI_Hilfstabelle!$A14,IFERROR(NR_Berechnung!I43,1/0),"") -> 1.275330077 | AU43: =IF(HI_Hilfstabelle!$C14=HI_Hilfstabelle!$A14,IFERROR(NR_Berechnung!J43,1/0),"") -> 0.9019050982 | AV43: =IF(HI_Hilfstabelle!$C14=HI_Hilfstabelle!$A14,IFERROR(NR_Berechnung!K43,1/0),"") -> 1.221022078 | AW43: =IF(HI_Hilfstabelle!$C14=HI_Hilfstabelle!$A14,IFERROR(NR_Berechnung!L43,1/0),"") -> 1.071877236 | AX43: =IF(HI_Hilfstabelle!$C14=HI_Hilfstabelle!$A14,IFERROR(NR_Berechnung!M43,1/0),"") -> 0.9889451899 | AY43: =IF(HI_Hilfstabelle!$C14=HI_Hilfstabelle!$A14,IFERROR(NR_Berechnung!N43,1/0),"") -> 1.07191239 | AZ43: =IF(HI_Hilfstabelle!$C14=HI_Hilfstabelle!$A14,IFERROR(NR_Berechnung!O43,1/0),"") -> 1.131074726 | BA43: =IF(HI_Hilfstabelle!$C14=HI_Hilfstabelle!$A14,IFERROR(NR_Berechnung!P43,1/0),"") -> 0.8544864922 | BB43: =IF(HI_Hilfstabelle!$C14=HI_Hilfstabelle!$A14,IFERROR(NR_Berechnung!Q43,1/0),"") -> 0.9950563873 | BC43: =IF(HI_Hilfstabelle!$C14=HI_Hilfstabelle!$A14,IFERROR(NR_Berechnung!R43,1/0),"") -> 0.996597932 | BD43: =IF(HI_Hilfstabelle!$C14=HI_Hilfstabelle!$A14,IFERROR(NR_Berechnung!S43,1/0),"") -> 0.9773570171 | BE43: =IF(HI_Hilfstabelle!$C14=HI_Hilfstabelle!$A14,IFERROR(NR_Berechnung!T43,1/0),"") -> 1.053399147 | BF43: =IF(HI_Hilfstabelle!$C14=HI_Hilfstabelle!$A14,IFERROR(NR_Berechnung!U43,1/0),"") -> 1.062342892 | BG43: =IF(HI_Hilfstabelle!$C14=HI_Hilfstabelle!$A14,IFERROR(NR_Berechnung!V43,1/0),"") -> 1.042578572 | BH43: =IF(HI_Hilfstabelle!$C14=HI_Hilfstabelle!$A14,IFERROR(NR_Berechnung!W43,1/0),"") -> 0.9671164957 | BI43: =IF(HI_Hilfstabelle!$C14=HI_Hilfstabelle!$A14,IFERROR(NR_Berechnung!X43,1/0),"") -> 0.9489859665 | BJ43: 1.006911146 | BK43: 1.006030579 | BL43: 1.006911146 | BM43: 1.006030579 | BN43: =IF(BL43="","",HI_Hilfstabelle!H14) -> 9769526 | BO43: 0.1091849348 | BP43: 0.1091849348 | BQ43: 0.1099395279 | BR43: 0.1098433832 | BS43: =IF(BL43="","",HI_Hilfstabelle!J14) -> 73 | BT43: 0.08276643991 | BU43: 0.08276643991 | BV43: 0.08333845087 | BW43: 0.08326556948
A44: Irland | C44: =IF(NR_Veränderung!C57="",1/0,NR_Veränderung!C57) ->  | D44: =IF(NR_Veränderung!D57="",1/0,NR_Veränderung!D57) ->  | E44: =IF(NR_Veränderung!E57="",1/0,NR_Veränderung!E57) ->  | F44: =IF(NR_Veränderung!F57="",1/0,NR_Veränderung!F57) ->  | G44: =IF(NR_Veränderung!G57="",1/0,NR_Veränderung!G57) ->  | H44: =IF(NR_Veränderung!H57="",1/0,NR_Veränderung!H57) ->  | I44: =IF(NR_Veränderung!I57="",1/0,NR_Veränderung!I57) ->  | J44: =IF(NR_Veränderung!J57="",1/0,NR_Veränderung!J57) ->  | K44: =IF(NR_Veränderung!K57="",1/0,NR_Veränderung!K57) ->  | L44: =IF(NR_Veränderung!L57="",1/0,NR_Veränderung!L57) ->  | M44: =IF(NR_Veränderung!M57="",1/0,NR_Veränderung!M57) ->  | N44: =IF(NR_Veränderung!N57="",1/0,NR_Veränderung!N57) ->  | O44: =IF(NR_Veränderung!O57="",1/0,NR_Veränderung!O57) ->  | P44: =IF(NR_Veränderung!P57="",1/0,NR_Veränderung!P57) ->  | Q44: =IF(NR_Veränderung!Q57="",1/0,NR_Veränderung!Q57) ->  | R44: =IF(NR_Veränderung!R57="",1/0,NR_Veränderung!R57) ->  | S44: =IF(NR_Veränderung!S57="",1/0,NR_Veränderung!S57) ->  | T44: =IF(NR_Veränderung!T57="",1/0,NR_Veränderung!T57) ->  | U44: =IF(NR_Veränderung!U57="",1/0,NR_Veränderung!U57) ->  | V44: =IF(NR_Veränderung!V57="",1/0,NR_Veränderung!V57) ->  | W44: =IF(NR_Veränderung!W57="",1/0,NR_Veränderung!W57) ->  | X44: =IF(NR_Veränderung!X57="",1/0,NR_Veränderung!X57) ->  | AC44: =IF(AA44="","",HI_Hilfstabelle!H15) ->  | AH44: =IF(AA44="","",HI_Hilfstabelle!J15) ->  | AN44: =IF(HI_Hilfstabelle!$C15=HI_Hilfstabelle!$A15,IFERROR(NR_Berechnung!C44,1/0),"") ->  | AO44: =IF(HI_Hilfstabelle!$C15=HI_Hilfstabelle!$A15,IFERROR(NR_Berechnung!D44,1/0),"") ->  | AP44: =IF(HI_Hilfstabelle!$C15=HI_Hilfstabelle!$A15,IFERROR(NR_Berechnung!E44,1/0),"") ->  | AQ44: =IF(HI_Hilfstabelle!$C15=HI_Hilfstabelle!$A15,IFERROR(NR_Berechnung!F44,1/0),"") ->  | AR44: =IF(HI_Hilfstabelle!$C15=HI_Hilfstabelle!$A15,IFERROR(NR_Berechnung!G44,1/0),"") ->  | AS44: =IF(HI_Hilfstabelle!$C15=HI_Hilfstabelle!$A15,IFERROR(NR_Berechnung!H44,1/0),"") ->  | AT44: =IF(HI_Hilfstabelle!$C15=HI_Hilfstabelle!$A15,IFERROR(NR_Berechnung!I44,1/0),"") ->  | AU44: =IF(HI_Hilfstabelle!$C15=HI_Hilfstabelle!$A15,IFERROR(NR_Berechnung!J44,1/0),"") ->  | AV44: =IF(HI_Hilfstabelle!$C15=HI_Hilfstabelle!$A15,IFERROR(NR_Berechnung!K44,1/0),"") ->  | AW44: =IF(HI_Hilfstabelle!$C15=HI_Hilfstabelle!$A15,IFERROR(NR_Berechnung!L44,1/0),"") ->  | AX44: =IF(HI_Hilfstabelle!$C15=HI_Hilfstabelle!$A15,IFERROR(NR_Berechnung!M44,1/0),"") ->  | AY44: =IF(HI_Hilfstabelle!$C15=HI_Hilfstabelle!$A15,IFERROR(NR_Berechnung!N44,1/0),"") ->  | AZ44: =IF(HI_Hilfstabelle!$C15=HI_Hilfstabelle!$A15,IFERROR(NR_Berechnung!O44,1/0),"") ->  | BA44: =IF(HI_Hilfstabelle!$C15=HI_Hilfstabelle!$A15,IFERROR(NR_Berechnung!P44,1/0),"") ->  | BB44: =IF(HI_Hilfstabelle!$C15=HI_Hilfstabelle!$A15,IFERROR(NR_Berechnung!Q44,1/0),"") ->  | BC44: =IF(HI_Hilfstabelle!$C15=HI_Hilfstabelle!$A15,IFERROR(NR_Berechnung!R44,1/0),"") ->  | BD44: =IF(HI_Hilfstabelle!$C15=HI_Hilfstabelle!$A15,IFERROR(NR_Berechnung!S44,1/0),"") ->  | BE44: =IF(HI_Hilfstabelle!$C15=HI_Hilfstabelle!$A15,IFERROR(NR_Berechnung!T44,1/0),"") ->  | BF44: =IF(HI_Hilfstabelle!$C15=HI_Hilfstabelle!$A15,IFERROR(NR_Berechnung!U44,1/0),"") ->  | BG44: =IF(HI_Hilfstabelle!$C15=HI_Hilfstabelle!$A15,IFERROR(NR_Berechnung!V44,1/0),"") ->  | BH44: =IF(HI_Hilfstabelle!$C15=HI_Hilfstabelle!$A15,IFERROR(NR_Berechnung!W44,1/0),"") ->  | BI44: =IF(HI_Hilfstabelle!$C15=HI_Hilfstabelle!$A15,IFERROR(NR_Berechnung!X44,1/0),"") ->  | BN44: =IF(BL44="","",HI_Hilfstabelle!H15) ->  | BS44: =IF(BL44="","",HI_Hilfstabelle!J15) -> 
A45: Niederlande | C45: =IF(NR_Veränderung!C58="",1/0,NR_Veränderung!C58) -> 1.049100771 | D45: =IF(NR_Veränderung!D58="",1/0,NR_Veränderung!D58) -> 1.009348291 | E45: =IF(NR_Veränderung!E58="",1/0,NR_Veränderung!E58) -> 1.039347429 | F45: =IF(NR_Veränderung!F58="",1/0,NR_Veränderung!F58) -> 0.999384857 | G45: =IF(NR_Veränderung!G58="",1/0,NR_Veränderung!G58) -> 1.013085727 | H45: =IF(NR_Veränderung!H58="",1/0,NR_Veränderung!H58) -> 1.010820536 | I45: =IF(NR_Veränderung!I58="",1/0,NR_Veränderung!I58) -> 1.038257408 | J45: =IF(NR_Veränderung!J58="",1/0,NR_Veränderung!J58) -> 1.038334545 | K45: =IF(NR_Veränderung!K58="",1/0,NR_Veränderung!K58) -> 1.098938179 | L45: =IF(NR_Veränderung!L58="",1/0,NR_Veränderung!L58) -> 1.009421156 | M45: =IF(NR_Veränderung!M58="",1/0,NR_Veränderung!M58) -> 1.020280516 | N45: =IF(NR_Veränderung!N58="",1/0,NR_Veränderung!N58) -> 1.015395841 | O45: =IF(NR_Veränderung!O58="",1/0,NR_Veränderung!O58) -> 0.9837283339 | P45: =IF(NR_Veränderung!P58="",1/0,NR_Veränderung!P58) -> 0.940345058 | Q45: =IF(NR_Veränderung!Q58="",1/0,NR_Veränderung!Q58) -> 0.9709254311 | R45: =IF(NR_Veränderung!R58="",1/0,NR_Veränderung!R58) -> 0.9803807304 | S45: =IF(NR_Veränderung!S58="",1/0,NR_Veränderung!S58) -> 0.9479845025 | T45: =IF(NR_Veränderung!T58="",1/0,NR_Veränderung!T58) -> 0.9526661515 | U45: =IF(NR_Veränderung!U58="",1/0,NR_Veränderung!U58) -> 1.053357853 | V45: =IF(NR_Veränderung!V58="",1/0,NR_Veränderung!V58) -> 0.9949747611 | W45: =IF(NR_Veränderung!W58="",1/0,NR_Veränderung!W58) -> 1.069380831 | X45: =IF(NR_Veränderung!X58="",1/0,NR_Veränderung!X58) -> 1.044856706 | Y45: 1.006228791 | Z45: 1.005182314 | AA45: 1.006228791 | AB45: 1.005182314 | AC45: =IF(AA45="","",HI_Hilfstabelle!H16) -> 17407585 | AD45: 0.194548439 | AE45: 0.194548439 | AF45: 0.1957602406 | AG45: 0.1955566501 | AH45: =IF(AA45="","",HI_Hilfstabelle!J16) -> 128 | AI45: 0.1451247166 | AJ45: 0.1451247166 | AK45: 0.146028668 | AL45: 0.1458767984 | AN45: =IF(HI_Hilfstabelle!$C16=HI_Hilfstabelle!$A16,IFERROR(NR_Berechnung!C45,1/0),"") -> 1.049100771 | AO45: =IF(HI_Hilfstabelle!$C16=HI_Hilfstabelle!$A16,IFERROR(NR_Berechnung!D45,1/0),"") -> 1.009348291 | AP45: =IF(HI_Hilfstabelle!$C16=HI_Hilfstabelle!$A16,IFERROR(NR_Berechnung!E45,1/0),"") -> 1.039347429 | AQ45: =IF(HI_Hilfstabelle!$C16=HI_Hilfstabelle!$A16,IFERROR(NR_Berechnung!F45,1/0),"") -> 0.999384857 | AR45: =IF(HI_Hilfstabelle!$C16=HI_Hilfstabelle!$A16,IFERROR(NR_Berechnung!G45,1/0),"") -> 1.013085727 | AS45: =IF(HI_Hilfstabelle!$C16=HI_Hilfstabelle!$A16,IFERROR(NR_Berechnung!H45,1/0),"") -> 1.010820536 | AT45: =IF(HI_Hilfstabelle!$C16=HI_Hilfstabelle!$A16,IFERROR(NR_Berechnung!I45,1/0),"") -> 1.038257408 | AU45: =IF(HI_Hilfstabelle!$C16=HI_Hilfstabelle!$A16,IFERROR(NR_Berechnung!J45,1/0),"") -> 1.038334545 | AV45: =IF(HI_Hilfstabelle!$C16=HI_Hilfstabelle!$A16,IFERROR(NR_Berechnung!K45,1/0),"") -> 1.098938179 | AW45: =IF(HI_Hilfstabelle!$C16=HI_Hilfstabelle!$A16,IFERROR(NR_Berechnung!L45,1/0),"") -> 1.009421156 | AX45: =IF(HI_Hilfstabelle!$C16=HI_Hilfstabelle!$A16,IFERROR(NR_Berechnung!M45,1/0),"") -> 1.020280516 | AY45: =IF(HI_Hilfstabelle!$C16=HI_Hilfstabelle!$A16,IFERROR(NR_Berechnung!N45,1/0),"") -> 1.015395841 | AZ45: =IF(HI_Hilfstabelle!$C16=HI_Hilfstabelle!$A16,IFERROR(NR_Berechnung!O45,1/0),"") -> 0.9837283339 | BA45: =IF(HI_Hilfstabelle!$C16=HI_Hilfstabelle!$A16,IFERROR(NR_Berechnung!P45,1/0),"") -> 0.940345058 | BB45: =IF(HI_Hilfstabelle!$C16=HI_Hilfstabelle!$A16,IFERROR(NR_Berechnung!Q45,1/0),"") -> 0.9709254311 | BC45: =IF(HI_Hilfstabelle!$C16=HI_Hilfstabelle!$A16,IFERROR(NR_Berechnung!R45,1/0),"") -> 0.9803807304 | BD45: =IF(HI_Hilfstabelle!$C16=HI_Hilfstabelle!$A16,IFERROR(NR_Berechnung!S45,1/0),"") -> 0.9479845025 | BE45: =IF(HI_Hilfstabelle!$C16=HI_Hilfstabelle!$A16,IFERROR(NR_Berechnung!T45,1/0),"") -> 0.9526661515 | BF45: =IF(HI_Hilfstabelle!$C16=HI_Hilfstabelle!$A16,IFERROR(NR_Berechnung!U45,1/0),"") -> 1.053357853 | BG45: =IF(HI_Hilfstabelle!$C16=HI_Hilfstabelle!$A16,IFERROR(NR_Berechnung!V45,1/0),"") -> 0.9949747611 | BH45: =IF(HI_Hilfstabelle!$C16=HI_Hilfstabelle!$A16,IFERROR(NR_Berechnung!W45,1/0),"") -> 1.069380831 | BI45: =IF(HI_Hilfstabelle!$C16=HI_Hilfstabelle!$A16,IFERROR(NR_Berechnung!X45,1/0),"") -> 1.044856706 | BJ45: 1.006228791 | BK45: 1.005182314 | BL45: 1.006228791 | BM45: 1.005182314 | BN45: =IF(BL45="","",HI_Hilfstabelle!H16) -> 17407585 | BO45: 0.194548439 | BP45: 0.194548439 | BQ45: 0.1957602406 | BR45: 0.1955566501 | BS45: =IF(BL45="","",HI_Hilfstabelle!J16) -> 128 | BT45: 0.1451247166 | BU45: 0.1451247166 | BV45: 0.146028668 | BW45: 0.1458767984
A46: Portugal | C46: =IF(NR_Veränderung!C59="",1/0,NR_Veränderung!C59) -> 1.063698414 | D46: =IF(NR_Veränderung!D59="",1/0,NR_Veränderung!D59) -> 1.041192738 | E46: =IF(NR_Veränderung!E59="",1/0,NR_Veränderung!E59) -> 1.042828782 | F46: =IF(NR_Veränderung!F59="",1/0,NR_Veränderung!F59) -> 1.023886115 | G46: =IF(NR_Veränderung!G59="",1/0,NR_Veränderung!G59) -> 1.065887239 | H46: =IF(NR_Veränderung!H59="",1/0,NR_Veränderung!H59) -> 0.9887400998 | I46: =IF(NR_Veränderung!I59="",1/0,NR_Veränderung!I59) -> 1.004140775 | J46: =IF(NR_Veränderung!J59="",1/0,NR_Veränderung!J59) -> 0.9962964612 | K46: =IF(NR_Veränderung!K59="",1/0,NR_Veränderung!K59) -> 1.038472758 | L46: =IF(NR_Veränderung!L59="",1/0,NR_Veränderung!L59) -> 1.034273801 | M46: =IF(NR_Veränderung!M59="",1/0,NR_Veränderung!M59) -> 1.016632286 | N46: =IF(NR_Veränderung!N59="",1/0,NR_Veränderung!N59) -> 1.079490855 | O46: =IF(NR_Veränderung!O59="",1/0,NR_Veränderung!O59) -> 1.011674795 | P46: =IF(NR_Veränderung!P59="",1/0,NR_Veränderung!P59) -> 0.9664626423 | Q46: =IF(NR_Veränderung!Q59="",1/0,NR_Veränderung!Q59) -> 1.036010105 | R46: =IF(NR_Veränderung!R59="",1/0,NR_Veränderung!R59) -> 0.9873376614 | S46: =IF(NR_Veränderung!S59="",1/0,NR_Veränderung!S59) -> 0.975514213 | T46: =IF(NR_Veränderung!T59="",1/0,NR_Veränderung!T59) -> 1.038747103 | U46: =IF(NR_Veränderung!U59="",1/0,NR_Veränderung!U59) -> 1.03362498 | V46: =IF(NR_Veränderung!V59="",1/0,NR_Veränderung!V59) -> 0.9700425549 | W46: =IF(NR_Veränderung!W59="",1/0,NR_Veränderung!W59) -> 0.9469801441 | X46: =IF(NR_Veränderung!X59="",1/0,NR_Veränderung!X59) ->  | AC46: =IF(AA46="","",HI_Hilfstabelle!H17) ->  | AH46: =IF(AA46="","",HI_Hilfstabelle!J17) ->  | AN46: =IF(HI_Hilfstabelle!$C17=HI_Hilfstabelle!$A17,IFERROR(NR_Berechnung!C46,1/0),"") -> 1.063698414 | AO46: =IF(HI_Hilfstabelle!$C17=HI_Hilfstabelle!$A17,IFERROR(NR_Berechnung!D46,1/0),"") -> 1.041192738 | AP46: =IF(HI_Hilfstabelle!$C17=HI_Hilfstabelle!$A17,IFERROR(NR_Berechnung!E46,1/0),"") -> 1.042828782 | AQ46: =IF(HI_Hilfstabelle!$C17=HI_Hilfstabelle!$A17,IFERROR(NR_Berechnung!F46,1/0),"") -> 1.023886115 | AR46: =IF(HI_Hilfstabelle!$C17=HI_Hilfstabelle!$A17,IFERROR(NR_Berechnung!G46,1/0),"") -> 1.065887239 | AS46: =IF(HI_Hilfstabelle!$C17=HI_Hilfstabelle!$A17,IFERROR(NR_Berechnung!H46,1/0),"") -> 0.9887400998 | AT46: =IF(HI_Hilfstabelle!$C17=HI_Hilfstabelle!$A17,IFERROR(NR_Berechnung!I46,1/0),"") -> 1.004140775 | AU46: =IF(HI_Hilfstabelle!$C17=HI_Hilfstabelle!$A17,IFERROR(NR_Berechnung!J46,1/0),"") -> 0.9962964612 | AV46: =IF(HI_Hilfstabelle!$C17=HI_Hilfstabelle!$A17,IFERROR(NR_Berechnung!K46,1/0),"") -> 1.038472758 | AW46: =IF(HI_Hilfstabelle!$C17=HI_Hilfstabelle!$A17,IFERROR(NR_Berechnung!L46,1/0),"") -> 1.034273801 | AX46: =IF(HI_Hilfstabelle!$C17=HI_Hilfstabelle!$A17,IFERROR(NR_Berechnung!M46,1/0),"") -> 1.016632286 | AY46: =IF(HI_Hilfstabelle!$C17=HI_Hilfstabelle!$A17,IFERROR(NR_Berechnung!N46,1/0),"") -> 1.079490855 | AZ46: =IF(HI_Hilfstabelle!$C17=HI_Hilfstabelle!$A17,IFERROR(NR_Berechnung!O46,1/0),"") -> 1.011674795 | BA46: =IF(HI_Hilfstabelle!$C17=HI_Hilfstabelle!$A17,IFERROR(NR_Berechnung!P46,1/0),"") -> 0.9664626423 | BB46: =IF(HI_Hilfstabelle!$C17=HI_Hilfstabelle!$A17,IFERROR(NR_Berechnung!Q46,1/0),"") -> 1.036010105 | BC46: =IF(HI_Hilfstabelle!$C17=HI_Hilfstabelle!$A17,IFERROR(NR_Berechnung!R46,1/0),"") -> 0.9873376614 | BD46: =IF(HI_Hilfstabelle!$C17=HI_Hilfstabelle!$A17,IFERROR(NR_Berechnung!S46,1/0),"") -> 0.975514213 | BE46: =IF(HI_Hilfstabelle!$C17=HI_Hilfstabelle!$A17,IFERROR(NR_Berechnung!T46,1/0),"") -> 1.038747103 | BF46: =IF(HI_Hilfstabelle!$C17=HI_Hilfstabelle!$A17,IFERROR(NR_Berechnung!U46,1/0),"") -> 1.03362498 | BG46: =IF(HI_Hilfstabelle!$C17=HI_Hilfstabelle!$A17,IFERROR(NR_Berechnung!V46,1/0),"") -> 0.9700425549 | BH46: =IF(HI_Hilfstabelle!$C17=HI_Hilfstabelle!$A17,IFERROR(NR_Berechnung!W46,1/0),"") -> 0.9469801441 | BI46: =IF(HI_Hilfstabelle!$C17=HI_Hilfstabelle!$A17,IFERROR(NR_Berechnung!X46,1/0),"") ->  | BN46: =IF(BL46="","",HI_Hilfstabelle!H17) ->  | BS46: =IF(BL46="","",HI_Hilfstabelle!J17) -> 
A47: Rumänien | C47: =IF(NR_Veränderung!C60="",1/0,NR_Veränderung!C60) -> 1.277172875 | D47: =IF(NR_Veränderung!D60="",1/0,NR_Veränderung!D60) -> 1.052830189 | E47: =IF(NR_Veränderung!E60="",1/0,NR_Veränderung!E60) -> 1.026443188 | F47: =IF(NR_Veränderung!F60="",1/0,NR_Veränderung!F60) -> 1.039518493 | G47: =IF(NR_Veränderung!G60="",1/0,NR_Veränderung!G60) -> 0.9218785469 | H47: =IF(NR_Veränderung!H60="",1/0,NR_Veränderung!H60) -> 1.085293555 | I47: =IF(NR_Veränderung!I60="",1/0,NR_Veränderung!I60) -> 0.9857237765 | J47: =IF(NR_Veränderung!J60="",1/0,NR_Veränderung!J60) -> 1.000659796 | K47: =IF(NR_Veränderung!K60="",1/0,NR_Veränderung!K60) -> 1.019819479 | L47: =IF(NR_Veränderung!L60="",1/0,NR_Veränderung!L60) -> 1.055242506 | M47: =IF(NR_Veränderung!M60="",1/0,NR_Veränderung!M60) -> 1.003798161 | N47: =IF(NR_Veränderung!N60="",1/0,NR_Veränderung!N60) -> 0.9781652448 | O47: =IF(NR_Veränderung!O60="",1/0,NR_Veränderung!O60) -> 1.271077395 | P47: =IF(NR_Veränderung!P60="",1/0,NR_Veränderung!P60) -> 0.8515253971 | Q47: =IF(NR_Veränderung!Q60="",1/0,NR_Veränderung!Q60) -> 0.7327483851 | R47: =IF(NR_Veränderung!R60="",1/0,NR_Veränderung!R60) -> 1.020074969 | S47: =IF(NR_Veränderung!S60="",1/0,NR_Veränderung!S60) -> 1.042898396 | T47: =IF(NR_Veränderung!T60="",1/0,NR_Veränderung!T60) -> 1.063614542 | U47: =IF(NR_Veränderung!U60="",1/0,NR_Veränderung!U60) -> 1.205181837 | V47: =IF(NR_Veränderung!V60="",1/0,NR_Veränderung!V60) -> 0.9413939632 | W47: =IF(NR_Veränderung!W60="",1/0,NR_Veränderung!W60) -> 1.379099052 | X47: =IF(NR_Veränderung!X60="",1/0,NR_Veränderung!X60) -> 0.8695217893 | Y47: 1.07454065 | Z47: 1.063568503 | AA47: 1.07454065 | AB47: 1.063568503 | AC47: =IF(AA47="","",HI_Hilfstabelle!H18) -> 19317984 | AD47: 0.2158991975 | AE47: 0.2158991975 | AF47: 0.231992464 | AG47: =IFERROR(AE47*AB47,"") -> 0.2296235864 | AH47: =IF(AA47="","",HI_Hilfstabelle!J18) -> 70 | AI47: 0.07936507937 | AJ47: 0.07936507937 | AK47: 0.08528100396 | AL47: 0.08441019868 | AN47: =IF(HI_Hilfstabelle!$C18=HI_Hilfstabelle!$A18,IFERROR(NR_Berechnung!C47,1/0),"") -> 1.277172875 | AO47: =IF(HI_Hilfstabelle!$C18=HI_Hilfstabelle!$A18,IFERROR(NR_Berechnung!D47,1/0),"") -> 1.052830189 | AP47: =IF(HI_Hilfstabelle!$C18=HI_Hilfstabelle!$A18,IFERROR(NR_Berechnung!E47,1/0),"") -> 1.026443188 | AQ47: =IF(HI_Hilfstabelle!$C18=HI_Hilfstabelle!$A18,IFERROR(NR_Berechnung!F47,1/0),"") -> 1.039518493 | AR47: =IF(HI_Hilfstabelle!$C18=HI_Hilfstabelle!$A18,IFERROR(NR_Berechnung!G47,1/0),"") -> 0.9218785469 | AS47: =IF(HI_Hilfstabelle!$C18=HI_Hilfstabelle!$A18,IFERROR(NR_Berechnung!H47,1/0),"") -> 1.085293555 | AT47: =IF(HI_Hilfstabelle!$C18=HI_Hilfstabelle!$A18,IFERROR(NR_Berechnung!I47,1/0),"") -> 0.9857237765 | AU47: =IF(HI_Hilfstabelle!$C18=HI_Hilfstabelle!$A18,IFERROR(NR_Berechnung!J47,1/0),"") -> 1.000659796 | AV47: =IF(HI_Hilfstabelle!$C18=HI_Hilfstabelle!$A18,IFERROR(NR_Berechnung!K47,1/0),"") -> 1.019819479 | AW47: =IF(HI_Hilfstabelle!$C18=HI_Hilfstabelle!$A18,IFERROR(NR_Berechnung!L47,1/0),"") -> 1.055242506 | AX47: =IF(HI_Hilfstabelle!$C18=HI_Hilfstabelle!$A18,IFERROR(NR_Berechnung!M47,1/0),"") -> 1.003798161 | AY47: =IF(HI_Hilfstabelle!$C18=HI_Hilfstabelle!$A18,IFERROR(NR_Berechnung!N47,1/0),"") -> 0.9781652448 | AZ47: =IF(HI_Hilfstabelle!$C18=HI_Hilfstabelle!$A18,IFERROR(NR_Berechnung!O47,1/0),"") -> 1.271077395 | BA47: =IF(HI_Hilfstabelle!$C18=HI_Hilfstabelle!$A18,IFERROR(NR_Berechnung!P47,1/0),"") -> 0.8515253971 | BB47: =IF(HI_Hilfstabelle!$C18=HI_Hilfstabelle!$A18,IFERROR(NR_Berechnung!Q47,1/0),"") -> 0.7327483851 | BC47: =IF(HI_Hilfstabelle!$C18=HI_Hilfstabelle!$A18,IFERROR(NR_Berechnung!R47,1/0),"") -> 1.020074969 | BD47: =IF(HI_Hilfstabelle!$C18=HI_Hilfstabelle!$A18,IFERROR(NR_Berechnung!S47,1/0),"") -> 1.042898396 | BE47: =IF(HI_Hilfstabelle!$C18=HI_Hilfstabelle!$A18,IFERROR(NR_Berechnung!T47,1/0),"") -> 1.063614542 | BF47: =IF(HI_Hilfstabelle!$C18=HI_Hilfstabelle!$A18,IFERROR(NR_Berechnung!U47,1/0),"") -> 1.205181837 | BG47: =IF(HI_Hilfstabelle!$C18=HI_Hilfstabelle!$A18,IFERROR(NR_Berechnung!V47,1/0),"") -> 0.9413939632 | BH47: =IF(HI_Hilfstabelle!$C18=HI_Hilfstabelle!$A18,IFERROR(NR_Berechnung!W47,1/0),"") -> 1.379099052 | BI47: =IF(HI_Hilfstabelle!$C18=HI_Hilfstabelle!$A18,IFERROR(NR_Berechnung!X47,1/0),"") -> 0.8695217893 | BJ47: 1.07454065 | BK47: 1.063568503 | BL47: 1.07454065 | BM47: 1.063568503 | BN47: =IF(BL47="","",HI_Hilfstabelle!H18) -> 19317984 | BO47: 0.2158991975 | BP47: 0.2158991975 | BQ47: 0.231992464 | BR47: 0.2296235864 | BS47: =IF(BL47="","",HI_Hilfstabelle!J18) -> 70 | BT47: 0.07936507937 | BU47: 0.07936507937 | BV47: 0.08528100396 | BW47: 0.08441019868
A48: Slowenien | C48: =IF(NR_Veränderung!C61="",1/0,NR_Veränderung!C61) ->  | D48: =IF(NR_Veränderung!D61="",1/0,NR_Veränderung!D61) ->  | E48: =IF(NR_Veränderung!E61="",1/0,NR_Veränderung!E61) ->  | F48: =IF(NR_Veränderung!F61="",1/0,NR_Veränderung!F61) ->  | G48: =IF(NR_Veränderung!G61="",1/0,NR_Veränderung!G61) ->  | H48: =IF(NR_Veränderung!H61="",1/0,NR_Veränderung!H61) -> 0.869184145 | I48: =IF(NR_Veränderung!I61="",1/0,NR_Veränderung!I61) -> 1.035490941 | J48: =IF(NR_Veränderung!J61="",1/0,NR_Veränderung!J61) -> 1.009734176 | K48: =IF(NR_Veränderung!K61="",1/0,NR_Veränderung!K61) -> 0.9913700686 | L48: =IF(NR_Veränderung!L61="",1/0,NR_Veränderung!L61) -> 0.9668878758 | M48: =IF(NR_Veränderung!M61="",1/0,NR_Veränderung!M61) -> 1.068648741 | N48: =IF(NR_Veränderung!N61="",1/0,NR_Veränderung!N61) -> 0.995712619 | O48: =IF(NR_Veränderung!O61="",1/0,NR_Veränderung!O61) -> 1.077666569 | P48: =IF(NR_Veränderung!P61="",1/0,NR_Veränderung!P61) -> 0.9507883848 | Q48: =IF(NR_Veränderung!Q61="",1/0,NR_Veränderung!Q61) -> 1.044725273 | R48: =IF(NR_Veränderung!R61="",1/0,NR_Veränderung!R61) -> 1.072646617 | S48: =IF(NR_Veränderung!S61="",1/0,NR_Veränderung!S61) -> 0.9637367736 | T48: =IF(NR_Veränderung!T61="",1/0,NR_Veränderung!T61) -> 0.9676415471 | U48: =IF(NR_Veränderung!U61="",1/0,NR_Veränderung!U61) -> 1.054014918 | V48: =IF(NR_Veränderung!V61="",1/0,NR_Veränderung!V61) -> 1.012384751 | W48: =IF(NR_Veränderung!W61="",1/0,NR_Veränderung!W61) -> 1.061227117 | X48: =IF(NR_Veränderung!X61="",1/0,NR_Veränderung!X61) ->  | AC48: =IF(AA48="","",HI_Hilfstabelle!H19) ->  | AH48: =IF(AA48="","",HI_Hilfstabelle!J19) ->  | AN48: =IF(HI_Hilfstabelle!$C19=HI_Hilfstabelle!$A19,IFERROR(NR_Berechnung!C48,1/0),"") ->  | AO48: =IF(HI_Hilfstabelle!$C19=HI_Hilfstabelle!$A19,IFERROR(NR_Berechnung!D48,1/0),"") ->  | AP48: =IF(HI_Hilfstabelle!$C19=HI_Hilfstabelle!$A19,IFERROR(NR_Berechnung!E48,1/0),"") ->  | AQ48: =IF(HI_Hilfstabelle!$C19=HI_Hilfstabelle!$A19,IFERROR(NR_Berechnung!F48,1/0),"") ->  | AR48: =IF(HI_Hilfstabelle!$C19=HI_Hilfstabelle!$A19,IFERROR(NR_Berechnung!G48,1/0),"") ->  | AS48: =IF(HI_Hilfstabelle!$C19=HI_Hilfstabelle!$A19,IFERROR(NR_Berechnung!H48,1/0),"") -> 0.869184145 | AT48: =IF(HI_Hilfstabelle!$C19=HI_Hilfstabelle!$A19,IFERROR(NR_Berechnung!I48,1/0),"") -> 1.035490941 | AU48: =IF(HI_Hilfstabelle!$C19=HI_Hilfstabelle!$A19,IFERROR(NR_Berechnung!J48,1/0),"") -> 1.009734176 | AV48: =IF(HI_Hilfstabelle!$C19=HI_Hilfstabelle!$A19,IFERROR(NR_Berechnung!K48,1/0),"") -> 0.9913700686 | AW48: =IF(HI_Hilfstabelle!$C19=HI_Hilfstabelle!$A19,IFERROR(NR_Berechnung!L48,1/0),"") -> 0.9668878758 | AX48: =IF(HI_Hilfstabelle!$C19=HI_Hilfstabelle!$A19,IFERROR(NR_Berechnung!M48,1/0),"") -> 1.068648741 | AY48: =IF(HI_Hilfstabelle!$C19=HI_Hilfstabelle!$A19,IFERROR(NR_Berechnung!N48,1/0),"") -> 0.995712619 | AZ48: =IF(HI_Hilfstabelle!$C19=HI_Hilfstabelle!$A19,IFERROR(NR_Berechnung!O48,1/0),"") -> 1.077666569 | BA48: =IF(HI_Hilfstabelle!$C19=HI_Hilfstabelle!$A19,IFERROR(NR_Berechnung!P48,1/0),"") -> 0.9507883848 | BB48: =IF(HI_Hilfstabelle!$C19=HI_Hilfstabelle!$A19,IFERROR(NR_Berechnung!Q48,1/0),"") -> 1.044725273 | BC48: =IF(HI_Hilfstabelle!$C19=HI_Hilfstabelle!$A19,IFERROR(NR_Berechnung!R48,1/0),"") -> 1.072646617 | BD48: =IF(HI_Hilfstabelle!$C19=HI_Hilfstabelle!$A19,IFERROR(NR_Berechnung!S48,1/0),"") -> 0.9637367736 | BE48: =IF(HI_Hilfstabelle!$C19=HI_Hilfstabelle!$A19,IFERROR(NR_Berechnung!T48,1/0),"") -> 0.9676415471 | BF48: =IF(HI_Hilfstabelle!$C19=HI_Hilfstabelle!$A19,IFERROR(NR_Berechnung!U48,1/0),"") -> 1.054014918 | BG48: =IF(HI_Hilfstabelle!$C19=HI_Hilfstabelle!$A19,IFERROR(NR_Berechnung!V48,1/0),"") -> 1.012384751 | BH48: =IF(HI_Hilfstabelle!$C19=HI_Hilfstabelle!$A19,IFERROR(NR_Berechnung!W48,1/0),"") -> 1.061227117 | BI48: =IF(HI_Hilfstabelle!$C19=HI_Hilfstabelle!$A19,IFERROR(NR_Berechnung!X48,1/0),"") ->  | BN48: =IF(BL48="","",HI_Hilfstabelle!H19) ->  | BS48: =IF(BL48="","",HI_Hilfstabelle!J19) -> 
A49: Slowakei | C49: =IF(NR_Veränderung!C62="",1/0,NR_Veränderung!C62) -> 1.182866991 | D49: =IF(NR_Veränderung!D62="",1/0,NR_Veränderung!D62) -> 1.139777424 | E49: =IF(NR_Veränderung!E62="",1/0,NR_Veränderung!E62) -> 1.040792834 | F49: =IF(NR_Veränderung!F62="",1/0,NR_Veränderung!F62) -> 1.098154462 | G49: =IF(NR_Veränderung!G62="",1/0,NR_Veränderung!G62) -> 0.7904692068 | H49: =IF(NR_Veränderung!H62="",1/0,NR_Veränderung!H62) -> 1.043612862 | I49: =IF(NR_Veränderung!I62="",1/0,NR_Veränderung!I62) -> 0.8739901555 | J49: =IF(NR_Veränderung!J62="",1/0,NR_Veränderung!J62) -> 1.075615066 | K49: =IF(NR_Veränderung!K62="",1/0,NR_Veränderung!K62) -> 1.033555255 | L49: =IF(NR_Veränderung!L62="",1/0,NR_Veränderung!L62) -> 1.136065177 | M49: =IF(NR_Veränderung!M62="",1/0,NR_Veränderung!M62) -> 1.110445091 | N49: =IF(NR_Veränderung!N62="",1/0,NR_Veränderung!N62) -> 1.108708891 | O49: =IF(NR_Veränderung!O62="",1/0,NR_Veränderung!O62) -> 0.9894479546 | P49: =IF(NR_Veränderung!P62="",1/0,NR_Veränderung!P62) -> 0.9043072546 | Q49: =IF(NR_Veränderung!Q62="",1/0,NR_Veränderung!Q62) -> 1.020672227 | R49: =IF(NR_Veränderung!R62="",1/0,NR_Veränderung!R62) -> 1.084448908 | S49: =IF(NR_Veränderung!S62="",1/0,NR_Veränderung!S62) -> 1.049324356 | T49: =IF(NR_Veränderung!T62="",1/0,NR_Veränderung!T62) -> 0.999962991 | U49: =IF(NR_Veränderung!U62="",1/0,NR_Veränderung!U62) -> 1.07960473 | V49: =IF(NR_Veränderung!V62="",1/0,NR_Veränderung!V62) -> 1.055851226 | W49: =IF(NR_Veränderung!W62="",1/0,NR_Veränderung!W62) ->  | X49: =IF(NR_Veränderung!X62="",1/0,NR_Veränderung!X62) ->  | AC49: =IF(AA49="","",HI_Hilfstabelle!H20) ->  | AH49: =IF(AA49="","",HI_Hilfstabelle!J20) ->  | AN49: =IF(HI_Hilfstabelle!$C20=HI_Hilfstabelle!$A20,IFERROR(NR_Berechnung!C49,1/0),"") -> 1.182866991 | AO49: =IF(HI_Hilfstabelle!$C20=HI_Hilfstabelle!$A20,IFERROR(NR_Berechnung!D49,1/0),"") -> 1.139777424 | AP49: =IF(HI_Hilfstabelle!$C20=HI_Hilfstabelle!$A20,IFERROR(NR_Berechnung!E49,1/0),"") -> 1.040792834 | AQ49: =IF(HI_Hilfstabelle!$C20=HI_Hilfstabelle!$A20,IFERROR(NR_Berechnung!F49,1/0),"") -> 1.098154462 | AR49: =IF(HI_Hilfstabelle!$C20=HI_Hilfstabelle!$A20,IFERROR(NR_Berechnung!G49,1/0),"") -> 0.7904692068 | AS49: =IF(HI_Hilfstabelle!$C20=HI_Hilfstabelle!$A20,IFERROR(NR_Berechnung!H49,1/0),"") -> 1.043612862 | AT49: =IF(HI_Hilfstabelle!$C20=HI_Hilfstabelle!$A20,IFERROR(NR_Berechnung!I49,1/0),"") -> 0.8739901555 | AU49: =IF(HI_Hilfstabelle!$C20=HI_Hilfstabelle!$A20,IFERROR(NR_Berechnung!J49,1/0),"") -> 1.075615066 | AV49: =IF(HI_Hilfstabelle!$C20=HI_Hilfstabelle!$A20,IFERROR(NR_Berechnung!K49,1/0),"") -> 1.033555255 | AW49: =IF(HI_Hilfstabelle!$C20=HI_Hilfstabelle!$A20,IFERROR(NR_Berechnung!L49,1/0),"") -> 1.136065177 | AX49: =IF(HI_Hilfstabelle!$C20=HI_Hilfstabelle!$A20,IFERROR(NR_Berechnung!M49,1/0),"") -> 1.110445091 | AY49: =IF(HI_Hilfstabelle!$C20=HI_Hilfstabelle!$A20,IFERROR(NR_Berechnung!N49,1/0),"") -> 1.108708891 | AZ49: =IF(HI_Hilfstabelle!$C20=HI_Hilfstabelle!$A20,IFERROR(NR_Berechnung!O49,1/0),"") -> 0.9894479546 | BA49: =IF(HI_Hilfstabelle!$C20=HI_Hilfstabelle!$A20,IFERROR(NR_Berechnung!P49,1/0),"") -> 0.9043072546 | BB49: =IF(HI_Hilfstabelle!$C20=HI_Hilfstabelle!$A20,IFERROR(NR_Berechnung!Q49,1/0),"") -> 1.020672227 | BC49: =IF(HI_Hilfstabelle!$C20=HI_Hilfstabelle!$A20,IFERROR(NR_Berechnung!R49,1/0),"") -> 1.084448908 | BD49: =IF(HI_Hilfstabelle!$C20=HI_Hilfstabelle!$A20,IFERROR(NR_Berechnung!S49,1/0),"") -> 1.049324356 | BE49: =IF(HI_Hilfstabelle!$C20=HI_Hilfstabelle!$A20,IFERROR(NR_Berechnung!T49,1/0),"") -> 0.999962991 | BF49: =IF(HI_Hilfstabelle!$C20=HI_Hilfstabelle!$A20,IFERROR(NR_Berechnung!U49,1/0),"") -> 1.07960473 | BG49: =IF(HI_Hilfstabelle!$C20=HI_Hilfstabelle!$A20,IFERROR(NR_Berechnung!V49,1/0),"") -> 1.055851226 | BH49: =IF(HI_Hilfstabelle!$C20=HI_Hilfstabelle!$A20,IFERROR(NR_Berechnung!W49,1/0),"") ->  | BI49: =IF(HI_Hilfstabelle!$C20=HI_Hilfstabelle!$A20,IFERROR(NR_Berechnung!X49,1/0),"") ->  | BN49: =IF(BL49="","",HI_Hilfstabelle!H20) ->  | BS49: =IF(BL49="","",HI_Hilfstabelle!J20) -> 
A50: Großbritannien | C50: =IF(NR_Veränderung!C63="",1/0,NR_Veränderung!C63) ->  | D50: =IF(NR_Veränderung!D63="",1/0,NR_Veränderung!D63) ->  | E50: =IF(NR_Veränderung!E63="",1/0,NR_Veränderung!E63) ->  | F50: =IF(NR_Veränderung!F63="",1/0,NR_Veränderung!F63) ->  | G50: =IF(NR_Veränderung!G63="",1/0,NR_Veränderung!G63) ->  | H50: =IF(NR_Veränderung!H63="",1/0,NR_Veränderung!H63) ->  | I50: =IF(NR_Veränderung!I63="",1/0,NR_Veränderung!I63) ->  | J50: =IF(NR_Veränderung!J63="",1/0,NR_Veränderung!J63) ->  | K50: =IF(NR_Veränderung!K63="",1/0,NR_Veränderung!K63) ->  | L50: =IF(NR_Veränderung!L63="",1/0,NR_Veränderung!L63) ->  | M50: =IF(NR_Veränderung!M63="",1/0,NR_Veränderung!M63) ->  | N50: =IF(NR_Veränderung!N63="",1/0,NR_Veränderung!N63) ->  | O50: =IF(NR_Veränderung!O63="",1/0,NR_Veränderung!O63) ->  | P50: =IF(NR_Veränderung!P63="",1/0,NR_Veränderung!P63) ->  | Q50: =IF(NR_Veränderung!Q63="",1/0,NR_Veränderung!Q63) ->  | R50: =IF(NR_Veränderung!R63="",1/0,NR_Veränderung!R63) ->  | S50: =IF(NR_Veränderung!S63="",1/0,NR_Veränderung!S63) ->  | T50: =IF(NR_Veränderung!T63="",1/0,NR_Veränderung!T63) ->  | U50: =IF(NR_Veränderung!U63="",1/0,NR_Veränderung!U63) ->  | V50: =IF(NR_Veränderung!V63="",1/0,NR_Veränderung!V63) ->  | W50: =IF(NR_Veränderung!W63="",1/0,NR_Veränderung!W63) ->  | X50: =IF(NR_Veränderung!X63="",1/0,NR_Veränderung!X63) ->  | AC50: =IF(AA50="","",HI_Hilfstabelle!H50) ->  | AH50: =IF(AA50="","",HI_Hilfstabelle!J21) ->  | AN50: =IF(HI_Hilfstabelle!$C21=HI_Hilfstabelle!$A21,IFERROR(NR_Berechnung!C50,1/0),"") ->  | AO50: =IF(HI_Hilfstabelle!$C21=HI_Hilfstabelle!$A21,IFERROR(NR_Berechnung!D50,1/0),"") ->  | AP50: =IF(HI_Hilfstabelle!$C21=HI_Hilfstabelle!$A21,IFERROR(NR_Berechnung!E50,1/0),"") ->  | AQ50: =IF(HI_Hilfstabelle!$C21=HI_Hilfstabelle!$A21,IFERROR(NR_Berechnung!F50,1/0),"") ->  | AR50: =IF(HI_Hilfstabelle!$C21=HI_Hilfstabelle!$A21,IFERROR(NR_Berechnung!G50,1/0),"") ->  | AS50: =IF(HI_Hilfstabelle!$C21=HI_Hilfstabelle!$A21,IFERROR(NR_Berechnung!H50,1/0),"") ->  | AT50: =IF(HI_Hilfstabelle!$C21=HI_Hilfstabelle!$A21,IFERROR(NR_Berechnung!I50,1/0),"") ->  | AU50: =IF(HI_Hilfstabelle!$C21=HI_Hilfstabelle!$A21,IFERROR(NR_Berechnung!J50,1/0),"") ->  | AV50: =IF(HI_Hilfstabelle!$C21=HI_Hilfstabelle!$A21,IFERROR(NR_Berechnung!K50,1/0),"") ->  | AW50: =IF(HI_Hilfstabelle!$C21=HI_Hilfstabelle!$A21,IFERROR(NR_Berechnung!L50,1/0),"") ->  | AX50: =IF(HI_Hilfstabelle!$C21=HI_Hilfstabelle!$A21,IFERROR(NR_Berechnung!M50,1/0),"") ->  | AY50: =IF(HI_Hilfstabelle!$C21=HI_Hilfstabelle!$A21,IFERROR(NR_Berechnung!N50,1/0),"") ->  | AZ50: =IF(HI_Hilfstabelle!$C21=HI_Hilfstabelle!$A21,IFERROR(NR_Berechnung!O50,1/0),"") ->  | BA50: =IF(HI_Hilfstabelle!$C21=HI_Hilfstabelle!$A21,IFERROR(NR_Berechnung!P50,1/0),"") ->  | BB50: =IF(HI_Hilfstabelle!$C21=HI_Hilfstabelle!$A21,IFERROR(NR_Berechnung!Q50,1/0),"") ->  | BC50: =IF(HI_Hilfstabelle!$C21=HI_Hilfstabelle!$A21,IFERROR(NR_Berechnung!R50,1/0),"") ->  | BD50: =IF(HI_Hilfstabelle!$C21=HI_Hilfstabelle!$A21,IFERROR(NR_Berechnung!S50,1/0),"") ->  | BE50: =IF(HI_Hilfstabelle!$C21=HI_Hilfstabelle!$A21,IFERROR(NR_Berechnung!T50,1/0),"") ->  | BF50: =IF(HI_Hilfstabelle!$C21=HI_Hilfstabelle!$A21,IFERROR(NR_Berechnung!U50,1/0),"") ->  | BG50: =IF(HI_Hilfstabelle!$C21=HI_Hilfstabelle!$A21,IFERROR(NR_Berechnung!V50,1/0),"") ->  | BH50: =IF(HI_Hilfstabelle!$C21=HI_Hilfstabelle!$A21,IFERROR(NR_Berechnung!W50,1/0),"") ->  | BI50: =IF(HI_Hilfstabelle!$C21=HI_Hilfstabelle!$A21,IFERROR(NR_Berechnung!X50,1/0),"") ->  | BN50: =IF(BL50="","",HI_Hilfstabelle!H21) ->  | BS50: =IF(BL50="","",HI_Hilfstabelle!J21) -> 
AB52: Summe | AC52: =SUM(AC33:AC50) -> 89476868 | AD52: =SUM(AD33:AD50) -> 1 | AH52: =SUM(AH33:AH50) -> 882 | AI52: =SUM(AI33:AI50) -> 1 | BM52: Summe | BN52: =SUM(BN33:BN50) -> 89476868 | BS52: =SUM(BS33:BS50) -> 882
AA53: Arithmet. Mittel | AB53: Geomittel | AF53: Arithmet. Mittel | AG53: Geomittel | AK53: Arithmet. Mittel | AL53: Geomittel | BL53: Arithmet. Mittel | BM53: Geomittel | BQ53: Arithmet. Mittel | BR53: Geomittel | BV53: Arithmet. Mittel | BW53: Geomittel
Z54: Mittelwert | AA54: =AVERAGE(AA33:AA50) -> 1.015188898 | AB54: =AVERAGE(AB33:AB50) -> 1.012590168 | AF54: =IF(AND(AF33="",AF34="",AF35="",AF36="",AF37="",AF38="",AF39="",AF40="",AF41="",AF42="",AF43="",AF44="",AF45="",AF46="",AF47="",AF48="",AF49="",AF50=""),1/0,SUM(AF33:AF50)) -> 1.018198129 | AG54: =IF(AND(AG33="",AG34="",AG35="",AG36="",AG37="",AG38="",AG39="",AG40="",AG41="",AG42="",AG43="",AG44="",AG45="",AG46="",AG47="",AG48="",AG49="",AG50=""),1/0,SUM(AG33:AG50)) -> 1.014898686 | AK54: =IF(AND(AK33="",AK34="",AK35="",AK36="",AK37="",AK38="",AK39="",AK40="",AK41="",AK42="",AK43="",AK44="",AK45="",AK46="",AK47="",AK48="",AK49="",AK50=""),1/0,SUM(AK33:AK50)) -> 1.013693947 | AL54: =IF(AND(AL33="",AL34="",AL35="",AL36="",AL37="",AL38="",AL39="",AL40="",AL41="",AL42="",AL43="",AL44="",AL45="",AL46="",AL47="",AL48="",AL49="",AL50=""),1/0,SUM(AL33:AL50)) -> 1.011362362 | BL54: =AVERAGE(BL33:BL50) -> 1.015188898 | BM54: =AVERAGE(BM33:BM50) -> 1.012590168 | BQ54: =IF(AND(BQ33="",BQ34="",BQ35="",BQ36="",BQ37="",BQ38="",BQ39="",BQ40="",BQ41="",BQ42="",BQ43="",BQ44="",BQ45="",BQ46="",BQ47="",BQ48="",BQ49="",BQ50=""),1/0,SUM(BQ33:BQ50)) -> 1.018198129 | BR54: =IF(AND(BR33="",BR34="",BR35="",BR36="",BR37="",BR38="",BR39="",BR40="",BR41="",BR42="",BR43="",BR44="",BR45="",BR46="",BR47="",BR48="",BR49="",BR50=""),1/0,SUM(BR33:BR50)) -> 1.014898686 | BV54: =IF(AND(BV33="",BV34="",BV35="",BV36="",BV37="",BV38="",BV39="",BV40="",BV41="",BV42="",BV43="",BV44="",BV45="",BV46="",BV47="",BV48="",BV49="",BV50=""),1/0,SUM(BV33:BV50)) -> 1.013693947 | BW54: =IF(AND(BW33="",BW34="",BW35="",BW36="",BW37="",BW38="",BW39="",BW40="",BW41="",BW42="",BW43="",BW44="",BW45="",BW46="",BW47="",BW48="",BW49="",BW50=""),1/0,SUM(BW33:BW50)) -> 1.011362362
AA55: =AA54-1 -> 0.01518889758 | AB55: =AB54-1 -> 0.01259016767 | AF55: =AF54-1 -> 0.01819812902 | AG55: =AG54-1 -> 0.01489868629 | AK55: =AK54-1 -> 0.01369394674 | AL55: =AL54-1 -> 0.01136236245 | BL55: =BL54-1 -> 0.01518889758 | BM55: =BM54-1 -> 0.01259016767 | BQ55: =BQ54-1 -> 0.01819812902 | BR55: =BR54-1 -> 0.01489868629 | BV55: =BV54-1 -> 0.01369394674 | BW55: =BW54-1 -> 0.01136236245
Z56: Anzahl Länder | AA56: =COUNT(AA33:AA50) -> 9 | BL56: =COUNT(BL33:BL50) -> 9
C61: Bruttowertschöpfung pro Erwerbstätige - Alle Länder | AA61: Gleichgewichtet | AC61: Nach Einwohnerzahl | AF61: Gewichtete Verändrungsrate | AH61: Nach BIP/Kopf | AK61: Gewichtete Verändrungsrate | AN61: Bruttowertschöpfung pro Erwerbstätige - Länderauswahl | BL61: Gleichgewichtet | BN61: Nach Einwohnerzahl | BQ61: Gewichtete Verändrungsrate | BS61: Nach BIP/Kopf | BV61: Gewichtete Verändrungsrate
C62: 1996 | D62: =C62+1 -> 1997 | E62: 1998 | F62: 1999 | G62: 2000 | H62: 2001 | I62: 2002 | J62: 2003 | K62: 2004 | L62: 2005 | M62: 2006 | N62: 2007 | O62: 2008 | P62: 2009 | Q62: 2010 | R62: 2011 | S62: 2012 | T62: 2013 | U62: 2014 | V62: 2015 | W62: 2016 | X62: 2017 | Y62: Arithmet. Mittel | Z62: Geomittel | AA62: Arithmet. Mittel | AB62: Geomittel | AC62: Absolut | AD62: Anteil AM | AE62: Anteil GM | AF62: Arithmet. Mittel | AG62: Geomittel | AH62: Absolut | AI62: Anteil AM | AJ62: Anteil GM | AK62: Arithmet. Mittel | AL62: Geomittel | AN62: 1996 | AO62: =AN62+1 -> 1997 | AP62: =AO62+1 -> 1998 | AQ62: =AP62+1 -> 1999 | AR62: =AQ62+1 -> 2000 | AS62: =AR62+1 -> 2001 | AT62: =AS62+1 -> 2002 | AU62: =AT62+1 -> 2003 | AV62: =AU62+1 -> 2004 | AW62: =AV62+1 -> 2005 | AX62: =AW62+1 -> 2006 | AY62: =AX62+1 -> 2007 | AZ62: =AY62+1 -> 2008 | BA62: =AZ62+1 -> 2009 | BB62: =BA62+1 -> 2010 | BC62: =BB62+1 -> 2011 | BD62: =BC62+1 -> 2012 | BE62: =BD62+1 -> 2013 | BF62: =BE62+1 -> 2014 | BG62: =BF62+1 -> 2015 | BH62: =BG62+1 -> 2016 | BI62: =BH62+1 -> 2017 | BJ62: Arithmet. Mittel | BK62: Geomittel | BL62: Arithmet. Mittel | BM62: Geomittel | BN62: Absolut | BO62: Anteil AM | BP62: Anteil GM | BQ62: Arithmet. Mittel | BR62: Geomittel | BS62: Absolut | BT62: Anteil AM | BU62: Anteil GM | BV62: Arithmet. Mittel | BW62: Geomittel
A63: Österreich | C63: =NR_Veränderung!C4 -> 1.201179148 | D63: =NR_Veränderung!D4 -> 0.9633085324 | E63: =NR_Veränderung!E4 -> 1.129830161 | F63: =NR_Veränderung!F4 -> 1.111795498 | G63: =NR_Veränderung!G4 -> 1.003851186 | H63: =NR_Veränderung!H4 -> 1.009509977 | I63: =NR_Veränderung!I4 -> 1.016079941 | J63: =NR_Veränderung!J4 -> 1.086888437 | K63: =NR_Veränderung!K4 -> 1.059689946 | L63: =NR_Veränderung!L4 -> 1.243541071 | M63: =NR_Veränderung!M4 -> 1.108014443 | N63: =NR_Veränderung!N4 -> 1.066226392 | O63: =NR_Veränderung!O4 -> 1.036125148 | P63: =NR_Veränderung!P4 -> 1.023782882 | Q63: =NR_Veränderung!Q4 -> 1.027357958 | R63: =NR_Veränderung!R4 -> 0.9816684682 | S63: =NR_Veränderung!S4 -> 0.9990498764 | T63: =NR_Veränderung!T4 -> 1.030311485 | U63: =NR_Veränderung!U4 -> 1.022670854 | V63: =NR_Veränderung!V4 -> 0.9360939528 | W63: =NR_Veränderung!W4 -> 1.002541876 | X63: =NR_Veränderung!X4 -> 1.02789972 | Y63: =TRANSPOSE(NR_Mittelwertbildung!BZ30:CQ31) -> 1.000033747 | Z63: 0.9995491702 | AA63: =IF(ISERROR(Y63),"",Y63) -> 1.000033747 | AB63: =IF(ISERROR(Z63),"",Z63) -> 0.9995491702 | AC63: =IF(AA63="","",HI_Hilfstabelle!H4) -> 8901064 | AD63: =IFERROR(AC63/AC$82,"") -> 0.03101807331 | AE63: =IFERROR(AC63/AC$82,"") -> 0.03101807331 | AF63: =IFERROR(AD63*AA63,"") -> 0.03101912009 | AG63: =IFERROR(AE63*AB63,"") -> 0.03100408944 | AH63: =IF(AA63="","",HI_Hilfstabelle!J4) -> 126 | AI63: =IFERROR(AH63/AH$82,"") -> 0.07845579078 | AJ63: =IFERROR(AH63/AH$82,"") -> 0.07845579078 | AK63: =IFERROR(AI63*Y63,"") -> 0.07845843846 | AL63: =IFERROR(AJ63*Z63,"") -> 0.07842042058 | AN63: =IF(HI_Hilfstabelle!$C4=HI_Hilfstabelle!$A4,IFERROR(NR_Berechnung!C63,1/0),"") -> 1.201179148 | AO63: =IF(HI_Hilfstabelle!$C4=HI_Hilfstabelle!$A4,IFERROR(NR_Berechnung!D63,1/0),"") -> 0.9633085324 | AP63: =IF(HI_Hilfstabelle!$C4=HI_Hilfstabelle!$A4,IFERROR(NR_Berechnung!E63,1/0),"") -> 1.129830161 | AQ63: =IF(HI_Hilfstabelle!$C4=HI_Hilfstabelle!$A4,IFERROR(NR_Berechnung!F63,1/0),"") -> 1.111795498 | AR63: =IF(HI_Hilfstabelle!$C4=HI_Hilfstabelle!$A4,IFERROR(NR_Berechnung!G63,1/0),"") -> 1.003851186 | AS63: =IF(HI_Hilfstabelle!$C4=HI_Hilfstabelle!$A4,IFERROR(NR_Berechnung!H63,1/0),"") -> 1.009509977 | AT63: =IF(HI_Hilfstabelle!$C4=HI_Hilfstabelle!$A4,IFERROR(NR_Berechnung!I63,1/0),"") -> 1.016079941 | AU63: =IF(HI_Hilfstabelle!$C4=HI_Hilfstabelle!$A4,IFERROR(NR_Berechnung!J63,1/0),"") -> 1.086888437 | AV63: =IF(HI_Hilfstabelle!$C4=HI_Hilfstabelle!$A4,IFERROR(NR_Berechnung!K63,1/0),"") -> 1.059689946 | AW63: =IF(HI_Hilfstabelle!$C4=HI_Hilfstabelle!$A4,IFERROR(NR_Berechnung!L63,1/0),"") -> 1.243541071 | AX63: =IF(HI_Hilfstabelle!$C4=HI_Hilfstabelle!$A4,IFERROR(NR_Berechnung!M63,1/0),"") -> 1.108014443 | AY63: =IF(HI_Hilfstabelle!$C4=HI_Hilfstabelle!$A4,IFERROR(NR_Berechnung!N63,1/0),"") -> 1.066226392 | AZ63: =IF(HI_Hilfstabelle!$C4=HI_Hilfstabelle!$A4,IFERROR(NR_Berechnung!O63,1/0),"") -> 1.036125148 | BA63: =IF(HI_Hilfstabelle!$C4=HI_Hilfstabelle!$A4,IFERROR(NR_Berechnung!P63,1/0),"") -> 1.023782882 | BB63: =IF(HI_Hilfstabelle!$C4=HI_Hilfstabelle!$A4,IFERROR(NR_Berechnung!Q63,1/0),"") -> 1.027357958 | BC63: =IF(HI_Hilfstabelle!$C4=HI_Hilfstabelle!$A4,IFERROR(NR_Berechnung!R63,1/0),"") -> 0.9816684682 | BD63: =IF(HI_Hilfstabelle!$C4=HI_Hilfstabelle!$A4,IFERROR(NR_Berechnung!S63,1/0),"") -> 0.9990498764 | BE63: =IF(HI_Hilfstabelle!$C4=HI_Hilfstabelle!$A4,IFERROR(NR_Berechnung!T63,1/0),"") -> 1.030311485 | BF63: =IF(HI_Hilfstabelle!$C4=HI_Hilfstabelle!$A4,IFERROR(NR_Berechnung!U63,1/0),"") -> 1.022670854 | BG63: =IF(HI_Hilfstabelle!$C4=HI_Hilfstabelle!$A4,IFERROR(NR_Berechnung!V63,1/0),"") -> 0.9360939528 | BH63: =IF(HI_Hilfstabelle!$C4=HI_Hilfstabelle!$A4,IFERROR(NR_Berechnung!W63,1/0),"") -> 1.002541876 | BI63: =IF(HI_Hilfstabelle!$C4=HI_Hilfstabelle!$A4,IFERROR(NR_Berechnung!X63,1/0),"") -> 1.02789972 | BJ63: =TRANSPOSE(NR_Mittelwertbildung!CS30:DJ31) -> 1.000033747 | BK63: 0.9995491702 | BL63: =IF(ISERROR(BJ63),"",BJ63) -> 1.000033747 | BM63: =IF(ISERROR(BK63),"",BK63) -> 0.9995491702 | BN63: =IF(BL63="","",HI_Hilfstabelle!H4) -> 8901064 | BO63: =IFERROR(BN63/BN$82,"") -> 0.04048422993 | BP63: =IFERROR(BN63/BN$82,"") -> 0.04048422993 | BQ63: =IFERROR(BO63*BL63,"") -> 0.04048559617 | BR63: =IFERROR(BP63*BM63,"") -> 0.04046597844 | BS63: =IF(BL63="","",HI_Hilfstabelle!J4) -> 126 | BT63: =IFERROR(BS63/BS$82,"") -> 0.084 | BU63: =IFERROR(BS63/BS$82,"") -> 0.084 | BV63: =IFERROR(BT63*BJ63,"") -> 0.08400283478 | BW63: =IFERROR(BU63*BK63,"") -> 0.0839621303
A64: Belgien | C64: =NR_Veränderung!C5 -> 1.020646991 | D64: =NR_Veränderung!D5 -> 0.992319388 | E64: =NR_Veränderung!E5 -> 1.02950024 | F64: =NR_Veränderung!F5 -> 1.000829222 | G64: =NR_Veränderung!G5 -> 1.030442372 | H64: =NR_Veränderung!H5 -> 0.8907986619 | I64: =NR_Veränderung!I5 -> 0.9533717017 | J64: =NR_Veränderung!J5 -> 1.023358292 | K64: =NR_Veränderung!K5 -> 1.012466535 | L64: =NR_Veränderung!L5 -> 1.006513289 | M64: =NR_Veränderung!M5 -> 1.027744442 | N64: =NR_Veränderung!N5 -> 1.054837757 | O64: =NR_Veränderung!O5 -> 1.058455797 | P64: =NR_Veränderung!P5 -> 0.963976401 | Q64: =NR_Veränderung!Q5 -> 1.013432384 | R64: =NR_Veränderung!R5 -> 1.043044758 | S64: =NR_Veränderung!S5 -> 0.9762178568 | T64: =NR_Veränderung!T5 -> 1.014324686 | U64: =NR_Veränderung!U5 -> 0.9745185461 | V64: =NR_Veränderung!V5 -> 0.9865256525 | W64: =NR_Veränderung!W5 -> 0.9601604186 | X64: =1/0 ->  | AA64: =IF(ISERROR(Y64),"",Y64) ->  | AB64: =IF(ISERROR(Z64),"",Z64) ->  | AC64: =IF(AA64="","",HI_Hilfstabelle!H5) ->  | AD64: =IFERROR(AC64/AC$82,"") ->  | AE64: =IFERROR(AC64/AC$82,"") ->  | AF64: =IFERROR(AD64*AA64,"") ->  | AG64: =IFERROR(AE64*AB64,"") ->  | AH64: =IF(AA64="","",HI_Hilfstabelle!J5) ->  | AI64: =IFERROR(AH64/AH$82,"") ->  | AJ64: =IFERROR(AH64/AH$82,"") ->  | AK64: =IFERROR(AI64*Y64,"") ->  | AL64: =IFERROR(AJ64*Z64,"") ->  | AN64: =IF(HI_Hilfstabelle!$C5=HI_Hilfstabelle!$A5,IFERROR(NR_Berechnung!C64,1/0),"") ->  | AO64: =IF(HI_Hilfstabelle!$C5=HI_Hilfstabelle!$A5,IFERROR(NR_Berechnung!D64,1/0),"") ->  | AP64: =IF(HI_Hilfstabelle!$C5=HI_Hilfstabelle!$A5,IFERROR(NR_Berechnung!E64,1/0),"") ->  | AQ64: =IF(HI_Hilfstabelle!$C5=HI_Hilfstabelle!$A5,IFERROR(NR_Berechnung!F64,1/0),"") ->  | AR64: =IF(HI_Hilfstabelle!$C5=HI_Hilfstabelle!$A5,IFERROR(NR_Berechnung!G64,1/0),"") ->  | AS64: =IF(HI_Hilfstabelle!$C5=HI_Hilfstabelle!$A5,IFERROR(NR_Berechnung!H64,1/0),"") ->  | AT64: =IF(HI_Hilfstabelle!$C5=HI_Hilfstabelle!$A5,IFERROR(NR_Berechnung!I64,1/0),"") ->  | AU64: =IF(HI_Hilfstabelle!$C5=HI_Hilfstabelle!$A5,IFERROR(NR_Berechnung!J64,1/0),"") ->  | AV64: =IF(HI_Hilfstabelle!$C5=HI_Hilfstabelle!$A5,IFERROR(NR_Berechnung!K64,1/0),"") ->  | AW64: =IF(HI_Hilfstabelle!$C5=HI_Hilfstabelle!$A5,IFERROR(NR_Berechnung!L64,1/0),"") ->  | AX64: =IF(HI_Hilfstabelle!$C5=HI_Hilfstabelle!$A5,IFERROR(NR_Berechnung!M64,1/0),"") ->  | AY64: =IF(HI_Hilfstabelle!$C5=HI_Hilfstabelle!$A5,IFERROR(NR_Berechnung!N64,1/0),"") ->  | AZ64: =IF(HI_Hilfstabelle!$C5=HI_Hilfstabelle!$A5,IFERROR(NR_Berechnung!O64,1/0),"") ->  | BA64: =IF(HI_Hilfstabelle!$C5=HI_Hilfstabelle!$A5,IFERROR(NR_Berechnung!P64,1/0),"") ->  | BB64: =IF(HI_Hilfstabelle!$C5=HI_Hilfstabelle!$A5,IFERROR(NR_Berechnung!Q64,1/0),"") ->  | BC64: =IF(HI_Hilfstabelle!$C5=HI_Hilfstabelle!$A5,IFERROR(NR_Berechnung!R64,1/0),"") ->  | BD64: =IF(HI_Hilfstabelle!$C5=HI_Hilfstabelle!$A5,IFERROR(NR_Berechnung!S64,1/0),"") ->  | BE64: =IF(HI_Hilfstabelle!$C5=HI_Hilfstabelle!$A5,IFERROR(NR_Berechnung!T64,1/0),"") ->  | BF64: =IF(HI_Hilfstabelle!$C5=HI_Hilfstabelle!$A5,IFERROR(NR_Berechnung!U64,1/0),"") ->  | BG64: =IF(HI_Hilfstabelle!$C5=HI_Hilfstabelle!$A5,IFERROR(NR_Berechnung!V64,1/0),"") ->  | BH64: =IF(HI_Hilfstabelle!$C5=HI_Hilfstabelle!$A5,IFERROR(NR_Berechnung!W64,1/0),"") ->  | BI64: =IF(HI_Hilfstabelle!$C5=HI_Hilfstabelle!$A5,IFERROR(NR_Berechnung!X64,1/0),"") ->  | BL64: =IF(ISERROR(BJ64),"",BJ64) ->  | BM64: =IF(ISERROR(BK64),"",BK64) ->  | BN64: =IF(BL64="","",HI_Hilfstabelle!H5) ->  | BO64: =IFERROR(BN64/BN$82,"") ->  | BP64: =IFERROR(BN64/BN$82,"") ->  | BQ64: =IFERROR(BO64*BL64,"") ->  | BR64: =IFERROR(BP64*BM64,"") ->  | BS64: =IF(BL64="","",HI_Hilfstabelle!J5) ->  | BT64: =IFERROR(BS64/BS$82,"") ->  | BU64: =IFERROR(BS64/BS$82,"") ->  | BV64: =IFERROR(BT64*BJ64,"") ->  | BW64: =IFERROR(BU64*BK64,"") -> 
A65: Tschechien | C65: =NR_Veränderung!C6 -> 1.054587255 | D65: =NR_Veränderung!D6 -> 0.8756212182 | E65: =NR_Veränderung!E6 -> 1.112642291 | F65: =NR_Veränderung!F6 -> 0.9492132461 | G65: =NR_Veränderung!G6 -> 1.101999172 | H65: =NR_Veränderung!H6 -> 1.102273284 | I65: =NR_Veränderung!I6 -> 1.025129897 | J65: =NR_Veränderung!J6 -> 1.217672758 | K65: =NR_Veränderung!K6 -> 0.9938925092 | L65: =NR_Veränderung!L6 -> 1.003313073 | M65: =NR_Veränderung!M6 -> 1.112709405 | N65: =NR_Veränderung!N6 -> 1.074641058 | O65: =NR_Veränderung!O6 -> 0.912073965 | P65: =NR_Veränderung!P6 -> 1.027492159 | Q65: =NR_Veränderung!Q6 -> 0.9546216939 | R65: =NR_Veränderung!R6 -> 1.030013509 | S65: =NR_Veränderung!S6 -> 1.014199565 | T65: =NR_Veränderung!T6 -> 0.9423866036 | U65: =NR_Veränderung!U6 -> 0.9527353888 | V65: =NR_Veränderung!V6 -> 0.9776336967 | W65: =NR_Veränderung!W6 -> 0.9514176747 | X65: =NR_Veränderung!X6 -> 0.9495653861 | Y65: 0.9739931176 | Z65: 0.9734642326 | AA65: 0.9739931176 | AB65: 0.9734642326 | AC65: =IF(AA65="","",HI_Hilfstabelle!H6) -> 10693939 | AD65: 0.0372658127 | AE65: 0.0372658127 | AF65: 0.0362966451 | AG65: 0.03627693576 | AH65: =IF(AA65="","",HI_Hilfstabelle!J6) -> 93 | AI65: 0.05790784558 | AJ65: 0.05790784558 | AK65: 0.05640184305 | AL65: 0.05637121646 | AN65: =IF(HI_Hilfstabelle!$C6=HI_Hilfstabelle!$A6,IFERROR(NR_Berechnung!C65,1/0),"") -> 1.054587255 | AO65: =IF(HI_Hilfstabelle!$C6=HI_Hilfstabelle!$A6,IFERROR(NR_Berechnung!D65,1/0),"") -> 0.8756212182 | AP65: =IF(HI_Hilfstabelle!$C6=HI_Hilfstabelle!$A6,IFERROR(NR_Berechnung!E65,1/0),"") -> 1.112642291 | AQ65: =IF(HI_Hilfstabelle!$C6=HI_Hilfstabelle!$A6,IFERROR(NR_Berechnung!F65,1/0),"") -> 0.9492132461 | AR65: =IF(HI_Hilfstabelle!$C6=HI_Hilfstabelle!$A6,IFERROR(NR_Berechnung!G65,1/0),"") -> 1.101999172 | AS65: =IF(HI_Hilfstabelle!$C6=HI_Hilfstabelle!$A6,IFERROR(NR_Berechnung!H65,1/0),"") -> 1.102273284 | AT65: =IF(HI_Hilfstabelle!$C6=HI_Hilfstabelle!$A6,IFERROR(NR_Berechnung!I65,1/0),"") -> 1.025129897 | AU65: =IF(HI_Hilfstabelle!$C6=HI_Hilfstabelle!$A6,IFERROR(NR_Berechnung!J65,1/0),"") -> 1.217672758 | AV65: =IF(HI_Hilfstabelle!$C6=HI_Hilfstabelle!$A6,IFERROR(NR_Berechnung!K65,1/0),"") -> 0.9938925092 | AW65: =IF(HI_Hilfstabelle!$C6=HI_Hilfstabelle!$A6,IFERROR(NR_Berechnung!L65,1/0),"") -> 1.003313073 | AX65: =IF(HI_Hilfstabelle!$C6=HI_Hilfstabelle!$A6,IFERROR(NR_Berechnung!M65,1/0),"") -> 1.112709405 | AY65: =IF(HI_Hilfstabelle!$C6=HI_Hilfstabelle!$A6,IFERROR(NR_Berechnung!N65,1/0),"") -> 1.074641058 | AZ65: =IF(HI_Hilfstabelle!$C6=HI_Hilfstabelle!$A6,IFERROR(NR_Berechnung!O65,1/0),"") -> 0.912073965 | BA65: =IF(HI_Hilfstabelle!$C6=HI_Hilfstabelle!$A6,IFERROR(NR_Berechnung!P65,1/0),"") -> 1.027492159 | BB65: =IF(HI_Hilfstabelle!$C6=HI_Hilfstabelle!$A6,IFERROR(NR_Berechnung!Q65,1/0),"") -> 0.9546216939 | BC65: =IF(HI_Hilfstabelle!$C6=HI_Hilfstabelle!$A6,IFERROR(NR_Berechnung!R65,1/0),"") -> 1.030013509 | BD65: =IF(HI_Hilfstabelle!$C6=HI_Hilfstabelle!$A6,IFERROR(NR_Berechnung!S65,1/0),"") -> 1.014199565 | BE65: =IF(HI_Hilfstabelle!$C6=HI_Hilfstabelle!$A6,IFERROR(NR_Berechnung!T65,1/0),"") -> 0.9423866036 | BF65: =IF(HI_Hilfstabelle!$C6=HI_Hilfstabelle!$A6,IFERROR(NR_Berechnung!U65,1/0),"") -> 0.9527353888 | BG65: =IF(HI_Hilfstabelle!$C6=HI_Hilfstabelle!$A6,IFERROR(NR_Berechnung!V65,1/0),"") -> 0.9776336967 | BH65: =IF(HI_Hilfstabelle!$C6=HI_Hilfstabelle!$A6,IFERROR(NR_Berechnung!W65,1/0),"") -> 0.9514176747 | BI65: =IF(HI_Hilfstabelle!$C6=HI_Hilfstabelle!$A6,IFERROR(NR_Berechnung!X65,1/0),"") -> 0.9495653861 | BJ65: 0.9739931176 | BK65: 0.9734642326 | BL65: 0.9739931176 | BM65: 0.9734642326 | BN65: =IF(BL65="","",HI_Hilfstabelle!H6) -> 10693939 | BO65: 0.04863866672 | BP65: 0.04863866672 | BQ65: 0.04737372664 | BR65: 0.04734800238 | BS65: =IF(BL65="","",HI_Hilfstabelle!J6) -> 93 | BT65: 0.062 | BU65: 0.062 | BV65: 0.06038757329 | BW65: 0.06035478242
A66: Dänemark | C66: =NR_Veränderung!C7 -> 1.026292835 | D66: =NR_Veränderung!D7 -> 0.984741185 | E66: =NR_Veränderung!E7 -> 0.9514557103 | F66: =NR_Veränderung!F7 -> 0.9281538191 | G66: =NR_Veränderung!G7 -> 0.8734346505 | H66: =NR_Veränderung!H7 -> 1.275707538 | I66: =NR_Veränderung!I7 -> 0.9683317009 | J66: =NR_Veränderung!J7 -> 0.9646980462 | K66: =NR_Veränderung!K7 -> 0.9649022918 | L66: =NR_Veränderung!L7 -> 0.9664674817 | M66: =NR_Veränderung!M7 -> 0.8584850264 | N66: =NR_Veränderung!N7 -> 0.957496214 | O66: =NR_Veränderung!O7 -> 0.8936626132 | P66: =NR_Veränderung!P7 -> 0.9777531932 | Q66: =NR_Veränderung!Q7 -> 0.9223307636 | R66: =NR_Veränderung!R7 -> 0.78955671 | S66: =NR_Veränderung!S7 -> 0.9512049352 | T66: =NR_Veränderung!T7 -> 1.005587406 | U66: =NR_Veränderung!U7 -> 0.9748959417 | V66: =NR_Veränderung!V7 -> 0.9407240824 | W66: =NR_Veränderung!W7 -> 0.8818069942 | X66: =NR_Veränderung!X7 -> 1.164420363 | Y66: 0.958313776 | Z66: 0.9524768819 | AA66: 0.958313776 | AB66: 0.9524768819 | AC66: =IF(AA66="","",HI_Hilfstabelle!H7) -> 5822763 | AD66: 0.02029093259 | AE66: 0.02029093259 | AF66: 0.01944508023 | AG66: 0.01932664421 | AH66: =IF(AA66="","",HI_Hilfstabelle!J7) -> 130 | AI66: 0.08094645081 | AJ66: 0.08094645081 | AK66: 0.07757209893 | AL66: 0.07709962307 | AN66: =IF(HI_Hilfstabelle!$C7=HI_Hilfstabelle!$A7,IFERROR(NR_Berechnung!C66,1/0),"") -> 1.026292835 | AO66: =IF(HI_Hilfstabelle!$C7=HI_Hilfstabelle!$A7,IFERROR(NR_Berechnung!D66,1/0),"") -> 0.984741185 | AP66: =IF(HI_Hilfstabelle!$C7=HI_Hilfstabelle!$A7,IFERROR(NR_Berechnung!E66,1/0),"") -> 0.9514557103 | AQ66: =IF(HI_Hilfstabelle!$C7=HI_Hilfstabelle!$A7,IFERROR(NR_Berechnung!F66,1/0),"") -> 0.9281538191 | AR66: =IF(HI_Hilfstabelle!$C7=HI_Hilfstabelle!$A7,IFERROR(NR_Berechnung!G66,1/0),"") -> 0.8734346505 | AS66: =IF(HI_Hilfstabelle!$C7=HI_Hilfstabelle!$A7,IFERROR(NR_Berechnung!H66,1/0),"") -> 1.275707538 | AT66: =IF(HI_Hilfstabelle!$C7=HI_Hilfstabelle!$A7,IFERROR(NR_Berechnung!I66,1/0),"") -> 0.9683317009 | AU66: =IF(HI_Hilfstabelle!$C7=HI_Hilfstabelle!$A7,IFERROR(NR_Berechnung!J66,1/0),"") -> 0.9646980462 | AV66: =IF(HI_Hilfstabelle!$C7=HI_Hilfstabelle!$A7,IFERROR(NR_Berechnung!K66,1/0),"") -> 0.9649022918 | AW66: =IF(HI_Hilfstabelle!$C7=HI_Hilfstabelle!$A7,IFERROR(NR_Berechnung!L66,1/0),"") -> 0.9664674817 | AX66: =IF(HI_Hilfstabelle!$C7=HI_Hilfstabelle!$A7,IFERROR(NR_Berechnung!M66,1/0),"") -> 0.8584850264 | AY66: =IF(HI_Hilfstabelle!$C7=HI_Hilfstabelle!$A7,IFERROR(NR_Berechnung!N66,1/0),"") -> 0.957496214 | AZ66: =IF(HI_Hilfstabelle!$C7=HI_Hilfstabelle!$A7,IFERROR(NR_Berechnung!O66,1/0),"") -> 0.8936626132 | BA66: =IF(HI_Hilfstabelle!$C7=HI_Hilfstabelle!$A7,IFERROR(NR_Berechnung!P66,1/0),"") -> 0.9777531932 | BB66: =IF(HI_Hilfstabelle!$C7=HI_Hilfstabelle!$A7,IFERROR(NR_Berechnung!Q66,1/0),"") -> 0.9223307636 | BC66: =IF(HI_Hilfstabelle!$C7=HI_Hilfstabelle!$A7,IFERROR(NR_Berechnung!R66,1/0),"") -> 0.78955671 | BD66: =IF(HI_Hilfstabelle!$C7=HI_Hilfstabelle!$A7,IFERROR(NR_Berechnung!S66,1/0),"") -> 0.9512049352 | BE66: =IF(HI_Hilfstabelle!$C7=HI_Hilfstabelle!$A7,IFERROR(NR_Berechnung!T66,1/0),"") -> 1.005587406 | BF66: =IF(HI_Hilfstabelle!$C7=HI_Hilfstabelle!$A7,IFERROR(NR_Berechnung!U66,1/0),"") -> 0.9748959417 | BG66: =IF(HI_Hilfstabelle!$C7=HI_Hilfstabelle!$A7,IFERROR(NR_Berechnung!V66,1/0),"") -> 0.9407240824 | BH66: =IF(HI_Hilfstabelle!$C7=HI_Hilfstabelle!$A7,IFERROR(NR_Berechnung!W66,1/0),"") -> 0.8818069942 | BI66: =IF(HI_Hilfstabelle!$C7=HI_Hilfstabelle!$A7,IFERROR(NR_Berechnung!X66,1/0),"") -> 1.164420363 | BJ66: 0.958313776 | BK66: 0.9524768819 | BL66: 0.958313776 | BM66: 0.9524768819 | BN66: =IF(BL66="","",HI_Hilfstabelle!H7) -> 5822763 | BO66: 0.02648335931 | BP66: 0.02648335931 | BQ66: 0.02537936806 | BR66: 0.0252247875 | BS66: =IF(BL66="","",HI_Hilfstabelle!J7) -> 130 | BT66: 0.08666666667 | BU66: 0.08666666667 | BV66: 0.08305386059 | BW66: 0.08254799643
A67: Estland | C67: =NR_Veränderung!C8 -> 1.147835581 | D67: =NR_Veränderung!D8 -> 1.112793814 | E67: =NR_Veränderung!E8 -> 1.219091399 | F67: =NR_Veränderung!F8 -> 0.9727926353 | G67: =NR_Veränderung!G8 -> 1.105991833 | H67: =NR_Veränderung!H8 -> 1.217728188 | I67: =NR_Veränderung!I8 -> 1.159047091 | J67: =NR_Veränderung!J8 -> 1.03396518 | K67: =NR_Veränderung!K8 -> 1.274787622 | L67: =NR_Veränderung!L8 -> 1.281496114 | M67: =NR_Veränderung!M8 -> 0.9294826003 | N67: =NR_Veränderung!N8 -> 1.154993718 | O67: =NR_Veränderung!O8 -> 0.952369959 | P67: =NR_Veränderung!P8 -> 0.8620769488 | Q67: =NR_Veränderung!Q8 -> 0.9177075595 | R67: =NR_Veränderung!R8 -> 0.927368348 | S67: =NR_Veränderung!S8 -> 0.9311506861 | T67: =NR_Veränderung!T8 -> 1.114645621 | U67: =NR_Veränderung!U8 -> 0.9004366778 | V67: =NR_Veränderung!V8 -> 0.946325229 | W67: =NR_Veränderung!W8 -> 0.9963569851 | X67: =NR_Veränderung!X8 -> 1.044463929 | Y67: 0.9801067823 | Z67: 0.9776265982 | AA67: 0.9801067823 | AB67: 0.9776265982 | AC67: =IF(AA67="","",HI_Hilfstabelle!H8) -> 1328976 | AD67: 0.004631162634 | AE67: 0.004631162634 | AF67: 0.004539033907 | AG67: 0.004527547771 | AH67: =IF(AA67="","",HI_Hilfstabelle!J8) -> 84 | AI67: 0.05230386052 | AJ67: 0.05230386052 | AK67: 0.05126336844 | AL67: 0.05113364524 | AN67: =IF(HI_Hilfstabelle!$C8=HI_Hilfstabelle!$A8,IFERROR(NR_Berechnung!C67,1/0),"") -> 1.147835581 | AO67: =IF(HI_Hilfstabelle!$C8=HI_Hilfstabelle!$A8,IFERROR(NR_Berechnung!D67,1/0),"") -> 1.112793814 | AP67: =IF(HI_Hilfstabelle!$C8=HI_Hilfstabelle!$A8,IFERROR(NR_Berechnung!E67,1/0),"") -> 1.219091399 | AQ67: =IF(HI_Hilfstabelle!$C8=HI_Hilfstabelle!$A8,IFERROR(NR_Berechnung!F67,1/0),"") -> 0.9727926353 | AR67: =IF(HI_Hilfstabelle!$C8=HI_Hilfstabelle!$A8,IFERROR(NR_Berechnung!G67,1/0),"") -> 1.105991833 | AS67: =IF(HI_Hilfstabelle!$C8=HI_Hilfstabelle!$A8,IFERROR(NR_Berechnung!H67,1/0),"") -> 1.217728188 | AT67: =IF(HI_Hilfstabelle!$C8=HI_Hilfstabelle!$A8,IFERROR(NR_Berechnung!I67,1/0),"") -> 1.159047091 | AU67: =IF(HI_Hilfstabelle!$C8=HI_Hilfstabelle!$A8,IFERROR(NR_Berechnung!J67,1/0),"") -> 1.03396518 | AV67: =IF(HI_Hilfstabelle!$C8=HI_Hilfstabelle!$A8,IFERROR(NR_Berechnung!K67,1/0),"") -> 1.274787622 | AW67: =IF(HI_Hilfstabelle!$C8=HI_Hilfstabelle!$A8,IFERROR(NR_Berechnung!L67,1/0),"") -> 1.281496114 | AX67: =IF(HI_Hilfstabelle!$C8=HI_Hilfstabelle!$A8,IFERROR(NR_Berechnung!M67,1/0),"") -> 0.9294826003 | AY67: =IF(HI_Hilfstabelle!$C8=HI_Hilfstabelle!$A8,IFERROR(NR_Berechnung!N67,1/0),"") -> 1.154993718 | AZ67: =IF(HI_Hilfstabelle!$C8=HI_Hilfstabelle!$A8,IFERROR(NR_Berechnung!O67,1/0),"") -> 0.952369959 | BA67: =IF(HI_Hilfstabelle!$C8=HI_Hilfstabelle!$A8,IFERROR(NR_Berechnung!P67,1/0),"") -> 0.8620769488 | BB67: =IF(HI_Hilfstabelle!$C8=HI_Hilfstabelle!$A8,IFERROR(NR_Berechnung!Q67,1/0),"") -> 0.9177075595 | BC67: =IF(HI_Hilfstabelle!$C8=HI_Hilfstabelle!$A8,IFERROR(NR_Berechnung!R67,1/0),"") -> 0.927368348 | BD67: =IF(HI_Hilfstabelle!$C8=HI_Hilfstabelle!$A8,IFERROR(NR_Berechnung!S67,1/0),"") -> 0.9311506861 | BE67: =IF(HI_Hilfstabelle!$C8=HI_Hilfstabelle!$A8,IFERROR(NR_Berechnung!T67,1/0),"") -> 1.114645621 | BF67: =IF(HI_Hilfstabelle!$C8=HI_Hilfstabelle!$A8,IFERROR(NR_Berechnung!U67,1/0),"") -> 0.9004366778 | BG67: =IF(HI_Hilfstabelle!$C8=HI_Hilfstabelle!$A8,IFERROR(NR_Berechnung!V67,1/0),"") -> 0.946325229 | BH67: =IF(HI_Hilfstabelle!$C8=HI_Hilfstabelle!$A8,IFERROR(NR_Berechnung!W67,1/0),"") -> 0.9963569851 | BI67: =IF(HI_Hilfstabelle!$C8=HI_Hilfstabelle!$A8,IFERROR(NR_Berechnung!X67,1/0),"") -> 1.044463929 | BJ67: 0.9801067823 | BK67: 0.9776265982 | BL67: 0.9801067823 | BM67: 0.9776265982 | BN67: =IF(BL67="","",HI_Hilfstabelle!H8) -> 1328976 | BO67: 0.006044509955 | BP67: 0.006044509955 | BQ67: 0.005924265203 | BR67: 0.005909273705 | BS67: =IF(BL67="","",HI_Hilfstabelle!J8) -> 84 | BT67: 0.056 | BU67: 0.056 | BV67: 0.05488597981 | BW67: 0.0547470895
A68: Frankreich | C68: =NR_Veränderung!C9 -> 1.033588437 | D68: =NR_Veränderung!D9 -> 0.9966563036 | E68: =NR_Veränderung!E9 -> 1.039058348 | F68: =NR_Veränderung!F9 -> 1.061933228 | G68: =NR_Veränderung!G9 -> 0.9200729206 | H68: =NR_Veränderung!H9 -> 0.9625764626 | I68: =NR_Veränderung!I9 -> 0.9776433612 | J68: =NR_Veränderung!J9 -> 0.9733405853 | K68: =NR_Veränderung!K9 -> 1.027761413 | L68: =NR_Veränderung!L9 -> 1.013477937 | M68: =NR_Veränderung!M9 -> 0.9702650557 | N68: =NR_Veränderung!N9 -> 1.043474241 | O68: =NR_Veränderung!O9 -> 1.006527005 | P68: =NR_Veränderung!P9 -> 1.015074236 | Q68: =NR_Veränderung!Q9 -> 0.9569825695 | R68: =NR_Veränderung!R9 -> 0.9537602237 | S68: =NR_Veränderung!S9 -> 0.9852175192 | T68: =NR_Veränderung!T9 -> 0.9493696399 | U68: =NR_Veränderung!U9 -> 0.9706655862 | V68: =NR_Veränderung!V9 -> 0.9233129066 | W68: =NR_Veränderung!W9 -> 0.985672301 | X68: =NR_Veränderung!X9 -> 1.006273626 | Y68: 0.9677531146 | Z68: 0.9674099511 | AA68: 0.9677531146 | AB68: 0.9674099511 | AC68: =IF(AA68="","",HI_Hilfstabelle!H9) -> 67098824 | AD68: 0.2338233094 | AE68: 0.2338233094 | AF68: 0.226283236 | AG68: 0.2262029963 | AH68: =IF(AA68="","",HI_Hilfstabelle!J9) -> 106 | AI68: 0.06600249066 | AJ68: 0.06600249066 | AK68: 0.06387411591 | AL68: 0.06385146626 | AN68: =IF(HI_Hilfstabelle!$C9=HI_Hilfstabelle!$A9,IFERROR(NR_Berechnung!C68,1/0),"") ->  | AO68: =IF(HI_Hilfstabelle!$C9=HI_Hilfstabelle!$A9,IFERROR(NR_Berechnung!D68,1/0),"") ->  | AP68: =IF(HI_Hilfstabelle!$C9=HI_Hilfstabelle!$A9,IFERROR(NR_Berechnung!E68,1/0),"") ->  | AQ68: =IF(HI_Hilfstabelle!$C9=HI_Hilfstabelle!$A9,IFERROR(NR_Berechnung!F68,1/0),"") ->  | AR68: =IF(HI_Hilfstabelle!$C9=HI_Hilfstabelle!$A9,IFERROR(NR_Berechnung!G68,1/0),"") ->  | AS68: =IF(HI_Hilfstabelle!$C9=HI_Hilfstabelle!$A9,IFERROR(NR_Berechnung!H68,1/0),"") ->  | AT68: =IF(HI_Hilfstabelle!$C9=HI_Hilfstabelle!$A9,IFERROR(NR_Berechnung!I68,1/0),"") ->  | AU68: =IF(HI_Hilfstabelle!$C9=HI_Hilfstabelle!$A9,IFERROR(NR_Berechnung!J68,1/0),"") ->  | AV68: =IF(HI_Hilfstabelle!$C9=HI_Hilfstabelle!$A9,IFERROR(NR_Berechnung!K68,1/0),"") ->  | AW68: =IF(HI_Hilfstabelle!$C9=HI_Hilfstabelle!$A9,IFERROR(NR_Berechnung!L68,1/0),"") ->  | AX68: =IF(HI_Hilfstabelle!$C9=HI_Hilfstabelle!$A9,IFERROR(NR_Berechnung!M68,1/0),"") ->  | AY68: =IF(HI_Hilfstabelle!$C9=HI_Hilfstabelle!$A9,IFERROR(NR_Berechnung!N68,1/0),"") ->  | AZ68: =IF(HI_Hilfstabelle!$C9=HI_Hilfstabelle!$A9,IFERROR(NR_Berechnung!O68,1/0),"") ->  | BA68: =IF(HI_Hilfstabelle!$C9=HI_Hilfstabelle!$A9,IFERROR(NR_Berechnung!P68,1/0),"") ->  | BB68: =IF(HI_Hilfstabelle!$C9=HI_Hilfstabelle!$A9,IFERROR(NR_Berechnung!Q68,1/0),"") ->  | BC68: =IF(HI_Hilfstabelle!$C9=HI_Hilfstabelle!$A9,IFERROR(NR_Berechnung!R68,1/0),"") ->  | BD68: =IF(HI_Hilfstabelle!$C9=HI_Hilfstabelle!$A9,IFERROR(NR_Berechnung!S68,1/0),"") ->  | BE68: =IF(HI_Hilfstabelle!$C9=HI_Hilfstabelle!$A9,IFERROR(NR_Berechnung!T68,1/0),"") ->  | BF68: =IF(HI_Hilfstabelle!$C9=HI_Hilfstabelle!$A9,IFERROR(NR_Berechnung!U68,1/0),"") ->  | BG68: =IF(HI_Hilfstabelle!$C9=HI_Hilfstabelle!$A9,IFERROR(NR_Berechnung!V68,1/0),"") ->  | BH68: =IF(HI_Hilfstabelle!$C9=HI_Hilfstabelle!$A9,IFERROR(NR_Berechnung!W68,1/0),"") ->  | BI68: =IF(HI_Hilfstabelle!$C9=HI_Hilfstabelle!$A9,IFERROR(NR_Berechnung!X68,1/0),"") ->  | BN68: =IF(BL68="","",HI_Hilfstabelle!H9) ->  | BS68: =IF(BL68="","",HI_Hilfstabelle!J9) -> 
A69: Griechenland | C69: =NR_Veränderung!C10 -> 0.9971575857 | D69: =NR_Veränderung!D10 -> 1.201864422 | E69: =NR_Veränderung!E10 -> 1.036041399 | F69: =NR_Veränderung!F10 -> 1.282963728 | G69: =NR_Veränderung!G10 -> 1.017283902 | H69: =NR_Veränderung!H10 -> 1.110271611 | I69: =NR_Veränderung!I10 -> 1.056840129 | J69: =NR_Veränderung!J10 -> 0.9789677712 | K69: =NR_Veränderung!K10 -> 1.032120067 | L69: =NR_Veränderung!L10 -> 1.021155323 | M69: =NR_Veränderung!M10 -> 1.086639609 | N69: =NR_Veränderung!N10 -> 1.024146924 | O69: =NR_Veränderung!O10 -> 1.078990652 | P69: =NR_Veränderung!P10 -> 0.8900127418 | Q69: =NR_Veränderung!Q10 -> 0.9257186945 | R69: =NR_Veränderung!R10 -> 0.9665822155 | S69: =NR_Veränderung!S10 -> 0.9053419031 | T69: =NR_Veränderung!T10 -> 0.8882574427 | U69: =NR_Veränderung!U10 -> 0.9080479878 | V69: =NR_Veränderung!V10 -> 0.8950753812 | W69: =NR_Veränderung!W10 -> 0.9867141589 | X69: =NR_Veränderung!X10 -> 0.9850945054 | Y69: 0.9335876564 | Z69: 0.9327104649 | AA69: 0.9335876564 | AB69: 0.9327104649 | AC69: =IF(AA69="","",HI_Hilfstabelle!H10) -> 10709739 | AD69: 0.03732087191 | AE69: 0.03732087191 | AF69: 0.03484230534 | AG69: 0.03480956779 | AH69: =IF(AA69="","",HI_Hilfstabelle!J10) -> 67 | AI69: 0.04171855542 | AJ69: 0.04171855542 | AK69: 0.03894792838 | AL69: 0.03891133322 | AN69: =IF(HI_Hilfstabelle!$C10=HI_Hilfstabelle!$A10,IFERROR(NR_Berechnung!C69,1/0),"") -> 0.9971575857 | AO69: =IF(HI_Hilfstabelle!$C10=HI_Hilfstabelle!$A10,IFERROR(NR_Berechnung!D69,1/0),"") -> 1.201864422 | AP69: =IF(HI_Hilfstabelle!$C10=HI_Hilfstabelle!$A10,IFERROR(NR_Berechnung!E69,1/0),"") -> 1.036041399 | AQ69: =IF(HI_Hilfstabelle!$C10=HI_Hilfstabelle!$A10,IFERROR(NR_Berechnung!F69,1/0),"") -> 1.282963728 | AR69: =IF(HI_Hilfstabelle!$C10=HI_Hilfstabelle!$A10,IFERROR(NR_Berechnung!G69,1/0),"") -> 1.017283902 | AS69: =IF(HI_Hilfstabelle!$C10=HI_Hilfstabelle!$A10,IFERROR(NR_Berechnung!H69,1/0),"") -> 1.110271611 | AT69: =IF(HI_Hilfstabelle!$C10=HI_Hilfstabelle!$A10,IFERROR(NR_Berechnung!I69,1/0),"") -> 1.056840129 | AU69: =IF(HI_Hilfstabelle!$C10=HI_Hilfstabelle!$A10,IFERROR(NR_Berechnung!J69,1/0),"") -> 0.9789677712 | AV69: =IF(HI_Hilfstabelle!$C10=HI_Hilfstabelle!$A10,IFERROR(NR_Berechnung!K69,1/0),"") -> 1.032120067 | AW69: =IF(HI_Hilfstabelle!$C10=HI_Hilfstabelle!$A10,IFERROR(NR_Berechnung!L69,1/0),"") -> 1.021155323 | AX69: =IF(HI_Hilfstabelle!$C10=HI_Hilfstabelle!$A10,IFERROR(NR_Berechnung!M69,1/0),"") -> 1.086639609 | AY69: =IF(HI_Hilfstabelle!$C10=HI_Hilfstabelle!$A10,IFERROR(NR_Berechnung!N69,1/0),"") -> 1.024146924 | AZ69: =IF(HI_Hilfstabelle!$C10=HI_Hilfstabelle!$A10,IFERROR(NR_Berechnung!O69,1/0),"") -> 1.078990652 | BA69: =IF(HI_Hilfstabelle!$C10=HI_Hilfstabelle!$A10,IFERROR(NR_Berechnung!P69,1/0),"") -> 0.8900127418 | BB69: =IF(HI_Hilfstabelle!$C10=HI_Hilfstabelle!$A10,IFERROR(NR_Berechnung!Q69,1/0),"") -> 0.9257186945 | BC69: =IF(HI_Hilfstabelle!$C10=HI_Hilfstabelle!$A10,IFERROR(NR_Berechnung!R69,1/0),"") -> 0.9665822155 | BD69: =IF(HI_Hilfstabelle!$C10=HI_Hilfstabelle!$A10,IFERROR(NR_Berechnung!S69,1/0),"") -> 0.9053419031 | BE69: =IF(HI_Hilfstabelle!$C10=HI_Hilfstabelle!$A10,IFERROR(NR_Berechnung!T69,1/0),"") -> 0.8882574427 | BF69: =IF(HI_Hilfstabelle!$C10=HI_Hilfstabelle!$A10,IFERROR(NR_Berechnung!U69,1/0),"") -> 0.9080479878 | BG69: =IF(HI_Hilfstabelle!$C10=HI_Hilfstabelle!$A10,IFERROR(NR_Berechnung!V69,1/0),"") -> 0.8950753812 | BH69: =IF(HI_Hilfstabelle!$C10=HI_Hilfstabelle!$A10,IFERROR(NR_Berechnung!W69,1/0),"") -> 0.9867141589 | BI69: =IF(HI_Hilfstabelle!$C10=HI_Hilfstabelle!$A10,IFERROR(NR_Berechnung!X69,1/0),"") -> 0.9850945054 | BJ69: 0.9335876564 | BK69: 0.9327104649 | BL69: 0.9335876564 | BM69: 0.9327104649 | BN69: =IF(BL69="","",HI_Hilfstabelle!H10) -> 10709739 | BO69: 0.04871052901 | BP69: 0.04871052901 | BQ69: 0.04547554862 | BR69: 0.04543282016 | BS69: =IF(BL69="","",HI_Hilfstabelle!J10) -> 67 | BT69: 0.04466666667 | BU69: 0.04466666667 | BV69: 0.04170024865 | BW69: 0.04166106743
A70: Italien | C70: =NR_Veränderung!C11 -> 1.002226474 | D70: =NR_Veränderung!D11 -> 1.08304136 | E70: =NR_Veränderung!E11 -> 1.024622851 | F70: =NR_Veränderung!F11 -> 1.124078423 | G70: =NR_Veränderung!G11 -> 1.046042328 | H70: =NR_Veränderung!H11 -> 1.153177719 | I70: =NR_Veränderung!I11 -> 0.9786912899 | J70: =NR_Veränderung!J11 -> 1.022994974 | K70: =NR_Veränderung!K11 -> 0.9835994108 | L70: =NR_Veränderung!L11 -> 1.041729113 | M70: =NR_Veränderung!M11 -> 1.01669314 | N70: =NR_Veränderung!N11 -> 1.044670968 | O70: =NR_Veränderung!O11 -> 0.9776986049 | P70: =NR_Veränderung!P11 -> 0.9985677374 | Q70: =NR_Veränderung!Q11 -> 1.034060791 | R70: =NR_Veränderung!R11 -> 0.9557141185 | S70: =NR_Veränderung!S11 -> 0.9554512951 | T70: =NR_Veränderung!T11 -> 1.094334582 | U70: =NR_Veränderung!U11 -> 0.8926567604 | V70: =NR_Veränderung!V11 -> 1.02771418 | W70: =NR_Veränderung!W11 -> 0.99401527 | X70: =NR_Veränderung!X11 -> 1.015162535 | Y70: 0.9907212487 | Z70: 0.9889343269 | AA70: 0.9907212487 | AB70: 0.9889343269 | AC70: =IF(AA70="","",HI_Hilfstabelle!H11) -> 60244639 | AD70: 0.2099381185 | AE70: 0.2099381185 | AF70: 0.207990155 | AG70: 0.2076150119 | AH70: =IF(AA70="","",HI_Hilfstabelle!J11) -> 96 | AI70: 0.0597758406 | AJ70: 0.0597758406 | AK70: 0.05922119544 | AL70: 0.05911438069 | AN70: =IF(HI_Hilfstabelle!$C11=HI_Hilfstabelle!$A11,IFERROR(NR_Berechnung!C70,1/0),"") -> 1.002226474 | AO70: =IF(HI_Hilfstabelle!$C11=HI_Hilfstabelle!$A11,IFERROR(NR_Berechnung!D70,1/0),"") -> 1.08304136 | AP70: =IF(HI_Hilfstabelle!$C11=HI_Hilfstabelle!$A11,IFERROR(NR_Berechnung!E70,1/0),"") -> 1.024622851 | AQ70: =IF(HI_Hilfstabelle!$C11=HI_Hilfstabelle!$A11,IFERROR(NR_Berechnung!F70,1/0),"") -> 1.124078423 | AR70: =IF(HI_Hilfstabelle!$C11=HI_Hilfstabelle!$A11,IFERROR(NR_Berechnung!G70,1/0),"") -> 1.046042328 | AS70: =IF(HI_Hilfstabelle!$C11=HI_Hilfstabelle!$A11,IFERROR(NR_Berechnung!H70,1/0),"") -> 1.153177719 | AT70: =IF(HI_Hilfstabelle!$C11=HI_Hilfstabelle!$A11,IFERROR(NR_Berechnung!I70,1/0),"") -> 0.9786912899 | AU70: =IF(HI_Hilfstabelle!$C11=HI_Hilfstabelle!$A11,IFERROR(NR_Berechnung!J70,1/0),"") -> 1.022994974 | AV70: =IF(HI_Hilfstabelle!$C11=HI_Hilfstabelle!$A11,IFERROR(NR_Berechnung!K70,1/0),"") -> 0.9835994108 | AW70: =IF(HI_Hilfstabelle!$C11=HI_Hilfstabelle!$A11,IFERROR(NR_Berechnung!L70,1/0),"") -> 1.041729113 | AX70: =IF(HI_Hilfstabelle!$C11=HI_Hilfstabelle!$A11,IFERROR(NR_Berechnung!M70,1/0),"") -> 1.01669314 | AY70: =IF(HI_Hilfstabelle!$C11=HI_Hilfstabelle!$A11,IFERROR(NR_Berechnung!N70,1/0),"") -> 1.044670968 | AZ70: =IF(HI_Hilfstabelle!$C11=HI_Hilfstabelle!$A11,IFERROR(NR_Berechnung!O70,1/0),"") -> 0.9776986049 | BA70: =IF(HI_Hilfstabelle!$C11=HI_Hilfstabelle!$A11,IFERROR(NR_Berechnung!P70,1/0),"") -> 0.9985677374 | BB70: =IF(HI_Hilfstabelle!$C11=HI_Hilfstabelle!$A11,IFERROR(NR_Berechnung!Q70,1/0),"") -> 1.034060791 | BC70: =IF(HI_Hilfstabelle!$C11=HI_Hilfstabelle!$A11,IFERROR(NR_Berechnung!R70,1/0),"") -> 0.9557141185 | BD70: =IF(HI_Hilfstabelle!$C11=HI_Hilfstabelle!$A11,IFERROR(NR_Berechnung!S70,1/0),"") -> 0.9554512951 | BE70: =IF(HI_Hilfstabelle!$C11=HI_Hilfstabelle!$A11,IFERROR(NR_Berechnung!T70,1/0),"") -> 1.094334582 | BF70: =IF(HI_Hilfstabelle!$C11=HI_Hilfstabelle!$A11,IFERROR(NR_Berechnung!U70,1/0),"") -> 0.8926567604 | BG70: =IF(HI_Hilfstabelle!$C11=HI_Hilfstabelle!$A11,IFERROR(NR_Berechnung!V70,1/0),"") -> 1.02771418 | BH70: =IF(HI_Hilfstabelle!$C11=HI_Hilfstabelle!$A11,IFERROR(NR_Berechnung!W70,1/0),"") -> 0.99401527 | BI70: =IF(HI_Hilfstabelle!$C11=HI_Hilfstabelle!$A11,IFERROR(NR_Berechnung!X70,1/0),"") -> 1.015162535 | BJ70: 0.9907212487 | BK70: 0.9889343269 | BL70: 0.9907212487 | BM70: 0.9889343269 | BN70: =IF(BL70="","",HI_Hilfstabelle!H11) -> 60244639 | BO70: 0.2740074465 | BP70: 0.2740074465 | BQ70: 0.2714649995 | BR70: 0.2709753697 | BS70: =IF(BL70="","",HI_Hilfstabelle!J11) -> 96 | BT70: 0.064 | BU70: 0.064 | BV70: 0.06340615992 | BW70: 0.06329179692
A71: Spanien | C71: =NR_Veränderung!C12 -> 1.157773841 | D71: =NR_Veränderung!D12 -> 1.114294102 | E71: =NR_Veränderung!E12 -> 1.078589094 | F71: =NR_Veränderung!F12 -> 1.01822939 | G71: =NR_Veränderung!G12 -> 1.089614655 | H71: =NR_Veränderung!H12 -> 1.061731807 | I71: =NR_Veränderung!I12 -> 1.082605099 | J71: =NR_Veränderung!J12 -> 1.057437635 | K71: =NR_Veränderung!K12 -> 1.060482515 | L71: =NR_Veränderung!L12 -> 1.050913712 | M71: =NR_Veränderung!M12 -> 1.004751265 | N71: =NR_Veränderung!N12 -> 1.083095111 | O71: =NR_Veränderung!O12 -> 1.013053148 | P71: =NR_Veränderung!P12 -> 0.9797322641 | Q71: =NR_Veränderung!Q12 -> 1.100334448 | R71: =NR_Veränderung!R12 -> 1.042242501 | S71: =NR_Veränderung!S12 -> 0.9568541309 | T71: =NR_Veränderung!T12 -> 1.075290823 | U71: =NR_Veränderung!U12 -> 1.121202497 | V71: =NR_Veränderung!V12 -> 0.9719791484 | W71: =NR_Veränderung!W12 -> 0.9378033499 | X71: =NR_Veränderung!X12 -> 0.9605931513 | Y71: 1.009423657 | Z71: 1.007373192 | AA71: 1.009423657 | AB71: 1.007373192 | AC71: =IF(AA71="","",HI_Hilfstabelle!H12) -> 47329981 | AD71: 0.1649336327 | AE71: 0.1649336327 | AF71: 0.1664879107 | AG71: 0.16614972 | AH71: =IF(AA71="","",HI_Hilfstabelle!J12) -> 91 | AI71: 0.05666251557 | AJ71: 0.05666251557 | AK71: 0.0571964837 | AL71: 0.05708029916 | AN71: =IF(HI_Hilfstabelle!$C12=HI_Hilfstabelle!$A12,IFERROR(NR_Berechnung!C71,1/0),"") -> 1.157773841 | AO71: =IF(HI_Hilfstabelle!$C12=HI_Hilfstabelle!$A12,IFERROR(NR_Berechnung!D71,1/0),"") -> 1.114294102 | AP71: =IF(HI_Hilfstabelle!$C12=HI_Hilfstabelle!$A12,IFERROR(NR_Berechnung!E71,1/0),"") -> 1.078589094 | AQ71: =IF(HI_Hilfstabelle!$C12=HI_Hilfstabelle!$A12,IFERROR(NR_Berechnung!F71,1/0),"") -> 1.01822939 | AR71: =IF(HI_Hilfstabelle!$C12=HI_Hilfstabelle!$A12,IFERROR(NR_Berechnung!G71,1/0),"") -> 1.089614655 | AS71: =IF(HI_Hilfstabelle!$C12=HI_Hilfstabelle!$A12,IFERROR(NR_Berechnung!H71,1/0),"") -> 1.061731807 | AT71: =IF(HI_Hilfstabelle!$C12=HI_Hilfstabelle!$A12,IFERROR(NR_Berechnung!I71,1/0),"") -> 1.082605099 | AU71: =IF(HI_Hilfstabelle!$C12=HI_Hilfstabelle!$A12,IFERROR(NR_Berechnung!J71,1/0),"") -> 1.057437635 | AV71: =IF(HI_Hilfstabelle!$C12=HI_Hilfstabelle!$A12,IFERROR(NR_Berechnung!K71,1/0),"") -> 1.060482515 | AW71: =IF(HI_Hilfstabelle!$C12=HI_Hilfstabelle!$A12,IFERROR(NR_Berechnung!L71,1/0),"") -> 1.050913712 | AX71: =IF(HI_Hilfstabelle!$C12=HI_Hilfstabelle!$A12,IFERROR(NR_Berechnung!M71,1/0),"") -> 1.004751265 | AY71: =IF(HI_Hilfstabelle!$C12=HI_Hilfstabelle!$A12,IFERROR(NR_Berechnung!N71,1/0),"") -> 1.083095111 | AZ71: =IF(HI_Hilfstabelle!$C12=HI_Hilfstabelle!$A12,IFERROR(NR_Berechnung!O71,1/0),"") -> 1.013053148 | BA71: =IF(HI_Hilfstabelle!$C12=HI_Hilfstabelle!$A12,IFERROR(NR_Berechnung!P71,1/0),"") -> 0.9797322641 | BB71: =IF(HI_Hilfstabelle!$C12=HI_Hilfstabelle!$A12,IFERROR(NR_Berechnung!Q71,1/0),"") -> 1.100334448 | BC71: =IF(HI_Hilfstabelle!$C12=HI_Hilfstabelle!$A12,IFERROR(NR_Berechnung!R71,1/0),"") -> 1.042242501 | BD71: =IF(HI_Hilfstabelle!$C12=HI_Hilfstabelle!$A12,IFERROR(NR_Berechnung!S71,1/0),"") -> 0.9568541309 | BE71: =IF(HI_Hilfstabelle!$C12=HI_Hilfstabelle!$A12,IFERROR(NR_Berechnung!T71,1/0),"") -> 1.075290823 | BF71: =IF(HI_Hilfstabelle!$C12=HI_Hilfstabelle!$A12,IFERROR(NR_Berechnung!U71,1/0),"") -> 1.121202497 | BG71: =IF(HI_Hilfstabelle!$C12=HI_Hilfstabelle!$A12,IFERROR(NR_Berechnung!V71,1/0),"") -> 0.9719791484 | BH71: =IF(HI_Hilfstabelle!$C12=HI_Hilfstabelle!$A12,IFERROR(NR_Berechnung!W71,1/0),"") -> 0.9378033499 | BI71: =IF(HI_Hilfstabelle!$C12=HI_Hilfstabelle!$A12,IFERROR(NR_Berechnung!X71,1/0),"") -> 0.9605931513 | BJ71: 1.009423657 | BK71: 1.007373192 | BL71: 1.009423657 | BM71: 1.007373192 | BN71: =IF(BL71="","",HI_Hilfstabelle!H12) -> 47329981 | BO71: 0.2152684031 | BP71: 0.2152684031 | BQ71: 0.2172970188 | BR71: 0.2168556184 | BS71: =IF(BL71="","",HI_Hilfstabelle!J12) -> 91 | BT71: 0.06066666667 | BU71: 0.06066666667 | BV71: 0.06123836855 | BW71: 0.06111397364
A72: Finnland | C72: =NR_Veränderung!C13 -> 1.033285094 | D72: =NR_Veränderung!D13 -> 1.058910253 | E72: =NR_Veränderung!E13 -> 1.012850968 | F72: =NR_Veränderung!F13 -> 1.095097145 | G72: =NR_Veränderung!G13 -> 1.03229239 | H72: =NR_Veränderung!H13 -> 1.013202073 | I72: =NR_Veränderung!I13 -> 0.9795454545 | J72: =NR_Veränderung!J13 -> 1.011049295 | K72: =NR_Veränderung!K13 -> 1.022080691 | L72: =NR_Veränderung!L13 -> 0.9981728414 | M72: =NR_Veränderung!M13 -> 0.9946464856 | N72: =NR_Veränderung!N13 -> 0.9940303536 | O72: =NR_Veränderung!O13 -> 0.9819358693 | P72: =NR_Veränderung!P13 -> 0.9715423539 | Q72: =NR_Veränderung!Q13 -> 1.057943478 | R72: =NR_Veränderung!R13 -> 0.9853880648 | S72: =NR_Veränderung!S13 -> 1.028946593 | T72: =NR_Veränderung!T13 -> 0.8861141231 | U72: =NR_Veränderung!U13 -> 0.8409633326 | V72: =NR_Veränderung!V13 -> 0.9354657653 | W72: =NR_Veränderung!W13 -> 0.9561279474 | X72: =NR_Veränderung!X13 -> 0.8849752587 | Y72: 0.931140155 | Z72: 0.9291931175 | AA72: 0.931140155 | AB72: 0.9291931175 | AC72: =IF(AA72="","",HI_Hilfstabelle!H13) -> 5525292 | AD72: 0.0192543175 | AE72: 0.0192543175 | AF72: 0.01792846818 | AG72: 0.0178909793 | AH72: =IF(AA72="","",HI_Hilfstabelle!J13) -> 111 | AI72: 0.06911581569 | AJ72: 0.06911581569 | AK72: 0.06435651134 | AL72: 0.06422194025 | AN72: =IF(HI_Hilfstabelle!$C13=HI_Hilfstabelle!$A13,IFERROR(NR_Berechnung!C72,1/0),"") -> 1.033285094 | AO72: =IF(HI_Hilfstabelle!$C13=HI_Hilfstabelle!$A13,IFERROR(NR_Berechnung!D72,1/0),"") -> 1.058910253 | AP72: =IF(HI_Hilfstabelle!$C13=HI_Hilfstabelle!$A13,IFERROR(NR_Berechnung!E72,1/0),"") -> 1.012850968 | AQ72: =IF(HI_Hilfstabelle!$C13=HI_Hilfstabelle!$A13,IFERROR(NR_Berechnung!F72,1/0),"") -> 1.095097145 | AR72: =IF(HI_Hilfstabelle!$C13=HI_Hilfstabelle!$A13,IFERROR(NR_Berechnung!G72,1/0),"") -> 1.03229239 | AS72: =IF(HI_Hilfstabelle!$C13=HI_Hilfstabelle!$A13,IFERROR(NR_Berechnung!H72,1/0),"") -> 1.013202073 | AT72: =IF(HI_Hilfstabelle!$C13=HI_Hilfstabelle!$A13,IFERROR(NR_Berechnung!I72,1/0),"") -> 0.9795454545 | AU72: =IF(HI_Hilfstabelle!$C13=HI_Hilfstabelle!$A13,IFERROR(NR_Berechnung!J72,1/0),"") -> 1.011049295 | AV72: =IF(HI_Hilfstabelle!$C13=HI_Hilfstabelle!$A13,IFERROR(NR_Berechnung!K72,1/0),"") -> 1.022080691 | AW72: =IF(HI_Hilfstabelle!$C13=HI_Hilfstabelle!$A13,IFERROR(NR_Berechnung!L72,1/0),"") -> 0.9981728414 | AX72: =IF(HI_Hilfstabelle!$C13=HI_Hilfstabelle!$A13,IFERROR(NR_Berechnung!M72,1/0),"") -> 0.9946464856 | AY72: =IF(HI_Hilfstabelle!$C13=HI_Hilfstabelle!$A13,IFERROR(NR_Berechnung!N72,1/0),"") -> 0.9940303536 | AZ72: =IF(HI_Hilfstabelle!$C13=HI_Hilfstabelle!$A13,IFERROR(NR_Berechnung!O72,1/0),"") -> 0.9819358693 | BA72: =IF(HI_Hilfstabelle!$C13=HI_Hilfstabelle!$A13,IFERROR(NR_Berechnung!P72,1/0),"") -> 0.9715423539 | BB72: =IF(HI_Hilfstabelle!$C13=HI_Hilfstabelle!$A13,IFERROR(NR_Berechnung!Q72,1/0),"") -> 1.057943478 | BC72: =IF(HI_Hilfstabelle!$C13=HI_Hilfstabelle!$A13,IFERROR(NR_Berechnung!R72,1/0),"") -> 0.9853880648 | BD72: =IF(HI_Hilfstabelle!$C13=HI_Hilfstabelle!$A13,IFERROR(NR_Berechnung!S72,1/0),"") -> 1.028946593 | BE72: =IF(HI_Hilfstabelle!$C13=HI_Hilfstabelle!$A13,IFERROR(NR_Berechnung!T72,1/0),"") -> 0.8861141231 | BF72: =IF(HI_Hilfstabelle!$C13=HI_Hilfstabelle!$A13,IFERROR(NR_Berechnung!U72,1/0),"") -> 0.8409633326 | BG72: =IF(HI_Hilfstabelle!$C13=HI_Hilfstabelle!$A13,IFERROR(NR_Berechnung!V72,1/0),"") -> 0.9354657653 | BH72: =IF(HI_Hilfstabelle!$C13=HI_Hilfstabelle!$A13,IFERROR(NR_Berechnung!W72,1/0),"") -> 0.9561279474 | BI72: =IF(HI_Hilfstabelle!$C13=HI_Hilfstabelle!$A13,IFERROR(NR_Berechnung!X72,1/0),"") -> 0.8849752587 | BJ72: 0.931140155 | BK72: 0.9291931175 | BL72: 0.931140155 | BM72: 0.9291931175 | BN72: =IF(BL72="","",HI_Hilfstabelle!H13) -> 5525292 | BO72: 0.02513038798 | BP72: 0.02513038798 | BQ72: 0.02339991336 | BR72: 0.02335098356 | BS72: =IF(BL72="","",HI_Hilfstabelle!J13) -> 111 | BT72: 0.074 | BU72: 0.074 | BV72: 0.06890437147 | BW72: 0.0687602907
A73: Ungarn | C73: =NR_Veränderung!C14 -> 0.8949230469 | D73: =NR_Veränderung!D14 -> 0.973650589 | E73: =NR_Veränderung!E14 -> 1.058518545 | F73: =NR_Veränderung!F14 -> 1.021064201 | G73: =NR_Veränderung!G14 -> 0.9650084982 | H73: =NR_Veränderung!H14 -> 1.476375981 | I73: =NR_Veränderung!I14 -> 1.227648607 | J73: =NR_Veränderung!J14 -> 0.9193210334 | K73: =NR_Veränderung!K14 -> 1.180109151 | L73: =NR_Veränderung!L14 -> 1.062639033 | M73: =NR_Veränderung!M14 -> 1.003038949 | N73: =NR_Veränderung!N14 -> 1.069326015 | O73: =NR_Veränderung!O14 -> 1.148904348 | P73: =NR_Veränderung!P14 -> 0.8460196238 | Q73: =NR_Veränderung!Q14 -> 0.9846263307 | R73: =NR_Veränderung!R14 -> 0.9866504878 | S73: =NR_Veränderung!S14 -> 0.9777529628 | T73: =NR_Veränderung!T14 -> 1.062927435 | U73: =NR_Veränderung!U14 -> 1.045968638 | V73: =NR_Veränderung!V14 -> 1.026948919 | W73: =NR_Veränderung!W14 -> 0.9454604338 | X73: =NR_Veränderung!X14 -> 0.9087959872 | Y73: 0.9935006948 | Z73: 0.9921604435 | AA73: 0.9935006948 | AB73: 0.9921604435 | AC73: =IF(AA73="","",HI_Hilfstabelle!H14) -> 9769526 | AD73: 0.0340444551 | AE73: 0.0340444551 | AF73: 0.0338231898 | AG73: 0.03377756167 | AH73: =IF(AA73="","",HI_Hilfstabelle!J14) -> 73 | AI73: 0.04545454545 | AJ73: 0.04545454545 | AK73: 0.04515912249 | AL73: 0.04509820198 | AN73: =IF(HI_Hilfstabelle!$C14=HI_Hilfstabelle!$A14,IFERROR(NR_Berechnung!C73,1/0),"") -> 0.8949230469 | AO73: =IF(HI_Hilfstabelle!$C14=HI_Hilfstabelle!$A14,IFERROR(NR_Berechnung!D73,1/0),"") -> 0.973650589 | AP73: =IF(HI_Hilfstabelle!$C14=HI_Hilfstabelle!$A14,IFERROR(NR_Berechnung!E73,1/0),"") -> 1.058518545 | AQ73: =IF(HI_Hilfstabelle!$C14=HI_Hilfstabelle!$A14,IFERROR(NR_Berechnung!F73,1/0),"") -> 1.021064201 | AR73: =IF(HI_Hilfstabelle!$C14=HI_Hilfstabelle!$A14,IFERROR(NR_Berechnung!G73,1/0),"") -> 0.9650084982 | AS73: =IF(HI_Hilfstabelle!$C14=HI_Hilfstabelle!$A14,IFERROR(NR_Berechnung!H73,1/0),"") -> 1.476375981 | AT73: =IF(HI_Hilfstabelle!$C14=HI_Hilfstabelle!$A14,IFERROR(NR_Berechnung!I73,1/0),"") -> 1.227648607 | AU73: =IF(HI_Hilfstabelle!$C14=HI_Hilfstabelle!$A14,IFERROR(NR_Berechnung!J73,1/0),"") -> 0.9193210334 | AV73: =IF(HI_Hilfstabelle!$C14=HI_Hilfstabelle!$A14,IFERROR(NR_Berechnung!K73,1/0),"") -> 1.180109151 | AW73: =IF(HI_Hilfstabelle!$C14=HI_Hilfstabelle!$A14,IFERROR(NR_Berechnung!L73,1/0),"") -> 1.062639033 | AX73: =IF(HI_Hilfstabelle!$C14=HI_Hilfstabelle!$A14,IFERROR(NR_Berechnung!M73,1/0),"") -> 1.003038949 | AY73: =IF(HI_Hilfstabelle!$C14=HI_Hilfstabelle!$A14,IFERROR(NR_Berechnung!N73,1/0),"") -> 1.069326015 | AZ73: =IF(HI_Hilfstabelle!$C14=HI_Hilfstabelle!$A14,IFERROR(NR_Berechnung!O73,1/0),"") -> 1.148904348 | BA73: =IF(HI_Hilfstabelle!$C14=HI_Hilfstabelle!$A14,IFERROR(NR_Berechnung!P73,1/0),"") -> 0.8460196238 | BB73: =IF(HI_Hilfstabelle!$C14=HI_Hilfstabelle!$A14,IFERROR(NR_Berechnung!Q73,1/0),"") -> 0.9846263307 | BC73: =IF(HI_Hilfstabelle!$C14=HI_Hilfstabelle!$A14,IFERROR(NR_Berechnung!R73,1/0),"") -> 0.9866504878 | BD73: =IF(HI_Hilfstabelle!$C14=HI_Hilfstabelle!$A14,IFERROR(NR_Berechnung!S73,1/0),"") -> 0.9777529628 | BE73: =IF(HI_Hilfstabelle!$C14=HI_Hilfstabelle!$A14,IFERROR(NR_Berechnung!T73,1/0),"") -> 1.062927435 | BF73: =IF(HI_Hilfstabelle!$C14=HI_Hilfstabelle!$A14,IFERROR(NR_Berechnung!U73,1/0),"") -> 1.045968638 | BG73: =IF(HI_Hilfstabelle!$C14=HI_Hilfstabelle!$A14,IFERROR(NR_Berechnung!V73,1/0),"") -> 1.026948919 | BH73: =IF(HI_Hilfstabelle!$C14=HI_Hilfstabelle!$A14,IFERROR(NR_Berechnung!W73,1/0),"") -> 0.9454604338 | BI73: =IF(HI_Hilfstabelle!$C14=HI_Hilfstabelle!$A14,IFERROR(NR_Berechnung!X73,1/0),"") -> 0.9087959872 | BJ73: 0.9935006948 | BK73: 0.9921604435 | BL73: 0.9935006948 | BM73: 0.9921604435 | BN73: =IF(BL73="","",HI_Hilfstabelle!H14) -> 9769526 | BO73: 0.04443420887 | BP73: 0.04443420887 | BQ73: 0.04414541738 | BR73: 0.04408586438 | BS73: =IF(BL73="","",HI_Hilfstabelle!J14) -> 73 | BT73: 0.04866666667 | BU73: 0.04866666667 | BV73: 0.04835036715 | BW73: 0.04828514158
A74: Irland | C74: =NR_Veränderung!C15 -> 1.001991993 | D74: =NR_Veränderung!D15 -> 1.041911964 | E74: =NR_Veränderung!E15 -> 0.8495386478 | F74: =NR_Veränderung!F15 -> 1.032598226 | G74: =NR_Veränderung!G15 -> 0.9656901802 | H74: =NR_Veränderung!H15 -> 0.9367868993 | I74: =NR_Veränderung!I15 -> 0.9373886087 | J74: =NR_Veränderung!J15 -> 1.017119866 | K74: =NR_Veränderung!K15 -> 1.163074959 | L74: =NR_Veränderung!L15 -> 0.8044159394 | M74: =NR_Veränderung!M15 -> 0.9366540006 | N74: =NR_Veränderung!N15 -> 1.002960961 | O74: =NR_Veränderung!O15 -> 0.9907081892 | P74: =NR_Veränderung!P15 -> 0.9820001031 | Q74: =NR_Veränderung!Q15 -> 1.218000938 | R74: =NR_Veränderung!R15 -> 0.9931127629 | S74: =NR_Veränderung!S15 -> 1.023663586 | T74: =NR_Veränderung!T15 -> 0.9719091618 | U74: =NR_Veränderung!U15 -> 0.9274309429 | V74: =NR_Veränderung!V15 -> 0.9526265013 | W74: =NR_Veränderung!W15 -> 0.9334560244 | X74: =NR_Veränderung!X15 -> 1.01823979 | Y74: 0.9743483956 | Z74: 0.9736850976 | AA74: 0.9743483956 | AB74: 0.9736850976 | AC74: =IF(AA74="","",HI_Hilfstabelle!H15) -> 4963839 | AD74: 0.01729778845 | AE74: 0.01729778845 | AF74: 0.01685407242 | AG74: 0.01684259883 | AH74: =IF(AA74="","",HI_Hilfstabelle!J15) -> 193 | AI74: 0.1201743462 | AJ74: 0.1201743462 | AK74: 0.1170916814 | AL74: 0.11701197 | AN74: =IF(HI_Hilfstabelle!$C15=HI_Hilfstabelle!$A15,IFERROR(NR_Berechnung!C74,1/0),"") -> 1.001991993 | AO74: =IF(HI_Hilfstabelle!$C15=HI_Hilfstabelle!$A15,IFERROR(NR_Berechnung!D74,1/0),"") -> 1.041911964 | AP74: =IF(HI_Hilfstabelle!$C15=HI_Hilfstabelle!$A15,IFERROR(NR_Berechnung!E74,1/0),"") -> 0.8495386478 | AQ74: =IF(HI_Hilfstabelle!$C15=HI_Hilfstabelle!$A15,IFERROR(NR_Berechnung!F74,1/0),"") -> 1.032598226 | AR74: =IF(HI_Hilfstabelle!$C15=HI_Hilfstabelle!$A15,IFERROR(NR_Berechnung!G74,1/0),"") -> 0.9656901802 | AS74: =IF(HI_Hilfstabelle!$C15=HI_Hilfstabelle!$A15,IFERROR(NR_Berechnung!H74,1/0),"") -> 0.9367868993 | AT74: =IF(HI_Hilfstabelle!$C15=HI_Hilfstabelle!$A15,IFERROR(NR_Berechnung!I74,1/0),"") -> 0.9373886087 | AU74: =IF(HI_Hilfstabelle!$C15=HI_Hilfstabelle!$A15,IFERROR(NR_Berechnung!J74,1/0),"") -> 1.017119866 | AV74: =IF(HI_Hilfstabelle!$C15=HI_Hilfstabelle!$A15,IFERROR(NR_Berechnung!K74,1/0),"") -> 1.163074959 | AW74: =IF(HI_Hilfstabelle!$C15=HI_Hilfstabelle!$A15,IFERROR(NR_Berechnung!L74,1/0),"") -> 0.8044159394 | AX74: =IF(HI_Hilfstabelle!$C15=HI_Hilfstabelle!$A15,IFERROR(NR_Berechnung!M74,1/0),"") -> 0.9366540006 | AY74: =IF(HI_Hilfstabelle!$C15=HI_Hilfstabelle!$A15,IFERROR(NR_Berechnung!N74,1/0),"") -> 1.002960961 | AZ74: =IF(HI_Hilfstabelle!$C15=HI_Hilfstabelle!$A15,IFERROR(NR_Berechnung!O74,1/0),"") -> 0.9907081892 | BA74: =IF(HI_Hilfstabelle!$C15=HI_Hilfstabelle!$A15,IFERROR(NR_Berechnung!P74,1/0),"") -> 0.9820001031 | BB74: =IF(HI_Hilfstabelle!$C15=HI_Hilfstabelle!$A15,IFERROR(NR_Berechnung!Q74,1/0),"") -> 1.218000938 | BC74: =IF(HI_Hilfstabelle!$C15=HI_Hilfstabelle!$A15,IFERROR(NR_Berechnung!R74,1/0),"") -> 0.9931127629 | BD74: =IF(HI_Hilfstabelle!$C15=HI_Hilfstabelle!$A15,IFERROR(NR_Berechnung!S74,1/0),"") -> 1.023663586 | BE74: =IF(HI_Hilfstabelle!$C15=HI_Hilfstabelle!$A15,IFERROR(NR_Berechnung!T74,1/0),"") -> 0.9719091618 | BF74: =IF(HI_Hilfstabelle!$C15=HI_Hilfstabelle!$A15,IFERROR(NR_Berechnung!U74,1/0),"") -> 0.9274309429 | BG74: =IF(HI_Hilfstabelle!$C15=HI_Hilfstabelle!$A15,IFERROR(NR_Berechnung!V74,1/0),"") -> 0.9526265013 | BH74: =IF(HI_Hilfstabelle!$C15=HI_Hilfstabelle!$A15,IFERROR(NR_Berechnung!W74,1/0),"") -> 0.9334560244 | BI74: =IF(HI_Hilfstabelle!$C15=HI_Hilfstabelle!$A15,IFERROR(NR_Berechnung!X74,1/0),"") -> 1.01823979 | BJ74: 0.9743483956 | BK74: 0.9736850976 | BL74: 0.9743483956 | BM74: 0.9736850976 | BN74: =IF(BL74="","",HI_Hilfstabelle!H15) -> 4963839 | BO74: 0.02257676155 | BP74: 0.02257676155 | BQ74: 0.02199763139 | BR74: 0.02198265627 | BS74: =IF(BL74="","",HI_Hilfstabelle!J15) -> 193 | BT74: 0.1286666667 | BU74: 0.1286666667 | BV74: 0.1253661602 | BW74: 0.1252808159
A75: Niederlande | C75: =NR_Veränderung!C16 -> 1.048347311 | D75: =NR_Veränderung!D16 -> 0.987038343 | E75: =NR_Veränderung!E16 -> 1.026449323 | F75: =NR_Veränderung!F16 -> 0.9915736536 | G75: =NR_Veränderung!G16 -> 1.020060837 | H75: =NR_Veränderung!H16 -> 1.03703304 | I75: =NR_Veränderung!I16 -> 1.0135833 | J75: =NR_Veränderung!J16 -> 1.035631214 | K75: =NR_Veränderung!K16 -> 1.152239773 | L75: =NR_Veränderung!L16 -> 1.002933295 | M75: =NR_Veränderung!M16 -> 0.9889558233 | N75: =NR_Veränderung!N16 -> 1.005850204 | O75: =NR_Veränderung!O16 -> 0.9844357977 | P75: =NR_Veränderung!P16 -> 0.9341255396 | Q75: =NR_Veränderung!Q16 -> 0.9627494882 | R75: =NR_Veränderung!R16 -> 0.9068139963 | S75: =NR_Veränderung!S16 -> 0.8666889968 | T75: =NR_Veränderung!T16 -> 0.8843881857 | U75: =NR_Veränderung!U16 -> 0.9866821758 | V75: =NR_Veränderung!V16 -> 0.8966186993 | W75: =NR_Veränderung!W16 -> 0.9974025974 | X75: =NR_Veränderung!X16 -> 1.027683341 | Y75: 0.9380397132 | Z75: 0.9361873305 | AA75: 0.9380397132 | AB75: 0.9361873305 | AC75: =IF(AA75="","",HI_Hilfstabelle!H16) -> 17407585 | AD75: 0.06066125889 | AE75: 0.06066125889 | AF75: 0.05690266989 | AG75: 0.05679030202 | AH75: =IF(AA75="","",HI_Hilfstabelle!J16) -> 128 | AI75: 0.0797011208 | AJ75: 0.0797011208 | AK75: 0.0747628165 | AL75: 0.07461517951 | AN75: =IF(HI_Hilfstabelle!$C16=HI_Hilfstabelle!$A16,IFERROR(NR_Berechnung!C75,1/0),"") -> 1.048347311 | AO75: =IF(HI_Hilfstabelle!$C16=HI_Hilfstabelle!$A16,IFERROR(NR_Berechnung!D75,1/0),"") -> 0.987038343 | AP75: =IF(HI_Hilfstabelle!$C16=HI_Hilfstabelle!$A16,IFERROR(NR_Berechnung!E75,1/0),"") -> 1.026449323 | AQ75: =IF(HI_Hilfstabelle!$C16=HI_Hilfstabelle!$A16,IFERROR(NR_Berechnung!F75,1/0),"") -> 0.9915736536 | AR75: =IF(HI_Hilfstabelle!$C16=HI_Hilfstabelle!$A16,IFERROR(NR_Berechnung!G75,1/0),"") -> 1.020060837 | AS75: =IF(HI_Hilfstabelle!$C16=HI_Hilfstabelle!$A16,IFERROR(NR_Berechnung!H75,1/0),"") -> 1.03703304 | AT75: =IF(HI_Hilfstabelle!$C16=HI_Hilfstabelle!$A16,IFERROR(NR_Berechnung!I75,1/0),"") -> 1.0135833 | AU75: =IF(HI_Hilfstabelle!$C16=HI_Hilfstabelle!$A16,IFERROR(NR_Berechnung!J75,1/0),"") -> 1.035631214 | AV75: =IF(HI_Hilfstabelle!$C16=HI_Hilfstabelle!$A16,IFERROR(NR_Berechnung!K75,1/0),"") -> 1.152239773 | AW75: =IF(HI_Hilfstabelle!$C16=HI_Hilfstabelle!$A16,IFERROR(NR_Berechnung!L75,1/0),"") -> 1.002933295 | AX75: =IF(HI_Hilfstabelle!$C16=HI_Hilfstabelle!$A16,IFERROR(NR_Berechnung!M75,1/0),"") -> 0.9889558233 | AY75: =IF(HI_Hilfstabelle!$C16=HI_Hilfstabelle!$A16,IFERROR(NR_Berechnung!N75,1/0),"") -> 1.005850204 | AZ75: =IF(HI_Hilfstabelle!$C16=HI_Hilfstabelle!$A16,IFERROR(NR_Berechnung!O75,1/0),"") -> 0.9844357977 | BA75: =IF(HI_Hilfstabelle!$C16=HI_Hilfstabelle!$A16,IFERROR(NR_Berechnung!P75,1/0),"") -> 0.9341255396 | BB75: =IF(HI_Hilfstabelle!$C16=HI_Hilfstabelle!$A16,IFERROR(NR_Berechnung!Q75,1/0),"") -> 0.9627494882 | BC75: =IF(HI_Hilfstabelle!$C16=HI_Hilfstabelle!$A16,IFERROR(NR_Berechnung!R75,1/0),"") -> 0.9068139963 | BD75: =IF(HI_Hilfstabelle!$C16=HI_Hilfstabelle!$A16,IFERROR(NR_Berechnung!S75,1/0),"") -> 0.8666889968 | BE75: =IF(HI_Hilfstabelle!$C16=HI_Hilfstabelle!$A16,IFERROR(NR_Berechnung!T75,1/0),"") -> 0.8843881857 | BF75: =IF(HI_Hilfstabelle!$C16=HI_Hilfstabelle!$A16,IFERROR(NR_Berechnung!U75,1/0),"") -> 0.9866821758 | BG75: =IF(HI_Hilfstabelle!$C16=HI_Hilfstabelle!$A16,IFERROR(NR_Berechnung!V75,1/0),"") -> 0.8966186993 | BH75: =IF(HI_Hilfstabelle!$C16=HI_Hilfstabelle!$A16,IFERROR(NR_Berechnung!W75,1/0),"") -> 0.9974025974 | BI75: =IF(HI_Hilfstabelle!$C16=HI_Hilfstabelle!$A16,IFERROR(NR_Berechnung!X75,1/0),"") -> 1.027683341 | BJ75: 0.9380397132 | BK75: 0.9361873305 | BL75: 0.9380397132 | BM75: 0.9361873305 | BN75: =IF(BL75="","",HI_Hilfstabelle!H16) -> 17407585 | BO75: 0.07917398119 | BP75: 0.07917398119 | BQ75: 0.07426833862 | BR75: 0.0741216781 | BS75: =IF(BL75="","",HI_Hilfstabelle!J16) -> 128 | BT75: 0.08533333333 | BU75: 0.08533333333 | BV75: 0.08004605553 | BW75: 0.07988798553
A76: Portugal | C76: =NR_Veränderung!C17 -> 1.035408186 | D76: =NR_Veränderung!D17 -> 1.017398342 | E76: =NR_Veränderung!E17 -> 1.034045868 | F76: =NR_Veränderung!F17 -> 1.046556392 | G76: =NR_Veränderung!G17 -> 1.055046036 | H76: =NR_Veränderung!H17 -> 0.9794774772 | I76: =NR_Veränderung!I17 -> 1.004530479 | J76: =NR_Veränderung!J17 -> 0.984966922 | K76: =NR_Veränderung!K17 -> 1.04623254 | L76: =NR_Veränderung!L17 -> 1.015899907 | M76: =NR_Veränderung!M17 -> 1.027261146 | N76: =NR_Veränderung!N17 -> 1.075786367 | O76: =NR_Veränderung!O17 -> 1.004897918 | P76: =NR_Veränderung!P17 -> 0.9581518134 | Q76: =NR_Veränderung!Q17 -> 1.033991013 | R76: =NR_Veränderung!R17 -> 0.9897263137 | S76: =NR_Veränderung!S17 -> 0.9200933813 | T76: =NR_Veränderung!T17 -> 1.005523218 | U76: =NR_Veränderung!U17 -> 1.014394763 | V76: =NR_Veränderung!V17 -> 0.9857238194 | W76: =NR_Veränderung!W17 -> 0.9136602273 | X76: =NR_Veränderung!X17 -> 1.029683009 | Y76: 0.9798292474 | Z76: 0.9789068725 | AA76: 0.9798292474 | AB76: 0.9789068725 | AC76: =IF(AA76="","",HI_Hilfstabelle!H17) -> 10295909 | AD76: 0.03587877361 | AE76: 0.03587877361 | AF76: 0.03515507175 | AG76: 0.03512197807 | AH76: =IF(AA76="","",HI_Hilfstabelle!J17) -> 79 | AI76: 0.04919053549 | AJ76: 0.04919053549 | AK76: 0.04819832537 | AL76: 0.04815295325 | AN76: =IF(HI_Hilfstabelle!$C17=HI_Hilfstabelle!$A17,IFERROR(NR_Berechnung!C76,1/0),"") -> 1.035408186 | AO76: =IF(HI_Hilfstabelle!$C17=HI_Hilfstabelle!$A17,IFERROR(NR_Berechnung!D76,1/0),"") -> 1.017398342 | AP76: =IF(HI_Hilfstabelle!$C17=HI_Hilfstabelle!$A17,IFERROR(NR_Berechnung!E76,1/0),"") -> 1.034045868 | AQ76: =IF(HI_Hilfstabelle!$C17=HI_Hilfstabelle!$A17,IFERROR(NR_Berechnung!F76,1/0),"") -> 1.046556392 | AR76: =IF(HI_Hilfstabelle!$C17=HI_Hilfstabelle!$A17,IFERROR(NR_Berechnung!G76,1/0),"") -> 1.055046036 | AS76: =IF(HI_Hilfstabelle!$C17=HI_Hilfstabelle!$A17,IFERROR(NR_Berechnung!H76,1/0),"") -> 0.9794774772 | AT76: =IF(HI_Hilfstabelle!$C17=HI_Hilfstabelle!$A17,IFERROR(NR_Berechnung!I76,1/0),"") -> 1.004530479 | AU76: =IF(HI_Hilfstabelle!$C17=HI_Hilfstabelle!$A17,IFERROR(NR_Berechnung!J76,1/0),"") -> 0.984966922 | AV76: =IF(HI_Hilfstabelle!$C17=HI_Hilfstabelle!$A17,IFERROR(NR_Berechnung!K76,1/0),"") -> 1.04623254 | AW76: =IF(HI_Hilfstabelle!$C17=HI_Hilfstabelle!$A17,IFERROR(NR_Berechnung!L76,1/0),"") -> 1.015899907 | AX76: =IF(HI_Hilfstabelle!$C17=HI_Hilfstabelle!$A17,IFERROR(NR_Berechnung!M76,1/0),"") -> 1.027261146 | AY76: =IF(HI_Hilfstabelle!$C17=HI_Hilfstabelle!$A17,IFERROR(NR_Berechnung!N76,1/0),"") -> 1.075786367 | AZ76: =IF(HI_Hilfstabelle!$C17=HI_Hilfstabelle!$A17,IFERROR(NR_Berechnung!O76,1/0),"") -> 1.004897918 | BA76: =IF(HI_Hilfstabelle!$C17=HI_Hilfstabelle!$A17,IFERROR(NR_Berechnung!P76,1/0),"") -> 0.9581518134 | BB76: =IF(HI_Hilfstabelle!$C17=HI_Hilfstabelle!$A17,IFERROR(NR_Berechnung!Q76,1/0),"") -> 1.033991013 | BC76: =IF(HI_Hilfstabelle!$C17=HI_Hilfstabelle!$A17,IFERROR(NR_Berechnung!R76,1/0),"") -> 0.9897263137 | BD76: =IF(HI_Hilfstabelle!$C17=HI_Hilfstabelle!$A17,IFERROR(NR_Berechnung!S76,1/0),"") -> 0.9200933813 | BE76: =IF(HI_Hilfstabelle!$C17=HI_Hilfstabelle!$A17,IFERROR(NR_Berechnung!T76,1/0),"") -> 1.005523218 | BF76: =IF(HI_Hilfstabelle!$C17=HI_Hilfstabelle!$A17,IFERROR(NR_Berechnung!U76,1/0),"") -> 1.014394763 | BG76: =IF(HI_Hilfstabelle!$C17=HI_Hilfstabelle!$A17,IFERROR(NR_Berechnung!V76,1/0),"") -> 0.9857238194 | BH76: =IF(HI_Hilfstabelle!$C17=HI_Hilfstabelle!$A17,IFERROR(NR_Berechnung!W76,1/0),"") -> 0.9136602273 | BI76: =IF(HI_Hilfstabelle!$C17=HI_Hilfstabelle!$A17,IFERROR(NR_Berechnung!X76,1/0),"") -> 1.029683009 | BJ76: 0.9798292474 | BK76: 0.9789068725 | BL76: 0.9798292474 | BM76: 0.9789068725 | BN76: =IF(BL76="","",HI_Hilfstabelle!H17) -> 10295909 | BO76: 0.04682832831 | BP76: 0.04682832831 | BQ76: 0.04588376569 | BR76: 0.04584057241 | BS76: =IF(BL76="","",HI_Hilfstabelle!J17) -> 79 | BT76: 0.05266666667 | BU76: 0.05266666667 | BV76: 0.05160434036 | BW76: 0.05155576195
A77: Rumänien | C77: =NR_Veränderung!C18 -> 1.285407223 | D77: =NR_Veränderung!D18 -> 1.043200669 | E77: =NR_Veränderung!E18 -> 0.9956080297 | F77: =NR_Veränderung!F18 -> 1.029404642 | G77: =NR_Veränderung!G18 -> 0.9557155263 | H77: =NR_Veränderung!H18 -> 1.06735711 | I77: =NR_Veränderung!I18 -> 0.9898838079 | J77: =NR_Veränderung!J18 -> 0.9875215189 | K77: =NR_Veränderung!K18 -> 1.017478698 | L77: =NR_Veränderung!L18 -> 1.077073096 | M77: =NR_Veränderung!M18 -> 0.9829678668 | N77: =NR_Veränderung!N18 -> 0.9449089085 | O77: =NR_Veränderung!O18 -> 1.240974212 | P77: =NR_Veränderung!P18 -> 0.8379513057 | Q77: =NR_Veränderung!Q18 -> 0.6655820677 | R77: =NR_Veränderung!R18 -> 1.041289843 | S77: =NR_Veränderung!S18 -> 0.9955909807 | T77: =NR_Veränderung!T18 -> 1.026777286 | U77: =NR_Veränderung!U18 -> 1.214414825 | V77: =NR_Veränderung!V18 -> 0.8188852734 | W77: =NR_Veränderung!W18 -> 1.469444858 | X77: =NR_Veränderung!X18 -> 0.8051760014 | Y77: 1.053082724 | Z77: 1.032680922 | AA77: 1.053082724 | AB77: 1.032680922 | AC77: =IF(AA77="","",HI_Hilfstabelle!H18) -> 19317984 | AD77: 0.06731854124 | AE77: 0.06731854124 | AF77: 0.07089199278 | AG77: 0.0695185732 | AH77: =IF(AA77="","",HI_Hilfstabelle!J18) -> 70 | AI77: 0.04358655044 | AJ77: 0.04358655044 | AK77: 0.04590024326 | AL77: 0.04501099907 | AN77: =IF(HI_Hilfstabelle!$C18=HI_Hilfstabelle!$A18,IFERROR(NR_Berechnung!C77,1/0),"") -> 1.285407223 | AO77: =IF(HI_Hilfstabelle!$C18=HI_Hilfstabelle!$A18,IFERROR(NR_Berechnung!D77,1/0),"") -> 1.043200669 | AP77: =IF(HI_Hilfstabelle!$C18=HI_Hilfstabelle!$A18,IFERROR(NR_Berechnung!E77,1/0),"") -> 0.9956080297 | AQ77: =IF(HI_Hilfstabelle!$C18=HI_Hilfstabelle!$A18,IFERROR(NR_Berechnung!F77,1/0),"") -> 1.029404642 | AR77: =IF(HI_Hilfstabelle!$C18=HI_Hilfstabelle!$A18,IFERROR(NR_Berechnung!G77,1/0),"") -> 0.9557155263 | AS77: =IF(HI_Hilfstabelle!$C18=HI_Hilfstabelle!$A18,IFERROR(NR_Berechnung!H77,1/0),"") -> 1.06735711 | AT77: =IF(HI_Hilfstabelle!$C18=HI_Hilfstabelle!$A18,IFERROR(NR_Berechnung!I77,1/0),"") -> 0.9898838079 | AU77: =IF(HI_Hilfstabelle!$C18=HI_Hilfstabelle!$A18,IFERROR(NR_Berechnung!J77,1/0),"") -> 0.9875215189 | AV77: =IF(HI_Hilfstabelle!$C18=HI_Hilfstabelle!$A18,IFERROR(NR_Berechnung!K77,1/0),"") -> 1.017478698 | AW77: =IF(HI_Hilfstabelle!$C18=HI_Hilfstabelle!$A18,IFERROR(NR_Berechnung!L77,1/0),"") -> 1.077073096 | AX77: =IF(HI_Hilfstabelle!$C18=HI_Hilfstabelle!$A18,IFERROR(NR_Berechnung!M77,1/0),"") -> 0.9829678668 | AY77: =IF(HI_Hilfstabelle!$C18=HI_Hilfstabelle!$A18,IFERROR(NR_Berechnung!N77,1/0),"") -> 0.9449089085 | AZ77: =IF(HI_Hilfstabelle!$C18=HI_Hilfstabelle!$A18,IFERROR(NR_Berechnung!O77,1/0),"") -> 1.240974212 | BA77: =IF(HI_Hilfstabelle!$C18=HI_Hilfstabelle!$A18,IFERROR(NR_Berechnung!P77,1/0),"") -> 0.8379513057 | BB77: =IF(HI_Hilfstabelle!$C18=HI_Hilfstabelle!$A18,IFERROR(NR_Berechnung!Q77,1/0),"") -> 0.6655820677 | BC77: =IF(HI_Hilfstabelle!$C18=HI_Hilfstabelle!$A18,IFERROR(NR_Berechnung!R77,1/0),"") -> 1.041289843 | BD77: =IF(HI_Hilfstabelle!$C18=HI_Hilfstabelle!$A18,IFERROR(NR_Berechnung!S77,1/0),"") -> 0.9955909807 | BE77: =IF(HI_Hilfstabelle!$C18=HI_Hilfstabelle!$A18,IFERROR(NR_Berechnung!T77,1/0),"") -> 1.026777286 | BF77: =IF(HI_Hilfstabelle!$C18=HI_Hilfstabelle!$A18,IFERROR(NR_Berechnung!U77,1/0),"") -> 1.214414825 | BG77: =IF(HI_Hilfstabelle!$C18=HI_Hilfstabelle!$A18,IFERROR(NR_Berechnung!V77,1/0),"") -> 0.8188852734 | BH77: =IF(HI_Hilfstabelle!$C18=HI_Hilfstabelle!$A18,IFERROR(NR_Berechnung!W77,1/0),"") -> 1.469444858 | BI77: =IF(HI_Hilfstabelle!$C18=HI_Hilfstabelle!$A18,IFERROR(NR_Berechnung!X77,1/0),"") -> 0.8051760014 | BJ77: 1.053082724 | BK77: 1.032680922 | BL77: 1.053082724 | BM77: 1.032680922 | BN77: =IF(BL77="","",HI_Hilfstabelle!H18) -> 19317984 | BO77: 0.08786294606 | BP77: 0.08786294606 | BQ77: 0.09252695057 | BR77: 0.09073438811 | BS77: =IF(BL77="","",HI_Hilfstabelle!J18) -> 70 | BT77: 0.04666666667 | BU77: 0.04666666667 | BV77: 0.04914386045 | BW77: 0.04819177634
A78: Slowenien | C78: =NR_Veränderung!C19 -> 1.016334161 | D78: =NR_Veränderung!D19 -> 1.041995067 | E78: =NR_Veränderung!E19 -> 0.9587809482 | F78: =NR_Veränderung!F19 -> 1.019954004 | G78: =NR_Veränderung!G19 -> 1.018244267 | H78: =NR_Veränderung!H19 -> 0.8649218462 | I78: =NR_Veränderung!I19 -> 1.032819106 | J78: =NR_Veränderung!J19 -> 1.002116571 | K78: =NR_Veränderung!K19 -> 0.950588636 | L78: =NR_Veränderung!L19 -> 0.9587289578 | M78: =NR_Veränderung!M19 -> 1.065664309 | N78: =NR_Veränderung!N19 -> 0.9931763444 | O78: =NR_Veränderung!O19 -> 1.046345799 | P78: =NR_Veränderung!P19 -> 0.9716809234 | Q78: =NR_Veränderung!Q19 -> 1.00225683 | R78: =NR_Veränderung!R19 -> 1.045294212 | S78: =NR_Veränderung!S19 -> 0.9498111034 | T78: =NR_Veränderung!T19 -> 0.9369056882 | U78: =NR_Veränderung!U19 -> 1.031412822 | V78: =NR_Veränderung!V19 -> 0.9675222892 | W78: =NR_Veränderung!W19 -> 1.006317066 | X78: =NR_Veränderung!X19 -> 0.9405450241 | Y78: 0.9825440293 | Z78: 0.9816767692 | AA78: 0.9825440293 | AB78: 0.9816767692 | AC78: =IF(AA78="","",HI_Hilfstabelle!H19) -> 2095861 | AD78: 0.007303572938 | AE78: 0.007303572938 | AF78: 0.007176081982 | AG78: 0.007169747885 | AH78: =IF(AA78="","",HI_Hilfstabelle!J19) -> 89 | AI78: 0.05541718555 | AJ78: 0.05541718555 | AK78: 0.05444982478 | AL78: 0.05440176367 | AN78: =IF(HI_Hilfstabelle!$C19=HI_Hilfstabelle!$A19,IFERROR(NR_Berechnung!C78,1/0),"") -> 1.016334161 | AO78: =IF(HI_Hilfstabelle!$C19=HI_Hilfstabelle!$A19,IFERROR(NR_Berechnung!D78,1/0),"") -> 1.041995067 | AP78: =IF(HI_Hilfstabelle!$C19=HI_Hilfstabelle!$A19,IFERROR(NR_Berechnung!E78,1/0),"") -> 0.9587809482 | AQ78: =IF(HI_Hilfstabelle!$C19=HI_Hilfstabelle!$A19,IFERROR(NR_Berechnung!F78,1/0),"") -> 1.019954004 | AR78: =IF(HI_Hilfstabelle!$C19=HI_Hilfstabelle!$A19,IFERROR(NR_Berechnung!G78,1/0),"") -> 1.018244267 | AS78: =IF(HI_Hilfstabelle!$C19=HI_Hilfstabelle!$A19,IFERROR(NR_Berechnung!H78,1/0),"") -> 0.8649218462 | AT78: =IF(HI_Hilfstabelle!$C19=HI_Hilfstabelle!$A19,IFERROR(NR_Berechnung!I78,1/0),"") -> 1.032819106 | AU78: =IF(HI_Hilfstabelle!$C19=HI_Hilfstabelle!$A19,IFERROR(NR_Berechnung!J78,1/0),"") -> 1.002116571 | AV78: =IF(HI_Hilfstabelle!$C19=HI_Hilfstabelle!$A19,IFERROR(NR_Berechnung!K78,1/0),"") -> 0.950588636 | AW78: =IF(HI_Hilfstabelle!$C19=HI_Hilfstabelle!$A19,IFERROR(NR_Berechnung!L78,1/0),"") -> 0.9587289578 | AX78: =IF(HI_Hilfstabelle!$C19=HI_Hilfstabelle!$A19,IFERROR(NR_Berechnung!M78,1/0),"") -> 1.065664309 | AY78: =IF(HI_Hilfstabelle!$C19=HI_Hilfstabelle!$A19,IFERROR(NR_Berechnung!N78,1/0),"") -> 0.9931763444 | AZ78: =IF(HI_Hilfstabelle!$C19=HI_Hilfstabelle!$A19,IFERROR(NR_Berechnung!O78,1/0),"") -> 1.046345799 | BA78: =IF(HI_Hilfstabelle!$C19=HI_Hilfstabelle!$A19,IFERROR(NR_Berechnung!P78,1/0),"") -> 0.9716809234 | BB78: =IF(HI_Hilfstabelle!$C19=HI_Hilfstabelle!$A19,IFERROR(NR_Berechnung!Q78,1/0),"") -> 1.00225683 | BC78: =IF(HI_Hilfstabelle!$C19=HI_Hilfstabelle!$A19,IFERROR(NR_Berechnung!R78,1/0),"") -> 1.045294212 | BD78: =IF(HI_Hilfstabelle!$C19=HI_Hilfstabelle!$A19,IFERROR(NR_Berechnung!S78,1/0),"") -> 0.9498111034 | BE78: =IF(HI_Hilfstabelle!$C19=HI_Hilfstabelle!$A19,IFERROR(NR_Berechnung!T78,1/0),"") -> 0.9369056882 | BF78: =IF(HI_Hilfstabelle!$C19=HI_Hilfstabelle!$A19,IFERROR(NR_Berechnung!U78,1/0),"") -> 1.031412822 | BG78: =IF(HI_Hilfstabelle!$C19=HI_Hilfstabelle!$A19,IFERROR(NR_Berechnung!V78,1/0),"") -> 0.9675222892 | BH78: =IF(HI_Hilfstabelle!$C19=HI_Hilfstabelle!$A19,IFERROR(NR_Berechnung!W78,1/0),"") -> 1.006317066 | BI78: =IF(HI_Hilfstabelle!$C19=HI_Hilfstabelle!$A19,IFERROR(NR_Berechnung!X78,1/0),"") -> 0.9405450241 | BJ78: 0.9825440293 | BK78: 0.9816767692 | BL78: 0.9825440293 | BM78: 0.9816767692 | BN78: =IF(BL78="","",HI_Hilfstabelle!H19) -> 2095861 | BO78: 0.009532491693 | BP78: 0.009532491693 | BQ78: 0.009366092796 | BR78: 0.009357825647 | BS78: =IF(BL78="","",HI_Hilfstabelle!J19) -> 89 | BT78: 0.05933333333 | BU78: 0.05933333333 | BV78: 0.0582976124 | BW78: 0.05824615497
A79: Slowakei | C79: =NR_Veränderung!C20 -> 1.207847334 | D79: =NR_Veränderung!D20 -> 1.142495503 | E79: =NR_Veränderung!E20 -> 1.079406818 | F79: =NR_Veränderung!F20 -> 1.082422155 | G79: =NR_Veränderung!G20 -> 0.7783124228 | H79: =NR_Veränderung!H20 -> 1.002163532 | I79: =NR_Veränderung!I20 -> 0.9249920508 | J79: =NR_Veränderung!J20 -> 1.093348226 | K79: =NR_Veränderung!K20 -> 0.8892398965 | L79: =NR_Veränderung!L20 -> 1.414206324 | M79: =NR_Veränderung!M20 -> 1.022736136 | N79: =NR_Veränderung!N20 -> 1.030910105 | O79: =NR_Veränderung!O20 -> 0.8910274284 | P79: =NR_Veränderung!P20 -> 0.8684185183 | Q79: =NR_Veränderung!Q20 -> 0.9470618191 | R79: =NR_Veränderung!R20 -> 0.9900873151 | S79: =NR_Veränderung!S20 -> 1.053665646 | T79: =NR_Veränderung!T20 -> 0.9790380185 | U79: =NR_Veränderung!U20 -> 1.042956204 | V79: =NR_Veränderung!V20 -> 1.045510678 | W79: =NR_Veränderung!W20 -> 1.049803841 | X79: =NR_Veränderung!X20 -> 1.05461697 | Y79: 1.030811239 | Z79: 1.030377081 | AA79: 1.030811239 | AB79: 1.030377081 | AC79: =IF(AA79="","",HI_Hilfstabelle!H20) -> 5457873 | AD79: 0.01901937845 | AE79: 0.01901937845 | AF79: 0.01960538907 | AG79: 0.01959713166 | AH79: =IF(AA79="","",HI_Hilfstabelle!J20) -> 70 | AI79: 0.04358655044 | AJ79: 0.04358655044 | AK79: 0.04492950606 | AL79: 0.04491058263 | AN79: =IF(HI_Hilfstabelle!$C20=HI_Hilfstabelle!$A20,IFERROR(NR_Berechnung!C79,1/0),"") -> 1.207847334 | AO79: =IF(HI_Hilfstabelle!$C20=HI_Hilfstabelle!$A20,IFERROR(NR_Berechnung!D79,1/0),"") -> 1.142495503 | AP79: =IF(HI_Hilfstabelle!$C20=HI_Hilfstabelle!$A20,IFERROR(NR_Berechnung!E79,1/0),"") -> 1.079406818 | AQ79: =IF(HI_Hilfstabelle!$C20=HI_Hilfstabelle!$A20,IFERROR(NR_Berechnung!F79,1/0),"") -> 1.082422155 | AR79: =IF(HI_Hilfstabelle!$C20=HI_Hilfstabelle!$A20,IFERROR(NR_Berechnung!G79,1/0),"") -> 0.7783124228 | AS79: =IF(HI_Hilfstabelle!$C20=HI_Hilfstabelle!$A20,IFERROR(NR_Berechnung!H79,1/0),"") -> 1.002163532 | AT79: =IF(HI_Hilfstabelle!$C20=HI_Hilfstabelle!$A20,IFERROR(NR_Berechnung!I79,1/0),"") -> 0.9249920508 | AU79: =IF(HI_Hilfstabelle!$C20=HI_Hilfstabelle!$A20,IFERROR(NR_Berechnung!J79,1/0),"") -> 1.093348226 | AV79: =IF(HI_Hilfstabelle!$C20=HI_Hilfstabelle!$A20,IFERROR(NR_Berechnung!K79,1/0),"") -> 0.8892398965 | AW79: =IF(HI_Hilfstabelle!$C20=HI_Hilfstabelle!$A20,IFERROR(NR_Berechnung!L79,1/0),"") -> 1.414206324 | AX79: =IF(HI_Hilfstabelle!$C20=HI_Hilfstabelle!$A20,IFERROR(NR_Berechnung!M79,1/0),"") -> 1.022736136 | AY79: =IF(HI_Hilfstabelle!$C20=HI_Hilfstabelle!$A20,IFERROR(NR_Berechnung!N79,1/0),"") -> 1.030910105 | AZ79: =IF(HI_Hilfstabelle!$C20=HI_Hilfstabelle!$A20,IFERROR(NR_Berechnung!O79,1/0),"") -> 0.8910274284 | BA79: =IF(HI_Hilfstabelle!$C20=HI_Hilfstabelle!$A20,IFERROR(NR_Berechnung!P79,1/0),"") -> 0.8684185183 | BB79: =IF(HI_Hilfstabelle!$C20=HI_Hilfstabelle!$A20,IFERROR(NR_Berechnung!Q79,1/0),"") -> 0.9470618191 | BC79: =IF(HI_Hilfstabelle!$C20=HI_Hilfstabelle!$A20,IFERROR(NR_Berechnung!R79,1/0),"") -> 0.9900873151 | BD79: =IF(HI_Hilfstabelle!$C20=HI_Hilfstabelle!$A20,IFERROR(NR_Berechnung!S79,1/0),"") -> 1.053665646 | BE79: =IF(HI_Hilfstabelle!$C20=HI_Hilfstabelle!$A20,IFERROR(NR_Berechnung!T79,1/0),"") -> 0.9790380185 | BF79: =IF(HI_Hilfstabelle!$C20=HI_Hilfstabelle!$A20,IFERROR(NR_Berechnung!U79,1/0),"") -> 1.042956204 | BG79: =IF(HI_Hilfstabelle!$C20=HI_Hilfstabelle!$A20,IFERROR(NR_Berechnung!V79,1/0),"") -> 1.045510678 | BH79: =IF(HI_Hilfstabelle!$C20=HI_Hilfstabelle!$A20,IFERROR(NR_Berechnung!W79,1/0),"") -> 1.049803841 | BI79: =IF(HI_Hilfstabelle!$C20=HI_Hilfstabelle!$A20,IFERROR(NR_Berechnung!X79,1/0),"") -> 1.05461697 | BJ79: 1.030811239 | BK79: 1.030377081 | BL79: 1.030811239 | BM79: 1.030377081 | BN79: =IF(BL79="","",HI_Hilfstabelle!H20) -> 5457873 | BO79: 0.02482374978 | BP79: 0.02482374978 | BQ79: 0.02558860026 | BR79: 0.02557782285 | BS79: =IF(BL79="","",HI_Hilfstabelle!J20) -> 70 | BT79: 0.04666666667 | BU79: 0.04666666667 | BV79: 0.04810452449 | BW79: 0.0480842638
A80: Großbritannien | C80: =NR_Veränderung!C21 -> 1.023971438 | D80: =NR_Veränderung!D21 -> 1.087891976 | E80: =NR_Veränderung!E21 -> 1.03810831 | F80: =NR_Veränderung!F21 -> 1.001007887 | G80: =NR_Veränderung!G21 -> 1.1235157 | H80: =NR_Veränderung!H21 -> 1.025656596 | I80: =NR_Veränderung!I21 -> 1.022514796 | J80: =NR_Veränderung!J21 -> 1.219153551 | K80: =NR_Veränderung!K21 -> 1.152595792 | L80: =NR_Veränderung!L21 -> 1.005364441 | M80: =NR_Veränderung!M21 -> 0.9302006492 | N80: =NR_Veränderung!N21 -> 0.9484491806 | O80: =NR_Veränderung!O21 -> 0.8680257064 | P80: =NR_Veränderung!P21 -> 0.8153350013 | Q80: =NR_Veränderung!Q21 -> 1.14327025 | R80: =NR_Veränderung!R21 -> 1.047662258 | S80: =NR_Veränderung!S21 -> 1.070934582 | T80: =NR_Veränderung!T21 -> 0.987835412 | U80: =NR_Veränderung!U21 -> 1.060556783 | V80: =NR_Veränderung!V21 -> 0.9332397181 | W80: =NR_Veränderung!W21 -> 0.9968041429 | X80: =1/0 ->  | AC80: =IF(AA80="","",HI_Hilfstabelle!H21) ->  | AH80: =IF(AA80="","",HI_Hilfstabelle!J21) ->  | AN80: =IF(HI_Hilfstabelle!$C21=HI_Hilfstabelle!$A21,IFERROR(NR_Berechnung!C80,1/0),"") ->  | AO80: =IF(HI_Hilfstabelle!$C21=HI_Hilfstabelle!$A21,IFERROR(NR_Berechnung!D80,1/0),"") ->  | AP80: =IF(HI_Hilfstabelle!$C21=HI_Hilfstabelle!$A21,IFERROR(NR_Berechnung!E80,1/0),"") ->  | AQ80: =IF(HI_Hilfstabelle!$C21=HI_Hilfstabelle!$A21,IFERROR(NR_Berechnung!F80,1/0),"") ->  | AR80: =IF(HI_Hilfstabelle!$C21=HI_Hilfstabelle!$A21,IFERROR(NR_Berechnung!G80,1/0),"") ->  | AS80: =IF(HI_Hilfstabelle!$C21=HI_Hilfstabelle!$A21,IFERROR(NR_Berechnung!H80,1/0),"") ->  | AT80: =IF(HI_Hilfstabelle!$C21=HI_Hilfstabelle!$A21,IFERROR(NR_Berechnung!I80,1/0),"") ->  | AU80: =IF(HI_Hilfstabelle!$C21=HI_Hilfstabelle!$A21,IFERROR(NR_Berechnung!J80,1/0),"") ->  | AV80: =IF(HI_Hilfstabelle!$C21=HI_Hilfstabelle!$A21,IFERROR(NR_Berechnung!K80,1/0),"") ->  | AW80: =IF(HI_Hilfstabelle!$C21=HI_Hilfstabelle!$A21,IFERROR(NR_Berechnung!L80,1/0),"") ->  | AX80: =IF(HI_Hilfstabelle!$C21=HI_Hilfstabelle!$A21,IFERROR(NR_Berechnung!M80,1/0),"") ->  | AY80: =IF(HI_Hilfstabelle!$C21=HI_Hilfstabelle!$A21,IFERROR(NR_Berechnung!N80,1/0),"") ->  | AZ80: =IF(HI_Hilfstabelle!$C21=HI_Hilfstabelle!$A21,IFERROR(NR_Berechnung!O80,1/0),"") ->  | BA80: =IF(HI_Hilfstabelle!$C21=HI_Hilfstabelle!$A21,IFERROR(NR_Berechnung!P80,1/0),"") ->  | BB80: =IF(HI_Hilfstabelle!$C21=HI_Hilfstabelle!$A21,IFERROR(NR_Berechnung!Q80,1/0),"") ->  | BC80: =IF(HI_Hilfstabelle!$C21=HI_Hilfstabelle!$A21,IFERROR(NR_Berechnung!R80,1/0),"") ->  | BD80: =IF(HI_Hilfstabelle!$C21=HI_Hilfstabelle!$A21,IFERROR(NR_Berechnung!S80,1/0),"") ->  | BE80: =IF(HI_Hilfstabelle!$C21=HI_Hilfstabelle!$A21,IFERROR(NR_Berechnung!T80,1/0),"") ->  | BF80: =IF(HI_Hilfstabelle!$C21=HI_Hilfstabelle!$A21,IFERROR(NR_Berechnung!U80,1/0),"") ->  | BG80: =IF(HI_Hilfstabelle!$C21=HI_Hilfstabelle!$A21,IFERROR(NR_Berechnung!V80,1/0),"") ->  | BH80: =IF(HI_Hilfstabelle!$C21=HI_Hilfstabelle!$A21,IFERROR(NR_Berechnung!W80,1/0),"") ->  | BI80: =IF(HI_Hilfstabelle!$C21=HI_Hilfstabelle!$A21,IFERROR(NR_Berechnung!X80,1/0),"") ->  | BN80: =IF(BL80="","",HI_Hilfstabelle!H21) ->  | BS80: =IF(BL80="","",HI_Hilfstabelle!J21) -> 
AB82: Summe | AC82: =SUM(AC63:AC80) -> 286963794 | AD82: =SUM(AD63:AD80) -> 1 | AH82: =SUM(AH63:AH80) -> 1606 | AI82: =SUM(AI63:AI80) -> 1 | BM82: Summe | BN82: =SUM(BN63:BN80) -> 219864970 | BS82: =SUM(BS63:BS80) -> 1500
AA83: Arithmet. Mittel | AB83: Geomittel | AF83: Arithmet. Mittel | AG83: Geomittel | AK83: Arithmet. Mittel | AL83: Geomittel | BL83: Arithmet. Mittel | BM83: Geomittel | BQ83: Arithmet. Mittel | BR83: Geomittel | BV83: Arithmet. Mittel | BW83: Geomittel
AA84: =AVERAGE(AA63:AA80) -> 0.9810768312 | AB84: =AVERAGE(AB63:AB80) -> 0.9784007782 | AF84: =IF(AND(AF63="",AF64="",AF65="",AF66="",AF67="",AF68="",AF69="",AF70="",AF71="",AF72="",AF73="",AF74="",AF75="",AF76="",AF77="",AF78="",AF79="",AF80=""),1/0,SUM(AF63:AF80)) -> 0.9852404222 | AG84: =IF(AND(AG63="",AG64="",AG65="",AG66="",AG67="",AG68="",AG69="",AG70="",AG71="",AG72="",AG73="",AG74="",AG75="",AG76="",AG77="",AG78="",AG79="",AG80=""),1/0,SUM(AG63:AG80)) -> 0.9826213859 | AK84: =IF(AND(AK63="",AK64="",AK65="",AK66="",AK67="",AK68="",AK69="",AK70="",AK71="",AK72="",AK73="",AK74="",AK75="",AK76="",AK77="",AK78="",AK79="",AK80=""),1/0,SUM(AK63:AK80)) -> 0.9777835035 | AL84: =IF(AND(AL63="",AL64="",AL65="",AL66="",AL67="",AL68="",AL69="",AL70="",AL71="",AL72="",AL73="",AL74="",AL75="",AL76="",AL77="",AL78="",AL79="",AL80=""),1/0,SUM(AL63:AL80)) -> 0.975405975 | BL84: =AVERAGE(BL63:BL80) -> 0.9819650789 | BM84: =AVERAGE(BM63:BM80) -> 0.9791335 | BQ84: =IF(AND(BQ63="",BQ64="",BQ65="",BQ66="",BQ67="",BQ68="",BQ69="",BQ70="",BQ71="",BQ72="",BQ73="",BQ74="",BQ75="",BQ76="",BQ77="",BQ78="",BQ79="",BQ80=""),1/0,SUM(BQ63:BQ80)) -> 0.9905772331 | BR84: =IF(AND(BR63="",BR64="",BR65="",BR66="",BR67="",BR68="",BR69="",BR70="",BR71="",BR72="",BR73="",BR74="",BR75="",BR76="",BR77="",BR78="",BR79="",BR80=""),1/0,SUM(BR63:BR80)) -> 0.9872636415 | BV84: =IF(AND(BV63="",BV64="",BV65="",BV66="",BV67="",BV68="",BV69="",BV70="",BV71="",BV72="",BV73="",BV74="",BV75="",BV76="",BV77="",BV78="",BV79="",BV80=""),1/0,SUM(BV63:BV80)) -> 0.9784923177 | BW84: =IF(AND(BW63="",BW64="",BW65="",BW66="",BW67="",BW68="",BW69="",BW70="",BW71="",BW72="",BW73="",BW74="",BW75="",BW76="",BW77="",BW78="",BW79="",BW80=""),1/0,SUM(BW63:BW80)) -> 0.9759710274
AA85: =AA84-1 -> -0.01892316884 | AB85: =AB84-1 -> -0.02159922179 | AF85: =AF84-1 -> -0.01475957781 | AG85: =AG84-1 -> -0.01737861408 | AK85: =AK84-1 -> -0.02221649649 | AL85: =AL84-1 -> -0.02459402496 | BL85: =BL84-1 -> -0.01803492107 | BM85: =BM84-1 -> -0.02086649999 | BQ85: =BQ84-1 -> -0.009422766875 | BR85: =BR84-1 -> -0.01273635849 | BV85: =BV84-1 -> -0.02150768233 | BW85: =BW84-1 -> -0.0240289726
AA86: =COUNT(AA63:AA80) -> 16 | BL86: =COUNT(BL63:BL80) -> 15

Sheet NR_Mittelwertbildung
A1: 1 | B1: 2 | C1: 3 | D1: 4 | E1: 5 | F1: 6 | G1: 7 | H1: 8 | I1: 9 | J1: 10 | K1: 11 | L1: 12 | M1: 13 | N1: 14 | O1: 15 | P1: 16 | Q1: 17 | R1: 18 | S1: 19 | T1: 20 | U1: 21 | V1: 22 | W1: 23 | X1: 24 | Y1: 25 | Z1: 26 | AA1: 27 | AB1: 28 | AC1: 29 | AD1: 30 | AE1: 31 | AF1: 32 | AG1: 33 | AH1: 34 | AI1: 35 | AJ1: 36 | AK1: 37 | AL1: 38 | AM1: 39 | AN1: 40 | AO1: 41 | AP1: 42 | AQ1: 43 | AR1: 44 | AS1: 45 | AT1: 46 | AU1: 47 | AV1: 48 | AW1: 49 | AX1: 50 | AY1: 51 | AZ1: 52 | BA1: 53 | BB1: 54 | BC1: 55 | BD1: 56 | BE1: 57 | BF1: 58 | BG1: 59 | BH1: 60 | BI1: 61 | BJ1: 62 | BK1: 63 | BL1: 64 | BM1: 65 | BN1: 66 | BO1: 67 | BP1: 68 | BQ1: 69 | BR1: 70 | BS1: 71 | BT1: 72 | BU1: 73 | BV1: 74 | BW1: 75 | BX1: 76 | BY1: 77 | BZ1: 78 | CA1: 79 | CB1: 80 | CC1: 81 | CD1: 82 | CE1: 83 | CF1: 84 | CG1: 85 | CH1: 86 | CI1: 87 | CJ1: 88 | CK1: 89 | CL1: 90 | CM1: 91 | CN1: 92 | CO1: 93 | CP1: 94 | CQ1: 95 | CR1: 96 | CS1: 97 | CT1: 98 | CU1: 99 | CV1: 100 | CW1: 101 | CX1: 102 | CY1: 103 | CZ1: 104 | DA1: 105 | DB1: 106 | DC1: 107 | DD1: 108 | DE1: 109 | DF1: 110 | DG1: 111 | DH1: 112 | DI1: 113 | DJ1: 114 | DK1: 115 | DL1: 116 | DM1: 117 | DN1: 118 | DO1: 119 | DP1: 120 | DQ1: 121 | DR1: 122 | DS1: 123 | DT1: 124 | DU1: 125 | DV1: 126 | DW1: 127 | DX1: 128 | DY1: 129 | DZ1: 130 | EA1: 131 | EB1: 132 | EC1: 133 | ED1: 134 | EE1: 135 | EF1: 136 | EG1: 137 | EH1: 138 | EI1: 139 | EJ1: 140 | EK1: 141 | EL1: 142 | EM1: 143 | EN1: 144 | EO1: 145 | EP1: 146 | EQ1: 147 | ER1: 148 | ES1: 149 | ET1: 150 | EU1: 151 | EV1: 152 | EW1: 153 | EX1: 154 | EY1: 155 | EZ1: 156 | FA1: 157 | FB1: 158 | FC1: 159 | FD1: 160 | FE1: 161 | FF1: 162 | FG1: 163 | FH1: 164 | FI1: 165 | FJ1: 166 | FK1: 167 | FL1: 168 | FM1: 169 | FN1: 170 | FO1: 171 | FP1: 172 | FQ1: 173 | FR1: 174 | FS1: 175 | FT1: 176 | FU1: 177 | FV1: 178 | FW1: 179 | FX1: 180 | FY1: 181 | FZ1: 182 | GA1: 183 | GB1: 184 | GC1: 185 | GD1: 186 | GE1: 187 | GF1: 188 | GG1: 189 | GH1: 190 | GI1: 191 | GJ1: 192 | GK1: 193 | GL1: 194 | GM1: 195 | GN1: 196 | GO1: 197 | GP1: 198 | GQ1: 199 | GR1: 200 | GS1: 201 | GT1: 202 | GU1: 203 | GV1: 204 | GW1: 205 | GX1: 206 | GY1: 207 | GZ1: 208 | HA1: 209 | HB1: 210 | HC1: 211 | HD1: 212 | HE1: 213 | HF1: 214 | HG1: 215 | HH1: 216 | HI1: 217 | HJ1: 218 | HK1: 219 | HL1: 220 | HM1: 221
A2: =SUBSTITUTE(ADDRESS(1,A1,4),"1","") -> A | B2: =SUBSTITUTE(ADDRESS(1,B1,4),"1","") -> B | C2: C | D2: D | E2: E | F2: F | G2: G | H2: H | I2: I | J2: J | K2: K | L2: L | M2: M | N2: N | O2: O | P2: P | Q2: Q | R2: R | S2: S | T2: =SUBSTITUTE(ADDRESS(1,T1,4),"1","") -> T | U2: =SUBSTITUTE(ADDRESS(1,U1,4),"1","") -> U | V2: =SUBSTITUTE(ADDRESS(1,V1,4),"1","") -> V | W2: =SUBSTITUTE(ADDRESS(1,W1,4),"1","") -> W | X2: =SUBSTITUTE(ADDRESS(1,X1,4),"1","") -> X | Y2: =SUBSTITUTE(ADDRESS(1,Y1,4),"1","") -> Y | Z2: =SUBSTITUTE(ADDRESS(1,Z1,4),"1","") -> Z | AA2: =SUBSTITUTE(ADDRESS(1,AA1,4),"1","") -> AA | AB2: =SUBSTITUTE(ADDRESS(1,AB1,4),"1","") -> AB | AC2: =SUBSTITUTE(ADDRESS(1,AC1,4),"1","") -> AC | AD2: =SUBSTITUTE(ADDRESS(1,AD1,4),"1","") -> AD | AE2: =SUBSTITUTE(ADDRESS(1,AE1,4),"1","") -> AE | AF2: =SUBSTITUTE(ADDRESS(1,AF1,4),"1","") -> AF | AG2: =SUBSTITUTE(ADDRESS(1,AG1,4),"1","") -> AG | AH2: =SUBSTITUTE(ADDRESS(1,AH1,4),"1","") -> AH | AI2: =SUBSTITUTE(ADDRESS(1,AI1,4),"1","") -> AI | AJ2: =SUBSTITUTE(ADDRESS(1,AJ1,4),"1","") -> AJ | AK2: =SUBSTITUTE(ADDRESS(1,AK1,4),"1","") -> AK | AL2: =SUBSTITUTE(ADDRESS(1,AL1,4),"1","") -> AL | AM2: =SUBSTITUTE(ADDRESS(1,AM1,4),"1","") -> AM | AN2: =SUBSTITUTE(ADDRESS(1,AN1,4),"1","") -> AN | AO2: =SUBSTITUTE(ADDRESS(1,AO1,4),"1","") -> AO | AP2: =SUBSTITUTE(ADDRESS(1,AP1,4),"1","") -> AP | AQ2: =SUBSTITUTE(ADDRESS(1,AQ1,4),"1","") -> AQ | AR2: =SUBSTITUTE(ADDRESS(1,AR1,4),"1","") -> AR | AS2: =SUBSTITUTE(ADDRESS(1,AS1,4),"1","") -> AS | AT2: =SUBSTITUTE(ADDRESS(1,AT1,4),"1","") -> AT | AU2: =SUBSTITUTE(ADDRESS(1,AU1,4),"1","") -> AU | AV2: =SUBSTITUTE(ADDRESS(1,AV1,4),"1","") -> AV | AW2: =SUBSTITUTE(ADDRESS(1,AW1,4),"1","") -> AW | AX2: =SUBSTITUTE(ADDRESS(1,AX1,4),"1","") -> AX | AY2: =SUBSTITUTE(ADDRESS(1,AY1,4),"1","") -> AY | AZ2: =SUBSTITUTE(ADDRESS(1,AZ1,4),"1","") -> AZ | BA2: =SUBSTITUTE(ADDRESS(1,BA1,4),"1","") -> BA | BB2: =SUBSTITUTE(ADDRESS(1,BB1,4),"1","") -> BB | BC2: =SUBSTITUTE(ADDRESS(1,BC1,4),"1","") -> BC | BD2: =SUBSTITUTE(ADDRESS(1,BD1,4),"1","") -> BD | BE2: =SUBSTITUTE(ADDRESS(1,BE1,4),"1","") -> BE | BF2: =SUBSTITUTE(ADDRESS(1,BF1,4),"1","") -> BF | BG2: =SUBSTITUTE(ADDRESS(1,BG1,4),"1","") -> BG | BH2: =SUBSTITUTE(ADDRESS(1,BH1,4),"1","") -> BH | BI2: =SUBSTITUTE(ADDRESS(1,BI1,4),"1","") -> BI | BJ2: =SUBSTITUTE(ADDRESS(1,BJ1,4),"1","") -> BJ | BK2: =SUBSTITUTE(ADDRESS(1,BK1,4),"1","") -> BK | BL2: =SUBSTITUTE(ADDRESS(1,BL1,4),"1","") -> BL | BM2: =SUBSTITUTE(ADDRESS(1,BM1,4),"1","") -> BM | BN2: =SUBSTITUTE(ADDRESS(1,BN1,4),"1","") -> BN | BO2: =SUBSTITUTE(ADDRESS(1,BO1,4),"1","") -> BO | BP2: =SUBSTITUTE(ADDRESS(1,BP1,4),"1","") -> BP | BQ2: =SUBSTITUTE(ADDRESS(1,BQ1,4),"1","") -> BQ | BR2: =SUBSTITUTE(ADDRESS(1,BR1,4),"1","") -> BR | BS2: =SUBSTITUTE(ADDRESS(1,BS1,4),"1","") -> BS | BT2: =SUBSTITUTE(ADDRESS(1,BT1,4),"1","") -> BT | BU2: =SUBSTITUTE(ADDRESS(1,BU1,4),"1","") -> BU | BV2: =SUBSTITUTE(ADDRESS(1,BV1,4),"1","") -> BV | BW2: =SUBSTITUTE(ADDRESS(1,BW1,4),"1","") -> BW | BX2: =SUBSTITUTE(ADDRESS(1,BX1,4),"1","") -> BX | BY2: =SUBSTITUTE(ADDRESS(1,BY1,4),"1","") -> BY | BZ2: =SUBSTITUTE(ADDRESS(1,BZ1,4),"1","") -> BZ | CA2: =SUBSTITUTE(ADDRESS(1,CA1,4),"1","") -> CA | CB2: =SUBSTITUTE(ADDRESS(1,CB1,4),"1","") -> CB | CC2: =SUBSTITUTE(ADDRESS(1,CC1,4),"1","") -> CC | CD2: =SUBSTITUTE(ADDRESS(1,CD1,4),"1","") -> CD | CE2: =SUBSTITUTE(ADDRESS(1,CE1,4),"1","") -> CE | CF2: =SUBSTITUTE(ADDRESS(1,CF1,4),"1","") -> CF | CG2: =SUBSTITUTE(ADDRESS(1,CG1,4),"1","") -> CG | CH2: =SUBSTITUTE(ADDRESS(1,CH1,4),"1","") -> CH | CI2: =SUBSTITUTE(ADDRESS(1,CI1,4),"1","") -> CI | CJ2: =SUBSTITUTE(ADDRESS(1,CJ1,4),"1","") -> CJ | CK2: =SUBSTITUTE(ADDRESS(1,CK1,4),"1","") -> CK | CL2: =SUBSTITUTE(ADDRESS(1,CL1,4),"1","") -> CL | CM2: =SUBSTITUTE(ADDRESS(1,CM1,4),"1","") -> CM | CN2: =SUBSTITUTE(ADDRESS(1,CN1,4),"1","") -> CN | CO2: =SUBSTITUTE(ADDRESS(1,CO1,4),"1","") -> CO | CP2: =SUBSTITUTE(ADDRESS(1,CP1,4),"1","") -> CP | CQ2: =SUBSTITUTE(ADDRESS(1,CQ1,4),"1","") -> CQ | CR2: =SUBSTITUTE(ADDRESS(1,CR1,4),"1","") -> CR | CS2: =SUBSTITUTE(ADDRESS(1,CS1,4),"1","") -> CS | CT2: =SUBSTITUTE(ADDRESS(1,CT1,4),"1","") -> CT | CU2: =SUBSTITUTE(ADDRESS(1,CU1,4),"1","") -> CU | CV2: =SUBSTITUTE(ADDRESS(1,CV1,4),"1","") -> CV | CW2: =SUBSTITUTE(ADDRESS(1,CW1,4),"1","") -> CW | CX2: =SUBSTITUTE(ADDRESS(1,CX1,4),"1","") -> CX | CY2: =SUBSTITUTE(ADDRESS(1,CY1,4),"1","") -> CY | CZ2: =SUBSTITUTE(ADDRESS(1,CZ1,4),"1","") -> CZ | DA2: =SUBSTITUTE(ADDRESS(1,DA1,4),"1","") -> DA | DB2: =SUBSTITUTE(ADDRESS(1,DB1,4),"1","") -> DB | DC2: =SUBSTITUTE(ADDRESS(1,DC1,4),"1","") -> DC | DD2: =SUBSTITUTE(ADDRESS(1,DD1,4),"1","") -> DD | DE2: =SUBSTITUTE(ADDRESS(1,DE1,4),"1","") -> DE | DF2: =SUBSTITUTE(ADDRESS(1,DF1,4),"1","") -> DF | DG2: =SUBSTITUTE(ADDRESS(1,DG1,4),"1","") -> DG | DH2: =SUBSTITUTE(ADDRESS(1,DH1,4),"1","") -> DH | DI2: =SUBSTITUTE(ADDRESS(1,DI1,4),"1","") -> DI | DJ2: =SUBSTITUTE(ADDRESS(1,DJ1,4),"1","") -> DJ | DK2: =SUBSTITUTE(ADDRESS(1,DK1,4),"1","") -> DK | DL2: =SUBSTITUTE(ADDRESS(1,DL1,4),"1","") -> DL | DM2: =SUBSTITUTE(ADDRESS(1,DM1,4),"1","") -> DM | DN2: =SUBSTITUTE(ADDRESS(1,DN1,4),"1","") -> DN | DO2: =SUBSTITUTE(ADDRESS(1,DO1,4),"1","") -> DO | DP2: =SUBSTITUTE(ADDRESS(1,DP1,4),"1","") -> DP | DQ2: =SUBSTITUTE(ADDRESS(1,DQ1,4),"1","") -> DQ | DR2: =SUBSTITUTE(ADDRESS(1,DR1,4),"1","") -> DR | DS2: =SUBSTITUTE(ADDRESS(1,DS1,4),"1","") -> DS | DT2: =SUBSTITUTE(ADDRESS(1,DT1,4),"1","") -> DT | DU2: =SUBSTITUTE(ADDRESS(1,DU1,4),"1","") -> DU | DV2: =SUBSTITUTE(ADDRESS(1,DV1,4),"1","") -> DV | DW2: =SUBSTITUTE(ADDRESS(1,DW1,4),"1","") -> DW | DX2: =SUBSTITUTE(ADDRESS(1,DX1,4),"1","") -> DX | DY2: =SUBSTITUTE(ADDRESS(1,DY1,4),"1","") -> DY | DZ2: =SUBSTITUTE(ADDRESS(1,DZ1,4),"1","") -> DZ | EA2: =SUBSTITUTE(ADDRESS(1,EA1,4),"1","") -> EA | EB2: =SUBSTITUTE(ADDRESS(1,EB1,4),"1","") -> EB | EC2: =SUBSTITUTE(ADDRESS(1,EC1,4),"1","") -> EC | ED2: =SUBSTITUTE(ADDRESS(1,ED1,4),"1","") -> ED | EE2: =SUBSTITUTE(ADDRESS(1,EE1,4),"1","") -> EE | EF2: =SUBSTITUTE(ADDRESS(1,EF1,4),"1","") -> EF | EG2: =SUBSTITUTE(ADDRESS(1,EG1,4),"1","") -> EG | EH2: =SUBSTITUTE(ADDRESS(1,EH1,4),"1","") -> EH | EI2: =SUBSTITUTE(ADDRESS(1,EI1,4),"1","") -> EI | EJ2: =SUBSTITUTE(ADDRESS(1,EJ1,4),"1","") -> EJ | EK2: =SUBSTITUTE(ADDRESS(1,EK1,4),"1","") -> EK | EL2: =SUBSTITUTE(ADDRESS(1,EL1,4),"1","") -> EL | EM2: =SUBSTITUTE(ADDRESS(1,EM1,4),"1","") -> EM | EN2: =SUBSTITUTE(ADDRESS(1,EN1,4),"1","") -> EN | EO2: =SUBSTITUTE(ADDRESS(1,EO1,4),"1","") -> EO | EP2: =SUBSTITUTE(ADDRESS(1,EP1,4),"1","") -> EP | EQ2: =SUBSTITUTE(ADDRESS(1,EQ1,4),"1","") -> EQ | ER2: =SUBSTITUTE(ADDRESS(1,ER1,4),"1","") -> ER | ES2: =SUBSTITUTE(ADDRESS(1,ES1,4),"1","") -> ES | ET2: =SUBSTITUTE(ADDRESS(1,ET1,4),"1","") -> ET | EU2: =SUBSTITUTE(ADDRESS(1,EU1,4),"1","") -> EU | EV2: =SUBSTITUTE(ADDRESS(1,EV1,4),"1","") -> EV | EW2: =SUBSTITUTE(ADDRESS(1,EW1,4),"1","") -> EW | EX2: =SUBSTITUTE(ADDRESS(1,EX1,4),"1","") -> EX | EY2: =SUBSTITUTE(ADDRESS(1,EY1,4),"1","") -> EY | EZ2: =SUBSTITUTE(ADDRESS(1,EZ1,4),"1","") -> EZ | FA2: =SUBSTITUTE(ADDRESS(1,FA1,4),"1","") -> FA | FB2: =SUBSTITUTE(ADDRESS(1,FB1,4),"1","") -> FB | FC2: =SUBSTITUTE(ADDRESS(1,FC1,4),"1","") -> FC | FD2: =SUBSTITUTE(ADDRESS(1,FD1,4),"1","") -> FD | FE2: =SUBSTITUTE(ADDRESS(1,FE1,4),"1","") -> FE | FF2: =SUBSTITUTE(ADDRESS(1,FF1,4),"1","") -> FF | FG2: =SUBSTITUTE(ADDRESS(1,FG1,4),"1","") -> FG | FH2: =SUBSTITUTE(ADDRESS(1,FH1,4),"1","") -> FH | FI2: =SUBSTITUTE(ADDRESS(1,FI1,4),"1","") -> FI | FJ2: =SUBSTITUTE(ADDRESS(1,FJ1,4),"1","") -> FJ | FK2: =SUBSTITUTE(ADDRESS(1,FK1,4),"1","") -> FK | FL2: =SUBSTITUTE(ADDRESS(1,FL1,4),"1","") -> FL | FM2: =SUBSTITUTE(ADDRESS(1,FM1,4),"1","") -> FM | FN2: =SUBSTITUTE(ADDRESS(1,FN1,4),"1","") -> FN | FO2: =SUBSTITUTE(ADDRESS(1,FO1,4),"1","") -> FO | FP2: =SUBSTITUTE(ADDRESS(1,FP1,4),"1","") -> FP | FQ2: =SUBSTITUTE(ADDRESS(1,FQ1,4),"1","") -> FQ | FR2: =SUBSTITUTE(ADDRESS(1,FR1,4),"1","") -> FR | FS2: =SUBSTITUTE(ADDRESS(1,FS1,4),"1","") -> FS | FT2: =SUBSTITUTE(ADDRESS(1,FT1,4),"1","") -> FT | FU2: =SUBSTITUTE(ADDRESS(1,FU1,4),"1","") -> FU | FV2: =SUBSTITUTE(ADDRESS(1,FV1,4),"1","") -> FV | FW2: =SUBSTITUTE(ADDRESS(1,FW1,4),"1","") -> FW | FX2: =SUBSTITUTE(ADDRESS(1,FX1,4),"1","") -> FX | FY2: =SUBSTITUTE(ADDRESS(1,FY1,4),"1","") -> FY | FZ2: =SUBSTITUTE(ADDRESS(1,FZ1,4),"1","") -> FZ | GA2: =SUBSTITUTE(ADDRESS(1,GA1,4),"1","") -> GA | GB2: =SUBSTITUTE(ADDRESS(1,GB1,4),"1","") -> GB | GC2: =SUBSTITUTE(ADDRESS(1,GC1,4),"1","") -> GC | GD2: =SUBSTITUTE(ADDRESS(1,GD1,4),"1","") -> GD | GE2: =SUBSTITUTE(ADDRESS(1,GE1,4),"1","") -> GE | GF2: =SUBSTITUTE(ADDRESS(1,GF1,4),"1","") -> GF | GG2: =SUBSTITUTE(ADDRESS(1,GG1,4),"1","") -> GG | GH2: =SUBSTITUTE(ADDRESS(1,GH1,4),"1","") -> GH | GI2: =SUBSTITUTE(ADDRESS(1,GI1,4),"1","") -> GI | GJ2: =SUBSTITUTE(ADDRESS(1,GJ1,4),"1","") -> GJ | GK2: =SUBSTITUTE(ADDRESS(1,GK1,4),"1","") -> GK | GL2: =SUBSTITUTE(ADDRESS(1,GL1,4),"1","") -> GL | GM2: =SUBSTITUTE(ADDRESS(1,GM1,4),"1","") -> GM | GN2: =SUBSTITUTE(ADDRESS(1,GN1,4),"1","") -> GN | GO2: =SUBSTITUTE(ADDRESS(1,GO1,4),"1","") -> GO | GP2: =SUBSTITUTE(ADDRESS(1,GP1,4),"1","") -> GP | GQ2: =SUBSTITUTE(ADDRESS(1,GQ1,4),"1","") -> GQ | GR2: =SUBSTITUTE(ADDRESS(1,GR1,4),"1","") -> GR | GS2: =SUBSTITUTE(ADDRESS(1,GS1,4),"1","") -> GS | GT2: =SUBSTITUTE(ADDRESS(1,GT1,4),"1","") -> GT | GU2: =SUBSTITUTE(ADDRESS(1,GU1,4),"1","") -> GU | GV2: =SUBSTITUTE(ADDRESS(1,GV1,4),"1","") -> GV | GW2: =SUBSTITUTE(ADDRESS(1,GW1,4),"1","") -> GW | GX2: =SUBSTITUTE(ADDRESS(1,GX1,4),"1","") -> GX | GY2: =SUBSTITUTE(ADDRESS(1,GY1,4),"1","") -> GY | GZ2: =SUBSTITUTE(ADDRESS(1,GZ1,4),"1","") -> GZ | HA2: =SUBSTITUTE(ADDRESS(1,HA1,4),"1","") -> HA | HB2: =SUBSTITUTE(ADDRESS(1,HB1,4),"1","") -> HB | HC2: =SUBSTITUTE(ADDRESS(1,HC1,4),"1","") -> HC | HD2: =SUBSTITUTE(ADDRESS(1,HD1,4),"1","") -> HD | HE2: =SUBSTITUTE(ADDRESS(1,HE1,4),"1","") -> HE | HF2: =SUBSTITUTE(ADDRESS(1,HF1,4),"1","") -> HF | HG2: =SUBSTITUTE(ADDRESS(1,HG1,4),"1","") -> HG | HH2: =SUBSTITUTE(ADDRESS(1,HH1,4),"1","") -> HH | HI2: =SUBSTITUTE(ADDRESS(1,HI1,4),"1","") -> HI | HJ2: =SUBSTITUTE(ADDRESS(1,HJ1,4),"1","") -> HJ | HK2: =SUBSTITUTE(ADDRESS(1,HK1,4),"1","") -> HK | HL2: =SUBSTITUTE(ADDRESS(1,HL1,4),"1","") -> HL | HM2: =SUBSTITUTE(ADDRESS(1,HM1,4),"1","") -> HM
B4: Bruttowertschöpfung pro Arbeitsstunde Alle Länder | U4: Bruttowertschöpfung pro Arbeitsstunde Länderauswahl | AN4: Produkktionswert pro Erwerbstätiger Alle Länder | BG4: Produkktionswert pro Erwerbstätiger - Länderauswahl | BZ4: Bruttowertschöpfung pro Erwerbstätiger - Alle Länder | CS4: Bruttowertschöpfung pro Erwerbstätiger - Länderauswahl
B5: Österreich | C5: Belgien | D5: Tschechien | E5: Dänemark | F5: Estland | G5: Frankreich | H5: Griechenland | I5: Italien | J5: Spanien | K5: Finnland | L5: Ungarn | M5: Irland | N5: Niederlande | O5: Portugal | P5: Rumänien | Q5: Slowenien | R5: Slowakei | S5: Großbritannien | U5: Österreich | V5: Belgien | W5: Tschechien | X5: Dänemark | Y5: Estland | Z5: Frankreich | AA5: Griechenland | AB5: Italien | AC5: Spanien | AD5: Finnland | AE5: Ungarn | AF5: Irland | AG5: Niederlande | AH5: Portugal | AI5: Rumänien | AJ5: Slowenien | AK5: Slowakei | AL5: Großbritannien | AN5: Österreich | AO5: Belgien | AP5: Tschechien | AQ5: Dänemark | AR5: Estland | AS5: Frankreich | AT5: Griechenland | AU5: Italien | AV5: Spanien | AW5: Finnland | AX5: Ungarn | AY5: Irland | AZ5: Niederlande | BA5: Portugal | BB5: Rumänien | BC5: Slowenien | BD5: Slowakei | BE5: Großbritannien | BG5: Österreich | BH5: Belgien | BI5: Tschechien | BJ5: Dänemark | BK5: Estland | BL5: Frankreich | BM5: Griechenland | BN5: Italien | BO5: Spanien | BP5: Finnland | BQ5: Ungarn | BR5: Irland | BS5: Niederlande | BT5: Portugal | BU5: Rumänien | BV5: Slowenien | BW5: Slowakei | BX5: Großbritannien | BZ5: Österreich | CA5: Belgien | CB5: Tschechien | CC5: Dänemark | CD5: Estland | CE5: Frankreich | CF5: Griechenland | CG5: Italien | CH5: Spanien | CI5: Finnland | CJ5: Ungarn | CK5: Irland | CL5: Niederlande | CM5: Portugal | CN5: Rumänien | CO5: Slowenien | CP5: Slowakei | CQ5: Großbritannien | CS5: Österreich | CT5: Belgien | CU5: Tschechien | CV5: Dänemark | CW5: Estland | CX5: Frankreich | CY5: Griechenland | CZ5: Italien | DA5: Spanien | DB5: Finnland | DC5: Ungarn | DD5: Irland | DE5: Niederlande | DF5: Portugal | DG5: Rumänien | DH5: Slowenien | DI5: Slowakei | DJ5: Großbritannien
A7: 1996 | B7: =TRANSPOSE(NR_Berechnung!C4:X21) -> 1.171472635 | D7: 1.056117566 | E7: 0.9866326132 | H7: 0.9972082517 | J7: 1.137103129 | K7: 1.016619205 | M7: 1.016104856 | N7: 1.002754732 | P7: 1.287554308 | Q7: 1.012915136 | R7: 1.215475664 | U7: =TRANSPOSE(NR_Berechnung!AN4:BI21) -> 1.171472635 | W7: 1.056117566 | X7: 0.9866326132 | AA7: 0.9972082517 | AC7: 1.137103129 | AD7: 1.016619205 | AF7: 1.016104856 | AG7: 1.002754732 | AI7: 1.287554308 | AJ7: 1.012915136 | AK7: 1.215475664 | AN7: =TRANSPOSE(NR_Berechnung!C33:X50) -> 1.227366991 | AO7: 1.001241982 | AP7: 1.046367551 | AQ7: 1.048942948 | AR7: 1.165127161 | AS7: 1.037754748 | AT7: 1.003738443 | AU7: 1.009192108 | AW7: 1.039674466 | AX7: 0.914564341 | AZ7: 1.049100771 | BA7: 1.063698414 | BB7: 1.277172875 | BD7: 1.182866991 | BG7: =TRANSPOSE(NR_Berechnung!AN33:BI50) -> 1.227366991 | BI7: 1.046367551 | BJ7: 1.048942948 | BK7: 1.165127161 | BM7: 1.003738443 | BN7: 1.009192108 | BP7: 1.039674466 | BQ7: 0.914564341 | BS7: 1.049100771 | BT7: 1.063698414 | BU7: 1.277172875 | BW7: 1.182866991 | BZ7: =TRANSPOSE(NR_Berechnung!C63:X80) -> 1.201179148 | CA7: 1.020646991 | CB7: 1.054587255 | CC7: 1.026292835 | CD7: 1.147835581 | CE7: 1.033588437 | CF7: 0.9971575857 | CG7: 1.002226474 | CH7: 1.157773841 | CI7: 1.033285094 | CJ7: 0.8949230469 | CK7: 1.001991993 | CL7: 1.048347311 | CM7: 1.035408186 | CN7: 1.285407223 | CO7: 1.016334161 | CP7: 1.207847334 | CQ7: 1.023971438 | CS7: =TRANSPOSE(NR_Berechnung!AN63:BI80) -> 1.201179148 | CU7: 1.054587255 | CV7: 1.026292835 | CW7: 1.147835581 | CY7: 0.9971575857 | CZ7: 1.002226474 | DA7: 1.157773841 | DB7: 1.033285094 | DC7: 0.8949230469 | DD7: 1.001991993 | DE7: 1.048347311 | DF7: 1.035408186 | DG7: 1.285407223 | DH7: 1.016334161 | DI7: 1.207847334
A8: =A7+1 -> 1997 | B8: 0.9360886498 | D8: 0.8710003689 | E8: 1.011203148 | H8: 1.201779793 | J8: 1.121839387 | K8: 1.060066796 | M8: 1.053306486 | N8: 0.9852150159 | P8: 1.041262185 | Q8: 1.027457062 | R8: 1.17696277 | U8: 0.9360886498 | W8: 0.8710003689 | X8: 1.011203148 | AA8: 1.201779793 | AC8: 1.121839387 | AD8: 1.060066796 | AF8: 1.053306486 | AG8: 0.9852150159 | AI8: 1.041262185 | AJ8: 1.027457062 | AK8: 1.17696277 | AN8: 1.089481719 | AO8: 1.105440915 | AP8: 0.9680025134 | AQ8: 1.036544501 | AR8: 1.083418808 | AS8: 1.133982142 | AT8: 1.211709708 | AU8: 1.111743937 | AW8: 1.070872261 | AX8: 0.9712292952 | AZ8: 1.009348291 | BA8: 1.041192738 | BB8: 1.052830189 | BD8: 1.139777424 | BG8: 1.089481719 | BI8: 0.9680025134 | BJ8: 1.036544501 | BK8: 1.083418808 | BM8: 1.211709708 | BN8: 1.111743937 | BP8: 1.070872261 | BQ8: 0.9712292952 | BS8: 1.009348291 | BT8: 1.041192738 | BU8: 1.052830189 | BW8: 1.139777424 | BZ8: 0.9633085324 | CA8: 0.992319388 | CB8: 0.8756212182 | CC8: 0.984741185 | CD8: 1.112793814 | CE8: 0.9966563036 | CF8: 1.201864422 | CG8: 1.08304136 | CH8: 1.114294102 | CI8: 1.058910253 | CJ8: 0.973650589 | CK8: 1.041911964 | CL8: 0.987038343 | CM8: 1.017398342 | CN8: 1.043200669 | CO8: 1.041995067 | CP8: 1.142495503 | CQ8: 1.087891976 | CS8: 0.9633085324 | CU8: 0.8756212182 | CV8: 0.984741185 | CW8: 1.112793814 | CY8: 1.201864422 | CZ8: 1.08304136 | DA8: 1.114294102 | DB8: 1.058910253 | DC8: 0.973650589 | DD8: 1.041911964 | DE8: 0.987038343 | DF8: 1.017398342 | DG8: 1.043200669 | DH8: 1.041995067 | DI8: 1.142495503
A9: =A8+1 -> 1998 | B9: 1.167041441 | D9: 1.103483943 | E9: 0.9709098871 | H9: 1.036036525 | J9: 1.083408596 | K9: 1.015414401 | M9: 0.93134717 | N9: 1.068877998 | P9: 0.9872002515 | Q9: 0.9455337262 | R9: 1.08915793 | U9: 1.167041441 | W9: 1.103483943 | X9: 0.9709098871 | AA9: 1.036036525 | AC9: 1.083408596 | AD9: 1.015414401 | AF9: 0.93134717 | AG9: 1.068877998 | AI9: 0.9872002515 | AJ9: 0.9455337262 | AK9: 1.08915793 | AN9: 1.141238827 | AO9: 1.138336955 | AP9: 1.031900838 | AQ9: 1.002583224 | AR9: 1.225196538 | AS9: 1.145250279 | AT9: 1.041030648 | AU9: 1.051909708 | AW9: 1.021682604 | AX9: 1.06877744 | AZ9: 1.039347429 | BA9: 1.042828782 | BB9: 1.026443188 | BD9: 1.040792834 | BG9: 1.141238827 | BI9: 1.031900838 | BJ9: 1.002583224 | BK9: 1.225196538 | BM9: 1.041030648 | BN9: 1.051909708 | BP9: 1.021682604 | BQ9: 1.06877744 | BS9: 1.039347429 | BT9: 1.042828782 | BU9: 1.026443188 | BW9: 1.040792834 | BZ9: 1.129830161 | CA9: 1.02950024 | CB9: 1.112642291 | CC9: 0.9514557103 | CD9: 1.219091399 | CE9: 1.039058348 | CF9: 1.036041399 | CG9: 1.024622851 | CH9: 1.078589094 | CI9: 1.012850968 | CJ9: 1.058518545 | CK9: 0.8495386478 | CL9: 1.026449323 | CM9: 1.034045868 | CN9: 0.9956080297 | CO9: 0.9587809482 | CP9: 1.079406818 | CQ9: 1.03810831 | CS9: 1.129830161 | CU9: 1.112642291 | CV9: 0.9514557103 | CW9: 1.219091399 | CY9: 1.036041399 | CZ9: 1.024622851 | DA9: 1.078589094 | DB9: 1.012850968 | DC9: 1.058518545 | DD9: 0.8495386478 | DE9: 1.026449323 | DF9: 1.034045868 | DG9: 0.9956080297 | DH9: 0.9587809482 | DI9: 1.079406818
A10: 1999 | B10: 1.116169146 | D10: 0.9385501493 | E10: 0.9477156555 | H10: 1.283490834 | J10: 1.024086113 | K10: 1.096460561 | M10: 1.044974882 | N10: 0.9627212376 | P10: 1.029742309 | Q10: 1.015516039 | R10: 1.086962841 | U10: 1.116169146 | W10: 0.9385501493 | X10: 0.9477156555 | AA10: 1.283490834 | AC10: 1.024086113 | AD10: 1.096460561 | AF10: 1.044974882 | AG10: 0.9627212376 | AI10: 1.029742309 | AJ10: 1.015516039 | AK10: 1.086962841 | AN10: 1.101045613 | AO10: 0.9957340371 | AP10: 1.013268241 | AQ10: 1.023787954 | AR10: 0.9779247993 | AS10: 1.191123341 | AT10: 1.309178778 | AU10: 1.14318321 | AW10: 1.100224017 | AX10: 1.041890747 | AZ10: 0.999384857 | BA10: 1.023886115 | BB10: 1.039518493 | BD10: 1.098154462 | BG10: 1.101045613 | BI10: 1.013268241 | BJ10: 1.023787954 | BK10: 0.9779247993 | BM10: 1.309178778 | BN10: 1.14318321 | BP10: 1.100224017 | BQ10: 1.041890747 | BS10: 0.999384857 | BT10: 1.023886115 | BU10: 1.039518493 | BW10: 1.098154462 | BZ10: 1.111795498 | CA10: 1.000829222 | CB10: 0.9492132461 | CC10: 0.9281538191 | CD10: 0.9727926353 | CE10: 1.061933228 | CF10: 1.282963728 | CG10: 1.124078423 | CH10: 1.01822939 | CI10: 1.095097145 | CJ10: 1.021064201 | CK10: 1.032598226 | CL10: 0.9915736536 | CM10: 1.046556392 | CN10: 1.029404642 | CO10: 1.019954004 | CP10: 1.082422155 | CQ10: 1.001007887 | CS10: 1.111795498 | CU10: 0.9492132461 | CV10: 0.9281538191 | CW10: 0.9727926353 | CY10: 1.282963728 | CZ10: 1.124078423 | DA10: 1.01822939 | DB10: 1.095097145 | DC10: 1.021064201 | DD10: 1.032598226 | DE10: 0.9915736536 | DF10: 1.046556392 | DG10: 1.029404642 | DH10: 1.019954004 | DI10: 1.082422155
A11: 2000 | B11: 1.006306514 | C11: 1.034062754 | D11: 1.10121974 | E11: 0.8666044363 | H11: 1.017007484 | J11: 1.112193453 | K11: 1.036030837 | M11: 0.9634744691 | N11: 1.047870052 | P11: 0.9703534902 | Q11: 1.036238744 | R11: 0.7759012366 | U11: 1.006306514 | W11: 1.10121974 | X11: 0.8666044363 | AA11: 1.017007484 | AC11: 1.112193453 | AD11: 1.036030837 | AF11: 0.9634744691 | AG11: 1.047870052 | AI11: 0.9703534902 | AJ11: 1.036238744 | AK11: 0.7759012366 | AN11: 1.137867968 | AO11: 1.026148912 | AP11: 1.052793869 | AQ11: 1.032138011 | AR11: 1.095034385 | AS11: 0.9177240254 | AT11: 1.029201563 | AU11: 1.039156505 | AW11: 1.047012415 | AX11: 0.9508690624 | AZ11: 1.013085727 | BA11: 1.065887239 | BB11: 0.9218785469 | BD11: 0.7904692068 | BG11: 1.137867968 | BI11: 1.052793869 | BJ11: 1.032138011 | BK11: 1.095034385 | BM11: 1.029201563 | BN11: 1.039156505 | BP11: 1.047012415 | BQ11: 0.9508690624 | BS11: 1.013085727 | BT11: 1.065887239 | BU11: 0.9218785469 | BW11: 0.7904692068 | BZ11: 1.003851186 | CA11: 1.030442372 | CB11: 1.101999172 | CC11: 0.8734346505 | CD11: 1.105991833 | CE11: 0.9200729206 | CF11: 1.017283902 | CG11: 1.046042328 | CH11: 1.089614655 | CI11: 1.03229239 | CJ11: 0.9650084982 | CK11: 0.9656901802 | CL11: 1.020060837 | CM11: 1.055046036 | CN11: 0.9557155263 | CO11: 1.018244267 | CP11: 0.7783124228 | CQ11: 1.1235157 | CS11: 1.003851186 | CU11: 1.101999172 | CV11: 0.8734346505 | CW11: 1.105991833 | CY11: 1.017283902 | CZ11: 1.046042328 | DA11: 1.089614655 | DB11: 1.03229239 | DC11: 0.9650084982 | DD11: 0.9656901802 | DE11: 1.020060837 | DF11: 1.055046036 | DG11: 0.9557155263 | DH11: 1.018244267 | DI11: 0.7783124228
A12: 2001 | B12: 1.006705153 | C12: 0.8886203569 | D12: 1.158199192 | E12: 1.193792209 | F12: 1.728917405 | H12: 1.105770277 | J12: 1.054315654 | K12: 1.065707316 | M12: 0.9385816339 | N12: 1.040765984 | P12: 1.073726463 | Q12: 0.8764571442 | R12: 1.003516783 | U12: 1.006705153 | W12: 1.158199192 | X12: 1.193792209 | Y12: 1.728917405 | AA12: 1.105770277 | AC12: 1.054315654 | AD12: 1.065707316 | AF12: 0.9385816339 | AG12: 1.040765984 | AI12: 1.073726463 | AJ12: 0.8764571442 | AK12: 1.003516783 | AN12: 0.9962576132 | AO12: 0.9289625913 | AP12: 1.126205307 | AQ12: 1.018505202 | AR12: 1.146432573 | AS12: 0.9612761987 | AT12: 1.130276352 | AU12: 1.159722882 | AW12: 0.9938162155 | AX12: 1.478968267 | AZ12: 1.010820536 | BA12: 0.9887400998 | BB12: 1.085293555 | BC12: 0.869184145 | BD12: 1.043612862 | BG12: 0.9962576132 | BI12: 1.126205307 | BJ12: 1.018505202 | BK12: 1.146432573 | BM12: 1.130276352 | BN12: 1.159722882 | BP12: 0.9938162155 | BQ12: 1.478968267 | BS12: 1.010820536 | BT12: 0.9887400998 | BU12: 1.085293555 | BV12: 0.869184145 | BW12: 1.043612862 | BZ12: 1.009509977 | CA12: 0.8907986619 | CB12: 1.102273284 | CC12: 1.275707538 | CD12: 1.217728188 | CE12: 0.9625764626 | CF12: 1.110271611 | CG12: 1.153177719 | CH12: 1.061731807 | CI12: 1.013202073 | CJ12: 1.476375981 | CK12: 0.9367868993 | CL12: 1.03703304 | CM12: 0.9794774772 | CN12: 1.06735711 | CO12: 0.8649218462 | CP12: 1.002163532 | CQ12: 1.025656596 | CS12: 1.009509977 | CU12: 1.102273284 | CV12: 1.275707538 | CW12: 1.217728188 | CY12: 1.110271611 | CZ12: 1.153177719 | DA12: 1.061731807 | DB12: 1.013202073 | DC12: 1.476375981 | DD12: 0.9367868993 | DE12: 1.03703304 | DF12: 0.9794774772 | DG12: 1.06735711 | DH12: 0.8649218462 | DI12: 1.002163532
A13: 2002 | B13: 1.01470005 | C13: 0.9833393404 | D13: 1.029402741 | E13: 0.9753187879 | F13: 0.9051568891 | H13: 1.060134116 | J13: 1.090992304 | K13: 1.023468486 | M13: 0.9472684253 | N13: 1.006330828 | P13: 0.9712696116 | Q13: 1.012611918 | R13: 0.9052482145 | U13: 1.01470005 | W13: 1.029402741 | X13: 0.9753187879 | Y13: 0.9051568891 | AA13: 1.060134116 | AC13: 1.090992304 | AD13: 1.023468486 | AF13: 0.9472684253 | AG13: 1.006330828 | AI13: 0.9712696116 | AJ13: 1.012611918 | AK13: 0.9052482145 | AN13: 1.024855616 | AO13: 0.9959229334 | AP13: 1.035953928 | AQ13: 0.9830708952 | AR13: 1.158682897 | AS13: 0.9765997707 | AT13: 1.066277579 | AU13: 0.9417517185 | AW13: 1.006666206 | AX13: 1.275330077 | AZ13: 1.038257408 | BA13: 1.004140775 | BB13: 0.9857237765 | BC13: 1.035490941 | BD13: 0.8739901555 | BG13: 1.024855616 | BI13: 1.035953928 | BJ13: 0.9830708952 | BK13: 1.158682897 | BM13: 1.066277579 | BN13: 0.9417517185 | BP13: 1.006666206 | BQ13: 1.275330077 | BS13: 1.038257408 | BT13: 1.004140775 | BU13: 0.9857237765 | BV13: 1.035490941 | BW13: 0.8739901555 | BZ13: 1.016079941 | CA13: 0.9533717017 | CB13: 1.025129897 | CC13: 0.9683317009 | CD13: 1.159047091 | CE13: 0.9776433612 | CF13: 1.056840129 | CG13: 0.9786912899 | CH13: 1.082605099 | CI13: 0.9795454545 | CJ13: 1.227648607 | CK13: 0.9373886087 | CL13: 1.0135833 | CM13: 1.004530479 | CN13: 0.9898838079 | CO13: 1.032819106 | CP13: 0.9249920508 | CQ13: 1.022514796 | CS13: 1.016079941 | CU13: 1.025129897 | CV13: 0.9683317009 | CW13: 1.159047091 | CY13: 1.056840129 | CZ13: 0.9786912899 | DA13: 1.082605099 | DB13: 0.9795454545 | DC13: 1.227648607 | DD13: 0.9373886087 | DE13: 1.0135833 | DF13: 1.004530479 | DG13: 0.9898838079 | DH13: 1.032819106 | DI13: 0.9249920508
A14: 2003 | B14: 1.072784743 | C14: 1.019380574 | D14: 1.225250402 | E14: 0.9820622861 | F14: 1.001013763 | H14: 0.9796067229 | J14: 1.060729932 | K14: 1.034656936 | M14: 1.039386974 | N14: 1.03909508 | P14: 0.999409823 | Q14: 1.002449854 | R14: 1.116832027 | U14: 1.072784743 | W14: 1.225250402 | X14: 0.9820622861 | Y14: 1.001013763 | AA14: 0.9796067229 | AC14: 1.060729932 | AD14: 1.034656936 | AF14: 1.039386974 | AG14: 1.03909508 | AI14: 0.999409823 | AJ14: 1.002449854 | AK14: 1.116832027 | AN14: 1.104357519 | AO14: 1.012107164 | AP14: 1.188432506 | AQ14: 0.9967586257 | AR14: 1.068985317 | AS14: 0.9722454531 | AT14: 0.9653652331 | AU14: 1.034028726 | AW14: 1.025272688 | AX14: 0.9019050982 | AZ14: 1.038334545 | BA14: 0.9962964612 | BB14: 1.000659796 | BC14: 1.009734176 | BD14: 1.075615066 | BG14: 1.104357519 | BI14: 1.188432506 | BJ14: 0.9967586257 | BK14: 1.068985317 | BM14: 0.9653652331 | BN14: 1.034028726 | BP14: 1.025272688 | BQ14: 0.9019050982 | BS14: 1.038334545 | BT14: 0.9962964612 | BU14: 1.000659796 | BV14: 1.009734176 | BW14: 1.075615066 | BZ14: 1.086888437 | CA14: 1.023358292 | CB14: 1.217672758 | CC14: 0.9646980462 | CD14: 1.03396518 | CE14: 0.9733405853 | CF14: 0.9789677712 | CG14: 1.022994974 | CH14: 1.057437635 | CI14: 1.011049295 | CJ14: 0.9193210334 | CK14: 1.017119866 | CL14: 1.035631214 | CM14: 0.984966922 | CN14: 0.9875215189 | CO14: 1.002116571 | CP14: 1.093348226 | CQ14: 1.219153551 | CS14: 1.086888437 | CU14: 1.217672758 | CV14: 0.9646980462 | CW14: 1.03396518 | CY14: 0.9789677712 | CZ14: 1.022994974 | DA14: 1.057437635 | DB14: 1.011049295 | DC14: 0.9193210334 | DD14: 1.017119866 | DE14: 1.035631214 | DF14: 0.984966922 | DG14: 0.9875215189 | DH14: 1.002116571 | DI14: 1.093348226
A15: 2004 | B15: 1.058185817 | C15: 1.01781622 | D15: 0.9823359792 | E15: 0.9482849901 | F15: 1.448011236 | H15: 1.033119562 | J15: 1.074527516 | K15: 0.977531555 | M15: 1.214773996 | N15: 1.095147037 | P15: 1.030976492 | Q15: 0.9298443161 | R15: 0.8498744141 | U15: 1.058185817 | W15: 0.9823359792 | X15: 0.9482849901 | Y15: 1.448011236 | AA15: 1.033119562 | AC15: 1.074527516 | AD15: 0.977531555 | AF15: 1.214773996 | AG15: 1.095147037 | AI15: 1.030976492 | AJ15: 0.9298443161 | AK15: 0.8498744141 | AN15: 1.043252568 | AO15: 1.050192663 | AP15: 1.034547116 | AQ15: 0.9856750538 | AR15: 1.223510809 | AS15: 1.027119292 | AT15: 1.034211548 | AU15: 0.9771119931 | AW15: 1.043409 | AX15: 1.221022078 | AZ15: 1.098938179 | BA15: 1.038472758 | BB15: 1.019819479 | BC15: 0.9913700686 | BD15: 1.033555255 | BG15: 1.043252568 | BI15: 1.034547116 | BJ15: 0.9856750538 | BK15: 1.223510809 | BM15: 1.034211548 | BN15: 0.9771119931 | BP15: 1.043409 | BQ15: 1.221022078 | BS15: 1.098938179 | BT15: 1.038472758 | BU15: 1.019819479 | BV15: 0.9913700686 | BW15: 1.033555255 | BZ15: 1.059689946 | CA15: 1.012466535 | CB15: 0.9938925092 | CC15: 0.9649022918 | CD15: 1.274787622 | CE15: 1.027761413 | CF15: 1.032120067 | CG15: 0.9835994108 | CH15: 1.060482515 | CI15: 1.022080691 | CJ15: 1.180109151 | CK15: 1.163074959 | CL15: 1.152239773 | CM15: 1.04623254 | CN15: 1.017478698 | CO15: 0.950588636 | CP15: 0.8892398965 | CQ15: 1.152595792 | CS15: 1.059689946 | CU15: 0.9938925092 | CV15: 0.9649022918 | CW15: 1.274787622 | CY15: 1.032120067 | CZ15: 0.9835994108 | DA15: 1.060482515 | DB15: 1.022080691 | DC15: 1.180109151 | DD15: 1.163074959 | DE15: 1.152239773 | DF15: 1.04623254 | DG15: 1.017478698 | DH15: 0.950588636 | DI15: 0.8892398965
A16: 2005 | B16: 1.260758123 | C16: 1.013250887 | D16: 0.9988853132 | E16: 1.022692201 | F16: 1.193690179 | H16: 0.985575357 | J16: 1.082208555 | K16: 1.02515856 | M16: 0.7941352574 | N16: 1.026918846 | P16: 1.085999749 | Q16: 0.9946583801 | R16: 1.469064651 | U16: 1.260758123 | W16: 0.9988853132 | X16: 1.022692201 | Y16: 1.193690179 | AA16: 0.985575357 | AC16: 1.082208555 | AD16: 1.02515856 | AF16: 0.7941352574 | AG16: 1.026918846 | AI16: 1.085999749 | AJ16: 0.9946583801 | AK16: 1.469064651 | AN16: 1.267505636 | AO16: 1.03316459 | AP16: 1.032050294 | AQ16: 1.126400145 | AR16: 1.28514935 | AS16: 1.019151303 | AT16: 1.028708582 | AU16: 1.045294638 | AW16: 1.001528792 | AX16: 1.071877236 | AZ16: 1.009421156 | BA16: 1.034273801 | BB16: 1.055242506 | BC16: 0.9668878758 | BD16: 1.136065177 | BG16: 1.267505636 | BI16: 1.032050294 | BJ16: 1.126400145 | BK16: 1.28514935 | BM16: 1.028708582 | BN16: 1.045294638 | BP16: 1.001528792 | BQ16: 1.071877236 | BS16: 1.009421156 | BT16: 1.034273801 | BU16: 1.055242506 | BV16: 0.9668878758 | BW16: 1.136065177 | BZ16: 1.243541071 | CA16: 1.006513289 | CB16: 1.003313073 | CC16: 0.9664674817 | CD16: 1.281496114 | CE16: 1.013477937 | CF16: 1.021155323 | CG16: 1.041729113 | CH16: 1.050913712 | CI16: 0.9981728414 | CJ16: 1.062639033 | CK16: 0.8044159394 | CL16: 1.002933295 | CM16: 1.015899907 | CN16: 1.077073096 | CO16: 0.9587289578 | CP16: 1.414206324 | CQ16: 1.005364441 | CS16: 1.243541071 | CU16: 1.003313073 | CV16: 0.9664674817 | CW16: 1.281496114 | CY16: 1.021155323 | CZ16: 1.041729113 | DA16: 1.050913712 | DB16: 0.9981728414 | DC16: 1.062639033 | DD16: 0.8044159394 | DE16: 1.002933295 | DF16: 1.015899907 | DG16: 1.077073096 | DH16: 0.9587289578 | DI16: 1.414206324
A17: 2006 | B17: 1.161149198 | C17: 1.024226308 | D17: 1.123268139 | E17: 0.8351465249 | F17: 0.9554062998 | H17: 1.093018173 | J17: 1.015389936 | K17: 0.9959797778 | M17: 0.9152890083 | N17: 0.9962996941 | P17: 0.9899072449 | Q17: 1.079164044 | R17: 0.999343753 | U17: 1.161149198 | W17: 1.123268139 | X17: 0.8351465249 | Y17: 0.9554062998 | AA17: 1.093018173 | AC17: 1.015389936 | AD17: 0.9959797778 | AF17: 0.9152890083 | AG17: 0.9962996941 | AI17: 0.9899072449 | AJ17: 1.079164044 | AK17: 0.999343753 | AN17: 1.113136151 | AO17: 1.053582613 | AP17: 1.176630783 | AQ17: 0.9764251095 | AR17: 0.9984359996 | AS17: 0.9741366559 | AT17: 1.080005253 | AU17: 1.012796532 | AW17: 0.9895703015 | AX17: 0.9889451899 | AZ17: 1.020280516 | BA17: 1.016632286 | BB17: 1.003798161 | BC17: 1.068648741 | BD17: 1.110445091 | BG17: 1.113136151 | BI17: 1.176630783 | BJ17: 0.9764251095 | BK17: 0.9984359996 | BM17: 1.080005253 | BN17: 1.012796532 | BP17: 0.9895703015 | BQ17: 0.9889451899 | BS17: 1.020280516 | BT17: 1.016632286 | BU17: 1.003798161 | BV17: 1.068648741 | BW17: 1.110445091 | BZ17: 1.108014443 | CA17: 1.027744442 | CB17: 1.112709405 | CC17: 0.8584850264 | CD17: 0.9294826003 | CE17: 0.9702650557 | CF17: 1.086639609 | CG17: 1.01669314 | CH17: 1.004751265 | CI17: 0.9946464856 | CJ17: 1.003038949 | CK17: 0.9366540006 | CL17: 0.9889558233 | CM17: 1.027261146 | CN17: 0.9829678668 | CO17: 1.065664309 | CP17: 1.022736136 | CQ17: 0.9302006492 | CS17: 1.108014443 | CU17: 1.112709405 | CV17: 0.8584850264 | CW17: 0.9294826003 | CY17: 1.086639609 | CZ17: 1.01669314 | DA17: 1.004751265 | DB17: 0.9946464856 | DC17: 1.003038949 | DD17: 0.9366540006 | DE17: 0.9889558233 | DF17: 1.027261146 | DG17: 0.9829678668 | DH17: 1.065664309 | DI17: 1.022736136
A18: 2007 | B18: 1.029157485 | C18: 1.070509195 | D18: 1.078797238 | E18: 0.9795861783 | F18: 0.9493108053 | H18: 1.031077887 | J18: 1.085419001 | K18: 0.969424229 | M18: 1.010522988 | N18: 1.00742558 | P18: 0.9296078577 | Q18: 0.9976671238 | R18: 1.022575231 | U18: 1.029157485 | W18: 1.078797238 | X18: 0.9795861783 | Y18: 0.9493108053 | AA18: 1.031077887 | AC18: 1.085419001 | AD18: 0.969424229 | AF18: 1.010522988 | AG18: 1.00742558 | AI18: 0.9296078577 | AJ18: 0.9976671238 | AK18: 1.022575231 | AN18: 1.061692822 | AO18: 1.081406237 | AP18: 0.977650098 | AQ18: 1.005524563 | AR18: 1.179314536 | AS18: 1.035762009 | AT18: 1.175355203 | AU18: 1.072798461 | AW18: 0.9980802511 | AX18: 1.07191239 | AZ18: 1.015395841 | BA18: 1.079490855 | BB18: 0.9781652448 | BC18: 0.995712619 | BD18: 1.108708891 | BG18: 1.061692822 | BI18: 0.977650098 | BJ18: 1.005524563 | BK18: 1.179314536 | BM18: 1.175355203 | BN18: 1.072798461 | BP18: 0.9980802511 | BQ18: 1.07191239 | BS18: 1.015395841 | BT18: 1.079490855 | BU18: 0.9781652448 | BV18: 0.995712619 | BW18: 1.108708891 | BZ18: 1.066226392 | CA18: 1.054837757 | CB18: 1.074641058 | CC18: 0.957496214 | CD18: 1.154993718 | CE18: 1.043474241 | CF18: 1.024146924 | CG18: 1.044670968 | CH18: 1.083095111 | CI18: 0.9940303536 | CJ18: 1.069326015 | CK18: 1.002960961 | CL18: 1.005850204 | CM18: 1.075786367 | CN18: 0.9449089085 | CO18: 0.9931763444 | CP18: 1.030910105 | CQ18: 0.9484491806 | CS18: 1.066226392 | CU18: 1.074641058 | CV18: 0.957496214 | CW18: 1.154993718 | CY18: 1.024146924 | CZ18: 1.044670968 | DA18: 1.083095111 | DB18: 0.9940303536 | DC18: 1.069326015 | DD18: 1.002960961 | DE18: 1.005850204 | DF18: 1.075786367 | DG18: 0.9449089085 | DH18: 0.9931763444 | DI18: 1.030910105
A19: 2008 | B19: 1.06221447 | C19: 1.054746188 | D19: 0.9105885621 | E19: 0.8718069536 | F19: 1.213201751 | H19: 1.052797272 | J19: 1.006374911 | K19: 0.9846010048 | M19: 1.020292907 | N19: 1.012938576 | P19: 1.297411051 | Q19: 1.064851447 | R19: 0.8569518843 | U19: 1.06221447 | W19: 0.9105885621 | X19: 0.8718069536 | Y19: 1.213201751 | AA19: 1.052797272 | AC19: 1.006374911 | AD19: 0.9846010048 | AF19: 1.020292907 | AG19: 1.012938576 | AI19: 1.297411051 | AJ19: 1.064851447 | AK19: 0.8569518843 | AN19: 1.028828127 | AO19: 1.039025341 | AP19: 0.8810933625 | AQ19: 0.9837809648 | AR19: 0.9854736779 | AS19: 0.9996323742 | AT19: 1.018851494 | AU19: 0.9358338937 | AW19: 1.004938738 | AX19: 1.131074726 | AZ19: 0.9837283339 | BA19: 1.011674795 | BB19: 1.271077395 | BC19: 1.077666569 | BD19: 0.9894479546 | BG19: 1.028828127 | BI19: 0.8810933625 | BJ19: 0.9837809648 | BK19: 0.9854736779 | BM19: 1.018851494 | BN19: 0.9358338937 | BP19: 1.004938738 | BQ19: 1.131074726 | BS19: 0.9837283339 | BT19: 1.011674795 | BU19: 1.271077395 | BV19: 1.077666569 | BW19: 0.9894479546 | BZ19: 1.036125148 | CA19: 1.058455797 | CB19: 0.912073965 | CC19: 0.8936626132 | CD19: 0.952369959 | CE19: 1.006527005 | CF19: 1.078990652 | CG19: 0.9776986049 | CH19: 1.013053148 | CI19: 0.9819358693 | CJ19: 1.148904348 | CK19: 0.9907081892 | CL19: 0.9844357977 | CM19: 1.004897918 | CN19: 1.240974212 | CO19: 1.046345799 | CP19: 0.8910274284 | CQ19: 0.8680257064 | CS19: 1.036125148 | CU19: 0.912073965 | CV19: 0.8936626132 | CW19: 0.952369959 | CY19: 1.078990652 | CZ19: 0.9776986049 | DA19: 1.013053148 | DB19: 0.9819358693 | DC19: 1.148904348 | DD19: 0.9907081892 | DE19: 0.9844357977 | DF19: 1.004897918 | DG19: 1.240974212 | DH19: 1.046345799 | DI19: 0.8910274284
A20: 2009 | B20: 1.013812172 | C20: 0.9681552913 | D20: 0.9975935154 | E20: 0.9832281683 | F20: 0.8221899511 | H20: 0.8821456278 | J20: 0.9725865335 | K20: 0.9681940701 | M20: 0.9849528141 | N20: 0.9682773696 | P20: 0.7664951906 | Q20: 0.9535634712 | R20: 0.8877219318 | U20: 1.013812172 | W20: 0.9975935154 | X20: 0.9832281683 | Y20: 0.8221899511 | AA20: 0.8821456278 | AC20: 0.9725865335 | AD20: 0.9681940701 | AF20: 0.9849528141 | AG20: 0.9682773696 | AI20: 0.7664951906 | AJ20: 0.9535634712 | AK20: 0.8877219318 | AN20: 1.025062538 | AO20: 0.9884203999 | AP20: 1.131735666 | AQ20: 1.031700131 | AR20: 0.9205125757 | AS20: 1.008387526 | AT20: 0.9725940584 | AU20: 0.9741294293 | AW20: 0.9240252782 | AX20: 0.8544864922 | AZ20: 0.940345058 | BA20: 0.9664626423 | BB20: 0.8515253971 | BC20: 0.9507883848 | BD20: 0.9043072546 | BG20: 1.025062538 | BI20: 1.131735666 | BJ20: 1.031700131 | BK20: 0.9205125757 | BM20: 0.9725940584 | BN20: 0.9741294293 | BP20: 0.9240252782 | BQ20: 0.8544864922 | BS20: 0.940345058 | BT20: 0.9664626423 | BU20: 0.8515253971 | BV20: 0.9507883848 | BW20: 0.9043072546 | BZ20: 1.023782882 | CA20: 0.963976401 | CB20: 1.027492159 | CC20: 0.9777531932 | CD20: 0.8620769488 | CE20: 1.015074236 | CF20: 0.8900127418 | CG20: 0.9985677374 | CH20: 0.9797322641 | CI20: 0.9715423539 | CJ20: 0.8460196238 | CK20: 0.9820001031 | CL20: 0.9341255396 | CM20: 0.9581518134 | CN20: 0.8379513057 | CO20: 0.9716809234 | CP20: 0.8684185183 | CQ20: 0.8153350013 | CS20: 1.023782882 | CU20: 1.027492159 | CV20: 0.9777531932 | CW20: 0.8620769488 | CY20: 0.8900127418 | CZ20: 0.9985677374 | DA20: 0.9797322641 | DB20: 0.9715423539 | DC20: 0.8460196238 | DD20: 0.9820001031 | DE20: 0.9341255396 | DF20: 0.9581518134 | DG20: 0.8379513057 | DH20: 0.9716809234 | DI20: 0.8684185183
A21: 2010 | B21: 1.004316204 | C21: 1.009970633 | D21: 0.9398025207 | E21: 1.018238082 | F21: 1.132164791 | H21: 0.9325055163 | J21: 1.090110115 | K21: 1.074498133 | M21: 1.239108195 | N21: 0.9807336024 | P21: 0.7064664212 | Q21: 0.9864276475 | R21: 0.9436407415 | U21: 1.004316204 | W21: 0.9398025207 | X21: 1.018238082 | Y21: 1.132164791 | AA21: 0.9325055163 | AC21: 1.090110115 | AD21: 1.074498133 | AF21: 1.239108195 | AG21: 0.9807336024 | AI21: 0.7064664212 | AJ21: 0.9864276475 | AK21: 0.9436407415 | AN21: 1.06239935 | AO21: 1.039836207 | AP21: 1.024641432 | AQ21: 0.931384056 | AR21: 0.959502914 | AS21: 0.984775391 | AT21: 0.8972807365 | AU21: 1.033244456 | AW21: 1.060919787 | AX21: 0.9950563873 | AZ21: 0.9709254311 | BA21: 1.036010105 | BB21: 0.7327483851 | BC21: 1.044725273 | BD21: 1.020672227 | BG21: 1.06239935 | BI21: 1.024641432 | BJ21: 0.931384056 | BK21: 0.959502914 | BM21: 0.8972807365 | BN21: 1.033244456 | BP21: 1.060919787 | BQ21: 0.9950563873 | BS21: 0.9709254311 | BT21: 1.036010105 | BU21: 0.7327483851 | BV21: 1.044725273 | BW21: 1.020672227 | BZ21: 1.027357958 | CA21: 1.013432384 | CB21: 0.9546216939 | CC21: 0.9223307636 | CD21: 0.9177075595 | CE21: 0.9569825695 | CF21: 0.9257186945 | CG21: 1.034060791 | CH21: 1.100334448 | CI21: 1.057943478 | CJ21: 0.9846263307 | CK21: 1.218000938 | CL21: 0.9627494882 | CM21: 1.033991013 | CN21: 0.6655820677 | CO21: 1.00225683 | CP21: 0.9470618191 | CQ21: 1.14327025 | CS21: 1.027357958 | CU21: 0.9546216939 | CV21: 0.9223307636 | CW21: 0.9177075595 | CY21: 0.9257186945 | CZ21: 1.034060791 | DA21: 1.100334448 | DB21: 1.057943478 | DC21: 0.9846263307 | DD21: 1.218000938 | DE21: 0.9627494882 | DF21: 1.033991013 | DG21: 0.6655820677 | DH21: 1.00225683 | DI21: 0.9470618191
A22: 2011 | B22: 0.9943389949 | C22: 1.043533303 | D22: 1.027473616 | E22: 0.9021196249 | F22: 0.6877222223 | H22: 1.002021881 | J22: 1.016737404 | K22: 0.9841905236 | L22: 0.9802315563 | M22: 0.9767515306 | N22: 0.9043113747 | O22: 0.9850969627 | P22: 0.9907372621 | Q22: 1.066622269 | R22: 0.9993918673 | U22: 0.9943389949 | W22: 1.027473616 | X22: 0.9021196249 | Y22: 0.6877222223 | AA22: 1.002021881 | AC22: 1.016737404 | AD22: 0.9841905236 | AE22: 0.9802315563 | AF22: 0.9767515306 | AG22: 0.9043113747 | AH22: 0.9850969627 | AI22: 0.9907372621 | AJ22: 1.066622269 | AK22: 0.9993918673 | AN22: 0.9932440695 | AO22: 1.048163817 | AP22: 1.055612145 | AQ22: 0.9570534263 | AR22: 1.074220339 | AS22: 0.9838079846 | AT22: 1.033475442 | AU22: 0.9530693366 | AW22: 1.093444093 | AX22: 0.996597932 | AZ22: 0.9803807304 | BA22: 0.9873376614 | BB22: 1.020074969 | BC22: 1.072646617 | BD22: 1.084448908 | BG22: 0.9932440695 | BI22: 1.055612145 | BJ22: 0.9570534263 | BK22: 1.074220339 | BM22: 1.033475442 | BN22: 0.9530693366 | BP22: 1.093444093 | BQ22: 0.996597932 | BS22: 0.9803807304 | BT22: 0.9873376614 | BU22: 1.020074969 | BV22: 1.072646617 | BW22: 1.084448908 | BZ22: 0.9816684682 | CA22: 1.043044758 | CB22: 1.030013509 | CC22: 0.78955671 | CD22: 0.927368348 | CE22: 0.9537602237 | CF22: 0.9665822155 | CG22: 0.9557141185 | CH22: 1.042242501 | CI22: 0.9853880648 | CJ22: 0.9866504878 | CK22: 0.9931127629 | CL22: 0.9068139963 | CM22: 0.9897263137 | CN22: 1.041289843 | CO22: 1.045294212 | CP22: 0.9900873151 | CQ22: 1.047662258 | CS22: 0.9816684682 | CU22: 1.030013509 | CV22: 0.78955671 | CW22: 0.927368348 | CY22: 0.9665822155 | CZ22: 0.9557141185 | DA22: 1.042242501 | DB22: 0.9853880648 | DC22: 0.9866504878 | DD22: 0.9931127629 | DE22: 0.9068139963 | DF22: 0.9897263137 | DG22: 1.041289843 | DH22: 1.045294212 | DI22: 0.9900873151
A23: 2012 | B23: 1.027969279 | C23: 0.9584105578 | D23: 1.01660914 | E23: 0.9653531982 | F23: 1.226344566 | H23: 0.9067891626 | J23: 0.9644811834 | K23: 1.039198366 | L23: 0.9879664976 | M23: 1.044801415 | N23: 0.8726242042 | O23: 0.9143674553 | P23: 1.03997492 | Q23: 0.9771144634 | R23: 1.054188272 | U23: 1.027969279 | W23: 1.01660914 | X23: 0.9653531982 | Y23: 1.226344566 | AA23: 0.9067891626 | AC23: 0.9644811834 | AD23: 1.039198366 | AE23: 0.9879664976 | AF23: 1.044801415 | AG23: 0.8726242042 | AH23: 0.9143674553 | AI23: 1.03997492 | AJ23: 0.9771144634 | AK23: 1.054188272 | AN23: 1.008860033 | AO23: 1.037549215 | AP23: 1.046131245 | AQ23: 1.035984552 | AR23: 1.002147582 | AS23: 1.000832953 | AT23: 0.8889958055 | AU23: 0.9309740921 | AW23: 1.049707114 | AX23: 0.9773570171 | AZ23: 0.9479845025 | BA23: 0.975514213 | BB23: 1.042898396 | BC23: 0.9637367736 | BD23: 1.049324356 | BG23: 1.008860033 | BI23: 1.046131245 | BJ23: 1.035984552 | BK23: 1.002147582 | BM23: 0.8889958055 | BN23: 0.9309740921 | BP23: 1.049707114 | BQ23: 0.9773570171 | BS23: 0.9479845025 | BT23: 0.975514213 | BU23: 1.042898396 | BV23: 0.9637367736 | BW23: 1.049324356 | BZ23: 0.9990498764 | CA23: 0.9762178568 | CB23: 1.014199565 | CC23: 0.9512049352 | CD23: 0.9311506861 | CE23: 0.9852175192 | CF23: 0.9053419031 | CG23: 0.9554512951 | CH23: 0.9568541309 | CI23: 1.028946593 | CJ23: 0.9777529628 | CK23: 1.023663586 | CL23: 0.8666889968 | CM23: 0.9200933813 | CN23: 0.9955909807 | CO23: 0.9498111034 | CP23: 1.053665646 | CQ23: 1.070934582 | CS23: 0.9990498764 | CU23: 1.014199565 | CV23: 0.9512049352 | CW23: 0.9311506861 | CY23: 0.9053419031 | CZ23: 0.9554512951 | DA23: 0.9568541309 | DB23: 1.028946593 | DC23: 0.9777529628 | DD23: 1.023663586 | DE23: 0.8666889968 | DF23: 0.9200933813 | DG23: 0.9955909807 | DH23: 0.9498111034 | DI23: 1.053665646
A24: 2013 | B24: 1.043796246 | C24: 1.011974193 | D24: 0.9654824754 | E24: 1.000497205 | F24: 1.099172645 | H24: 0.9039987527 | J24: 1.061940763 | K24: 0.8857472021 | L24: 1.071724482 | M24: 0.999697516 | N24: 0.939317877 | O24: 0.998364779 | P24: 1.012904417 | Q24: 0.9389874116 | R24: 0.9655779724 | U24: 1.043796246 | W24: 0.9654824754 | X24: 1.000497205 | Y24: 1.099172645 | AA24: 0.9039987527 | AC24: 1.061940763 | AD24: 0.8857472021 | AE24: 1.071724482 | AF24: 0.999697516 | AG24: 0.939317877 | AH24: 0.998364779 | AI24: 1.012904417 | AJ24: 0.9389874116 | AK24: 0.9655779724 | AN24: 1.028767082 | AO24: 0.984221562 | AP24: 0.937407138 | AQ24: 0.9057192507 | AR24: 1.086263382 | AS24: 0.9748621507 | AT24: 0.9576826962 | AU24: 0.9952110861 | AW24: 0.9530528667 | AX24: 1.053399147 | AZ24: 0.9526661515 | BA24: 1.038747103 | BB24: 1.063614542 | BC24: 0.9676415471 | BD24: 0.999962991 | BG24: 1.028767082 | BI24: 0.937407138 | BJ24: 0.9057192507 | BK24: 1.086263382 | BM24: 0.9576826962 | BN24: 0.9952110861 | BP24: 0.9530528667 | BQ24: 1.053399147 | BS24: 0.9526661515 | BT24: 1.038747103 | BU24: 1.063614542 | BV24: 0.9676415471 | BW24: 0.999962991 | BZ24: 1.030311485 | CA24: 1.014324686 | CB24: 0.9423866036 | CC24: 1.005587406 | CD24: 1.114645621 | CE24: 0.9493696399 | CF24: 0.8882574427 | CG24: 1.094334582 | CH24: 1.075290823 | CI24: 0.8861141231 | CJ24: 1.062927435 | CK24: 0.9719091618 | CL24: 0.8843881857 | CM24: 1.005523218 | CN24: 1.026777286 | CO24: 0.9369056882 | CP24: 0.9790380185 | CQ24: 0.987835412 | CS24: 1.030311485 | CU24: 0.9423866036 | CV24: 1.005587406 | CW24: 1.114645621 | CY24: 0.8882574427 | CZ24: 1.094334582 | DA24: 1.075290823 | DB24: 0.8861141231 | DC24: 1.062927435 | DD24: 0.9719091618 | DE24: 0.8843881857 | DF24: 1.005523218 | DG24: 1.026777286 | DH24: 0.9369056882 | DI24: 0.9790380185
